Workbook

Sheet SoS >> START
B2: How-To
B4: Krok 1 | C4: W zakładce Kampanie, wybierz opcję 'Niestandardowy zakres czasu'
B15: Krok 2 | C15: Wybierz Kolumny poniżej i Zapisz
B32: Krok 3 | C32: Dodaj segmenty Sieć, Miesiąc
B53: Step 4 | C53: Utwórz
B54: Step 5 | C54: Odaj odpowiednie kolumny do narzędzia do zakładki 'INPUT'
B55: Step 5 | C55: Zamień w obrębie kolumny B w zakładce INPUT polską nazwę "Sieć reklamowa" na "Display Network" i polską nazwę "Sieć wyszukiwania" na angielską "Google search"
B56: Step 6 | C56: Dodatej Kategorie do kolumny A w zakładce 'INPUT'
B57: Step 7 | C57: Wybierz Zakes dat i Metryki w zakładce 1,3 i 4

Sheet INPUT
A1: Categories | B1: Network | C1: Month | D1: Account | E1: Campaign | F1: Impressions | G1: Clicks | H1: Spend | I1: Avg Position | J1: Conversions | K1: Revenue | L1: IS | M1: Lost IS (Budget) | N1: Lost IS (Rank) | O1: Exact Match IS | P1: Potential Imprs | Q1: Lost Imprs (Budget) | R1: Lost Imprs (Rank) | S1: Potential Exact Imprs | T1: Quarter | U1: Year | V1: Ad Distribution | W1: << hidden columns
A2: Produkt A | B2: Google Search | C2: 2010-10-01 | E2: Meble - Search | F2: 7297.00 | G2: 148.00 | H2: 111.00 | L2: 19.22% | M2: 10.00% | N2: 70.78% | O2: =M2+N2+L2 -> 100.00% | P2: =IF(ISNUMBER($L2),$F2/$L2,IF($L2=" --",0,IF(L2="< 10%",IF(ISNUMBER($N2+$M2),IF($N2+$M2=1,0,$F2/(1-N2-M2)),IF(AND($N2="> 90%",ISNUMBER($M2)),$F2/(0.1-$M2),0)),0))) -> 37,966 | Q2: =IF(ISNUMBER($M2),$M2*$P2,0) -> 3,797 | R2: =IF(ISNUMBER(N2),$N2*$P2,IF($N2="> 90%",0.9*$P2,0)) -> 26,872 | S2: =IF(ISNUMBER(O2),F2/O2,IF(O2="< 10%",F2/0.1,0)) -> 7,297 | T2: =IFERROR(VLOOKUP($C2,Quarters,3,FALSE),"") -> 2010-10-01 | U2: =IFERROR(DATE(YEAR(T2),1,1),"") -> 2010-01-01 | V2: =IF(ISBLANK($B2),"",IF(OR($B2="Google Search",$B2="search partners",$B2="Search Network",ISNUMBER(SEARCH("search",$B2))),"Search","Content")) -> Search
A3: Produkt A | B3: Google Search | C3: 2010-11-01 | E3: Meble - Search | F3: 7195.00 | G3: 147.00 | H3: 110.25 | L3: 11.96% | M3: 10.00% | N3: 78.04% | O3: =M3+N3+L3 -> 100.00% | P3: =IF(ISNUMBER($L3),$F3/$L3,IF($L3=" --",0,IF(L3="< 10%",IF(ISNUMBER($N3+$M3),IF($N3+$M3=1,0,$F3/(1-N3-M3)),IF(AND($N3="> 90%",ISNUMBER($M3)),$F3/(0.1-$M3),0)),0))) -> 60,159 | Q3: =IF(ISNUMBER($M3),$M3*$P3,0) -> 6,016 | R3: =IF(ISNUMBER(N3),$N3*$P3,IF($N3="> 90%",0.9*$P3,0)) -> 46,948 | S3: =IF(ISNUMBER(O3),F3/O3,IF(O3="< 10%",F3/0.1,0)) -> 7,195 | T3: 2010-10-01 | U3: =IFERROR(DATE(YEAR(T3),1,1),"") -> 2010-01-01 | V3: =IF(ISBLANK($B3),"",IF(OR($B3="Google Search",$B3="search partners",$B3="Search Network",ISNUMBER(SEARCH("search",$B3))),"Search","Content")) -> Search
A4: Produkt A | B4: Google Search | C4: 2010-12-01 | E4: Meble - Search | F4: 4905.00 | G4: 105.00 | H4: 78.75 | L4: 11.96% | M4: 10.00% | N4: 78.04% | O4: 100.00% | P4: 41,012 | Q4: =IF(ISNUMBER($M4),$M4*$P4,0) -> 4,101 | R4: =IF(ISNUMBER(N4),$N4*$P4,IF($N4="> 90%",0.9*$P4,0)) -> 32,006 | S4: =IF(ISNUMBER(O4),F4/O4,IF(O4="< 10%",F4/0.1,0)) -> 4,905 | T4: 2010-10-01 | U4: 2010-01-01 | V4: Search
A5: Produkt A | B5: Google Search | C5: 2011-01-01 | E5: Meble - Search | F5: 7578.00 | G5: 134.00 | H5: 60.30 | L5: 12.63% | M5: 10.00% | N5: 77.37% | O5: 100.00% | P5: 60,000 | Q5: 6,000 | R5: 46,422 | S5: 7,578 | V5: Search
A6: Produkt A | B6: Google Search | C6: 2011-02-01 | E6: Meble - Search | F6: 4087.00 | G6: 71.00 | H6: 53.25 | L6: 12.06% | M6: 10.00% | N6: 77.94% | O6: 100.00% | P6: 33,889 | Q6: 3,389 | R6: 26,413 | S6: 4,087 | V6: Search
A7: Produkt A | B7: Google Search | C7: 2011-03-01 | E7: Meble - Search | F7: 3239.00 | G7: 52.00 | H7: 39.00 | L7: 13.62% | M7: 30.85% | N7: 55.53% | O7: 100.00% | P7: 23,781 | Q7: 7,337 | R7: 13,206 | S7: 3,239 | V7: Search
A8: Produkt A | B8: Google Search | C8: 2011-04-01 | E8: Meble - Search | F8: 2840.00 | G8: 44.00 | H8: 41.80 | L8: 13.62% | M8: 30.85% | N8: 55.53% | O8: 100.00% | P8: 20,852 | Q8: 6,433 | R8: 11,579 | S8: 2,840 | V8: Search
A9: Produkt A | B9: Google Search | C9: 2011-05-01 | E9: Meble - Search | F9: 4933.00 | G9: 103.00 | H9: 77.25 | L9: 13.62% | M9: 30.85% | N9: 55.53% | O9: 100.00% | P9: 36,219 | Q9: 11,173 | R9: 20,112 | S9: 4,933 | V9: Search
A10: Produkt A | B10: Google Search | C10: 2011-05-01 | E10: Meble - Search | F10: 1863.00 | G10: 253.00 | H10: 265.65 | L10: 13.62% | M10: 30.85% | N10: 55.53% | O10: 100.00% | P10: 13,678 | Q10: 4,220 | R10: 7,596 | S10: 1,863 | V10: Search
A11: Produkt A | B11: Google Search | C11: 2011-06-01 | E11: Meble - Search | F11: 10909.00 | G11: 219.00 | H11: 164.25 | L11: 10.40% | M11: 40.40% | N11: 49.20% | O11: 100.00% | P11: 104,894 | Q11: 42,377 | R11: 51,608 | S11: 10,909 | V11: Search
A12: Produkt A | B12: Google Search | C12: 2011-07-01 | E12: Meble - Search | F12: 14833.00 | G12: 330.00 | H12: 247.50 | L12: 13.62% | M12: 30.85% | N12: 55.53% | O12: 100.00% | P12: 108,906 | Q12: 33,598 | R12: 60,476 | S12: 14,833 | V12: Search
A13: Produkt A | B13: Display Network | C13: 2010-10-01 | E13: Meble - Content | F13: 218800.00 | G13: 1094.00 | H13: 470.42 | L13: 19.22% | M13: 10.00% | N13: 70.78% | O13: 100.00% | P13: 1,138,398 | Q13: 113,840 | R13: 805,758 | S13: 218,800 | T13: 2010-10-01 | U13: 2010-01-01 | V13: Content
A14: Produkt A | B14: Display Network | C14: 2010-11-01 | E14: Meble - Content | F14: 182425.00 | G14: 1259.00 | H14: 541.37 | L14: 11.96% | M14: 10.00% | N14: 78.04% | O14: 100.00% | P14: 1,525,293 | Q14: 152,529 | R14: 1,190,338 | S14: 182,425 | T14: 2010-10-01 | U14: 2010-01-01 | V14: Content
A15: Produkt A | B15: Display Network | C15: 2010-12-01 | E15: Meble - Content | F15: 179875.00 | G15: 981.00 | H15: 421.83 | L15: 13.62% | M15: 30.85% | N15: 55.53% | O15: 100.00% | P15: 1,320,668 | Q15: 407,426 | R15: 733,367 | S15: 179,875 | T15: 2010-10-01 | U15: 2010-01-01 | V15: Content
A16: Produkt A | B16: Display Network | C16: 2011-01-01 | E16: Meble - Content | F16: 107910.00 | G16: 717.00 | H16: 308.31 | L16: 12.63% | M16: 10.00% | N16: 77.37% | O16: 100.00% | P16: 854,394 | Q16: 85,439 | R16: 661,045 | S16: 107,910 | V16: Content
A17: Produkt A | B17: Display Network | C17: 2011-02-01 | E17: Meble - Content | F17: 219762.00 | G17: 770.00 | H17: 331.10 | L17: 42.06% | M17: 10.00% | N17: 47.94% | O17: 100.00% | P17: 522,496 | Q17: 52,250 | R17: 250,485 | S17: 219,762 | V17: Content
A18: Produkt A | B18: Display Network | C18: 2011-03-01 | E18: Meble - Content | F18: 102175.00 | G18: 542.00 | H18: 233.06 | L18: 42.06% | M18: 10.00% | N18: 47.94% | O18: 100.00% | P18: 242,927 | Q18: 24,293 | R18: 116,459 | S18: 102,175 | V18: Content
A19: Produkt A | B19: Display Network | C19: 2011-04-01 | E19: Meble - Content | F19: 80975.00 | G19: 433.00 | H19: 186.19 | L19: 42.06% | M19: 10.00% | N19: 47.94% | O19: 100.00% | P19: 192,523 | Q19: 19,252 | R19: 92,295 | S19: 80,975 | V19: Content
A20: Produkt A | B20: Display Network | C20: 2011-05-01 | E20: Meble - Content | F20: 71000.00 | G20: 604.00 | H20: 259.72 | L20: 42.06% | M20: 10.00% | N20: 47.94% | O20: 100.00% | P20: 168,806 | Q20: 16,881 | R20: 80,926 | S20: 71,000 | V20: Content
A21: Produkt A | B21: Display Network | C21: 2011-05-01 | E21: Meble - Content | F21: 123325.00 | G21: 1094.00 | H21: 470.42 | L21: 12.06% | M21: 10.00% | N21: 77.94% | O21: 100.00% | P21: 1,022,595 | Q21: 102,260 | R21: 797,011 | S21: 123,325 | V21: Content
A22: Produkt A | B22: Display Network | C22: 2011-06-01 | E22: Meble - Content | F22: 46575.00 | G22: 1445.00 | H22: 621.35 | L22: 10.40% | M22: 40.40% | N22: 49.20% | O22: 100.00% | P22: 447,837 | Q22: 180,926 | R22: 220,336 | S22: 46,575 | V22: Content
A23: Produkt A | B23: Display Network | C23: 2011-07-01 | E23: Meble - Content | F23: 272725.00 | G23: 1928.00 | H23: 829.04 | L23: 13.62% | M23: 30.85% | N23: 55.53% | O23: 100.00% | P23: 2,002,386 | Q23: 617,736 | R23: 1,111,925 | S23: 272,725 | V23: Content
A24: Produkt B | B24: Google Search | C24: 2010-10-01 | E24: Meble - Search | F24: 2432.33 | G24: 49.33 | H24: 21.21 | L24: 19.22% | M24: 10.00% | N24: 70.78% | O24: 100.00% | P24: 12,655 | Q24: 1,266 | R24: 8,957 | S24: 2,432 | T24: 2010-10-01 | U24: 2010-01-01 | V24: Search
A25: Produkt B | B25: Google Search | C25: 2010-11-01 | E25: Meble - Search | F25: 2398.33 | G25: 49.00 | H25: 21.07 | L25: 11.96% | M25: 10.00% | N25: 78.04% | O25: 100.00% | P25: 20,053 | Q25: 2,005 | R25: 15,649 | S25: 2,398 | T25: 2010-10-01 | U25: 2010-01-01 | V25: Search
A26: Produkt B | B26: Google Search | C26: 2010-12-01 | E26: Meble - Search | F26: 1635.00 | G26: 35.00 | H26: 15.05 | L26: 11.96% | M26: 10.00% | N26: 78.04% | O26: 100.00% | P26: 13,671 | Q26: 1,367 | R26: 10,669 | S26: 1,635 | T26: 2010-10-01 | U26: 2010-01-01 | V26: Search
A27: Produkt B | B27: Google Search | C27: 2011-01-01 | E27: Meble - Search | F27: 2526.00 | G27: 44.67 | H27: 19.21 | L27: 11.96% | M27: 10.00% | N27: 78.04% | O27: 100.00% | P27: 21,120 | Q27: 2,112 | R27: 16,482 | S27: 2,526 | V27: Search
A28: Produkt B | B28: Google Search | C28: 2011-02-01 | E28: Meble - Search | F28: 1362.33 | G28: 23.67 | H28: 10.18 | L28: 11.96% | M28: 10.00% | N28: 78.04% | O28: 100.00% | P28: 11,391 | Q28: 1,139 | R28: 8,889 | S28: 1,362 | V28: Search
A29: Produkt B | B29: Google Search | C29: 2011-03-01 | E29: Meble - Search | F29: 1079.67 | G29: 17.33 | H29: 7.45 | L29: 11.96% | M29: 10.00% | N29: 78.04% | O29: 100.00% | P29: 9,027 | Q29: 903 | R29: 7,045 | S29: 1,080 | V29: Search
A30: Produkt B | B30: Google Search | C30: 2011-04-01 | E30: Meble - Search | F30: 946.67 | G30: 14.67 | H30: 6.31 | L30: 11.96% | M30: 10.00% | N30: 78.04% | O30: 100.00% | P30: 7,915 | Q30: 792 | R30: 6,177 | S30: 947 | V30: Search
A31: Produkt B | B31: Google Search | C31: 2011-05-01 | E31: Meble - Search | F31: 1644.33 | G31: 34.33 | H31: 14.76 | L31: 11.96% | M31: 10.00% | N31: 78.04% | O31: 100.00% | P31: 13,749 | Q31: 1,375 | R31: 10,729 | S31: 1,644 | V31: Search
A32: Produkt B | B32: Google Search | C32: 2011-05-01 | E32: Meble - Search | F32: 621.00 | G32: 0.67 | H32: 0.29 | L32: 11.96% | M32: 10.00% | N32: 78.04% | O32: 100.00% | P32: 5,192 | Q32: 519 | R32: 4,052 | S32: 621 | V32: Search
A33: Produkt B | B33: Google Search | C33: 2011-06-01 | E33: Meble - Search | F33: 3636.33 | G33: 73.00 | H33: 31.39 | L33: 10.40% | M33: 40.40% | N33: 49.20% | O33: 100.00% | P33: 34,965 | Q33: 14,126 | R33: 17,203 | S33: 3,636 | V33: Search
A34: Produkt B | B34: Google Search | C34: 2011-07-01 | E34: Meble - Search | F34: 4944.33 | G34: 110.00 | H34: 47.30 | L34: 13.62% | M34: 30.85% | N34: 55.53% | O34: 100.00% | P34: 36,302 | Q34: 11,199 | R34: 20,159 | S34: 4,944 | V34: Search
A35: Produkt B | B35: Display Network | C35: 2010-10-01 | E35: Meble - Content | F35: 72933.33 | G35: 364.67 | H35: 156.81 | L35: 19.22% | M35: 10.00% | N35: 70.78% | O35: 100.00% | P35: 379,466 | Q35: 37,947 | R35: 268,586 | S35: 72,933 | T35: 2010-10-01 | U35: 2010-01-01 | V35: Content
A36: Produkt B | B36: Display Network | C36: 2010-11-01 | E36: Meble - Content | F36: 60808.33 | G36: 419.67 | H36: 180.46 | L36: 11.96% | M36: 10.00% | N36: 78.04% | O36: 100.00% | P36: 508,431 | Q36: 50,843 | R36: 396,779 | S36: 60,808 | T36: 2010-10-01 | U36: 2010-01-01 | V36: Content
A37: Produkt B | B37: Display Network | C37: 2010-12-01 | E37: Meble - Content | F37: 59958.33 | G37: 327.00 | H37: 140.61 | L37: 19.22% | M37: 10.00% | N37: 70.78% | O37: 100.00% | P37: 311,958 | Q37: 31,196 | R37: 220,804 | S37: 59,958 | T37: 2010-10-01 | U37: 2010-01-01 | V37: Content
A38: Produkt B | B38: Display Network | C38: 2011-01-01 | E38: Meble - Content | F38: 35970.00 | G38: 239.00 | H38: 102.77 | L38: 12.63% | M38: 10.00% | N38: 77.37% | O38: 100.00% | P38: 284,798 | Q38: 28,480 | R38: 220,348 | S38: 35,970 | V38: Content
A39: Produkt B | B39: Display Network | C39: 2011-02-01 | E39: Meble - Content | F39: 73254.00 | G39: 256.67 | H39: 110.37 | L39: 12.06% | M39: 10.00% | N39: 77.94% | O39: 100.00% | P39: 607,413 | Q39: 60,741 | R39: 473,418 | S39: 73,254 | V39: Content
A40: Produkt B | B40: Display Network | C40: 2011-03-01 | E40: Meble - Content | F40: 34058.33 | G40: 180.67 | H40: 77.69 | L40: 19.22% | M40: 10.00% | N40: 70.78% | O40: 100.00% | P40: 177,203 | Q40: 17,720 | R40: 125,424 | S40: 34,058 | V40: Content
A41: Produkt B | B41: Display Network | C41: 2011-04-01 | E41: Meble - Content | F41: 26991.67 | G41: 144.33 | H41: 62.06 | L41: 49.74% | M41: 30.95% | N41: 20.21% | O41: 100.90% | P41: 54,266 | Q41: 16,795 | R41: 10,967 | S41: 26,751 | V41: Content
A42: Produkt B | B42: Display Network | C42: 2011-05-01 | E42: Meble - Content | F42: 23666.67 | G42: 201.33 | H42: 86.57 | L42: 10.40% | M42: 40.40% | N42: 49.20% | O42: =M42+N42+L42 -> 100.00% | P42: 227,564 | Q42: 91,936 | R42: 111,962 | S42: 23,667 | V42: Content
A43: Produkt B | B43: Display Network | C43: 2011-05-01 | E43: Meble - Content | F43: 41108.33 | G43: 364.67 | H43: 156.81 | L43: 10.40% | M43: 40.40% | N43: 49.20% | O43: 100.00% | P43: 395,272 | Q43: 159,690 | R43: 194,474 | S43: 41,108 | V43: Content
A44: Produkt B | B44: Display Network | C44: 2011-06-01 | E44: Meble - Content | F44: 15525.00 | G44: 481.67 | H44: 207.12 | L44: 10.40% | M44: 40.40% | N44: 49.20% | O44: 100.00% | P44: 149,279 | Q44: 60,309 | R44: 73,445 | S44: 15,525 | V44: Content
A45: Produkt B | B45: Display Network | C45: 2011-07-01 | E45: Meble - Content | F45: 90908.33 | G45: 642.67 | H45: 276.35 | L45: 13.62% | M45: 30.85% | N45: 55.53% | O45: 100.00% | P45: 667,462 | Q45: 205,912 | R45: 370,642 | S45: 90,908 | V45: Content
P46: 0 | Q46: 0 | R46: 0 | S46: 0
P47: 0 | Q47: 0 | R47: 0 | S47: 0
P48: 0 | Q48: 0 | R48: 0 | S48: 0
P49: 0 | Q49: 0 | R49: 0 | S49: 0
P50: 0 | Q50: 0 | R50: 0 | S50: 0
P51: 0 | Q51: 0 | R51: 0 | S51: 0
P52: 0 | Q52: 0 | R52: 0 | S52: 0
P53: 0 | Q53: 0 | R53: 0 | S53: 0
P54: 0 | Q54: 0 | R54: 0 | S54: 0
P55: 0 | Q55: 0 | R55: 0 | S55: 0
P56: 0 | Q56: 0 | R56: 0 | S56: 0
P57: 0 | Q57: 0 | R57: 0 | S57: 0
P58: 0 | Q58: 0 | R58: 0 | S58: 0
P59: 0 | Q59: 0 | R59: 0 | S59: 0
P60: 0 | Q60: 0 | R60: 0 | S60: 0
P61: 0 | Q61: 0 | R61: 0 | S61: 0
P62: 0 | Q62: 0 | R62: 0 | S62: 0
P63: 0 | Q63: 0 | R63: 0 | S63: 0
P64: 0 | Q64: 0 | R64: 0 | S64: 0
P65: 0 | Q65: 0 | R65: 0 | S65: 0
P66: 0 | Q66: 0 | R66: 0 | S66: 0 | T66: =IFERROR(VLOOKUP($C66,Quarters,3,FALSE),"") -> 
P67: =IF(ISNUMBER($L67),$F67/$L67,IF($L67=" --",0,IF(L67="< 10%",IF(ISNUMBER($N67+$M67),IF($N67+$M67=1,0,$F67/(1-N67-M67)),IF(AND($N67="> 90%",ISNUMBER($M67)),$F67/(0.1-$M67),0)),0))) -> 0 | Q67: 0 | R67: 0 | S67: 0 | U67: =IFERROR(DATE(YEAR(T67),1,1),"") ->  | V67: =IF(ISBLANK($B67),"",IF(OR($B67="Google Search",$B67="search partners",$B67="Search Network",ISNUMBER(SEARCH("search",$B67))),"Search","Content")) -> 
P68: 0 | Q68: =IF(ISNUMBER($M68),$M68*$P68,0) -> 0 | R68: =IF(ISNUMBER(N68),$N68*$P68,IF($N68="> 90%",0.9*$P68,0)) -> 0 | S68: =IF(ISNUMBER(O68),F68/O68,IF(O68="< 10%",F68/0.1,0)) -> 0
P69: 0 | Q69: 0 | R69: 0 | S69: 0
P70: 0 | Q70: 0 | R70: 0 | S70: 0
P71: 0 | Q71: 0 | R71: 0 | S71: 0
P72: 0 | Q72: 0 | R72: 0 | S72: 0
P73: 0 | Q73: 0 | R73: 0 | S73: 0
P74: 0 | Q74: 0 | R74: 0 | S74: 0
P75: 0 | Q75: 0 | R75: 0 | S75: 0
P76: 0 | Q76: 0 | R76: 0 | S76: 0
P77: 0 | Q77: 0 | R77: 0 | S77: 0
P78: 0 | Q78: 0 | R78: 0 | S78: 0
P79: 0 | Q79: 0 | R79: 0 | S79: 0
P80: 0 | Q80: 0 | R80: 0 | S80: 0
P81: 0 | Q81: 0 | R81: 0 | S81: 0
P82: 0 | Q82: 0 | R82: 0 | S82: 0
P83: 0 | Q83: 0 | R83: 0 | S83: 0
P84: 0 | Q84: 0 | R84: 0 | S84: 0
P85: 0 | Q85: 0 | R85: 0 | S85: 0
P86: 0 | Q86: 0 | R86: 0 | S86: 0
P87: 0 | Q87: 0 | R87: 0 | S87: 0
P88: 0 | Q88: 0 | R88: 0 | S88: 0
P89: 0 | Q89: 0 | R89: 0 | S89: 0
P90: 0 | Q90: 0 | R90: 0 | S90: 0
P91: 0 | Q91: 0 | R91: 0 | S91: 0
P92: 0 | Q92: 0 | R92: 0 | S92: 0
P93: 0 | Q93: 0 | R93: 0 | S93: 0
P94: 0 | Q94: 0 | R94: 0 | S94: 0
P95: 0 | Q95: 0 | R95: 0 | S95: 0
P96: 0 | Q96: 0 | R96: 0 | S96: 0
P97: 0 | Q97: 0 | R97: 0 | S97: 0
P98: 0 | Q98: 0 | R98: 0 | S98: 0
P99: 0 | Q99: 0 | R99: 0 | S99: 0
P100: 0 | Q100: 0 | R100: 0 | S100: 0
P101: 0 | Q101: 0 | R101: 0 | S101: 0
P102: 0 | Q102: 0 | R102: 0 | S102: 0
P103: 0 | Q103: 0 | R103: 0 | S103: 0
P104: 0 | Q104: 0 | R104: 0 | S104: 0
P105: 0 | Q105: 0 | R105: 0 | S105: 0
P106: 0 | Q106: 0 | R106: 0 | S106: 0
P107: 0 | Q107: 0 | R107: 0 | S107: 0
P108: 0 | Q108: 0 | R108: 0 | S108: 0
P109: 0 | Q109: 0 | R109: 0 | S109: 0
P110: 0 | Q110: 0 | R110: 0 | S110: 0
P111: 0 | Q111: 0 | R111: 0 | S111: 0
P112: 0 | Q112: 0 | R112: 0 | S112: 0
P113: 0 | Q113: 0 | R113: 0 | S113: 0
P114: 0 | Q114: 0 | R114: 0 | S114: 0
P115: 0 | Q115: 0 | R115: 0 | S115: 0
P116: 0 | Q116: 0 | R116: 0 | S116: 0
P117: 0 | Q117: 0 | R117: 0 | S117: 0
P118: 0 | Q118: 0 | R118: 0 | S118: 0
P119: 0 | Q119: 0 | R119: 0 | S119: 0
P120: 0 | Q120: 0 | R120: 0 | S120: 0
P121: 0 | Q121: 0 | R121: 0 | S121: 0
P122: 0 | Q122: 0 | R122: 0 | S122: 0
P123: 0 | Q123: 0 | R123: 0 | S123: 0
P124: 0 | Q124: 0 | R124: 0 | S124: 0
P125: 0 | Q125: 0 | R125: 0 | S125: 0
P126: 0 | Q126: 0 | R126: 0 | S126: 0
P127: 0 | Q127: 0 | R127: 0 | S127: 0
P128: 0 | Q128: 0 | R128: 0 | S128: 0
P129: 0 | Q129: 0 | R129: 0 | S129: 0
P130: 0 | Q130: 0 | R130: 0 | S130: 0 | T130: =IFERROR(VLOOKUP($C130,Quarters,3,FALSE),"") -> 
P131: =IF(ISNUMBER($L131),$F131/$L131,IF($L131=" --",0,IF(L131="< 10%",IF(ISNUMBER($N131+$M131),IF($N131+$M131=1,0,$F131/(1-N131-M131)),IF(AND($N131="> 90%",ISNUMBER($M131)),$F131/(0.1-$M131),0)),0))) -> 0 | Q131: 0 | R131: 0 | S131: 0 | U131: =IFERROR(DATE(YEAR(T131),1,1),"") ->  | V131: =IF(ISBLANK($B131),"",IF(OR($B131="Google Search",$B131="search partners",$B131="Search Network",ISNUMBER(SEARCH("search",$B131))),"Search","Content")) -> 
P132: 0 | Q132: =IF(ISNUMBER($M132),$M132*$P132,0) -> 0 | R132: =IF(ISNUMBER(N132),$N132*$P132,IF($N132="> 90%",0.9*$P132,0)) -> 0 | S132: =IF(ISNUMBER(O132),F132/O132,IF(O132="< 10%",F132/0.1,0)) -> 0
P133: 0 | Q133: 0 | R133: 0 | S133: 0
P134: 0 | Q134: 0 | R134: 0 | S134: 0
P135: 0 | Q135: 0 | R135: 0 | S135: 0
P136: 0 | Q136: 0 | R136: 0 | S136: 0
P137: 0 | Q137: 0 | R137: 0 | S137: 0
P138: 0 | Q138: 0 | R138: 0 | S138: 0
P139: 0 | Q139: 0 | R139: 0 | S139: 0
P140: 0 | Q140: 0 | R140: 0 | S140: 0
P141: 0 | Q141: 0 | R141: 0 | S141: 0
P142: 0 | Q142: 0 | R142: 0 | S142: 0
P143: 0 | Q143: 0 | R143: 0 | S143: 0
P144: 0 | Q144: 0 | R144: 0 | S144: 0
P145: 0 | Q145: 0 | R145: 0 | S145: 0
P146: 0 | Q146: 0 | R146: 0 | S146: 0
P147: 0 | Q147: 0 | R147: 0 | S147: 0
P148: 0 | Q148: 0 | R148: 0 | S148: 0
P149: 0 | Q149: 0 | R149: 0 | S149: 0
P150: 0 | Q150: 0 | R150: 0 | S150: 0
P151: 0 | Q151: 0 | R151: 0 | S151: 0
P152: 0 | Q152: 0 | R152: 0 | S152: 0
P153: 0 | Q153: 0 | R153: 0 | S153: 0
P154: 0 | Q154: 0 | R154: 0 | S154: 0
P155: 0 | Q155: 0 | R155: 0 | S155: 0
P156: 0 | Q156: 0 | R156: 0 | S156: 0
P157: 0 | Q157: 0 | R157: 0 | S157: 0
P158: 0 | Q158: 0 | R158: 0 | S158: 0
P159: 0 | Q159: 0 | R159: 0 | S159: 0
P160: 0 | Q160: 0 | R160: 0 | S160: 0
P161: 0 | Q161: 0 | R161: 0 | S161: 0
P162: 0 | Q162: 0 | R162: 0 | S162: 0
P163: 0 | Q163: 0 | R163: 0 | S163: 0
P164: 0 | Q164: 0 | R164: 0 | S164: 0
P165: 0 | Q165: 0 | R165: 0 | S165: 0
P166: 0 | Q166: 0 | R166: 0 | S166: 0
P167: 0 | Q167: 0 | R167: 0 | S167: 0
P168: 0 | Q168: 0 | R168: 0 | S168: 0
P169: 0 | Q169: 0 | R169: 0 | S169: 0
P170: 0 | Q170: 0 | R170: 0 | S170: 0
P171: 0 | Q171: 0 | R171: 0 | S171: 0
P172: 0 | Q172: 0 | R172: 0 | S172: 0
P173: 0 | Q173: 0 | R173: 0 | S173: 0
P174: 0 | Q174: 0 | R174: 0 | S174: 0
P175: 0 | Q175: 0 | R175: 0 | S175: 0
P176: 0 | Q176: 0 | R176: 0 | S176: 0
P177: 0 | Q177: 0 | R177: 0 | S177: 0
P178: 0 | Q178: 0 | R178: 0 | S178: 0
P179: 0 | Q179: 0 | R179: 0 | S179: 0
P180: 0 | Q180: 0 | R180: 0 | S180: 0
P181: 0 | Q181: 0 | R181: 0 | S181: 0
P182: 0 | Q182: 0 | R182: 0 | S182: 0
P183: 0 | Q183: 0 | R183: 0 | S183: 0
P184: 0 | Q184: 0 | R184: 0 | S184: 0
P185: 0 | Q185: 0 | R185: 0 | S185: 0
P186: 0 | Q186: 0 | R186: 0 | S186: 0
P187: 0 | Q187: 0 | R187: 0 | S187: 0
P188: 0 | Q188: 0 | R188: 0 | S188: 0
P189: 0 | Q189: 0 | R189: 0 | S189: 0
P190: 0 | Q190: 0 | R190: 0 | S190: 0
P191: 0 | Q191: 0 | R191: 0 | S191: 0
P192: 0 | Q192: 0 | R192: 0 | S192: 0
P193: 0 | Q193: 0 | R193: 0 | S193: 0
P194: 0 | Q194: 0 | R194: 0 | S194: 0 | T194: =IFERROR(VLOOKUP($C194,Quarters,3,FALSE),"") -> 
P195: =IF(ISNUMBER($L195),$F195/$L195,IF($L195=" --",0,IF(L195="< 10%",IF(ISNUMBER($N195+$M195),IF($N195+$M195=1,0,$F195/(1-N195-M195)),IF(AND($N195="> 90%",ISNUMBER($M195)),$F195/(0.1-$M195),0)),0))) -> 0 | Q195: 0 | R195: 0 | S195: 0 | U195: =IFERROR(DATE(YEAR(T195),1,1),"") ->  | V195: =IF(ISBLANK($B195),"",IF(OR($B195="Google Search",$B195="search partners",$B195="Search Network",ISNUMBER(SEARCH("search",$B195))),"Search","Content")) -> 
P196: 0 | Q196: =IF(ISNUMBER($M196),$M196*$P196,0) -> 0 | R196: =IF(ISNUMBER(N196),$N196*$P196,IF($N196="> 90%",0.9*$P196,0)) -> 0 | S196: =IF(ISNUMBER(O196),F196/O196,IF(O196="< 10%",F196/0.1,0)) -> 0
P197: 0 | Q197: 0 | R197: 0 | S197: 0
P198: 0 | Q198: 0 | R198: 0 | S198: 0
P199: 0 | Q199: 0 | R199: 0 | S199: 0
P200: 0 | Q200: 0 | R200: 0 | S200: 0
... 4800 more rows

Sheet 1
B2: Top level - Search and Content | R2: x | AS2: x
B3: Metric | D3: Clicks | G3: << choose Metric
B5: Monthly | R5: x | U5: Monthly data | AS5: x
B6: Months from | D6: 2010-10-01 | E6: to | F6: 2011-07-01 | G6: << choose date range in mmm-yy format | R6: =COUNTIF($V$8:$AS$8,">0") -> 10
U8: Search | V8: =$D$6 -> 2010-10-01 | W8: =IF(DATE(YEAR(V8),MONTH(V8)+1,DAY(V8))>'1'!$F$6,0,IF(V8=0,0,DATE(YEAR(V8),MONTH(V8)+1,DAY(V8)))) -> 2010-11-01 | X8: =IF(DATE(YEAR(W8),MONTH(W8)+1,DAY(W8))>'1'!$F$6,0,IF(W8=0,0,DATE(YEAR(W8),MONTH(W8)+1,DAY(W8)))) -> 2010-12-01 | Y8: =IF(DATE(YEAR(X8),MONTH(X8)+1,DAY(X8))>'1'!$F$6,0,IF(X8=0,0,DATE(YEAR(X8),MONTH(X8)+1,DAY(X8)))) -> 2011-01-01 | Z8: =IF(DATE(YEAR(Y8),MONTH(Y8)+1,DAY(Y8))>'1'!$F$6,0,IF(Y8=0,0,DATE(YEAR(Y8),MONTH(Y8)+1,DAY(Y8)))) -> 2011-02-01 | AA8: =IF(DATE(YEAR(Z8),MONTH(Z8)+1,DAY(Z8))>'1'!$F$6,0,IF(Z8=0,0,DATE(YEAR(Z8),MONTH(Z8)+1,DAY(Z8)))) -> 2011-03-01 | AB8: =IF(DATE(YEAR(AA8),MONTH(AA8)+1,DAY(AA8))>'1'!$F$6,0,IF(AA8=0,0,DATE(YEAR(AA8),MONTH(AA8)+1,DAY(AA8)))) -> 2011-04-01 | AC8: =IF(DATE(YEAR(AB8),MONTH(AB8)+1,DAY(AB8))>'1'!$F$6,0,IF(AB8=0,0,DATE(YEAR(AB8),MONTH(AB8)+1,DAY(AB8)))) -> 2011-05-01 | AD8: =IF(DATE(YEAR(AC8),MONTH(AC8)+1,DAY(AC8))>'1'!$F$6,0,IF(AC8=0,0,DATE(YEAR(AC8),MONTH(AC8)+1,DAY(AC8)))) -> 2011-06-01 | AE8: =IF(DATE(YEAR(AD8),MONTH(AD8)+1,DAY(AD8))>'1'!$F$6,0,IF(AD8=0,0,DATE(YEAR(AD8),MONTH(AD8)+1,DAY(AD8)))) -> 2011-07-01 | AF8: =IF(DATE(YEAR(AE8),MONTH(AE8)+1,DAY(AE8))>'1'!$F$6,0,IF(AE8=0,0,DATE(YEAR(AE8),MONTH(AE8)+1,DAY(AE8)))) -> 00:00:00 | AG8: =IF(DATE(YEAR(AF8),MONTH(AF8)+1,DAY(AF8))>'1'!$F$6,0,IF(AF8=0,0,DATE(YEAR(AF8),MONTH(AF8)+1,DAY(AF8)))) -> 00:00:00 | AH8: =IF(DATE(YEAR(AG8),MONTH(AG8)+1,DAY(AG8))>'1'!$F$6,0,IF(AG8=0,0,DATE(YEAR(AG8),MONTH(AG8)+1,DAY(AG8)))) -> 00:00:00 | AI8: =IF(DATE(YEAR(AH8),MONTH(AH8)+1,DAY(AH8))>'1'!$F$6,0,IF(AH8=0,0,DATE(YEAR(AH8),MONTH(AH8)+1,DAY(AH8)))) -> 00:00:00 | AJ8: =IF(DATE(YEAR(AI8),MONTH(AI8)+1,DAY(AI8))>'1'!$F$6,0,IF(AI8=0,0,DATE(YEAR(AI8),MONTH(AI8)+1,DAY(AI8)))) -> 00:00:00 | AK8: =IF(DATE(YEAR(AJ8),MONTH(AJ8)+1,DAY(AJ8))>'1'!$F$6,0,IF(AJ8=0,0,DATE(YEAR(AJ8),MONTH(AJ8)+1,DAY(AJ8)))) -> 00:00:00 | AL8: =IF(DATE(YEAR(AK8),MONTH(AK8)+1,DAY(AK8))>'1'!$F$6,0,IF(AK8=0,0,DATE(YEAR(AK8),MONTH(AK8)+1,DAY(AK8)))) -> 00:00:00 | AM8: =IF(DATE(YEAR(AL8),MONTH(AL8)+1,DAY(AL8))>'1'!$F$6,0,IF(AL8=0,0,DATE(YEAR(AL8),MONTH(AL8)+1,DAY(AL8)))) -> 00:00:00 | AN8: =IF(DATE(YEAR(AM8),MONTH(AM8)+1,DAY(AM8))>'1'!$F$6,0,IF(AM8=0,0,DATE(YEAR(AM8),MONTH(AM8)+1,DAY(AM8)))) -> 00:00:00 | AO8: =IF(DATE(YEAR(AN8),MONTH(AN8)+1,DAY(AN8))>'1'!$F$6,0,IF(AN8=0,0,DATE(YEAR(AN8),MONTH(AN8)+1,DAY(AN8)))) -> 00:00:00 | AP8: =IF(DATE(YEAR(AO8),MONTH(AO8)+1,DAY(AO8))>'1'!$F$6,0,IF(AO8=0,0,DATE(YEAR(AO8),MONTH(AO8)+1,DAY(AO8)))) -> 00:00:00 | AQ8: =IF(DATE(YEAR(AP8),MONTH(AP8)+1,DAY(AP8))>'1'!$F$6,0,IF(AP8=0,0,DATE(YEAR(AP8),MONTH(AP8)+1,DAY(AP8)))) -> 00:00:00 | AR8: =IF(DATE(YEAR(AQ8),MONTH(AQ8)+1,DAY(AQ8))>'1'!$F$6,0,IF(AQ8=0,0,DATE(YEAR(AQ8),MONTH(AQ8)+1,DAY(AQ8)))) -> 00:00:00 | AS8: =IF(DATE(YEAR(AR8),MONTH(AR8)+1,DAY(AR8))>'1'!$F$6,0,IF(AR8=0,0,DATE(YEAR(AR8),MONTH(AR8)+1,DAY(AR8)))) -> 00:00:00
U9: Impressions | V9: =IF(V$8=0,0,SUMIFS(INDIRECT($U9),Month,V$8,Ad_Distribution,$U$8)) -> 9,729 | W9: 9,593 | X9: 6,540 | Y9: 10,104 | Z9: 5,449 | AA9: 4,319 | AB9: 3,787 | AC9: 9,061 | AD9: 14,545 | AE9: 19,777 | AF9: =IF(AF$8=0,0,SUMIFS(INDIRECT($U9),Month,AF$8,Ad_Distribution,$U$8)) -> 0 | AG9: 0 | AH9: 0 | AI9: 0 | AJ9: 0 | AK9: 0 | AL9: 0 | AM9: 0 | AN9: 0 | AO9: 0 | AP9: 0 | AQ9: 0 | AR9: 0 | AS9: 0
U10: Clicks | V10: 197 | W10: 196 | X10: 140 | Y10: 179 | Z10: 95 | AA10: 69 | AB10: 59 | AC10: 391 | AD10: 292 | AE10: 440 | AF10: 0 | AG10: 0 | AH10: 0 | AI10: 0 | AJ10: 0 | AK10: 0 | AL10: 0 | AM10: 0 | AN10: 0 | AO10: 0 | AP10: 0 | AQ10: 0 | AR10: 0 | AS10: 0
U11: CTR | V11: =IFERROR(V10/V9,0) -> 2.03% | W11: =IFERROR(W10/W9,0) -> 2.04% | X11: 2.14% | Y11: 1.77% | Z11: 1.74% | AA11: 1.61% | AB11: 1.55% | AC11: 4.32% | AD11: 2.01% | AE11: 2.22% | AF11: 0.00% | AG11: 0.00% | AH11: 0.00% | AI11: 0.00% | AJ11: 0.00% | AK11: 0.00% | AL11: 0.00% | AM11: 0.00% | AN11: 0.00% | AO11: 0.00% | AP11: 0.00% | AQ11: 0.00% | AR11: 0.00% | AS11: 0.00%
U12: CPC | V12: =IFERROR(V13/V10,0) -> 0.67 | W12: =IFERROR(W13/W10,0) -> 0.67 | X12: 0.67 | Y12: 0.45 | Z12: 0.67 | AA12: 0.67 | AB12: 0.82 | AC12: 0.92 | AD12: 0.67 | AE12: 0.67 | AF12: 0.00 | AG12: 0.00 | AH12: 0.00 | AI12: 0.00 | AJ12: 0.00 | AK12: 0.00 | AL12: 0.00 | AM12: 0.00 | AN12: 0.00 | AO12: 0.00 | AP12: 0.00 | AQ12: 0.00 | AR12: 0.00 | AS12: 0.00
U13: Spend | V13: =IF(V$8=0,0,SUMIFS(INDIRECT($U13),Month,V$8,Ad_Distribution,$U$8)) -> 132 | W13: 131 | X13: 94 | Y13: 80 | Z13: 63 | AA13: 46 | AB13: 48 | AC13: 358 | AD13: 196 | AE13: 295 | AF13: =IF(AF$8=0,0,SUMIFS(INDIRECT($U13),Month,AF$8,Ad_Distribution,$U$8)) -> 0 | AG13: 0 | AH13: 0 | AI13: 0 | AJ13: 0 | AK13: 0 | AL13: 0 | AM13: 0 | AN13: 0 | AO13: 0 | AP13: 0 | AQ13: 0 | AR13: 0 | AS13: 0
U14: Conversions | V14: 0 | W14: 0 | X14: 0 | Y14: 0 | Z14: 0 | AA14: 0 | AB14: 0 | AC14: 0 | AD14: 0 | AE14: 0 | AF14: 0 | AG14: 0 | AH14: 0 | AI14: 0 | AJ14: 0 | AK14: 0 | AL14: 0 | AM14: 0 | AN14: 0 | AO14: 0 | AP14: 0 | AQ14: 0 | AR14: 0 | AS14: 0
U15: Conversion rate | V15: =IFERROR(V14/V10,0) -> 0.0% | W15: =IFERROR(W14/W10,0) -> 0.0% | X15: 0.0% | Y15: 0.0% | Z15: 0.0% | AA15: 0.0% | AB15: 0.0% | AC15: 0.0% | AD15: 0.0% | AE15: 0.0% | AF15: 0.0% | AG15: 0.0% | AH15: 0.0% | AI15: 0.0% | AJ15: 0.0% | AK15: 0.0% | AL15: 0.0% | AM15: 0.0% | AN15: 0.0% | AO15: 0.0% | AP15: 0.0% | AQ15: 0.0% | AR15: 0.0% | AS15: 0.0%
U16: Cost per conversion | V16: =IFERROR(V13/V14,0) -> 0 | W16: =IFERROR(W13/W14,0) -> 0 | X16: 0 | Y16: 0 | Z16: 0 | AA16: 0 | AB16: 0 | AC16: 0 | AD16: 0 | AE16: 0 | AF16: 0 | AG16: 0 | AH16: 0 | AI16: 0 | AJ16: 0 | AK16: 0 | AL16: 0 | AM16: 0 | AN16: 0 | AO16: 0 | AP16: 0 | AQ16: 0 | AR16: 0 | AS16: 0
U17: Revenue | V17: =IF(V$8=0,0,SUMIFS(INDIRECT($U17),Month,V$8,Ad_Distribution,$U$8)) -> 0 | W17: 0 | X17: 0 | Y17: 0 | Z17: 0 | AA17: 0 | AB17: 0 | AC17: 0 | AD17: 0 | AE17: 0 | AF17: 0 | AG17: 0 | AH17: 0 | AI17: 0 | AJ17: 0 | AK17: 0 | AL17: 0 | AM17: 0 | AN17: 0 | AO17: 0 | AP17: 0 | AQ17: 0 | AR17: 0 | AS17: 0
U18: AOV | V18: =IFERROR(V17/V14,0) -> 0 | W18: 0 | X18: 0 | Y18: 0 | Z18: 0 | AA18: 0 | AB18: 0 | AC18: 0 | AD18: 0 | AE18: 0 | AF18: 0 | AG18: 0 | AH18: 0 | AI18: 0 | AJ18: 0 | AK18: 0 | AL18: 0 | AM18: 0 | AN18: 0 | AO18: 0 | AP18: 0 | AQ18: 0 | AR18: 0 | AS18: 0
U19: ROI | V19: =IF($U19="ROI",IFERROR((V17/V13)-1,0),IFERROR(V13/V17,0)) -> -1.0 | W19: -1.0 | X19: -1.0 | Y19: -1.0 | Z19: -1.0 | AA19: -1.0 | AB19: -1.0 | AC19: -1.0 | AD19: -1.0 | AE19: -1.0 | AF19: 0.0 | AG19: 0.0 | AH19: 0.0 | AI19: 0.0 | AJ19: 0.0 | AK19: 0.0 | AL19: 0.0 | AM19: 0.0 | AN19: 0.0 | AO19: 0.0 | AP19: 0.0 | AQ19: 0.0 | AR19: 0.0 | AS19: 0.0
U20: Avg. Position | V20: =IFERROR(SUMPRODUCT(--(Ad_Distribution="Search"),--(Month=V$8),Ad_Position,Impressions)/V9,0) -> 0.0 | W20: 0.0 | X20: 0.0 | Y20: 0.0 | Z20: 0.0 | AA20: 0.0 | AB20: 0.0 | AC20: 0.0 | AD20: 0.0 | AE20: 0.0 | AF20: 0.0 | AG20: 0.0 | AH20: 0.0 | AI20: 0.0 | AJ20: 0.0 | AK20: 0.0 | AL20: 0.0 | AM20: 0.0 | AN20: 0.0 | AO20: 0.0 | AP20: 0.0 | AQ20: 0.0 | AR20: 0.0 | AS20: 0.0
U22: Content | V22: =V$8 -> 2010-10-01 | W22: =W$8 -> 2010-11-01 | X22: 2010-12-01 | Y22: 2011-01-01 | Z22: 2011-02-01 | AA22: 2011-03-01 | AB22: 2011-04-01 | AC22: 2011-05-01 | AD22: 2011-06-01 | AE22: 2011-07-01 | AF22: 00:00:00 | AG22: 00:00:00 | AH22: 00:00:00 | AI22: 00:00:00 | AJ22: 00:00:00 | AK22: 00:00:00 | AL22: 00:00:00 | AM22: 00:00:00 | AN22: 00:00:00 | AO22: 00:00:00 | AP22: 00:00:00 | AQ22: 00:00:00 | AR22: 00:00:00 | AS22: 00:00:00
U23: Impressions | V23: =IF(V$22=0,0,SUMIFS(INDIRECT($U23),Month,V$22,Ad_Distribution,$U$22)) -> 291,733 | W23: 243,233 | X23: 239,833 | Y23: 143,880 | Z23: 293,016 | AA23: 136,233 | AB23: 107,967 | AC23: 259,100 | AD23: 62,100 | AE23: 363,633 | AF23: =IF(AF$22=0,0,SUMIFS(INDIRECT($U23),Month,AF$22,Ad_Distribution,$U$22)) -> 0 | AG23: 0 | AH23: 0 | AI23: 0 | AJ23: 0 | AK23: 0 | AL23: 0 | AM23: 0 | AN23: 0 | AO23: 0 | AP23: 0 | AQ23: 0 | AR23: 0 | AS23: 0
U24: Clicks | V24: 1,459 | W24: 1,679 | X24: 1,308 | Y24: 956 | Z24: 1,027 | AA24: 723 | AB24: 577 | AC24: 2,264 | AD24: 1,927 | AE24: 2,571 | AF24: 0 | AG24: 0 | AH24: 0 | AI24: 0 | AJ24: 0 | AK24: 0 | AL24: 0 | AM24: 0 | AN24: 0 | AO24: 0 | AP24: 0 | AQ24: 0 | AR24: 0 | AS24: 0
U25: CTR | V25: =IFERROR(V24/V23,0) -> 0.50% | W25: =IFERROR(W24/W23,0) -> 0.69% | X25: 0.55% | Y25: 0.66% | Z25: 0.35% | AA25: 0.53% | AB25: 0.53% | AC25: 0.87% | AD25: 3.10% | AE25: 0.71% | AF25: 0.00% | AG25: 0.00% | AH25: 0.00% | AI25: 0.00% | AJ25: 0.00% | AK25: 0.00% | AL25: 0.00% | AM25: 0.00% | AN25: 0.00% | AO25: 0.00% | AP25: 0.00% | AQ25: 0.00% | AR25: 0.00% | AS25: 0.00%
U26: CPC | V26: =IFERROR(V28/V24,0) -> 0.43 | W26: 0.43 | X26: 0.43 | Y26: 0.43 | Z26: 0.43 | AA26: 0.43 | AB26: 0.43 | AC26: 0.43 | AD26: 0.43 | AE26: 0.43 | AF26: 0.00 | AG26: 0.00 | AH26: 0.00 | AI26: 0.00 | AJ26: 0.00 | AK26: 0.00 | AL26: 0.00 | AM26: 0.00 | AN26: 0.00 | AO26: 0.00 | AP26: 0.00 | AQ26: 0.00 | AR26: 0.00 | AS26: 0.00
U27: CPM | V27: =IFERROR(V28*1000/V23,0) -> 2.15 | W27: =IFERROR(W28*1000/W23,0) -> 2.97 | X27: 2.35 | Y27: 2.86 | Z27: 1.51 | AA27: 2.28 | AB27: 2.30 | AC27: 3.76 | AD27: 13.34 | AE27: 3.04 | AF27: 0.00 | AG27: 0.00 | AH27: 0.00 | AI27: 0.00 | AJ27: 0.00 | AK27: 0.00 | AL27: 0.00 | AM27: 0.00 | AN27: 0.00 | AO27: 0.00 | AP27: 0.00 | AQ27: 0.00 | AR27: 0.00 | AS27: 0.00
U28: Spend | V28: =IF(V$22=0,0,SUMIFS(INDIRECT($U28),Month,V$22,Ad_Distribution,$U$22)) -> 627 | W28: 722 | X28: 562 | Y28: 411 | Z28: 441 | AA28: 311 | AB28: 248 | AC28: 974 | AD28: 828 | AE28: 1,105 | AF28: =IF(AF$22=0,0,SUMIFS(INDIRECT($U28),Month,AF$22,Ad_Distribution,$U$22)) -> 0 | AG28: 0 | AH28: 0 | AI28: 0 | AJ28: 0 | AK28: 0 | AL28: 0 | AM28: 0 | AN28: 0 | AO28: 0 | AP28: 0 | AQ28: 0 | AR28: 0 | AS28: 0
U29: Conversions | V29: 0 | W29: 0 | X29: 0 | Y29: 0 | Z29: 0 | AA29: 0 | AB29: 0 | AC29: 0 | AD29: 0 | AE29: 0 | AF29: 0 | AG29: 0 | AH29: 0 | AI29: 0 | AJ29: 0 | AK29: 0 | AL29: 0 | AM29: 0 | AN29: 0 | AO29: 0 | AP29: 0 | AQ29: 0 | AR29: 0 | AS29: 0
U30: Conversion rate | V30: =IFERROR(V29/V24,0) -> 0.0% | W30: 0.0% | X30: 0.0% | Y30: 0.0% | Z30: 0.0% | AA30: 0.0% | AB30: 0.0% | AC30: 0.0% | AD30: 0.0% | AE30: 0.0% | AF30: 0.0% | AG30: 0.0% | AH30: 0.0% | AI30: 0.0% | AJ30: 0.0% | AK30: 0.0% | AL30: 0.0% | AM30: 0.0% | AN30: 0.0% | AO30: 0.0% | AP30: 0.0% | AQ30: 0.0% | AR30: 0.0% | AS30: 0.0%
U31: Cost per conversion | V31: =IFERROR(V28/V29,0) -> 0 | W31: =IFERROR(W28/W29,0) -> 0 | X31: 0 | Y31: 0 | Z31: 0 | AA31: 0 | AB31: 0 | AC31: 0 | AD31: 0 | AE31: 0 | AF31: 0 | AG31: 0 | AH31: 0 | AI31: 0 | AJ31: 0 | AK31: 0 | AL31: 0 | AM31: 0 | AN31: 0 | AO31: 0 | AP31: 0 | AQ31: 0 | AR31: 0 | AS31: 0
U32: Revenue | V32: =IF(V$22=0,0,SUMIFS(INDIRECT($U32),Month,V$22,Ad_Distribution,$U$22)) -> 0 | W32: 0 | X32: 0 | Y32: 0 | Z32: 0 | AA32: 0 | AB32: 0 | AC32: 0 | AD32: 0 | AE32: 0 | AF32: 0 | AG32: 0 | AH32: 0 | AI32: 0 | AJ32: 0 | AK32: 0 | AL32: 0 | AM32: 0 | AN32: 0 | AO32: 0 | AP32: 0 | AQ32: 0 | AR32: 0 | AS32: 0
U33: AOV | V33: =IFERROR(V32/V29,0) -> 0 | W33: 0 | X33: 0 | Y33: 0 | Z33: 0 | AA33: 0 | AB33: 0 | AC33: 0 | AD33: 0 | AE33: 0 | AF33: 0 | AG33: 0 | AH33: 0 | AI33: 0 | AJ33: 0 | AK33: 0 | AL33: 0 | AM33: 0 | AN33: 0 | AO33: 0 | AP33: 0 | AQ33: 0 | AR33: 0 | AS33: 0
U34: ROI | V34: =IF($U34="ROI",IFERROR((V32/V28)-1,0),IFERROR(V28/V32,0)) -> -1.0 | W34: -1.0 | X34: -1.0 | Y34: -1.0 | Z34: -1.0 | AA34: -1.0 | AB34: -1.0 | AC34: -1.0 | AD34: -1.0 | AE34: -1.0 | AF34: 0.0 | AG34: 0.0 | AH34: 0.0 | AI34: 0.0 | AJ34: 0.0 | AK34: 0.0 | AL34: 0.0 | AM34: 0.0 | AN34: 0.0 | AO34: 0.0 | AP34: 0.0 | AQ34: 0.0 | AR34: 0.0 | AS34: 0.0
U36: Search IS Opportunity | V36: =V$8 -> 2010-10-01 | W36: 2010-11-01 | X36: 2010-12-01 | Y36: 2011-01-01 | Z36: 2011-02-01 | AA36: 2011-03-01 | AB36: 2011-04-01 | AC36: 2011-05-01 | AD36: 2011-06-01 | AE36: 2011-07-01 | AF36: 00:00:00 | AG36: 00:00:00 | AH36: 00:00:00 | AI36: 00:00:00 | AJ36: 00:00:00 | AK36: 00:00:00 | AL36: 00:00:00 | AM36: 00:00:00 | AN36: 00:00:00 | AO36: 00:00:00 | AP36: 00:00:00 | AQ36: 00:00:00 | AR36: 00:00:00 | AS36: 00:00:00
U37: Impression Share | V37: =IFERROR(V9/V38,0) -> 19% | W37: 12% | X37: 12% | Y37: 12% | Z37: 12% | AA37: 13% | AB37: 13% | AC37: 13% | AD37: 10% | AE37: 14% | AF37: 0% | AG37: 0% | AH37: 0% | AI37: 0% | AJ37: 0% | AK37: 0% | AL37: 0% | AM37: 0% | AN37: 0% | AO37: 0% | AP37: 0% | AQ37: 0% | AR37: 0% | AS37: 0%
U38: Potential Imprs | V38: =IF(V$8=0,0,SUMIFS(Potential,Month,V$8,Ad_Distribution,$U$8)) -> 50,621 | W38: 80,212 | X38: 54,682 | Y38: 81,120 | Z38: 45,280 | AA38: 32,809 | AB38: 28,767 | AC38: 68,838 | AD38: 139,859 | AE38: 145,208 | AF38: 0 | AG38: 0 | AH38: 0 | AI38: 0 | AJ38: 0 | AK38: 0 | AL38: 0 | AM38: 0 | AN38: 0 | AO38: 0 | AP38: 0 | AQ38: 0 | AR38: 0 | AS38: 0
U39: Lost IS to budget | V39: =IFERROR(SUMIFS(Lost_Budget,Month,V$8,Ad_Distribution,$U$8)/V$38,0) -> 10% | W39: 10% | X39: 10% | Y39: 10% | Z39: 10% | AA39: 25% | AB39: 25% | AC39: 25% | AD39: 40% | AE39: 31% | AF39: 0% | AG39: 0% | AH39: 0% | AI39: 0% | AJ39: 0% | AK39: 0% | AL39: 0% | AM39: 0% | AN39: 0% | AO39: 0% | AP39: 0% | AQ39: 0% | AR39: 0% | AS39: 0%
U40: Lost IS to rank | V40: =IFERROR(SUMIFS(Lost_Rank,Month,V$8,Ad_Distribution,$U$8)/V$38,0) -> 71% | W40: 78% | X40: 78% | Y40: 78% | Z40: 78% | AA40: 62% | AB40: 62% | AC40: 62% | AD40: 49% | AE40: 56% | AF40: 0% | AG40: 0% | AH40: 0% | AI40: 0% | AJ40: 0% | AK40: 0% | AL40: 0% | AM40: 0% | AN40: 0% | AO40: 0% | AP40: 0% | AQ40: 0% | AR40: 0% | AS40: 0%
U41: Exact Match IS | V41: =IFERROR(V9/V42,0) -> 100% | W41: 100% | X41: 100% | Y41: 100% | Z41: 100% | AA41: 100% | AB41: 100% | AC41: 100% | AD41: 100% | AE41: 100% | AF41: 0% | AG41: 0% | AH41: 0% | AI41: 0% | AJ41: 0% | AK41: 0% | AL41: 0% | AM41: 0% | AN41: 0% | AO41: 0% | AP41: 0% | AQ41: 0% | AR41: 0% | AS41: 0%
U42: Potential Exact Imprs | V42: =IF(V$8=0,0,SUMIFS(ExactIS,Month,V$8,Ad_Distribution,$U$8)) -> 9,729 | W42: 9,593 | X42: 6,540 | Y42: 10,104 | Z42: 5,449 | AA42: 4,319 | AB42: 3,787 | AC42: 9,061 | AD42: 14,545 | AE42: 19,777 | AF42: 0 | AG42: 0 | AH42: 0 | AI42: 0 | AJ42: 0 | AK42: 0 | AL42: 0 | AM42: 0 | AN42: 0 | AO42: 0 | AP42: 0 | AQ42: 0 | AR42: 0 | AS42: 0
B45: Quarterly | R45: x | U45: Quarterly data | AK45: x
B46: Quarters from | D46: Q1'09 | E46: to | F46: Q2'10 | G46: << choose date range in qq'yy format | R46: =COUNTIF($V$47:$AK$47,">0") -> 6
V47: =VLOOKUP($V$48,References!$B:$C,2,FALSE) -> 2009-01-01 | W47: =IF(V$48=$F$46,0,IF(V$47=0,0,DATE(YEAR(V47),MONTH(V47)+3,DAY(V47)))) -> 2009-04-01 | X47: =IF(W$48=$F$46,0,IF(W$47=0,0,DATE(YEAR(W47),MONTH(W47)+3,DAY(W47)))) -> 2009-07-01 | Y47: =IF(X$48=$F$46,0,IF(X$47=0,0,DATE(YEAR(X47),MONTH(X47)+3,DAY(X47)))) -> 2009-10-01 | Z47: =IF(OR(Y$48=$F$46,Y$47=0),0,DATE(YEAR(Y47),MONTH(Y47)+3,DAY(Y47))) -> 2010-01-01 | AA47: 2010-04-01 | AB47: 00:00:00 | AC47: 00:00:00 | AD47: 00:00:00 | AE47: 00:00:00 | AF47: 00:00:00 | AG47: 00:00:00 | AH47: 00:00:00 | AI47: 00:00:00 | AJ47: 00:00:00 | AK47: 00:00:00
U48: Search | V48: =D46 -> Q1'09 | W48: =IF(W$47=0,0,VLOOKUP(W$47,References!$C:$D,2,FALSE)) -> Q2'09 | X48: =IF(X$47=0,0,VLOOKUP(X$47,References!$C:$D,2,FALSE)) -> Q3'09 | Y48: =IF(Y$47=0,0,VLOOKUP(Y$47,References!$C:$D,2,FALSE)) -> Q4'09 | Z48: =IF(Z$47=0,0,VLOOKUP(Z$47,References!$C:$D,2,FALSE)) -> Q1'10 | AA48: =IF(AA$47=0,0,VLOOKUP(AA$47,References!$C:$D,2,FALSE)) -> Q2'10 | AB48: =IF(AB$47=0,0,VLOOKUP(AB$47,References!$C:$D,2,FALSE)) -> 00:00:00 | AC48: =IF(AC$47=0,0,VLOOKUP(AC$47,References!$C:$D,2,FALSE)) -> 00:00:00 | AD48: =IF(AD$47=0,0,VLOOKUP(AD$47,References!$C:$D,2,FALSE)) -> 00:00:00 | AE48: =IF(AE$47=0,0,VLOOKUP(AE$47,References!$C:$D,2,FALSE)) -> 00:00:00 | AF48: =IF(AF$47=0,0,VLOOKUP(AF$47,References!$C:$D,2,FALSE)) -> 00:00:00 | AG48: =IF(AG$47=0,0,VLOOKUP(AG$47,References!$C:$D,2,FALSE)) -> 00:00:00 | AH48: =IF(AH$47=0,0,VLOOKUP(AH$47,References!$C:$D,2,FALSE)) -> 00:00:00 | AI48: =IF(AI$47=0,0,VLOOKUP(AI$47,References!$C:$D,2,FALSE)) -> 00:00:00 | AJ48: =IF(AJ$47=0,0,VLOOKUP(AJ$47,References!$C:$D,2,FALSE)) -> 00:00:00 | AK48: =IF(AK$47=0,0,VLOOKUP(AK$47,References!$C:$D,2,FALSE)) -> 00:00:00
U49: Impressions | V49: =IF(V$48=0,0,SUMIFS(INDIRECT($U49),Quarter,V$47,Ad_Distribution,$U$48)) -> 0 | W49: 0 | X49: 0 | Y49: 0 | Z49: 0 | AA49: 0 | AB49: 0 | AC49: 0 | AD49: 0 | AE49: 0 | AF49: 0 | AG49: 0 | AH49: 0 | AI49: 0 | AJ49: 0 | AK49: 0
U50: Clicks | V50: 0 | W50: 0 | X50: 0 | Y50: 0 | Z50: 0 | AA50: 0 | AB50: 0 | AC50: 0 | AD50: 0 | AE50: 0 | AF50: 0 | AG50: 0 | AH50: 0 | AI50: 0 | AJ50: 0 | AK50: 0
U51: CTR | V51: =IFERROR(V50/V49,0) -> 0.00% | W51: 0.00% | X51: 0.00% | Y51: 0.00% | Z51: 0.00% | AA51: 0.00% | AB51: 0.00% | AC51: 0.00% | AD51: 0.00% | AE51: 0.00% | AF51: 0.00% | AG51: 0.00% | AH51: 0.00% | AI51: 0.00% | AJ51: 0.00% | AK51: 0.00%
U52: CPC | V52: =IFERROR(V53/V50,0) -> 0.00 | W52: 0.00 | X52: 0.00 | Y52: 0.00 | Z52: 0.00 | AA52: 0.00 | AB52: 0.00 | AC52: 0.00 | AD52: 0.00 | AE52: 0.00 | AF52: 0.00 | AG52: 0.00 | AH52: 0.00 | AI52: 0.00 | AJ52: 0.00 | AK52: 0.00
U53: Spend | V53: =IF(V$48=0,0,SUMIFS(INDIRECT($U53),Quarter,V$47,Ad_Distribution,$U$48)) -> 0 | W53: 0 | X53: 0 | Y53: 0 | Z53: 0 | AA53: 0 | AB53: 0 | AC53: 0 | AD53: 0 | AE53: 0 | AF53: 0 | AG53: 0 | AH53: 0 | AI53: 0 | AJ53: 0 | AK53: 0
U54: Conversions | V54: 0 | W54: 0 | X54: 0 | Y54: 0 | Z54: 0 | AA54: 0 | AB54: 0 | AC54: 0 | AD54: 0 | AE54: 0 | AF54: 0 | AG54: 0 | AH54: 0 | AI54: 0 | AJ54: 0 | AK54: 0
U55: Conversion rate | V55: =IFERROR(V54/V50,0) -> 0.0% | W55: =IFERROR(W54/W50,0) -> 0.0% | X55: 0.0% | Y55: 0.0% | Z55: 0.0% | AA55: 0.0% | AB55: 0.0% | AC55: 0.0% | AD55: 0.0% | AE55: 0.0% | AF55: 0.0% | AG55: 0.0% | AH55: 0.0% | AI55: 0.0% | AJ55: 0.0% | AK55: 0.0%
U56: Cost per conversion | V56: =IFERROR(V53/V54,0) -> 0 | W56: =IFERROR(W53/W54,0) -> 0 | X56: 0 | Y56: 0 | Z56: 0 | AA56: 0 | AB56: 0 | AC56: 0 | AD56: 0 | AE56: 0 | AF56: 0 | AG56: 0 | AH56: 0 | AI56: 0 | AJ56: 0 | AK56: 0
U57: Revenue | V57: =IF(V$48=0,0,SUMIFS(INDIRECT($U57),Quarter,V$47,Ad_Distribution,$U$48)) -> 0 | W57: 0 | X57: 0 | Y57: 0 | Z57: 0 | AA57: 0 | AB57: 0 | AC57: 0 | AD57: 0 | AE57: 0 | AF57: 0 | AG57: 0 | AH57: 0 | AI57: 0 | AJ57: 0 | AK57: 0
U58: AOV | V58: =IFERROR(V57/V54,0) -> 0 | W58: 0 | X58: 0 | Y58: 0 | Z58: 0 | AA58: 0 | AB58: 0 | AC58: 0 | AD58: 0 | AE58: 0 | AF58: 0 | AG58: 0 | AH58: 0 | AI58: 0 | AJ58: 0 | AK58: 0
U59: ROI | V59: =IF($U59="ROI",IFERROR((V57/V53)-1,0),IFERROR(V53/V57,0)) -> 0.0 | W59: 0.0 | X59: 0.0 | Y59: 0.0 | Z59: 0.0 | AA59: 0.0 | AB59: 0.0 | AC59: 0.0 | AD59: 0.0 | AE59: 0.0 | AF59: 0.0 | AG59: 0.0 | AH59: 0.0 | AI59: 0.0 | AJ59: 0.0 | AK59: 0.0
U61: Content | V61: =V$48 -> Q1'09 | W61: =W$48 -> Q2'09 | X61: Q3'09 | Y61: Q4'09 | Z61: Q1'10 | AA61: Q2'10 | AB61: 00:00:00 | AC61: 00:00:00 | AD61: 00:00:00 | AE61: 00:00:00 | AF61: 00:00:00 | AG61: 00:00:00 | AH61: 00:00:00 | AI61: 00:00:00 | AJ61: 00:00:00 | AK61: 00:00:00
U62: Impressions | V62: =IF(V$47=0,0,SUMIFS(INDIRECT($U62),Quarter,V$47,Ad_Distribution,$U$61)) -> 0 | W62: 0 | X62: 0 | Y62: 0 | Z62: 0 | AA62: 0 | AB62: 0 | AC62: 0 | AD62: 0 | AE62: 0 | AF62: 0 | AG62: 0 | AH62: 0 | AI62: 0 | AJ62: 0 | AK62: 0
U63: Clicks | V63: 0 | W63: 0 | X63: 0 | Y63: 0 | Z63: 0 | AA63: 0 | AB63: 0 | AC63: 0 | AD63: 0 | AE63: 0 | AF63: 0 | AG63: 0 | AH63: 0 | AI63: 0 | AJ63: 0 | AK63: 0
U64: CTR | V64: =IFERROR(V63/V62,0) -> 0.00% | W64: 0.00% | X64: 0.00% | Y64: 0.00% | Z64: 0.00% | AA64: 0.00% | AB64: 0.00% | AC64: 0.00% | AD64: 0.00% | AE64: 0.00% | AF64: 0.00% | AG64: 0.00% | AH64: 0.00% | AI64: 0.00% | AJ64: 0.00% | AK64: 0.00%
U65: CPC | V65: =IFERROR(V67/V63,0) -> 0.00 | W65: 0.00 | X65: 0.00 | Y65: 0.00 | Z65: 0.00 | AA65: 0.00 | AB65: 0.00 | AC65: 0.00 | AD65: 0.00 | AE65: 0.00 | AF65: 0.00 | AG65: 0.00 | AH65: 0.00 | AI65: 0.00 | AJ65: 0.00 | AK65: 0.00
U66: CPM | V66: =IFERROR(V67*1000/V62,0) -> 0.00 | W66: =IFERROR(W67*1000/W62,0) -> 0.00 | X66: 0.00 | Y66: 0.00 | Z66: 0.00 | AA66: 0.00 | AB66: 0.00 | AC66: 0.00 | AD66: 0.00 | AE66: 0.00 | AF66: 0.00 | AG66: 0.00 | AH66: 0.00 | AI66: 0.00 | AJ66: 0.00 | AK66: 0.00
U67: Spend | V67: =IF(V$47=0,0,SUMIFS(INDIRECT($U67),Quarter,V$47,Ad_Distribution,$U$61)) -> 0 | W67: 0 | X67: 0 | Y67: 0 | Z67: 0 | AA67: 0 | AB67: 0 | AC67: 0 | AD67: 0 | AE67: 0 | AF67: 0 | AG67: 0 | AH67: 0 | AI67: 0 | AJ67: 0 | AK67: 0
U68: Conversions | V68: 0 | W68: 0 | X68: 0 | Y68: 0 | Z68: 0 | AA68: 0 | AB68: 0 | AC68: 0 | AD68: 0 | AE68: 0 | AF68: 0 | AG68: 0 | AH68: 0 | AI68: 0 | AJ68: 0 | AK68: 0
U69: Conversion rate | V69: =IFERROR(V68/V63,0) -> 0.0% | W69: 0.0% | X69: 0.0% | Y69: 0.0% | Z69: 0.0% | AA69: 0.0% | AB69: 0.0% | AC69: 0.0% | AD69: 0.0% | AE69: 0.0% | AF69: 0.0% | AG69: 0.0% | AH69: 0.0% | AI69: 0.0% | AJ69: 0.0% | AK69: 0.0%
U70: Cost per conversion | V70: =IFERROR(V68/V69,0) -> 0 | W70: 0 | X70: 0 | Y70: 0 | Z70: 0 | AA70: 0 | AB70: 0 | AC70: 0 | AD70: 0 | AE70: 0 | AF70: 0 | AG70: 0 | AH70: 0 | AI70: 0 | AJ70: 0 | AK70: 0
U71: Revenue | V71: =IF(V$47=0,0,SUMIFS(INDIRECT($U71),Quarter,V$47,Ad_Distribution,$U$61)) -> 0 | W71: 0 | X71: 0 | Y71: 0 | Z71: 0 | AA71: 0 | AB71: 0 | AC71: 0 | AD71: 0 | AE71: 0 | AF71: 0 | AG71: 0 | AH71: 0 | AI71: 0 | AJ71: 0 | AK71: 0
U72: AOV | V72: =IFERROR(V71/V68,0) -> 0 | W72: 0 | X72: 0 | Y72: 0 | Z72: 0 | AA72: 0 | AB72: 0 | AC72: 0 | AD72: 0 | AE72: 0 | AF72: 0 | AG72: 0 | AH72: 0 | AI72: 0 | AJ72: 0 | AK72: 0
U73: ROI | V73: =IF($U73="ROI",IFERROR((V71/V67)-1,0),IFERROR(V67/V71,0)) -> 0.0 | W73: =IF($U73="ROI",IFERROR((W71/W67)-1,0),IFERROR(W67/W71,0)) -> 0.0 | X73: =IF($U73="ROI",IFERROR((X71/X67)-1,0),IFERROR(X67/X71,0)) -> 0.0 | Y73: 0.0 | Z73: 0.0 | AA73: 0.0 | AB73: 0.0 | AC73: 0.0 | AD73: 0.0 | AE73: 0.0 | AF73: 0.0 | AG73: 0.0 | AH73: 0.0 | AI73: 0.0 | AJ73: 0.0 | AK73: 0.0
U75: Search IS Opportunity | V75: =V$48 -> Q1'09 | W75: =W$48 -> Q2'09 | X75: Q3'09 | Y75: Q4'09 | Z75: Q1'10 | AA75: Q2'10 | AB75: 00:00:00 | AC75: 00:00:00 | AD75: 00:00:00 | AE75: 00:00:00 | AF75: 00:00:00 | AG75: 00:00:00 | AH75: 00:00:00 | AI75: 00:00:00 | AJ75: 00:00:00 | AK75: 00:00:00
U76: Impression Share | V76: =IFERROR(V49/V77,0) -> 0% | W76: =IFERROR(W49/W77,0) -> 0% | X76: 0% | Y76: 0% | Z76: 0% | AA76: 0% | AB76: 0% | AC76: 0% | AD76: 0% | AE76: 0% | AF76: 0% | AG76: 0% | AH76: 0% | AI76: 0% | AJ76: 0% | AK76: 0%
U77: Potential Imprs | V77: =IF(V$48=0,0,SUMIFS(Potential,Quarter,V$47,Ad_Distribution,$U$48)) -> 0 | W77: 0 | X77: 0 | Y77: 0 | Z77: 0 | AA77: 0 | AB77: 0 | AC77: 0 | AD77: 0 | AE77: 0 | AF77: 0 | AG77: 0 | AH77: 0 | AI77: 0 | AJ77: 0 | AK77: 0
U78: Lost IS to budget | V78: =IFERROR(SUMIFS(Lost_Budget,Quarter,V$47,Ad_Distribution,$U$8)/V$77,0) -> 0% | W78: 0% | X78: 0% | Y78: 0% | Z78: 0% | AA78: 0% | AB78: 0% | AC78: 0% | AD78: 0% | AE78: 0% | AF78: 0% | AG78: 0% | AH78: 0% | AI78: 0% | AJ78: 0% | AK78: 0%
U79: Lost IS to rank | V79: =IFERROR(SUMIFS(Lost_Rank,Quarter,V$47,Ad_Distribution,$U$8)/V$77,0) -> 0% | W79: 0% | X79: 0% | Y79: 0% | Z79: 0% | AA79: 0% | AB79: 0% | AC79: 0% | AD79: 0% | AE79: 0% | AF79: 0% | AG79: 0% | AH79: 0% | AI79: 0% | AJ79: 0% | AK79: 0%
U80: Exact Match IS | V80: =IFERROR(V49/V81,0) -> 0% | W80: 0% | X80: 0% | Y80: 0% | Z80: 0% | AA80: 0% | AB80: 0% | AC80: 0% | AD80: 0% | AE80: 0% | AF80: 0% | AG80: 0% | AH80: 0% | AI80: 0% | AJ80: 0% | AK80: 0%
U81: Potential Exact Imprs | V81: =IF(V$48=0,0,SUMIFS(ExactIS,Quarter,V$47,Ad_Distribution,$U$48)) -> 0 | W81: 0 | X81: 0 | Y81: 0 | Z81: 0 | AA81: 0 | AB81: 0 | AC81: 0 | AD81: 0 | AE81: 0 | AF81: 0 | AG81: 0 | AH81: 0 | AI81: 0 | AJ81: 0 | AK81: 0
B85: Yearly - Search and Content | R85: x
B86: Years from | D86: 2008 | E86: to | F86: 2010 | G86: << choose date range in yyyy format | R86: =COUNTIF($V$89:$Z$89,">0") -> 3 | U86: Yearly data
U89: Search | V89: =DATE($D$86,1,1) -> 2008-01-01 | W89: =IF(YEAR(V89)=$F$86,0,IF(V89=0,0,DATE(YEAR(V89)+1,1,1))) -> 2009-01-01 | X89: =IF(YEAR(W89)=$F$86,0,IF(W89=0,0,DATE(YEAR(W89)+1,1,1))) -> 2010-01-01 | Y89: =IF(YEAR(X89)=$F$86,0,IF(X89=0,0,DATE(YEAR(X89)+1,1,1))) -> 00:00:00 | Z89: =IF(YEAR(Y89)=$F$86,0,IF(Y89=0,0,DATE(YEAR(Y89)+1,1,1))) -> 00:00:00 | AB89: YoY Growth | AC89: =IF(W89=0,0,YEAR(W89)&"/"&RIGHT(YEAR(V89),2)) -> 2009/08 | AD89: =IF(X89=0,0,YEAR(X89)&"/"&RIGHT(YEAR(W89),2)) -> 2010/09 | AE89: =IF(Y89=0,0,YEAR(Y89)&"/"&RIGHT(YEAR(X89),2)) -> 00:00:00 | AF89: =IF(Z89=0,0,YEAR(Z89)&"/"&RIGHT(YEAR(Y89),2)) -> 00:00:00 | AG89: =IF(AA89=0,0,YEAR(AA89)&"/"&RIGHT(YEAR(Z89),2)) -> 00:00:00
U90: Impressions | V90: =IF(V$89=0,0,SUMIFS(INDIRECT($U90),Ad_Distribution,$U$89,INPUT!$U:$U,V$89)) -> 0 | W90: =IF(W$89=0,0,SUMIFS(INDIRECT($U90),Ad_Distribution,$U$89,INPUT!$U:$U,W$89)) -> 0 | X90: =IF(X$89=0,0,SUMIFS(INDIRECT($U90),Ad_Distribution,$U$89,INPUT!$U:$U,X$89)) -> 25,863 | Y90: =IF(Y$89=0,0,SUMIFS(INDIRECT($U90),Ad_Distribution,$U$89,INPUT!$U:$U,Y$89)) -> 0 | Z90: =IF(Z$89=0,0,SUMIFS(INDIRECT($U90),Ad_Distribution,$U$89,INPUT!$U:$U,Z$89)) -> 0 | AB90: Impressions | AC90: =IFERROR(W90/V90-1,"") ->  | AD90: =IFERROR(X90/W90-1,"") ->  | AE90: -100%
U91: Clicks | V91: =IF(V$89=0,0,SUMIFS(INDIRECT($U91),Ad_Distribution,$U$89,INPUT!$U:$U,V$89)) -> 0 | W91: =IF(W$89=0,0,SUMIFS(INDIRECT($U91),Ad_Distribution,$U$89,INPUT!$U:$U,W$89)) -> 0 | X91: =IF(X$89=0,0,SUMIFS(INDIRECT($U91),Ad_Distribution,$U$89,INPUT!$U:$U,X$89)) -> 533 | Y91: =IF(Y$89=0,0,SUMIFS(INDIRECT($U91),Ad_Distribution,$U$89,INPUT!$U:$U,Y$89)) -> 0 | Z91: =IF(Z$89=0,0,SUMIFS(INDIRECT($U91),Ad_Distribution,$U$89,INPUT!$U:$U,Z$89)) -> 0 | AB91: Clicks | AC91: =IFERROR(W91/V91-1,"") ->  | AE91: -100%
U92: CTR | V92: =IFERROR(V91/V90,0) -> 0.00% | W92: =IFERROR(W91/W90,0) -> 0.00% | X92: =IFERROR(X91/X90,0) -> 2.06% | Y92: =IFERROR(Y91/Y90,0) -> 0.00% | Z92: =IFERROR(Z91/Z90,0) -> 0.00% | AB92: CTR | AE92: -100%
U93: CPC | V93: =IFERROR(V94/V91,0) -> 0.00 | W93: =IFERROR(W94/W91,0) -> 0.00 | X93: =IFERROR(X94/X91,0) -> 0.67 | Y93: =IFERROR(Y94/Y91,0) -> 0.00 | Z93: =IFERROR(Z94/Z91,0) -> 0.00 | AB93: CPC | AE93: -100%
U94: Spend | V94: =IF(V$89=0,0,SUMIFS(INDIRECT($U94),Ad_Distribution,$U$89,INPUT!$U:$U,V$89)) -> 0 | W94: =IF(W$89=0,0,SUMIFS(INDIRECT($U94),Ad_Distribution,$U$89,INPUT!$U:$U,W$89)) -> 0 | X94: =IF(X$89=0,0,SUMIFS(INDIRECT($U94),Ad_Distribution,$U$89,INPUT!$U:$U,X$89)) -> 357 | Y94: =IF(Y$89=0,0,SUMIFS(INDIRECT($U94),Ad_Distribution,$U$89,INPUT!$U:$U,Y$89)) -> 0 | Z94: =IF(Z$89=0,0,SUMIFS(INDIRECT($U94),Ad_Distribution,$U$89,INPUT!$U:$U,Z$89)) -> 0 | AB94: Cost | AE94: -100%
U95: Conversions | V95: =IF(V$89=0,0,SUMIFS(INDIRECT($U95),Ad_Distribution,$U$89,INPUT!$U:$U,V$89)) -> 0 | W95: =IF(W$89=0,0,SUMIFS(INDIRECT($U95),Ad_Distribution,$U$89,INPUT!$U:$U,W$89)) -> 0 | X95: =IF(X$89=0,0,SUMIFS(INDIRECT($U95),Ad_Distribution,$U$89,INPUT!$U:$U,X$89)) -> 0 | Y95: =IF(Y$89=0,0,SUMIFS(INDIRECT($U95),Ad_Distribution,$U$89,INPUT!$U:$U,Y$89)) -> 0 | Z95: =IF(Z$89=0,0,SUMIFS(INDIRECT($U95),Ad_Distribution,$U$89,INPUT!$U:$U,Z$89)) -> 0 | AB95: Conversions
U96: Conversion rate | V96: =IFERROR(V95/V91,0) -> 0.0% | W96: =IFERROR(W95/W91,0) -> 0.0% | X96: =IFERROR(X95/X91,0) -> 0.0% | Y96: =IFERROR(Y95/Y91,0) -> 0.0% | Z96: =IFERROR(Z95/Z91,0) -> 0.0% | AB96: Conversion rate
U97: Cost per conversion | V97: =IFERROR(V94/V95,0) -> 0 | W97: =IFERROR(W94/W95,0) -> 0 | X97: =IFERROR(X94/X95,0) -> 0 | Y97: =IFERROR(Y94/Y95,0) -> 0 | Z97: =IFERROR(Z94/Z95,0) -> 0 | AB97: Cost per conversion
U98: Revenue | V98: =IF(V$89=0,0,SUMIFS(INDIRECT($U98),Ad_Distribution,$U$89,INPUT!$U:$U,V$89)) -> 0 | W98: =IF(W$89=0,0,SUMIFS(INDIRECT($U98),Ad_Distribution,$U$89,INPUT!$U:$U,W$89)) -> 0 | X98: =IF(X$89=0,0,SUMIFS(INDIRECT($U98),Ad_Distribution,$U$89,INPUT!$U:$U,X$89)) -> 0 | Y98: =IF(Y$89=0,0,SUMIFS(INDIRECT($U98),Ad_Distribution,$U$89,INPUT!$U:$U,Y$89)) -> 0 | Z98: =IF(Z$89=0,0,SUMIFS(INDIRECT($U98),Ad_Distribution,$U$89,INPUT!$U:$U,Z$89)) -> 0 | AB98: Revenue
U99: AOV | V99: =IFERROR(V98/V95,0) -> 0 | W99: =IFERROR(W98/W95,0) -> 0 | X99: =IFERROR(X98/X95,0) -> 0 | Y99: =IFERROR(Y98/Y95,0) -> 0 | Z99: =IFERROR(Z98/Z95,0) -> 0 | AB99: RPC
T100: >> | U100: ROI | V100: =IF($U100="ROI",IFERROR((V98/V94)-1,0),IFERROR(V94/V98,0)) -> 0.0 | W100: =IF($U100="ROI",IFERROR((W98/W94)-1,0),IFERROR(W94/W98,0)) -> 0.0 | X100: =IF($U100="ROI",IFERROR((X98/X94)-1,0),IFERROR(X94/X98,0)) -> -1.0 | Y100: =IF($U100="ROI",IFERROR((Y98/Y94)-1,0),IFERROR(Y94/Y98,0)) -> 0.0 | Z100: =IF($U100="ROI",IFERROR((Z98/Z94)-1,0),IFERROR(Z94/Z98,0)) -> 0.0 | AB100: ROI | AE100: -100%
U102: Content | V102: =V89 -> 2008-01-01 | W102: =W89 -> 2009-01-01 | X102: =X89 -> 2010-01-01 | Y102: =Y89 -> 00:00:00 | Z102: =Z89 -> 00:00:00 | AB102: YoY Growth | AC102: =IF(W102=0,0,YEAR(W102)&"/"&RIGHT(YEAR(V102),2)) -> 2009/08 | AD102: =IF(X102=0,0,YEAR(X102)&"/"&RIGHT(YEAR(W102),2)) -> 2010/09 | AE102: =IF(Y102=0,0,YEAR(Y102)&"/"&RIGHT(YEAR(X102),2)) -> 00:00:00 | AF102: =IF(Z102=0,0,YEAR(Z102)&"/"&RIGHT(YEAR(Y102),2)) -> 00:00:00 | AG102: =IF(AA102=0,0,YEAR(AA102)&"/"&RIGHT(YEAR(Z102),2)) -> 00:00:00
U103: Impressions | V103: =IF(V$89=0,0,SUMIFS(INDIRECT($U103),Ad_Distribution,$U$102,INPUT!$U:$U,V$89)) -> 0 | W103: =IF(W$89=0,0,SUMIFS(INDIRECT($U103),Ad_Distribution,$U$102,INPUT!$U:$U,W$89)) -> 0 | X103: =IF(X$89=0,0,SUMIFS(INDIRECT($U103),Ad_Distribution,$U$102,INPUT!$U:$U,X$89)) -> 774,800 | Y103: =IF(Y$89=0,0,SUMIFS(INDIRECT($U103),Ad_Distribution,$U$102,INPUT!$U:$U,Y$89)) -> 0 | Z103: =IF(Z$89=0,0,SUMIFS(INDIRECT($U103),Ad_Distribution,$U$102,INPUT!$U:$U,Z$89)) -> 0 | AB103: Impressions | AC103: =IFERROR(W103/V103-1,"") ->  | AE103: -100%
U104: Clicks | V104: =IF(V$89=0,0,SUMIFS(INDIRECT($U104),Ad_Distribution,$U$102,INPUT!$U:$U,V$89)) -> 0 | W104: =IF(W$89=0,0,SUMIFS(INDIRECT($U104),Ad_Distribution,$U$102,INPUT!$U:$U,W$89)) -> 0 | X104: =IF(X$89=0,0,SUMIFS(INDIRECT($U104),Ad_Distribution,$U$102,INPUT!$U:$U,X$89)) -> 4,445 | Y104: =IF(Y$89=0,0,SUMIFS(INDIRECT($U104),Ad_Distribution,$U$102,INPUT!$U:$U,Y$89)) -> 0 | Z104: =IF(Z$89=0,0,SUMIFS(INDIRECT($U104),Ad_Distribution,$U$102,INPUT!$U:$U,Z$89)) -> 0 | AB104: Clicks | AE104: -100%
U105: CTR | V105: =IFERROR(V104/V103,0) -> 0.00% | W105: =IFERROR(W104/W103,0) -> 0.00% | X105: =IFERROR(X104/X103,0) -> 0.57% | Y105: =IFERROR(Y104/Y103,0) -> 0.00% | Z105: =IFERROR(Z104/Z103,0) -> 0.00% | AB105: CTR | AE105: -100%
U106: CPC | V106: =IFERROR(V108/V104,0) -> 0.00 | W106: =IFERROR(W108/W104,0) -> 0.00 | X106: =IFERROR(X108/X104,0) -> 0.43 | Y106: =IFERROR(Y108/Y104,0) -> 0.00 | Z106: =IFERROR(Z108/Z104,0) -> 0.00 | AB106: CPC | AE106: -100%
U107: CPM | V107: =IFERROR(V108*1000/V103,0) -> 0.00 | W107: =IFERROR(W108*1000/W103,0) -> 0.00 | X107: =IFERROR(X108*1000/X103,0) -> 2.47 | Y107: =IFERROR(Y108*1000/Y103,0) -> 0.00 | Z107: =IFERROR(Z108*1000/Z103,0) -> 0.00 | AB107: CPC | AE107: -100%
U108: Spend | V108: =IF(V$89=0,0,SUMIFS(INDIRECT($U108),Ad_Distribution,$U$102,INPUT!$U:$U,V$89)) -> 0 | W108: =IF(W$89=0,0,SUMIFS(INDIRECT($U108),Ad_Distribution,$U$102,INPUT!$U:$U,W$89)) -> 0 | X108: =IF(X$89=0,0,SUMIFS(INDIRECT($U108),Ad_Distribution,$U$102,INPUT!$U:$U,X$89)) -> 1,911 | Y108: =IF(Y$89=0,0,SUMIFS(INDIRECT($U108),Ad_Distribution,$U$102,INPUT!$U:$U,Y$89)) -> 0 | Z108: =IF(Z$89=0,0,SUMIFS(INDIRECT($U108),Ad_Distribution,$U$102,INPUT!$U:$U,Z$89)) -> 0 | AB108: Cost | AC108: =IFERROR(W108/V108-1,"") ->  | AE108: -100%
U109: Conversions | V109: =IF(V$89=0,0,SUMIFS(INDIRECT($U109),Ad_Distribution,$U$102,INPUT!$U:$U,V$89)) -> 0 | W109: =IF(W$89=0,0,SUMIFS(INDIRECT($U109),Ad_Distribution,$U$102,INPUT!$U:$U,W$89)) -> 0 | X109: =IF(X$89=0,0,SUMIFS(INDIRECT($U109),Ad_Distribution,$U$102,INPUT!$U:$U,X$89)) -> 0 | Y109: =IF(Y$89=0,0,SUMIFS(INDIRECT($U109),Ad_Distribution,$U$102,INPUT!$U:$U,Y$89)) -> 0 | Z109: =IF(Z$89=0,0,SUMIFS(INDIRECT($U109),Ad_Distribution,$U$102,INPUT!$U:$U,Z$89)) -> 0 | AB109: Conversions
U110: Conversion rate | V110: =IFERROR(V109/V104,0) -> 0.0% | W110: =IFERROR(W109/W104,0) -> 0.0% | X110: =IFERROR(X109/X104,0) -> 0.0% | Y110: =IFERROR(Y109/Y104,0) -> 0.0% | Z110: =IFERROR(Z109/Z104,0) -> 0.0% | AB110: Conversion rate
U111: Cost per conversion | V111: =IFERROR(V108/V109,0) -> 0 | W111: =IFERROR(W108/W109,0) -> 0 | X111: =IFERROR(X108/X109,0) -> 0 | Y111: =IFERROR(Y108/Y109,0) -> 0 | Z111: =IFERROR(Z108/Z109,0) -> 0 | AB111: Cost per conversion
U112: Revenue | V112: =IF(V$89=0,0,SUMIFS(INDIRECT($U112),Ad_Distribution,$U$102,INPUT!$U:$U,V$89)) -> 0 | W112: =IF(W$89=0,0,SUMIFS(INDIRECT($U112),Ad_Distribution,$U$102,INPUT!$U:$U,W$89)) -> 0 | X112: =IF(X$89=0,0,SUMIFS(INDIRECT($U112),Ad_Distribution,$U$102,INPUT!$U:$U,X$89)) -> 0 | Y112: =IF(Y$89=0,0,SUMIFS(INDIRECT($U112),Ad_Distribution,$U$102,INPUT!$U:$U,Y$89)) -> 0 | Z112: =IF(Z$89=0,0,SUMIFS(INDIRECT($U112),Ad_Distribution,$U$102,INPUT!$U:$U,Z$89)) -> 0 | AB112: Revenue
U113: AOV | V113: =IFERROR(V112/V109,0) -> 0 | W113: =IFERROR(W112/W109,0) -> 0 | X113: =IFERROR(X112/X109,0) -> 0 | Y113: =IFERROR(Y112/Y109,0) -> 0 | Z113: =IFERROR(Z112/Z109,0) -> 0 | AB113: RPC
T114: >> | U114: ROI | V114: =IF($U114="ROI",IFERROR((V112/V108)-1,0),IFERROR(V108/V112,0)) -> 0.0 | W114: =IF($U114="ROI",IFERROR((W112/W108)-1,0),IFERROR(W108/W112,0)) -> 0.0 | X114: =IF($U114="ROI",IFERROR((X112/X108)-1,0),IFERROR(X108/X112,0)) -> -1.0 | Y114: =IF($U114="ROI",IFERROR((Y112/Y108)-1,0),IFERROR(Y108/Y112,0)) -> 0.0 | Z114: =IF($U114="ROI",IFERROR((Z112/Z108)-1,0),IFERROR(Z108/Z112,0)) -> 0.0 | AB114: ROI | AE114: -100%

Sheet 2
B2: Top level - Metric comparison | R2: x | AS2: x
B3: Metric | C3: 1 | D3: Spend | E3: 2 | F3: CTR | H3: for | I3: Search | J3: << choose Metrics & Ad Distribution
B5: Monthly | R5: x | U5: Monthly data | AS5: x
B6: Months from | D6: ='1'!$D$6 -> 2010-10-01 | E6: to | F6: ='1'!$F$6 -> 2011-07-01 | G6: << change on slide (1)
U8: Search | V8: ='1'!V8 -> 2010-10-01 | W8: ='1'!W8 -> 2010-11-01 | X8: ='1'!X8 -> 2010-12-01 | Y8: ='1'!Y8 -> 2011-01-01 | Z8: ='1'!Z8 -> 2011-02-01 | AA8: ='1'!AA8 -> 2011-03-01 | AB8: ='1'!AB8 -> 2011-04-01 | AC8: ='1'!AC8 -> 2011-05-01 | AD8: ='1'!AD8 -> 2011-06-01 | AE8: ='1'!AE8 -> 2011-07-01 | AF8: ='1'!AF8 -> 00:00:00 | AG8: ='1'!AG8 -> 00:00:00 | AH8: ='1'!AH8 -> 00:00:00 | AI8: ='1'!AI8 -> 00:00:00 | AJ8: ='1'!AJ8 -> 00:00:00 | AK8: ='1'!AK8 -> 00:00:00 | AL8: ='1'!AL8 -> 00:00:00 | AM8: ='1'!AM8 -> 00:00:00 | AN8: ='1'!AN8 -> 00:00:00 | AO8: ='1'!AO8 -> 00:00:00 | AP8: ='1'!AP8 -> 00:00:00 | AQ8: ='1'!AQ8 -> 00:00:00 | AR8: ='1'!AR8 -> 00:00:00 | AS8: ='1'!AS8 -> 00:00:00
U9: Impressions | V9: ='1'!V9 -> 9,729 | W9: ='1'!W9 -> 9,593 | X9: ='1'!X9 -> 6,540 | Y9: ='1'!Y9 -> 10,104 | Z9: ='1'!Z9 -> 5,449 | AA9: ='1'!AA9 -> 4,319 | AB9: ='1'!AB9 -> 3,787 | AC9: ='1'!AC9 -> 9,061 | AD9: ='1'!AD9 -> 14,545 | AE9: ='1'!AE9 -> 19,777 | AF9: ='1'!AF9 -> 0 | AG9: ='1'!AG9 -> 0 | AH9: ='1'!AH9 -> 0 | AI9: ='1'!AI9 -> 0 | AJ9: ='1'!AJ9 -> 0 | AK9: ='1'!AK9 -> 0 | AL9: ='1'!AL9 -> 0 | AM9: ='1'!AM9 -> 0 | AN9: ='1'!AN9 -> 0 | AO9: ='1'!AO9 -> 0 | AP9: ='1'!AP9 -> 0 | AQ9: ='1'!AQ9 -> 0 | AR9: ='1'!AR9 -> 0 | AS9: ='1'!AS9 -> 0
U10: Clicks | V10: ='1'!V10 -> 197 | W10: ='1'!W10 -> 196 | X10: ='1'!X10 -> 140 | Y10: ='1'!Y10 -> 179 | Z10: ='1'!Z10 -> 95 | AA10: ='1'!AA10 -> 69 | AB10: ='1'!AB10 -> 59 | AC10: ='1'!AC10 -> 391 | AD10: ='1'!AD10 -> 292 | AE10: ='1'!AE10 -> 440 | AF10: ='1'!AF10 -> 0 | AG10: ='1'!AG10 -> 0 | AH10: ='1'!AH10 -> 0 | AI10: ='1'!AI10 -> 0 | AJ10: ='1'!AJ10 -> 0 | AK10: ='1'!AK10 -> 0 | AL10: ='1'!AL10 -> 0 | AM10: ='1'!AM10 -> 0 | AN10: ='1'!AN10 -> 0 | AO10: ='1'!AO10 -> 0 | AP10: ='1'!AP10 -> 0 | AQ10: ='1'!AQ10 -> 0 | AR10: ='1'!AR10 -> 0 | AS10: ='1'!AS10 -> 0
U11: CTR | V11: ='1'!V11 -> 2.03% | W11: ='1'!W11 -> 2.04% | X11: ='1'!X11 -> 2.14% | Y11: ='1'!Y11 -> 1.77% | Z11: ='1'!Z11 -> 1.74% | AA11: ='1'!AA11 -> 1.61% | AB11: ='1'!AB11 -> 1.55% | AC11: ='1'!AC11 -> 4.32% | AD11: ='1'!AD11 -> 2.01% | AE11: ='1'!AE11 -> 2.22% | AF11: ='1'!AF11 -> 0.00% | AG11: ='1'!AG11 -> 0.00% | AH11: ='1'!AH11 -> 0.00% | AI11: ='1'!AI11 -> 0.00% | AJ11: ='1'!AJ11 -> 0.00% | AK11: ='1'!AK11 -> 0.00% | AL11: ='1'!AL11 -> 0.00% | AM11: ='1'!AM11 -> 0.00% | AN11: ='1'!AN11 -> 0.00% | AO11: ='1'!AO11 -> 0.00% | AP11: ='1'!AP11 -> 0.00% | AQ11: ='1'!AQ11 -> 0.00% | AR11: ='1'!AR11 -> 0.00% | AS11: ='1'!AS11 -> 0.00%
U12: CPC | V12: ='1'!V12 -> £0.67 | W12: ='1'!W12 -> £0.67 | X12: ='1'!X12 -> £0.67 | Y12: ='1'!Y12 -> £0.45 | Z12: ='1'!Z12 -> £0.67 | AA12: ='1'!AA12 -> £0.67 | AB12: ='1'!AB12 -> £0.82 | AC12: ='1'!AC12 -> £0.92 | AD12: ='1'!AD12 -> £0.67 | AE12: ='1'!AE12 -> £0.67 | AF12: ='1'!AF12 -> £0.00 | AG12: ='1'!AG12 -> £0.00 | AH12: ='1'!AH12 -> £0.00 | AI12: ='1'!AI12 -> £0.00 | AJ12: ='1'!AJ12 -> £0.00 | AK12: ='1'!AK12 -> £0.00 | AL12: ='1'!AL12 -> £0.00 | AM12: ='1'!AM12 -> £0.00 | AN12: ='1'!AN12 -> £0.00 | AO12: ='1'!AO12 -> £0.00 | AP12: ='1'!AP12 -> £0.00 | AQ12: ='1'!AQ12 -> £0.00 | AR12: ='1'!AR12 -> £0.00 | AS12: ='1'!AS12 -> £0.00
U13: Spend | V13: ='1'!V13 -> 132 | W13: ='1'!W13 -> 131 | X13: ='1'!X13 -> 94 | Y13: ='1'!Y13 -> 80 | Z13: ='1'!Z13 -> 63 | AA13: ='1'!AA13 -> 46 | AB13: ='1'!AB13 -> 48 | AC13: ='1'!AC13 -> 358 | AD13: ='1'!AD13 -> 196 | AE13: ='1'!AE13 -> 295 | AF13: ='1'!AF13 -> 0 | AG13: ='1'!AG13 -> 0 | AH13: ='1'!AH13 -> 0 | AI13: ='1'!AI13 -> 0 | AJ13: ='1'!AJ13 -> 0 | AK13: ='1'!AK13 -> 0 | AL13: ='1'!AL13 -> 0 | AM13: ='1'!AM13 -> 0 | AN13: ='1'!AN13 -> 0 | AO13: ='1'!AO13 -> 0 | AP13: ='1'!AP13 -> 0 | AQ13: ='1'!AQ13 -> 0 | AR13: ='1'!AR13 -> 0 | AS13: ='1'!AS13 -> 0
U14: Conversions | V14: ='1'!V14 -> 0 | W14: ='1'!W14 -> 0 | X14: ='1'!X14 -> 0 | Y14: ='1'!Y14 -> 0 | Z14: ='1'!Z14 -> 0 | AA14: ='1'!AA14 -> 0 | AB14: ='1'!AB14 -> 0 | AC14: ='1'!AC14 -> 0 | AD14: ='1'!AD14 -> 0 | AE14: ='1'!AE14 -> 0 | AF14: ='1'!AF14 -> 0 | AG14: ='1'!AG14 -> 0 | AH14: ='1'!AH14 -> 0 | AI14: ='1'!AI14 -> 0 | AJ14: ='1'!AJ14 -> 0 | AK14: ='1'!AK14 -> 0 | AL14: ='1'!AL14 -> 0 | AM14: ='1'!AM14 -> 0 | AN14: ='1'!AN14 -> 0 | AO14: ='1'!AO14 -> 0 | AP14: ='1'!AP14 -> 0 | AQ14: ='1'!AQ14 -> 0 | AR14: ='1'!AR14 -> 0 | AS14: ='1'!AS14 -> 0
U15: Conversion rate | V15: ='1'!V15 -> 0.0% | W15: ='1'!W15 -> 0.0% | X15: ='1'!X15 -> 0.0% | Y15: ='1'!Y15 -> 0.0% | Z15: ='1'!Z15 -> 0.0% | AA15: ='1'!AA15 -> 0.0% | AB15: ='1'!AB15 -> 0.0% | AC15: ='1'!AC15 -> 0.0% | AD15: ='1'!AD15 -> 0.0% | AE15: ='1'!AE15 -> 0.0% | AF15: ='1'!AF15 -> 0.0% | AG15: ='1'!AG15 -> 0.0% | AH15: ='1'!AH15 -> 0.0% | AI15: ='1'!AI15 -> 0.0% | AJ15: ='1'!AJ15 -> 0.0% | AK15: ='1'!AK15 -> 0.0% | AL15: ='1'!AL15 -> 0.0% | AM15: ='1'!AM15 -> 0.0% | AN15: ='1'!AN15 -> 0.0% | AO15: ='1'!AO15 -> 0.0% | AP15: ='1'!AP15 -> 0.0% | AQ15: ='1'!AQ15 -> 0.0% | AR15: ='1'!AR15 -> 0.0% | AS15: ='1'!AS15 -> 0.0%
U16: Cost per conversion | V16: ='1'!V16 -> 0 | W16: ='1'!W16 -> 0 | X16: ='1'!X16 -> 0 | Y16: ='1'!Y16 -> 0 | Z16: ='1'!Z16 -> 0 | AA16: ='1'!AA16 -> 0 | AB16: ='1'!AB16 -> 0 | AC16: ='1'!AC16 -> 0 | AD16: ='1'!AD16 -> 0 | AE16: ='1'!AE16 -> 0 | AF16: ='1'!AF16 -> 0 | AG16: ='1'!AG16 -> 0 | AH16: ='1'!AH16 -> 0 | AI16: ='1'!AI16 -> 0 | AJ16: ='1'!AJ16 -> 0 | AK16: ='1'!AK16 -> 0 | AL16: ='1'!AL16 -> 0 | AM16: ='1'!AM16 -> 0 | AN16: ='1'!AN16 -> 0 | AO16: ='1'!AO16 -> 0 | AP16: ='1'!AP16 -> 0 | AQ16: ='1'!AQ16 -> 0 | AR16: ='1'!AR16 -> 0 | AS16: ='1'!AS16 -> 0
U17: Revenue | V17: ='1'!V17 -> 0 | W17: ='1'!W17 -> 0 | X17: ='1'!X17 -> 0 | Y17: ='1'!Y17 -> 0 | Z17: ='1'!Z17 -> 0 | AA17: ='1'!AA17 -> 0 | AB17: ='1'!AB17 -> 0 | AC17: ='1'!AC17 -> 0 | AD17: ='1'!AD17 -> 0 | AE17: ='1'!AE17 -> 0 | AF17: ='1'!AF17 -> 0 | AG17: ='1'!AG17 -> 0 | AH17: ='1'!AH17 -> 0 | AI17: ='1'!AI17 -> 0 | AJ17: ='1'!AJ17 -> 0 | AK17: ='1'!AK17 -> 0 | AL17: ='1'!AL17 -> 0 | AM17: ='1'!AM17 -> 0 | AN17: ='1'!AN17 -> 0 | AO17: ='1'!AO17 -> 0 | AP17: ='1'!AP17 -> 0 | AQ17: ='1'!AQ17 -> 0 | AR17: ='1'!AR17 -> 0 | AS17: ='1'!AS17 -> 0
U18: AOV | V18: ='1'!V18 -> 0 | W18: ='1'!W18 -> 0 | X18: ='1'!X18 -> 0 | Y18: ='1'!Y18 -> 0 | Z18: ='1'!Z18 -> 0 | AA18: ='1'!AA18 -> 0 | AB18: ='1'!AB18 -> 0 | AC18: ='1'!AC18 -> 0 | AD18: ='1'!AD18 -> 0 | AE18: ='1'!AE18 -> 0 | AF18: ='1'!AF18 -> 0 | AG18: ='1'!AG18 -> 0 | AH18: ='1'!AH18 -> 0 | AI18: ='1'!AI18 -> 0 | AJ18: ='1'!AJ18 -> 0 | AK18: ='1'!AK18 -> 0 | AL18: ='1'!AL18 -> 0 | AM18: ='1'!AM18 -> 0 | AN18: ='1'!AN18 -> 0 | AO18: ='1'!AO18 -> 0 | AP18: ='1'!AP18 -> 0 | AQ18: ='1'!AQ18 -> 0 | AR18: ='1'!AR18 -> 0 | AS18: ='1'!AS18 -> 0
U19: ='1'!U19 -> ROI | V19: ='1'!V19 -> -1.0 | W19: ='1'!W19 -> -1.0 | X19: ='1'!X19 -> -1.0 | Y19: ='1'!Y19 -> -1.0 | Z19: ='1'!Z19 -> -1.0 | AA19: ='1'!AA19 -> -1.0 | AB19: ='1'!AB19 -> -1.0 | AC19: ='1'!AC19 -> -1.0 | AD19: ='1'!AD19 -> -1.0 | AE19: ='1'!AE19 -> -1.0 | AF19: ='1'!AF19 -> 0.0 | AG19: ='1'!AG19 -> 0.0 | AH19: ='1'!AH19 -> 0.0 | AI19: ='1'!AI19 -> 0.0 | AJ19: ='1'!AJ19 -> 0.0 | AK19: ='1'!AK19 -> 0.0 | AL19: ='1'!AL19 -> 0.0 | AM19: ='1'!AM19 -> 0.0 | AN19: ='1'!AN19 -> 0.0 | AO19: ='1'!AO19 -> 0.0 | AP19: ='1'!AP19 -> 0.0 | AQ19: ='1'!AQ19 -> 0.0 | AR19: ='1'!AR19 -> 0.0 | AS19: ='1'!AS19 -> 0.0
U20: ='1'!U20 -> Avg. Position | V20: ='1'!V20 -> 0.0 | W20: ='1'!W20 -> 0.0 | X20: ='1'!X20 -> 0.0 | Y20: ='1'!Y20 -> 0.0 | Z20: ='1'!Z20 -> 0.0 | AA20: ='1'!AA20 -> 0.0 | AB20: ='1'!AB20 -> 0.0 | AC20: ='1'!AC20 -> 0.0 | AD20: ='1'!AD20 -> 0.0 | AE20: ='1'!AE20 -> 0.0 | AF20: ='1'!AF20 -> 0.0 | AG20: ='1'!AG20 -> 0.0 | AH20: ='1'!AH20 -> 0.0 | AI20: ='1'!AI20 -> 0.0 | AJ20: ='1'!AJ20 -> 0.0 | AK20: ='1'!AK20 -> 0.0 | AL20: ='1'!AL20 -> 0.0 | AM20: ='1'!AM20 -> 0.0 | AN20: ='1'!AN20 -> 0.0 | AO20: ='1'!AO20 -> 0.0 | AP20: ='1'!AP20 -> 0.0 | AQ20: ='1'!AQ20 -> 0.0 | AR20: ='1'!AR20 -> 0.0 | AS20: ='1'!AS20 -> 0.0
U22: Content | V22: ='1'!V22 -> 2010-10-01 | W22: ='1'!W22 -> 2010-11-01 | X22: ='1'!X22 -> 2010-12-01 | Y22: ='1'!Y22 -> 2011-01-01 | Z22: ='1'!Z22 -> 2011-02-01 | AA22: ='1'!AA22 -> 2011-03-01 | AB22: ='1'!AB22 -> 2011-04-01 | AC22: ='1'!AC22 -> 2011-05-01 | AD22: ='1'!AD22 -> 2011-06-01 | AE22: ='1'!AE22 -> 2011-07-01 | AF22: ='1'!AF22 -> 00:00:00 | AG22: ='1'!AG22 -> 00:00:00 | AH22: ='1'!AH22 -> 00:00:00 | AI22: ='1'!AI22 -> 00:00:00 | AJ22: ='1'!AJ22 -> 00:00:00 | AK22: ='1'!AK22 -> 00:00:00 | AL22: ='1'!AL22 -> 00:00:00 | AM22: ='1'!AM22 -> 00:00:00 | AN22: ='1'!AN22 -> 00:00:00 | AO22: ='1'!AO22 -> 00:00:00 | AP22: ='1'!AP22 -> 00:00:00 | AQ22: ='1'!AQ22 -> 00:00:00 | AR22: ='1'!AR22 -> 00:00:00 | AS22: ='1'!AS22 -> 00:00:00
U23: Impressions | V23: ='1'!V23 -> 291,733 | W23: ='1'!W23 -> 243,233 | X23: ='1'!X23 -> 239,833 | Y23: ='1'!Y23 -> 143,880 | Z23: ='1'!Z23 -> 293,016 | AA23: ='1'!AA23 -> 136,233 | AB23: ='1'!AB23 -> 107,967 | AC23: ='1'!AC23 -> 259,100 | AD23: ='1'!AD23 -> 62,100 | AE23: ='1'!AE23 -> 363,633 | AF23: ='1'!AF23 -> 0 | AG23: ='1'!AG23 -> 0 | AH23: ='1'!AH23 -> 0 | AI23: ='1'!AI23 -> 0 | AJ23: ='1'!AJ23 -> 0 | AK23: ='1'!AK23 -> 0 | AL23: ='1'!AL23 -> 0 | AM23: ='1'!AM23 -> 0 | AN23: ='1'!AN23 -> 0 | AO23: ='1'!AO23 -> 0 | AP23: ='1'!AP23 -> 0 | AQ23: ='1'!AQ23 -> 0 | AR23: ='1'!AR23 -> 0 | AS23: ='1'!AS23 -> 0
U24: Clicks | V24: ='1'!V24 -> 1,459 | W24: ='1'!W24 -> 1,679 | X24: ='1'!X24 -> 1,308 | Y24: ='1'!Y24 -> 956 | Z24: ='1'!Z24 -> 1,027 | AA24: ='1'!AA24 -> 723 | AB24: ='1'!AB24 -> 577 | AC24: ='1'!AC24 -> 2,264 | AD24: ='1'!AD24 -> 1,927 | AE24: ='1'!AE24 -> 2,571 | AF24: ='1'!AF24 -> 0 | AG24: ='1'!AG24 -> 0 | AH24: ='1'!AH24 -> 0 | AI24: ='1'!AI24 -> 0 | AJ24: ='1'!AJ24 -> 0 | AK24: ='1'!AK24 -> 0 | AL24: ='1'!AL24 -> 0 | AM24: ='1'!AM24 -> 0 | AN24: ='1'!AN24 -> 0 | AO24: ='1'!AO24 -> 0 | AP24: ='1'!AP24 -> 0 | AQ24: ='1'!AQ24 -> 0 | AR24: ='1'!AR24 -> 0 | AS24: ='1'!AS24 -> 0
U25: CTR | V25: ='1'!V25 -> 0.50% | W25: ='1'!W25 -> 0.69% | X25: ='1'!X25 -> 0.55% | Y25: ='1'!Y25 -> 0.66% | Z25: ='1'!Z25 -> 0.35% | AA25: ='1'!AA25 -> 0.53% | AB25: ='1'!AB25 -> 0.53% | AC25: ='1'!AC25 -> 0.87% | AD25: ='1'!AD25 -> 3.10% | AE25: ='1'!AE25 -> 0.71% | AF25: ='1'!AF25 -> 0.00% | AG25: ='1'!AG25 -> 0.00% | AH25: ='1'!AH25 -> 0.00% | AI25: ='1'!AI25 -> 0.00% | AJ25: ='1'!AJ25 -> 0.00% | AK25: ='1'!AK25 -> 0.00% | AL25: ='1'!AL25 -> 0.00% | AM25: ='1'!AM25 -> 0.00% | AN25: ='1'!AN25 -> 0.00% | AO25: ='1'!AO25 -> 0.00% | AP25: ='1'!AP25 -> 0.00% | AQ25: ='1'!AQ25 -> 0.00% | AR25: ='1'!AR25 -> 0.00% | AS25: ='1'!AS25 -> 0.00%
U26: CPC | V26: ='1'!V26 -> £0.43 | W26: ='1'!W26 -> £0.43 | X26: ='1'!X26 -> £0.43 | Y26: ='1'!Y26 -> £0.43 | Z26: ='1'!Z26 -> £0.43 | AA26: ='1'!AA26 -> £0.43 | AB26: ='1'!AB26 -> £0.43 | AC26: ='1'!AC26 -> £0.43 | AD26: ='1'!AD26 -> £0.43 | AE26: ='1'!AE26 -> £0.43 | AF26: ='1'!AF26 -> £0.00 | AG26: ='1'!AG26 -> £0.00 | AH26: ='1'!AH26 -> £0.00 | AI26: ='1'!AI26 -> £0.00 | AJ26: ='1'!AJ26 -> £0.00 | AK26: ='1'!AK26 -> £0.00 | AL26: ='1'!AL26 -> £0.00 | AM26: ='1'!AM26 -> £0.00 | AN26: ='1'!AN26 -> £0.00 | AO26: ='1'!AO26 -> £0.00 | AP26: ='1'!AP26 -> £0.00 | AQ26: ='1'!AQ26 -> £0.00 | AR26: ='1'!AR26 -> £0.00 | AS26: ='1'!AS26 -> £0.00
U27: CPM | V27: ='1'!V27 -> £2.15 | W27: ='1'!W27 -> £2.97 | X27: ='1'!X27 -> £2.35 | Y27: ='1'!Y27 -> £2.86 | Z27: ='1'!Z27 -> £1.51 | AA27: ='1'!AA27 -> £2.28 | AB27: ='1'!AB27 -> £2.30 | AC27: ='1'!AC27 -> £3.76 | AD27: ='1'!AD27 -> £13.34 | AE27: ='1'!AE27 -> £3.04 | AF27: ='1'!AF27 -> £0.00 | AG27: ='1'!AG27 -> £0.00 | AH27: ='1'!AH27 -> £0.00 | AI27: ='1'!AI27 -> £0.00 | AJ27: ='1'!AJ27 -> £0.00 | AK27: ='1'!AK27 -> £0.00 | AL27: ='1'!AL27 -> £0.00 | AM27: ='1'!AM27 -> £0.00 | AN27: ='1'!AN27 -> £0.00 | AO27: ='1'!AO27 -> £0.00 | AP27: ='1'!AP27 -> £0.00 | AQ27: ='1'!AQ27 -> £0.00 | AR27: ='1'!AR27 -> £0.00 | AS27: ='1'!AS27 -> £0.00
U28: Spend | V28: ='1'!V28 -> 627 | W28: ='1'!W28 -> 722 | X28: ='1'!X28 -> 562 | Y28: ='1'!Y28 -> 411 | Z28: ='1'!Z28 -> 441 | AA28: ='1'!AA28 -> 311 | AB28: ='1'!AB28 -> 248 | AC28: ='1'!AC28 -> 974 | AD28: ='1'!AD28 -> 828 | AE28: ='1'!AE28 -> 1,105 | AF28: ='1'!AF28 -> 0 | AG28: ='1'!AG28 -> 0 | AH28: ='1'!AH28 -> 0 | AI28: ='1'!AI28 -> 0 | AJ28: ='1'!AJ28 -> 0 | AK28: ='1'!AK28 -> 0 | AL28: ='1'!AL28 -> 0 | AM28: ='1'!AM28 -> 0 | AN28: ='1'!AN28 -> 0 | AO28: ='1'!AO28 -> 0 | AP28: ='1'!AP28 -> 0 | AQ28: ='1'!AQ28 -> 0 | AR28: ='1'!AR28 -> 0 | AS28: ='1'!AS28 -> 0
U29: Conversions | V29: ='1'!V29 -> 0 | W29: ='1'!W29 -> 0 | X29: ='1'!X29 -> 0 | Y29: ='1'!Y29 -> 0 | Z29: ='1'!Z29 -> 0 | AA29: ='1'!AA29 -> 0 | AB29: ='1'!AB29 -> 0 | AC29: ='1'!AC29 -> 0 | AD29: ='1'!AD29 -> 0 | AE29: ='1'!AE29 -> 0 | AF29: ='1'!AF29 -> 0 | AG29: ='1'!AG29 -> 0 | AH29: ='1'!AH29 -> 0 | AI29: ='1'!AI29 -> 0 | AJ29: ='1'!AJ29 -> 0 | AK29: ='1'!AK29 -> 0 | AL29: ='1'!AL29 -> 0 | AM29: ='1'!AM29 -> 0 | AN29: ='1'!AN29 -> 0 | AO29: ='1'!AO29 -> 0 | AP29: ='1'!AP29 -> 0 | AQ29: ='1'!AQ29 -> 0 | AR29: ='1'!AR29 -> 0 | AS29: ='1'!AS29 -> 0
U30: Conversion rate | V30: ='1'!V30 -> 0.0% | W30: ='1'!W30 -> 0.0% | X30: ='1'!X30 -> 0.0% | Y30: ='1'!Y30 -> 0.0% | Z30: ='1'!Z30 -> 0.0% | AA30: ='1'!AA30 -> 0.0% | AB30: ='1'!AB30 -> 0.0% | AC30: ='1'!AC30 -> 0.0% | AD30: ='1'!AD30 -> 0.0% | AE30: ='1'!AE30 -> 0.0% | AF30: ='1'!AF30 -> 0.0% | AG30: ='1'!AG30 -> 0.0% | AH30: ='1'!AH30 -> 0.0% | AI30: ='1'!AI30 -> 0.0% | AJ30: ='1'!AJ30 -> 0.0% | AK30: ='1'!AK30 -> 0.0% | AL30: ='1'!AL30 -> 0.0% | AM30: ='1'!AM30 -> 0.0% | AN30: ='1'!AN30 -> 0.0% | AO30: ='1'!AO30 -> 0.0% | AP30: ='1'!AP30 -> 0.0% | AQ30: ='1'!AQ30 -> 0.0% | AR30: ='1'!AR30 -> 0.0% | AS30: ='1'!AS30 -> 0.0%
U31: Cost per conversion | V31: ='1'!V31 -> 0 | W31: ='1'!W31 -> 0 | X31: ='1'!X31 -> 0 | Y31: ='1'!Y31 -> 0 | Z31: ='1'!Z31 -> 0 | AA31: ='1'!AA31 -> 0 | AB31: ='1'!AB31 -> 0 | AC31: ='1'!AC31 -> 0 | AD31: ='1'!AD31 -> 0 | AE31: ='1'!AE31 -> 0 | AF31: ='1'!AF31 -> 0 | AG31: ='1'!AG31 -> 0 | AH31: ='1'!AH31 -> 0 | AI31: ='1'!AI31 -> 0 | AJ31: ='1'!AJ31 -> 0 | AK31: ='1'!AK31 -> 0 | AL31: ='1'!AL31 -> 0 | AM31: ='1'!AM31 -> 0 | AN31: ='1'!AN31 -> 0 | AO31: ='1'!AO31 -> 0 | AP31: ='1'!AP31 -> 0 | AQ31: ='1'!AQ31 -> 0 | AR31: ='1'!AR31 -> 0 | AS31: ='1'!AS31 -> 0
U32: Revenue | V32: ='1'!V32 -> 0 | W32: ='1'!W32 -> 0 | X32: ='1'!X32 -> 0 | Y32: ='1'!Y32 -> 0 | Z32: ='1'!Z32 -> 0 | AA32: ='1'!AA32 -> 0 | AB32: ='1'!AB32 -> 0 | AC32: ='1'!AC32 -> 0 | AD32: ='1'!AD32 -> 0 | AE32: ='1'!AE32 -> 0 | AF32: ='1'!AF32 -> 0 | AG32: ='1'!AG32 -> 0 | AH32: ='1'!AH32 -> 0 | AI32: ='1'!AI32 -> 0 | AJ32: ='1'!AJ32 -> 0 | AK32: ='1'!AK32 -> 0 | AL32: ='1'!AL32 -> 0 | AM32: ='1'!AM32 -> 0 | AN32: ='1'!AN32 -> 0 | AO32: ='1'!AO32 -> 0 | AP32: ='1'!AP32 -> 0 | AQ32: ='1'!AQ32 -> 0 | AR32: ='1'!AR32 -> 0 | AS32: ='1'!AS32 -> 0
U33: AOV | V33: ='1'!V33 -> 0 | W33: ='1'!W33 -> 0 | X33: ='1'!X33 -> 0 | Y33: ='1'!Y33 -> 0 | Z33: ='1'!Z33 -> 0 | AA33: ='1'!AA33 -> 0 | AB33: ='1'!AB33 -> 0 | AC33: ='1'!AC33 -> 0 | AD33: ='1'!AD33 -> 0 | AE33: ='1'!AE33 -> 0 | AF33: ='1'!AF33 -> 0 | AG33: ='1'!AG33 -> 0 | AH33: ='1'!AH33 -> 0 | AI33: ='1'!AI33 -> 0 | AJ33: ='1'!AJ33 -> 0 | AK33: ='1'!AK33 -> 0 | AL33: ='1'!AL33 -> 0 | AM33: ='1'!AM33 -> 0 | AN33: ='1'!AN33 -> 0 | AO33: ='1'!AO33 -> 0 | AP33: ='1'!AP33 -> 0 | AQ33: ='1'!AQ33 -> 0 | AR33: ='1'!AR33 -> 0 | AS33: ='1'!AS33 -> 0
U34: ='1'!U34 -> ROI | V34: ='1'!V34 -> -1.0 | W34: ='1'!W34 -> -1.0 | X34: ='1'!X34 -> -1.0 | Y34: ='1'!Y34 -> -1.0 | Z34: ='1'!Z34 -> -1.0 | AA34: ='1'!AA34 -> -1.0 | AB34: ='1'!AB34 -> -1.0 | AC34: ='1'!AC34 -> -1.0 | AD34: ='1'!AD34 -> -1.0 | AE34: ='1'!AE34 -> -1.0 | AF34: ='1'!AF34 -> 0.0 | AG34: ='1'!AG34 -> 0.0 | AH34: ='1'!AH34 -> 0.0 | AI34: ='1'!AI34 -> 0.0 | AJ34: ='1'!AJ34 -> 0.0 | AK34: ='1'!AK34 -> 0.0 | AL34: ='1'!AL34 -> 0.0 | AM34: ='1'!AM34 -> 0.0 | AN34: ='1'!AN34 -> 0.0 | AO34: ='1'!AO34 -> 0.0 | AP34: ='1'!AP34 -> 0.0 | AQ34: ='1'!AQ34 -> 0.0 | AR34: ='1'!AR34 -> 0.0 | AS34: ='1'!AS34 -> 0.0
U36: Search IS Opportunity | V36: ='1'!V36 -> 2010-10-01 | W36: ='1'!W36 -> 2010-11-01 | X36: ='1'!X36 -> 2010-12-01 | Y36: ='1'!Y36 -> 2011-01-01 | Z36: ='1'!Z36 -> 2011-02-01 | AA36: ='1'!AA36 -> 2011-03-01 | AB36: ='1'!AB36 -> 2011-04-01 | AC36: ='1'!AC36 -> 2011-05-01 | AD36: ='1'!AD36 -> 2011-06-01 | AE36: ='1'!AE36 -> 2011-07-01 | AF36: ='1'!AF36 -> 00:00:00 | AG36: ='1'!AG36 -> 00:00:00 | AH36: ='1'!AH36 -> 00:00:00 | AI36: ='1'!AI36 -> 00:00:00 | AJ36: ='1'!AJ36 -> 00:00:00 | AK36: ='1'!AK36 -> 00:00:00 | AL36: ='1'!AL36 -> 00:00:00 | AM36: ='1'!AM36 -> 00:00:00 | AN36: ='1'!AN36 -> 00:00:00 | AO36: ='1'!AO36 -> 00:00:00 | AP36: ='1'!AP36 -> 00:00:00 | AQ36: ='1'!AQ36 -> 00:00:00 | AR36: ='1'!AR36 -> 00:00:00 | AS36: ='1'!AS36 -> 00:00:00
U37: Impression Share | V37: ='1'!V37 -> 19% | W37: ='1'!W37 -> 12% | X37: ='1'!X37 -> 12% | Y37: ='1'!Y37 -> 12% | Z37: ='1'!Z37 -> 12% | AA37: ='1'!AA37 -> 13% | AB37: ='1'!AB37 -> 13% | AC37: ='1'!AC37 -> 13% | AD37: ='1'!AD37 -> 10% | AE37: ='1'!AE37 -> 14% | AF37: ='1'!AF37 -> 0% | AG37: ='1'!AG37 -> 0% | AH37: ='1'!AH37 -> 0% | AI37: ='1'!AI37 -> 0% | AJ37: ='1'!AJ37 -> 0% | AK37: ='1'!AK37 -> 0% | AL37: ='1'!AL37 -> 0% | AM37: ='1'!AM37 -> 0% | AN37: ='1'!AN37 -> 0% | AO37: ='1'!AO37 -> 0% | AP37: ='1'!AP37 -> 0% | AQ37: ='1'!AQ37 -> 0% | AR37: ='1'!AR37 -> 0% | AS37: ='1'!AS37 -> 0%
U38: Potential Imprs | V38: ='1'!V38 -> 50,621 | W38: ='1'!W38 -> 80,212 | X38: ='1'!X38 -> 54,682 | Y38: ='1'!Y38 -> 81,120 | Z38: ='1'!Z38 -> 45,280 | AA38: ='1'!AA38 -> 32,809 | AB38: ='1'!AB38 -> 28,767 | AC38: ='1'!AC38 -> 68,838 | AD38: ='1'!AD38 -> 139,859 | AE38: ='1'!AE38 -> 145,208 | AF38: ='1'!AF38 -> 0 | AG38: ='1'!AG38 -> 0 | AH38: ='1'!AH38 -> 0 | AI38: ='1'!AI38 -> 0 | AJ38: ='1'!AJ38 -> 0 | AK38: ='1'!AK38 -> 0 | AL38: ='1'!AL38 -> 0 | AM38: ='1'!AM38 -> 0 | AN38: ='1'!AN38 -> 0 | AO38: ='1'!AO38 -> 0 | AP38: ='1'!AP38 -> 0 | AQ38: ='1'!AQ38 -> 0 | AR38: ='1'!AR38 -> 0 | AS38: ='1'!AS38 -> 0
U39: Lost IS to budget | V39: ='1'!V39 -> 10% | W39: ='1'!W39 -> 10% | X39: ='1'!X39 -> 10% | Y39: ='1'!Y39 -> 10% | Z39: ='1'!Z39 -> 10% | AA39: ='1'!AA39 -> 25% | AB39: ='1'!AB39 -> 25% | AC39: ='1'!AC39 -> 25% | AD39: ='1'!AD39 -> 40% | AE39: ='1'!AE39 -> 31% | AF39: ='1'!AF39 -> 0% | AG39: ='1'!AG39 -> 0% | AH39: ='1'!AH39 -> 0% | AI39: ='1'!AI39 -> 0% | AJ39: ='1'!AJ39 -> 0% | AK39: ='1'!AK39 -> 0% | AL39: ='1'!AL39 -> 0% | AM39: ='1'!AM39 -> 0% | AN39: ='1'!AN39 -> 0% | AO39: ='1'!AO39 -> 0% | AP39: ='1'!AP39 -> 0% | AQ39: ='1'!AQ39 -> 0% | AR39: ='1'!AR39 -> 0% | AS39: ='1'!AS39 -> 0%
U40: Lost IS to rank | V40: ='1'!V40 -> 71% | W40: ='1'!W40 -> 78% | X40: ='1'!X40 -> 78% | Y40: ='1'!Y40 -> 78% | Z40: ='1'!Z40 -> 78% | AA40: ='1'!AA40 -> 62% | AB40: ='1'!AB40 -> 62% | AC40: ='1'!AC40 -> 62% | AD40: ='1'!AD40 -> 49% | AE40: ='1'!AE40 -> 56% | AF40: ='1'!AF40 -> 0% | AG40: ='1'!AG40 -> 0% | AH40: ='1'!AH40 -> 0% | AI40: ='1'!AI40 -> 0% | AJ40: ='1'!AJ40 -> 0% | AK40: ='1'!AK40 -> 0% | AL40: ='1'!AL40 -> 0% | AM40: ='1'!AM40 -> 0% | AN40: ='1'!AN40 -> 0% | AO40: ='1'!AO40 -> 0% | AP40: ='1'!AP40 -> 0% | AQ40: ='1'!AQ40 -> 0% | AR40: ='1'!AR40 -> 0% | AS40: ='1'!AS40 -> 0%
U41: Exact Match IS | V41: ='1'!V41 -> 100% | W41: ='1'!W41 -> 100% | X41: ='1'!X41 -> 100% | Y41: ='1'!Y41 -> 100% | Z41: ='1'!Z41 -> 100% | AA41: ='1'!AA41 -> 100% | AB41: ='1'!AB41 -> 100% | AC41: ='1'!AC41 -> 100% | AD41: ='1'!AD41 -> 100% | AE41: ='1'!AE41 -> 100% | AF41: ='1'!AF41 -> 0% | AG41: ='1'!AG41 -> 0% | AH41: ='1'!AH41 -> 0% | AI41: ='1'!AI41 -> 0% | AJ41: ='1'!AJ41 -> 0% | AK41: ='1'!AK41 -> 0% | AL41: ='1'!AL41 -> 0% | AM41: ='1'!AM41 -> 0% | AN41: ='1'!AN41 -> 0% | AO41: ='1'!AO41 -> 0% | AP41: ='1'!AP41 -> 0% | AQ41: ='1'!AQ41 -> 0% | AR41: ='1'!AR41 -> 0% | AS41: ='1'!AS41 -> 0%
U42: Potential Exact Imprs | V42: ='1'!V42 -> 9,729 | W42: ='1'!W42 -> 9,593 | X42: ='1'!X42 -> 6,540 | Y42: ='1'!Y42 -> 10,104 | Z42: ='1'!Z42 -> 5,449 | AA42: ='1'!AA42 -> 4,319 | AB42: ='1'!AB42 -> 3,787 | AC42: ='1'!AC42 -> 9,061 | AD42: ='1'!AD42 -> 14,545 | AE42: ='1'!AE42 -> 19,777 | AF42: ='1'!AF42 -> 0 | AG42: ='1'!AG42 -> 0 | AH42: ='1'!AH42 -> 0 | AI42: ='1'!AI42 -> 0 | AJ42: ='1'!AJ42 -> 0 | AK42: ='1'!AK42 -> 0 | AL42: ='1'!AL42 -> 0 | AM42: ='1'!AM42 -> 0 | AN42: ='1'!AN42 -> 0 | AO42: ='1'!AO42 -> 0 | AP42: ='1'!AP42 -> 0 | AQ42: ='1'!AQ42 -> 0 | AR42: ='1'!AR42 -> 0 | AS42: ='1'!AS42 -> 0
B45: Quarterly | R45: x | U45: Quarterly data | AK45: x
B46: Quarters from | D46: ='1'!$D$46 -> Q1'09 | E46: to | F46: ='1'!$F$46 -> Q2'10 | G46: << change on slide (1)
U48: Search | V48: ='1'!V48 -> Q1'09 | W48: ='1'!W48 -> Q2'09 | X48: ='1'!X48 -> Q3'09 | Y48: ='1'!Y48 -> Q4'09 | Z48: ='1'!Z48 -> Q1'10 | AA48: ='1'!AA48 -> Q2'10 | AB48: ='1'!AB48 -> 00:00:00 | AC48: ='1'!AC48 -> 00:00:00 | AD48: ='1'!AD48 -> 00:00:00 | AE48: ='1'!AE48 -> 00:00:00 | AF48: ='1'!AF48 -> 00:00:00 | AG48: ='1'!AG48 -> 00:00:00 | AH48: ='1'!AH48 -> 00:00:00 | AI48: ='1'!AI48 -> 00:00:00 | AJ48: ='1'!AJ48 -> 00:00:00 | AK48: ='1'!AK48 -> 00:00:00
U49: Impressions | V49: ='1'!V49 -> 0 | W49: ='1'!W49 -> 0 | X49: ='1'!X49 -> 0 | Y49: ='1'!Y49 -> 0 | Z49: ='1'!Z49 -> 0 | AA49: ='1'!AA49 -> 0 | AB49: ='1'!AB49 -> 0 | AC49: ='1'!AC49 -> 0 | AD49: ='1'!AD49 -> 0 | AE49: ='1'!AE49 -> 0 | AF49: ='1'!AF49 -> 0 | AG49: ='1'!AG49 -> 0 | AH49: ='1'!AH49 -> 0 | AI49: ='1'!AI49 -> 0 | AJ49: ='1'!AJ49 -> 0 | AK49: ='1'!AK49 -> 0
U50: Clicks | V50: ='1'!V50 -> 0 | W50: ='1'!W50 -> 0 | X50: ='1'!X50 -> 0 | Y50: ='1'!Y50 -> 0 | Z50: ='1'!Z50 -> 0 | AA50: ='1'!AA50 -> 0 | AB50: ='1'!AB50 -> 0 | AC50: ='1'!AC50 -> 0 | AD50: ='1'!AD50 -> 0 | AE50: ='1'!AE50 -> 0 | AF50: ='1'!AF50 -> 0 | AG50: ='1'!AG50 -> 0 | AH50: ='1'!AH50 -> 0 | AI50: ='1'!AI50 -> 0 | AJ50: ='1'!AJ50 -> 0 | AK50: ='1'!AK50 -> 0
U51: CTR | V51: ='1'!V51 -> 0.00% | W51: ='1'!W51 -> 0.00% | X51: ='1'!X51 -> 0.00% | Y51: ='1'!Y51 -> 0.00% | Z51: ='1'!Z51 -> 0.00% | AA51: ='1'!AA51 -> 0.00% | AB51: ='1'!AB51 -> 0.00% | AC51: ='1'!AC51 -> 0.00% | AD51: ='1'!AD51 -> 0.00% | AE51: ='1'!AE51 -> 0.00% | AF51: ='1'!AF51 -> 0.00% | AG51: ='1'!AG51 -> 0.00% | AH51: ='1'!AH51 -> 0.00% | AI51: ='1'!AI51 -> 0.00% | AJ51: ='1'!AJ51 -> 0.00% | AK51: ='1'!AK51 -> 0.00%
U52: CPC | V52: ='1'!V52 -> £0.00 | W52: ='1'!W52 -> £0.00 | X52: ='1'!X52 -> £0.00 | Y52: ='1'!Y52 -> £0.00 | Z52: ='1'!Z52 -> £0.00 | AA52: ='1'!AA52 -> £0.00 | AB52: ='1'!AB52 -> £0.00 | AC52: ='1'!AC52 -> £0.00 | AD52: ='1'!AD52 -> £0.00 | AE52: ='1'!AE52 -> £0.00 | AF52: ='1'!AF52 -> £0.00 | AG52: ='1'!AG52 -> £0.00 | AH52: ='1'!AH52 -> £0.00 | AI52: ='1'!AI52 -> £0.00 | AJ52: ='1'!AJ52 -> £0.00 | AK52: ='1'!AK52 -> £0.00
U53: Spend | V53: ='1'!V53 -> 0 | W53: ='1'!W53 -> 0 | X53: ='1'!X53 -> 0 | Y53: ='1'!Y53 -> 0 | Z53: ='1'!Z53 -> 0 | AA53: ='1'!AA53 -> 0 | AB53: ='1'!AB53 -> 0 | AC53: ='1'!AC53 -> 0 | AD53: ='1'!AD53 -> 0 | AE53: ='1'!AE53 -> 0 | AF53: ='1'!AF53 -> 0 | AG53: ='1'!AG53 -> 0 | AH53: ='1'!AH53 -> 0 | AI53: ='1'!AI53 -> 0 | AJ53: ='1'!AJ53 -> 0 | AK53: ='1'!AK53 -> 0
U54: Conversions | V54: ='1'!V54 -> 0 | W54: ='1'!W54 -> 0 | X54: ='1'!X54 -> 0 | Y54: ='1'!Y54 -> 0 | Z54: ='1'!Z54 -> 0 | AA54: ='1'!AA54 -> 0 | AB54: ='1'!AB54 -> 0 | AC54: ='1'!AC54 -> 0 | AD54: ='1'!AD54 -> 0 | AE54: ='1'!AE54 -> 0 | AF54: ='1'!AF54 -> 0 | AG54: ='1'!AG54 -> 0 | AH54: ='1'!AH54 -> 0 | AI54: ='1'!AI54 -> 0 | AJ54: ='1'!AJ54 -> 0 | AK54: ='1'!AK54 -> 0
U55: Conversion rate | V55: ='1'!V55 -> 0.0% | W55: ='1'!W55 -> 0.0% | X55: ='1'!X55 -> 0.0% | Y55: ='1'!Y55 -> 0.0% | Z55: ='1'!Z55 -> 0.0% | AA55: ='1'!AA55 -> 0.0% | AB55: ='1'!AB55 -> 0.0% | AC55: ='1'!AC55 -> 0.0% | AD55: ='1'!AD55 -> 0.0% | AE55: ='1'!AE55 -> 0.0% | AF55: ='1'!AF55 -> 0.0% | AG55: ='1'!AG55 -> 0.0% | AH55: ='1'!AH55 -> 0.0% | AI55: ='1'!AI55 -> 0.0% | AJ55: ='1'!AJ55 -> 0.0% | AK55: ='1'!AK55 -> 0.0%
U56: Cost per conversion | V56: ='1'!V56 -> 0 | W56: ='1'!W56 -> 0 | X56: ='1'!X56 -> 0 | Y56: ='1'!Y56 -> 0 | Z56: ='1'!Z56 -> 0 | AA56: ='1'!AA56 -> 0 | AB56: ='1'!AB56 -> 0 | AC56: ='1'!AC56 -> 0 | AD56: ='1'!AD56 -> 0 | AE56: ='1'!AE56 -> 0 | AF56: ='1'!AF56 -> 0 | AG56: ='1'!AG56 -> 0 | AH56: ='1'!AH56 -> 0 | AI56: ='1'!AI56 -> 0 | AJ56: ='1'!AJ56 -> 0 | AK56: ='1'!AK56 -> 0
U57: Revenue | V57: ='1'!V57 -> 0 | W57: ='1'!W57 -> 0 | X57: ='1'!X57 -> 0 | Y57: ='1'!Y57 -> 0 | Z57: ='1'!Z57 -> 0 | AA57: ='1'!AA57 -> 0 | AB57: ='1'!AB57 -> 0 | AC57: ='1'!AC57 -> 0 | AD57: ='1'!AD57 -> 0 | AE57: ='1'!AE57 -> 0 | AF57: ='1'!AF57 -> 0 | AG57: ='1'!AG57 -> 0 | AH57: ='1'!AH57 -> 0 | AI57: ='1'!AI57 -> 0 | AJ57: ='1'!AJ57 -> 0 | AK57: ='1'!AK57 -> 0
U58: AOV | V58: ='1'!V58 -> 0 | W58: ='1'!W58 -> 0 | X58: ='1'!X58 -> 0 | Y58: ='1'!Y58 -> 0 | Z58: ='1'!Z58 -> 0 | AA58: ='1'!AA58 -> 0 | AB58: ='1'!AB58 -> 0 | AC58: ='1'!AC58 -> 0 | AD58: ='1'!AD58 -> 0 | AE58: ='1'!AE58 -> 0 | AF58: ='1'!AF58 -> 0 | AG58: ='1'!AG58 -> 0 | AH58: ='1'!AH58 -> 0 | AI58: ='1'!AI58 -> 0 | AJ58: ='1'!AJ58 -> 0 | AK58: ='1'!AK58 -> 0
U59: ROI | V59: ='1'!V59 -> 0.0 | W59: ='1'!W59 -> 0.0 | X59: ='1'!X59 -> 0.0 | Y59: ='1'!Y59 -> 0.0 | Z59: ='1'!Z59 -> 0.0 | AA59: ='1'!AA59 -> 0.0 | AB59: ='1'!AB59 -> 0.0 | AC59: ='1'!AC59 -> 0.0 | AD59: ='1'!AD59 -> 0.0 | AE59: ='1'!AE59 -> 0.0 | AF59: ='1'!AF59 -> 0.0 | AG59: ='1'!AG59 -> 0.0 | AH59: ='1'!AH59 -> 0.0 | AI59: ='1'!AI59 -> 0.0 | AJ59: ='1'!AJ59 -> 0.0 | AK59: ='1'!AK59 -> 0.0
U61: Content | V61: ='1'!V61 -> Q1'09 | W61: ='1'!W61 -> Q2'09 | X61: ='1'!X61 -> Q3'09 | Y61: ='1'!Y61 -> Q4'09 | Z61: ='1'!Z61 -> Q1'10 | AA61: ='1'!AA61 -> Q2'10 | AB61: ='1'!AB61 -> 00:00:00 | AC61: ='1'!AC61 -> 00:00:00 | AD61: ='1'!AD61 -> 00:00:00 | AE61: ='1'!AE61 -> 00:00:00 | AF61: ='1'!AF61 -> 00:00:00 | AG61: ='1'!AG61 -> 00:00:00 | AH61: ='1'!AH61 -> 00:00:00 | AI61: ='1'!AI61 -> 00:00:00 | AJ61: ='1'!AJ61 -> 00:00:00 | AK61: ='1'!AK61 -> 00:00:00
U62: Impressions | V62: ='1'!V62 -> 0 | W62: ='1'!W62 -> 0 | X62: ='1'!X62 -> 0 | Y62: ='1'!Y62 -> 0 | Z62: ='1'!Z62 -> 0 | AA62: ='1'!AA62 -> 0 | AB62: ='1'!AB62 -> 0 | AC62: ='1'!AC62 -> 0 | AD62: ='1'!AD62 -> 0 | AE62: ='1'!AE62 -> 0 | AF62: ='1'!AF62 -> 0 | AG62: ='1'!AG62 -> 0 | AH62: ='1'!AH62 -> 0 | AI62: ='1'!AI62 -> 0 | AJ62: ='1'!AJ62 -> 0 | AK62: ='1'!AK62 -> 0
U63: Clicks | V63: ='1'!V63 -> 0 | W63: ='1'!W63 -> 0 | X63: ='1'!X63 -> 0 | Y63: ='1'!Y63 -> 0 | Z63: ='1'!Z63 -> 0 | AA63: ='1'!AA63 -> 0 | AB63: ='1'!AB63 -> 0 | AC63: ='1'!AC63 -> 0 | AD63: ='1'!AD63 -> 0 | AE63: ='1'!AE63 -> 0 | AF63: ='1'!AF63 -> 0 | AG63: ='1'!AG63 -> 0 | AH63: ='1'!AH63 -> 0 | AI63: ='1'!AI63 -> 0 | AJ63: ='1'!AJ63 -> 0 | AK63: ='1'!AK63 -> 0
U64: CTR | V64: ='1'!V64 -> 0.00% | W64: ='1'!W64 -> 0.00% | X64: ='1'!X64 -> 0.00% | Y64: ='1'!Y64 -> 0.00% | Z64: ='1'!Z64 -> 0.00% | AA64: ='1'!AA64 -> 0.00% | AB64: ='1'!AB64 -> 0.00% | AC64: ='1'!AC64 -> 0.00% | AD64: ='1'!AD64 -> 0.00% | AE64: ='1'!AE64 -> 0.00% | AF64: ='1'!AF64 -> 0.00% | AG64: ='1'!AG64 -> 0.00% | AH64: ='1'!AH64 -> 0.00% | AI64: ='1'!AI64 -> 0.00% | AJ64: ='1'!AJ64 -> 0.00% | AK64: ='1'!AK64 -> 0.00%
U65: CPC | V65: ='1'!V65 -> £0.00 | W65: ='1'!W65 -> £0.00 | X65: ='1'!X65 -> £0.00 | Y65: ='1'!Y65 -> £0.00 | Z65: ='1'!Z65 -> £0.00 | AA65: ='1'!AA65 -> £0.00 | AB65: ='1'!AB65 -> £0.00 | AC65: ='1'!AC65 -> £0.00 | AD65: ='1'!AD65 -> £0.00 | AE65: ='1'!AE65 -> £0.00 | AF65: ='1'!AF65 -> £0.00 | AG65: ='1'!AG65 -> £0.00 | AH65: ='1'!AH65 -> £0.00 | AI65: ='1'!AI65 -> £0.00 | AJ65: ='1'!AJ65 -> £0.00 | AK65: ='1'!AK65 -> £0.00
U66: CPM | V66: ='1'!V66 -> £0.00 | W66: ='1'!W66 -> £0.00 | X66: ='1'!X66 -> £0.00 | Y66: ='1'!Y66 -> £0.00 | Z66: ='1'!Z66 -> £0.00 | AA66: ='1'!AA66 -> £0.00 | AB66: ='1'!AB66 -> £0.00 | AC66: ='1'!AC66 -> £0.00 | AD66: ='1'!AD66 -> £0.00 | AE66: ='1'!AE66 -> £0.00 | AF66: ='1'!AF66 -> £0.00 | AG66: ='1'!AG66 -> £0.00 | AH66: ='1'!AH66 -> £0.00 | AI66: ='1'!AI66 -> £0.00 | AJ66: ='1'!AJ66 -> £0.00 | AK66: ='1'!AK66 -> £0.00
U67: Spend | V67: ='1'!V67 -> 0 | W67: ='1'!W67 -> 0 | X67: ='1'!X67 -> 0 | Y67: ='1'!Y67 -> 0 | Z67: ='1'!Z67 -> 0 | AA67: ='1'!AA67 -> 0 | AB67: ='1'!AB67 -> 0 | AC67: ='1'!AC67 -> 0 | AD67: ='1'!AD67 -> 0 | AE67: ='1'!AE67 -> 0 | AF67: ='1'!AF67 -> 0 | AG67: ='1'!AG67 -> 0 | AH67: ='1'!AH67 -> 0 | AI67: ='1'!AI67 -> 0 | AJ67: ='1'!AJ67 -> 0 | AK67: ='1'!AK67 -> 0
U68: Conversions | V68: ='1'!V68 -> 0 | W68: ='1'!W68 -> 0 | X68: ='1'!X68 -> 0 | Y68: ='1'!Y68 -> 0 | Z68: ='1'!Z68 -> 0 | AA68: ='1'!AA68 -> 0 | AB68: ='1'!AB68 -> 0 | AC68: ='1'!AC68 -> 0 | AD68: ='1'!AD68 -> 0 | AE68: ='1'!AE68 -> 0 | AF68: ='1'!AF68 -> 0 | AG68: ='1'!AG68 -> 0 | AH68: ='1'!AH68 -> 0 | AI68: ='1'!AI68 -> 0 | AJ68: ='1'!AJ68 -> 0 | AK68: ='1'!AK68 -> 0
U69: Conversion rate | V69: ='1'!V69 -> 0.0% | W69: ='1'!W69 -> 0.0% | X69: ='1'!X69 -> 0.0% | Y69: ='1'!Y69 -> 0.0% | Z69: ='1'!Z69 -> 0.0% | AA69: ='1'!AA69 -> 0.0% | AB69: ='1'!AB69 -> 0.0% | AC69: ='1'!AC69 -> 0.0% | AD69: ='1'!AD69 -> 0.0% | AE69: ='1'!AE69 -> 0.0% | AF69: ='1'!AF69 -> 0.0% | AG69: ='1'!AG69 -> 0.0% | AH69: ='1'!AH69 -> 0.0% | AI69: ='1'!AI69 -> 0.0% | AJ69: ='1'!AJ69 -> 0.0% | AK69: ='1'!AK69 -> 0.0%
U70: Cost per conversion | V70: ='1'!V70 -> 0 | W70: ='1'!W70 -> 0 | X70: ='1'!X70 -> 0 | Y70: ='1'!Y70 -> 0 | Z70: ='1'!Z70 -> 0 | AA70: ='1'!AA70 -> 0 | AB70: ='1'!AB70 -> 0 | AC70: ='1'!AC70 -> 0 | AD70: ='1'!AD70 -> 0 | AE70: ='1'!AE70 -> 0 | AF70: ='1'!AF70 -> 0 | AG70: ='1'!AG70 -> 0 | AH70: ='1'!AH70 -> 0 | AI70: ='1'!AI70 -> 0 | AJ70: ='1'!AJ70 -> 0 | AK70: ='1'!AK70 -> 0
U71: Revenue | V71: ='1'!V71 -> 0 | W71: ='1'!W71 -> 0 | X71: ='1'!X71 -> 0 | Y71: ='1'!Y71 -> 0 | Z71: ='1'!Z71 -> 0 | AA71: ='1'!AA71 -> 0 | AB71: ='1'!AB71 -> 0 | AC71: ='1'!AC71 -> 0 | AD71: ='1'!AD71 -> 0 | AE71: ='1'!AE71 -> 0 | AF71: ='1'!AF71 -> 0 | AG71: ='1'!AG71 -> 0 | AH71: ='1'!AH71 -> 0 | AI71: ='1'!AI71 -> 0 | AJ71: ='1'!AJ71 -> 0 | AK71: ='1'!AK71 -> 0
U72: AOV | V72: ='1'!V72 -> 0 | W72: ='1'!W72 -> 0 | X72: ='1'!X72 -> 0 | Y72: ='1'!Y72 -> 0 | Z72: ='1'!Z72 -> 0 | AA72: ='1'!AA72 -> 0 | AB72: ='1'!AB72 -> 0 | AC72: ='1'!AC72 -> 0 | AD72: ='1'!AD72 -> 0 | AE72: ='1'!AE72 -> 0 | AF72: ='1'!AF72 -> 0 | AG72: ='1'!AG72 -> 0 | AH72: ='1'!AH72 -> 0 | AI72: ='1'!AI72 -> 0 | AJ72: ='1'!AJ72 -> 0 | AK72: ='1'!AK72 -> 0
U73: ROI | V73: ='1'!V73 -> 0.0 | W73: ='1'!W73 -> 0.0 | X73: ='1'!X73 -> 0.0 | Y73: ='1'!Y73 -> 0.0 | Z73: ='1'!Z73 -> 0.0 | AA73: ='1'!AA73 -> 0.0 | AB73: ='1'!AB73 -> 0.0 | AC73: ='1'!AC73 -> 0.0 | AD73: ='1'!AD73 -> 0.0 | AE73: ='1'!AE73 -> 0.0 | AF73: ='1'!AF73 -> 0.0 | AG73: ='1'!AG73 -> 0.0 | AH73: ='1'!AH73 -> 0.0 | AI73: ='1'!AI73 -> 0.0 | AJ73: ='1'!AJ73 -> 0.0 | AK73: ='1'!AK73 -> 0.0
U75: Search IS Opportunity | V75: ='1'!V75 -> Q1'09 | W75: ='1'!W75 -> Q2'09 | X75: ='1'!X75 -> Q3'09 | Y75: ='1'!Y75 -> Q4'09 | Z75: ='1'!Z75 -> Q1'10 | AA75: ='1'!AA75 -> Q2'10 | AB75: ='1'!AB75 -> 00:00:00 | AC75: ='1'!AC75 -> 00:00:00 | AD75: ='1'!AD75 -> 00:00:00 | AE75: ='1'!AE75 -> 00:00:00 | AF75: ='1'!AF75 -> 00:00:00 | AG75: ='1'!AG75 -> 00:00:00 | AH75: ='1'!AH75 -> 00:00:00 | AI75: ='1'!AI75 -> 00:00:00 | AJ75: ='1'!AJ75 -> 00:00:00 | AK75: ='1'!AK75 -> 00:00:00
U76: Impression Share | V76: ='1'!V76 -> 0% | W76: ='1'!W76 -> 0% | X76: ='1'!X76 -> 0% | Y76: ='1'!Y76 -> 0% | Z76: ='1'!Z76 -> 0% | AA76: ='1'!AA76 -> 0% | AB76: ='1'!AB76 -> 0% | AC76: ='1'!AC76 -> 0% | AD76: ='1'!AD76 -> 0% | AE76: ='1'!AE76 -> 0% | AF76: ='1'!AF76 -> 0% | AG76: ='1'!AG76 -> 0% | AH76: ='1'!AH76 -> 0% | AI76: ='1'!AI76 -> 0% | AJ76: ='1'!AJ76 -> 0% | AK76: ='1'!AK76 -> 0%
U77: Potential Imprs | V77: ='1'!V77 -> 0 | W77: ='1'!W77 -> 0 | X77: ='1'!X77 -> 0 | Y77: ='1'!Y77 -> 0 | Z77: ='1'!Z77 -> 0 | AA77: ='1'!AA77 -> 0 | AB77: ='1'!AB77 -> 0 | AC77: ='1'!AC77 -> 0 | AD77: ='1'!AD77 -> 0 | AE77: ='1'!AE77 -> 0 | AF77: ='1'!AF77 -> 0 | AG77: ='1'!AG77 -> 0 | AH77: ='1'!AH77 -> 0 | AI77: ='1'!AI77 -> 0 | AJ77: ='1'!AJ77 -> 0 | AK77: ='1'!AK77 -> 0
U78: Lost IS to budget | V78: ='1'!V78 -> 0% | W78: ='1'!W78 -> 0 | X78: ='1'!X78 -> 0 | Y78: ='1'!Y78 -> 0 | Z78: ='1'!Z78 -> 0 | AA78: ='1'!AA78 -> 0 | AB78: ='1'!AB78 -> 0 | AC78: ='1'!AC78 -> 0 | AD78: ='1'!AD78 -> 0 | AE78: ='1'!AE78 -> 0 | AF78: ='1'!AF78 -> 0 | AG78: ='1'!AG78 -> 0 | AH78: ='1'!AH78 -> 0 | AI78: ='1'!AI78 -> 0 | AJ78: ='1'!AJ78 -> 0 | AK78: ='1'!AK78 -> 0
U79: Lost IS to rank | V79: ='1'!V79 -> 0% | W79: ='1'!W79 -> 0 | X79: ='1'!X79 -> 0 | Y79: ='1'!Y79 -> 0 | Z79: ='1'!Z79 -> 0 | AA79: ='1'!AA79 -> 0 | AB79: ='1'!AB79 -> 0 | AC79: ='1'!AC79 -> 0 | AD79: ='1'!AD79 -> 0 | AE79: ='1'!AE79 -> 0 | AF79: ='1'!AF79 -> 0 | AG79: ='1'!AG79 -> 0 | AH79: ='1'!AH79 -> 0 | AI79: ='1'!AI79 -> 0 | AJ79: ='1'!AJ79 -> 0 | AK79: ='1'!AK79 -> 0
U80: Exact Match IS | V80: ='1'!V80 -> 0% | W80: ='1'!W80 -> 0% | X80: ='1'!X80 -> 0% | Y80: ='1'!Y80 -> 0% | Z80: ='1'!Z80 -> 0% | AA80: ='1'!AA80 -> 0% | AB80: ='1'!AB80 -> 0% | AC80: ='1'!AC80 -> 0% | AD80: ='1'!AD80 -> 0% | AE80: ='1'!AE80 -> 0% | AF80: ='1'!AF80 -> 0% | AG80: ='1'!AG80 -> 0% | AH80: ='1'!AH80 -> 0% | AI80: ='1'!AI80 -> 0% | AJ80: ='1'!AJ80 -> 0% | AK80: ='1'!AK80 -> 0%
U81: Potential Exact Imprs | V81: ='1'!V81 -> 0 | W81: ='1'!W81 -> 0 | X81: ='1'!X81 -> 0 | Y81: ='1'!Y81 -> 0 | Z81: ='1'!Z81 -> 0 | AA81: ='1'!AA81 -> 0 | AB81: ='1'!AB81 -> 0 | AC81: ='1'!AC81 -> 0 | AD81: ='1'!AD81 -> 0 | AE81: ='1'!AE81 -> 0 | AF81: ='1'!AF81 -> 0 | AG81: ='1'!AG81 -> 0 | AH81: ='1'!AH81 -> 0 | AI81: ='1'!AI81 -> 0 | AJ81: ='1'!AJ81 -> 0 | AK81: ='1'!AK81 -> 0
B86: Yearly | R86: x | U86: Yearly data
B87: Years from | D87: 2008 | E87: to | F87: 2009 | G87: << change on slide (1)
U89: Search | V89: ='1'!V89 -> 2008-01-01 | W89: ='1'!W89 -> 2009-01-01 | X89: ='1'!X89 -> 2010-01-01 | Y89: ='1'!Y89 -> 00:00:00 | Z89: ='1'!Z89 -> 00:00:00
U90: Impressions | V90: ='1'!V90 -> 0 | W90: ='1'!W90 -> 0 | X90: ='1'!X90 -> 25,863 | Y90: ='1'!Y90 -> 0 | Z90: ='1'!Z90 -> 0
U91: Clicks | V91: ='1'!V91 -> 0 | W91: ='1'!W91 -> 0 | X91: ='1'!X91 -> 533 | Y91: ='1'!Y91 -> 0 | Z91: ='1'!Z91 -> 0
U92: CTR | V92: ='1'!V92 -> 0.00% | W92: ='1'!W92 -> 0.00% | X92: ='1'!X92 -> 2.06% | Y92: ='1'!Y92 -> 0.00% | Z92: ='1'!Z92 -> 0.00%
U93: CPC | V93: ='1'!V93 -> £0.00 | W93: ='1'!W93 -> £0.00 | X93: ='1'!X93 -> £0.67 | Y93: ='1'!Y93 -> £0.00 | Z93: ='1'!Z93 -> £0.00
U94: Spend | V94: ='1'!V94 -> 0 | W94: ='1'!W94 -> 0 | X94: ='1'!X94 -> 357 | Y94: ='1'!Y94 -> 0 | Z94: ='1'!Z94 -> 0
U95: Conversions | V95: ='1'!V95 -> 0 | W95: ='1'!W95 -> 0 | X95: ='1'!X95 -> 0 | Y95: ='1'!Y95 -> 0 | Z95: ='1'!Z95 -> 0
U96: Conversion rate | V96: ='1'!V96 -> 0.0% | W96: ='1'!W96 -> 0.0% | X96: ='1'!X96 -> 0.0% | Y96: ='1'!Y96 -> 0.0% | Z96: ='1'!Z96 -> 0.0%
U97: Cost per conversion | V97: ='1'!V97 -> 0 | W97: ='1'!W97 -> 0 | X97: ='1'!X97 -> 0 | Y97: ='1'!Y97 -> 0 | Z97: ='1'!Z97 -> 0
U98: Revenue | V98: ='1'!V98 -> 0 | W98: ='1'!W98 -> 0 | X98: ='1'!X98 -> 0 | Y98: ='1'!Y98 -> 0 | Z98: ='1'!Z98 -> 0
U99: AOV | V99: ='1'!V99 -> 0 | W99: ='1'!W99 -> 0 | X99: ='1'!X99 -> 0 | Y99: ='1'!Y99 -> 0 | Z99: ='1'!Z99 -> 0
U100: ROI | V100: ='1'!V100 -> 0.0 | W100: ='1'!W100 -> 0.0 | X100: ='1'!X100 -> -1.0 | Y100: ='1'!Y100 -> 0.0 | Z100: ='1'!Z100 -> 0.0
U102: Content | V102: ='1'!V102 -> 2008-01-01 | W102: ='1'!W102 -> 2009-01-01 | X102: ='1'!X102 -> 2010-01-01 | Y102: ='1'!Y102 -> 00:00:00 | Z102: ='1'!Z102 -> 00:00:00
U103: Impressions | V103: ='1'!V103 -> 0 | W103: ='1'!W103 -> 0 | X103: ='1'!X103 -> 774,800 | Y103: ='1'!Y103 -> 0 | Z103: ='1'!Z103 -> 0
U104: Clicks | V104: ='1'!V104 -> 0 | W104: ='1'!W104 -> 0 | X104: ='1'!X104 -> 4,445 | Y104: ='1'!Y104 -> 0 | Z104: ='1'!Z104 -> 0
U105: CTR | V105: ='1'!V105 -> 0.00% | W105: ='1'!W105 -> 0.00% | X105: ='1'!X105 -> 0.57% | Y105: ='1'!Y105 -> 0.00% | Z105: ='1'!Z105 -> 0.00%
U106: CPC | V106: ='1'!V106 -> £0.00 | W106: ='1'!W106 -> £0.00 | X106: ='1'!X106 -> £0.43 | Y106: ='1'!Y106 -> £0.00 | Z106: ='1'!Z106 -> £0.00
U107: CPM | V107: ='1'!V107 -> £0.00 | W107: ='1'!W107 -> £0.00 | X107: ='1'!X107 -> £2.47 | Y107: ='1'!Y107 -> £0.00 | Z107: ='1'!Z107 -> £0.00
U108: Spend | V108: ='1'!V108 -> 0 | W108: ='1'!W108 -> 0 | X108: ='1'!X108 -> 1,911 | Y108: ='1'!Y108 -> 0 | Z108: ='1'!Z108 -> 0
U109: Conversions | V109: ='1'!V109 -> 0 | W109: ='1'!W109 -> 0 | X109: ='1'!X109 -> 0 | Y109: ='1'!Y109 -> 0 | Z109: ='1'!Z109 -> 0
U110: Conversion rate | V110: ='1'!V110 -> 0.0% | W110: ='1'!W110 -> 0.0% | X110: ='1'!X110 -> 0.0% | Y110: ='1'!Y110 -> 0.0% | Z110: ='1'!Z110 -> 0.0%
U111: Cost per conversion | V111: ='1'!V111 -> 0 | W111: ='1'!W111 -> 0 | X111: ='1'!X111 -> 0 | Y111: ='1'!Y111 -> 0 | Z111: ='1'!Z111 -> 0
U112: Revenue | V112: ='1'!V112 -> 0 | W112: ='1'!W112 -> 0 | X112: ='1'!X112 -> 0 | Y112: ='1'!Y112 -> 0 | Z112: ='1'!Z112 -> 0
U113: AOV | V113: ='1'!V113 -> 0 | W113: ='1'!W113 -> 0 | X113: ='1'!X113 -> 0 | Y113: ='1'!Y113 -> 0 | Z113: ='1'!Z113 -> 0
U114: ROI | V114: ='1'!V114 -> 0.0 | W114: ='1'!W114 -> 0.0 | X114: ='1'!X114 -> -1.0 | Y114: ='1'!Y114 -> 0.0 | Z114: ='1'!Z114 -> 0.0

Sheet 3
B2: Categories | R2: x
B3: by | C3: Category | E3: showing | F3: Spend | H3: for | I3: All | J3: << choose Metrics & Ad Distribution
B5: Monthly | R5: x
B6: Months from | D6: 2010-10-01 | E6: to | F6: 2011-07-01 | G6: << choose date range in mmm-yy format | R6: =COUNTIF($Y$7:$AV$7,">0") -> 10 | X6: DO NOT EDIT THE BELOW
T7: Edit here | W7: Graph | X7: =COUNTIF($Y$7:$AV$7,">"&0) -> 10 | Y7: =$D$6 -> 2010-10-01 | Z7: =IF(DATE(YEAR(Y7),MONTH(Y7)+1,DAY(Y7))>$F$6,0,IF(Y7=0,0,DATE(YEAR(Y7),MONTH(Y7)+1,DAY(Y7)))) -> 2010-11-01 | AA7: =IF(DATE(YEAR(Z7),MONTH(Z7)+1,DAY(Z7))>$F$6,0,IF(Z7=0,0,DATE(YEAR(Z7),MONTH(Z7)+1,DAY(Z7)))) -> 2010-12-01 | AB7: 2011-01-01 | AC7: 2011-02-01 | AD7: 2011-03-01 | AE7: 2011-04-01 | AF7: 2011-05-01 | AG7: 2011-06-01 | AH7: 2011-07-01 | AI7: 00:00:00 | AJ7: 00:00:00 | AK7: 00:00:00 | AL7: 00:00:00 | AM7: 00:00:00 | AN7: 00:00:00 | AO7: =IF(DATE(YEAR(AN7),MONTH(AN7)+1,DAY(AN7))>$F$6,0,IF(AN7=0,0,DATE(YEAR(AN7),MONTH(AN7)+1,DAY(AN7)))) -> 00:00:00 | AP7: 00:00:00 | AQ7: 00:00:00 | AR7: 00:00:00 | AS7: 00:00:00 | AT7: 00:00:00 | AU7: 00:00:00 | AV7: 00:00:00
T8: 1 | U8: =IFERROR(References!$U2,0) -> Produkt A | W8: 1 | X8: =IFERROR(VLOOKUP(W8,$T$8:$U$39,2,FALSE),"") -> Produkt A | Y8: =IF($I$3="All",SUMIFS(INDIRECT($F$3),Month,Y$7,Categories,$X8),SUMIFS(INDIRECT($F$3),Month,Y$7,Ad_Distribution,$I$3,Categories,$X8)) -> 581 | Z8: 652 | AA8: 501 | AB8: 369 | AC8: 384 | AD8: 272 | AE8: 228 | AF8: 1,073 | AG8: 786 | AH8: 1,077 | AI8: =IF($I$3="All",SUMIFS(INDIRECT($F$3),Month,AI$7,Categories,$X8),SUMIFS(INDIRECT($F$3),Month,AI$7,Ad_Distribution,$I$3,Categories,$X8)) -> 0 | AJ8: 0 | AK8: 0 | AL8: 0 | AM8: 0 | AN8: 0 | AO8: 0 | AP8: 0 | AQ8: 0 | AR8: 0 | AS8: 0 | AT8: 0 | AU8: 0 | AV8: 0
T9: 2 | U9: =IFERROR(References!$U3,0) -> Produkt B | W9: 2 | X9: =IFERROR(VLOOKUP(W9,$T$8:$U$39,2,FALSE),"") -> Produkt B | Y9: 178 | Z9: 202 | AA9: 156 | AB9: 122 | AC9: 121 | AD9: 85 | AE9: 68 | AF9: 258 | AG9: 239 | AH9: 324 | AI9: 0 | AJ9: 0 | AK9: 0 | AL9: 0 | AM9: 0 | AN9: 0 | AO9: 0 | AP9: 0 | AQ9: 0 | AR9: 0 | AS9: 0 | AT9: 0 | AU9: 0 | AV9: 0
T10: 3 | U10: =IFERROR(References!$U4,0) -> 0 | W10: 3 | X10: 0 | Y10: 0 | Z10: 0 | AA10: 0 | AB10: 0 | AC10: 0 | AD10: 0 | AE10: 0 | AF10: 0 | AG10: 0 | AH10: 0 | AI10: 0 | AJ10: 0 | AK10: 0 | AL10: 0 | AM10: 0 | AN10: 0 | AO10: 0 | AP10: 0 | AQ10: 0 | AR10: 0 | AS10: 0 | AT10: 0 | AU10: 0 | AV10: 0
T11: 4 | U11: =IFERROR(References!$U5,0) -> 0 | W11: 4 | X11: 0 | Y11: 0 | Z11: 0 | AA11: 0 | AB11: 0 | AC11: 0 | AD11: 0 | AE11: 0 | AF11: 0 | AG11: 0 | AH11: 0 | AI11: 0 | AJ11: 0 | AK11: 0 | AL11: 0 | AM11: 0 | AN11: 0 | AO11: 0 | AP11: 0 | AQ11: 0 | AR11: 0 | AS11: 0 | AT11: 0 | AU11: 0 | AV11: 0
T12: 5 | U12: =IFERROR(References!$U6,0) -> 0 | W12: 5 | X12: 0 | Y12: 0 | Z12: 0 | AA12: 0 | AB12: 0 | AC12: 0 | AD12: 0 | AE12: 0 | AF12: 0 | AG12: 0 | AH12: 0 | AI12: 0 | AJ12: 0 | AK12: 0 | AL12: 0 | AM12: 0 | AN12: 0 | AO12: 0 | AP12: 0 | AQ12: 0 | AR12: 0 | AS12: 0 | AT12: 0 | AU12: 0 | AV12: 0
T13: 6 | U13: =IFERROR(References!$U7,0) -> 0 | W13: 6 | X13: 0 | Y13: 0 | Z13: 0 | AA13: 0 | AB13: 0 | AC13: 0 | AD13: 0 | AE13: 0 | AF13: 0 | AG13: 0 | AH13: 0 | AI13: 0 | AJ13: 0 | AK13: 0 | AL13: 0 | AM13: 0 | AN13: 0 | AO13: 0 | AP13: 0 | AQ13: 0 | AR13: 0 | AS13: 0 | AT13: 0 | AU13: 0 | AV13: 0
T14: 7 | U14: =IFERROR(References!$U8,0) -> 0 | W14: 7 | X14: 0 | Y14: 0 | Z14: 0 | AA14: 0 | AB14: 0 | AC14: 0 | AD14: 0 | AE14: 0 | AF14: 0 | AG14: 0 | AH14: 0 | AI14: 0 | AJ14: 0 | AK14: 0 | AL14: 0 | AM14: 0 | AN14: 0 | AO14: 0 | AP14: 0 | AQ14: 0 | AR14: 0 | AS14: 0 | AT14: 0 | AU14: 0 | AV14: 0
T15: 8 | U15: =IFERROR(References!$U9,0) -> 0 | W15: 8 | X15: 0 | Y15: 0 | Z15: 0 | AA15: 0 | AB15: 0 | AC15: 0 | AD15: 0 | AE15: 0 | AF15: 0 | AG15: 0 | AH15: 0 | AI15: 0 | AJ15: 0 | AK15: 0 | AL15: 0 | AM15: 0 | AN15: 0 | AO15: 0 | AP15: 0 | AQ15: 0 | AR15: 0 | AS15: 0 | AT15: 0 | AU15: 0 | AV15: 0
T16: 9 | U16: =IFERROR(References!$U10,0) -> 0 | W16: 9 | X16: 0 | Y16: 0 | Z16: 0 | AA16: 0 | AB16: 0 | AC16: 0 | AD16: 0 | AE16: 0 | AF16: 0 | AG16: 0 | AH16: 0 | AI16: 0 | AJ16: 0 | AK16: 0 | AL16: 0 | AM16: 0 | AN16: 0 | AO16: 0 | AP16: 0 | AQ16: 0 | AR16: 0 | AS16: 0 | AT16: 0 | AU16: 0 | AV16: 0
T17: 10 | U17: =IFERROR(References!$U11,0) -> 0 | W17: 10 | X17: 0 | Y17: 0 | Z17: 0 | AA17: 0 | AB17: 0 | AC17: 0 | AD17: 0 | AE17: 0 | AF17: 0 | AG17: 0 | AH17: 0 | AI17: 0 | AJ17: 0 | AK17: 0 | AL17: 0 | AM17: 0 | AN17: 0 | AO17: 0 | AP17: 0 | AQ17: 0 | AR17: 0 | AS17: 0 | AT17: 0 | AU17: 0 | AV17: 0
T18: 11 | U18: =IFERROR(References!$U12,0) -> 0 | W18: 11 | X18: 0 | Y18: 0 | Z18: 0 | AA18: 0 | AB18: 0 | AC18: 0 | AD18: 0 | AE18: 0 | AF18: 0 | AG18: 0 | AH18: 0 | AI18: 0 | AJ18: 0 | AK18: 0 | AL18: 0 | AM18: 0 | AN18: 0 | AO18: 0 | AP18: 0 | AQ18: 0 | AR18: 0 | AS18: 0 | AT18: 0 | AU18: 0 | AV18: 0
U19: =IFERROR(References!$U13,0) -> 0 | W19: 12 | Y19: 0 | Z19: 0 | AA19: 0 | AB19: 0 | AC19: 0 | AD19: 0 | AE19: 0 | AF19: 0 | AG19: 0 | AH19: 0 | AI19: 0 | AJ19: 0 | AK19: 0 | AL19: 0 | AM19: 0 | AN19: 0 | AO19: 0 | AP19: 0 | AQ19: 0 | AR19: 0 | AS19: 0 | AT19: 0 | AU19: 0 | AV19: 0
U20: =IFERROR(References!$U14,0) -> 0
U21: =IFERROR(References!$U15,0) -> 0 | X21: `
U22: =IFERROR(References!$U16,0) -> 0
U23: =IFERROR(References!$U17,0) -> 0
U24: =IFERROR(References!$U18,0) -> 0
U25: =IFERROR(References!$U19,0) -> 0
U26: =IFERROR(References!$U20,0) -> 0
U27: =IFERROR(References!$U21,0) -> 0
U28: =IFERROR(References!$U22,0) -> 0
U29: =IFERROR(References!$U23,0) -> 0
U30: =IFERROR(References!$U24,0) -> 0
U31: =IFERROR(References!$U25,0) -> 0
U32: =IFERROR(References!$U26,0) -> 0
U33: =IFERROR(References!$U27,0) -> 0
U34: =IFERROR(References!$U28,0) -> 0
U35: =IFERROR(References!$U29,0) -> 0
U36: =IFERROR(References!$U30,0) -> 0
U37: =IFERROR(References!$U31,0) -> 0
U38: =IFERROR(References!$U32,0) -> 0
U39: =IFERROR(References!$U33,0) -> 0
B45: Quarterly | R45: x
B46: Quarters from | D46: Q1'10 | E46: to | F46: Q4'10 | G46: << choose date range in qq'yy format | R46: =COUNTIF($Y$46:$AV$46,">0") -> 4 | X46: DO NOT EDIT THE BELOW | Y46: =VLOOKUP($D$46,References!$B:$C,2,FALSE) -> 2010-01-01 | Z46: =IF(DATE(YEAR(Y46),MONTH(Y46)+1,DAY(Y46))>VLOOKUP($F$46,References!$B:$C,2,FALSE),0,IF(Y46=0,0,DATE(YEAR(Y46),MONTH(Y46)+3,DAY(Y46)))) -> 2010-04-01 | AA46: =IF(DATE(YEAR(Z46),MONTH(Z46)+1,DAY(Z46))>VLOOKUP($F$46,References!$B:$C,2,FALSE),0,IF(Z46=0,0,DATE(YEAR(Z46),MONTH(Z46)+3,DAY(Z46)))) -> 2010-07-01 | AB46: =IF(DATE(YEAR(AA46),MONTH(AA46)+1,DAY(AA46))>VLOOKUP($F$46,References!$B:$C,2,FALSE),0,IF(AA46=0,0,DATE(YEAR(AA46),MONTH(AA46)+3,DAY(AA46)))) -> 2010-10-01 | AC46: =IF(DATE(YEAR(AB46),MONTH(AB46)+1,DAY(AB46))>VLOOKUP($F$46,References!$B:$C,2,FALSE),0,IF(AB46=0,0,DATE(YEAR(AB46),MONTH(AB46)+3,DAY(AB46)))) -> 00:00:00 | AD46: =IF(DATE(YEAR(AC46),MONTH(AC46)+1,DAY(AC46))>VLOOKUP($F$46,References!$B:$C,2,FALSE),0,IF(AC46=0,0,DATE(YEAR(AC46),MONTH(AC46)+3,DAY(AC46)))) -> 00:00:00 | AE46: =IF(DATE(YEAR(AD46),MONTH(AD46)+1,DAY(AD46))>VLOOKUP($F$46,References!$B:$C,2,FALSE),0,IF(AD46=0,0,DATE(YEAR(AD46),MONTH(AD46)+3,DAY(AD46)))) -> 00:00:00 | AF46: =IF(DATE(YEAR(AE46),MONTH(AE46)+1,DAY(AE46))>VLOOKUP($F$46,References!$B:$C,2,FALSE),0,IF(AE46=0,0,DATE(YEAR(AE46),MONTH(AE46)+3,DAY(AE46)))) -> 00:00:00 | AG46: =IF(DATE(YEAR(AF46),MONTH(AF46)+1,DAY(AF46))>VLOOKUP($F$46,References!$B:$C,2,FALSE),0,IF(AF46=0,0,DATE(YEAR(AF46),MONTH(AF46)+3,DAY(AF46)))) -> 00:00:00 | AH46: =IF(DATE(YEAR(AG46),MONTH(AG46)+1,DAY(AG46))>VLOOKUP($F$46,References!$B:$C,2,FALSE),0,IF(AG46=0,0,DATE(YEAR(AG46),MONTH(AG46)+3,DAY(AG46)))) -> 00:00:00 | AI46: =IF(DATE(YEAR(AH46),MONTH(AH46)+1,DAY(AH46))>VLOOKUP($F$46,References!$B:$C,2,FALSE),0,IF(AH46=0,0,DATE(YEAR(AH46),MONTH(AH46)+3,DAY(AH46)))) -> 00:00:00 | AJ46: =IF(DATE(YEAR(AI46),MONTH(AI46)+1,DAY(AI46))>VLOOKUP($F$46,References!$B:$C,2,FALSE),0,IF(AI46=0,0,DATE(YEAR(AI46),MONTH(AI46)+3,DAY(AI46)))) -> 00:00:00 | AK46: =IF(DATE(YEAR(AJ46),MONTH(AJ46)+1,DAY(AJ46))>VLOOKUP($F$46,References!$B:$C,2,FALSE),0,IF(AJ46=0,0,DATE(YEAR(AJ46),MONTH(AJ46)+3,DAY(AJ46)))) -> 00:00:00 | AL46: =IF(DATE(YEAR(AK46),MONTH(AK46)+1,DAY(AK46))>VLOOKUP($F$46,References!$B:$C,2,FALSE),0,IF(AK46=0,0,DATE(YEAR(AK46),MONTH(AK46)+3,DAY(AK46)))) -> 00:00:00 | AM46: =IF(DATE(YEAR(AL46),MONTH(AL46)+1,DAY(AL46))>VLOOKUP($F$46,References!$B:$C,2,FALSE),0,IF(AL46=0,0,DATE(YEAR(AL46),MONTH(AL46)+3,DAY(AL46)))) -> 00:00:00 | AN46: =IF(DATE(YEAR(AM46),MONTH(AM46)+1,DAY(AM46))>VLOOKUP($F$46,References!$B:$C,2,FALSE),0,IF(AM46=0,0,DATE(YEAR(AM46),MONTH(AM46)+3,DAY(AM46)))) -> 00:00:00 | AO46: =IF(DATE(YEAR(AN46),MONTH(AN46)+1,DAY(AN46))>VLOOKUP($F$46,References!$B:$C,2,FALSE),0,IF(AN46=0,0,DATE(YEAR(AN46),MONTH(AN46)+3,DAY(AN46)))) -> 00:00:00 | AP46: =IF(DATE(YEAR(AO46),MONTH(AO46)+1,DAY(AO46))>VLOOKUP($F$46,References!$B:$C,2,FALSE),0,IF(AO46=0,0,DATE(YEAR(AO46),MONTH(AO46)+3,DAY(AO46)))) -> 00:00:00 | AQ46: =IF(DATE(YEAR(AP46),MONTH(AP46)+1,DAY(AP46))>VLOOKUP($F$46,References!$B:$C,2,FALSE),0,IF(AP46=0,0,DATE(YEAR(AP46),MONTH(AP46)+3,DAY(AP46)))) -> 00:00:00 | AR46: =IF(DATE(YEAR(AQ46),MONTH(AQ46)+1,DAY(AQ46))>VLOOKUP($F$46,References!$B:$C,2,FALSE),0,IF(AQ46=0,0,DATE(YEAR(AQ46),MONTH(AQ46)+3,DAY(AQ46)))) -> 00:00:00 | AS46: =IF(DATE(YEAR(AR46),MONTH(AR46)+1,DAY(AR46))>VLOOKUP($F$46,References!$B:$C,2,FALSE),0,IF(AR46=0,0,DATE(YEAR(AR46),MONTH(AR46)+3,DAY(AR46)))) -> 00:00:00 | AT46: =IF(DATE(YEAR(AS46),MONTH(AS46)+1,DAY(AS46))>VLOOKUP($F$46,References!$B:$C,2,FALSE),0,IF(AS46=0,0,DATE(YEAR(AS46),MONTH(AS46)+3,DAY(AS46)))) -> 00:00:00 | AU46: =IF(DATE(YEAR(AT46),MONTH(AT46)+1,DAY(AT46))>VLOOKUP($F$46,References!$B:$C,2,FALSE),0,IF(AT46=0,0,DATE(YEAR(AT46),MONTH(AT46)+3,DAY(AT46)))) -> 00:00:00 | AV46: =IF(DATE(YEAR(AU46),MONTH(AU46)+1,DAY(AU46))>VLOOKUP($F$46,References!$B:$C,2,FALSE),0,IF(AU46=0,0,DATE(YEAR(AU46),MONTH(AU46)+3,DAY(AU46)))) -> 00:00:00
W47: Graph | X47: =COUNTIF($Y$46:$AV$46,">"&0) -> 4 | Y47: =$D$46 -> Q1'10 | Z47: =IFERROR(VLOOKUP(Z46,References!$C:$D,2,FALSE),0) -> Q2'10 | AA47: =IFERROR(VLOOKUP(AA46,References!$C:$D,2,FALSE),0) -> Q3'10 | AB47: =IFERROR(VLOOKUP(AB46,References!$C:$D,2,FALSE),0) -> Q4'10 | AC47: =IFERROR(VLOOKUP(AC46,References!$C:$D,2,FALSE),0) -> 00:00:00 | AD47: =IFERROR(VLOOKUP(AD46,References!$C:$D,2,FALSE),0) -> 00:00:00 | AE47: =IFERROR(VLOOKUP(AE46,References!$C:$D,2,FALSE),0) -> 00:00:00 | AF47: =IFERROR(VLOOKUP(AF46,References!$C:$D,2,FALSE),0) -> 00:00:00 | AG47: =IFERROR(VLOOKUP(AG46,References!$C:$D,2,FALSE),0) -> 00:00:00 | AH47: =IFERROR(VLOOKUP(AH46,References!$C:$D,2,FALSE),0) -> 00:00:00 | AI47: =IFERROR(VLOOKUP(AI46,References!$C:$D,2,FALSE),0) -> 00:00:00 | AJ47: =IFERROR(VLOOKUP(AJ46,References!$C:$D,2,FALSE),0) -> 00:00:00 | AK47: =IFERROR(VLOOKUP(AK46,References!$C:$D,2,FALSE),0) -> 00:00:00 | AL47: =IFERROR(VLOOKUP(AL46,References!$C:$D,2,FALSE),0) -> 00:00:00 | AM47: =IFERROR(VLOOKUP(AM46,References!$C:$D,2,FALSE),0) -> 00:00:00 | AN47: =IFERROR(VLOOKUP(AN46,References!$C:$D,2,FALSE),0) -> 00:00:00 | AO47: =IFERROR(VLOOKUP(AO46,References!$C:$D,2,FALSE),0) -> 00:00:00 | AP47: =IFERROR(VLOOKUP(AP46,References!$C:$D,2,FALSE),0) -> 00:00:00 | AQ47: =IFERROR(VLOOKUP(AQ46,References!$C:$D,2,FALSE),0) -> 00:00:00 | AR47: =IFERROR(VLOOKUP(AR46,References!$C:$D,2,FALSE),0) -> 00:00:00 | AS47: =IFERROR(VLOOKUP(AS46,References!$C:$D,2,FALSE),0) -> 00:00:00 | AT47: =IFERROR(VLOOKUP(AT46,References!$C:$D,2,FALSE),0) -> 00:00:00 | AU47: =IFERROR(VLOOKUP(AU46,References!$C:$D,2,FALSE),0) -> 00:00:00 | AV47: =IFERROR(VLOOKUP(AV46,References!$C:$D,2,FALSE),0) -> 00:00:00
T48: 5 | U48: =IFERROR(References!$N2,0) -> Produkt A | W48: 1 | X48: =IFERROR(VLOOKUP(W48,$T$48:$U$79,2,FALSE),"") -> 0 | Y48: =IF($I$3="All",SUMIFS(INDIRECT($F$3),Quarter,Y$46,Categories,$X48),SUMIFS(INDIRECT($F$3),Ad_Distribution,$I$3,Quarter,Y$46,Categories,$X48)) -> 0 | Z48: 0 | AA48: 0 | AB48: 0 | AC48: 0 | AD48: 0 | AE48: 0 | AF48: 0 | AG48: 0 | AH48: 0 | AI48: =IF($I$3="All",SUMIFS(INDIRECT($F$3),Quarter,AI$46,Categories,$X48),SUMIFS(INDIRECT($F$3),Ad_Distribution,$I$3,Quarter,AI$46,Categories,$X48)) -> 0 | AJ48: 0 | AK48: 0 | AL48: 0 | AM48: 0 | AN48: 0 | AO48: 0 | AP48: 0 | AQ48: 0 | AR48: 0 | AS48: 0 | AT48: 0 | AU48: 0 | AV48: 0
T49: 6 | U49: =IFERROR(References!$N3,0) -> Produkt B | W49: 2 | X49: =IFERROR(VLOOKUP(W49,$T$48:$U$79,2,FALSE),"") -> 0 | Y49: 0 | Z49: 0 | AA49: 0 | AB49: 0 | AC49: 0 | AD49: 0 | AE49: 0 | AF49: 0 | AG49: 0 | AH49: 0 | AI49: 0 | AJ49: 0 | AK49: 0 | AL49: 0 | AM49: 0 | AN49: 0 | AO49: 0 | AP49: 0 | AQ49: 0 | AR49: 0 | AS49: 0 | AT49: 0 | AU49: 0 | AV49: 0
T50: 7 | U50: =IFERROR(References!$N4,0) -> 0 | W50: 3 | X50: 0 | Y50: 0 | Z50: 0 | AA50: 0 | AB50: 0 | AC50: 0 | AD50: 0 | AE50: 0 | AF50: 0 | AG50: 0 | AH50: 0 | AI50: 0 | AJ50: 0 | AK50: 0 | AL50: 0 | AM50: 0 | AN50: 0 | AO50: 0 | AP50: 0 | AQ50: 0 | AR50: 0 | AS50: 0 | AT50: 0 | AU50: 0 | AV50: 0
T51: 4 | U51: =IFERROR(References!$N5,0) -> 0 | W51: 4 | X51: 0 | Y51: 0 | Z51: 0 | AA51: 0 | AB51: 0 | AC51: 0 | AD51: 0 | AE51: 0 | AF51: 0 | AG51: 0 | AH51: 0 | AI51: 0 | AJ51: 0 | AK51: 0 | AL51: 0 | AM51: 0 | AN51: 0 | AO51: 0 | AP51: 0 | AQ51: 0 | AR51: 0 | AS51: 0 | AT51: 0 | AU51: 0 | AV51: 0
T52: 1 | U52: =IFERROR(References!$N6,0) -> 0 | W52: 5 | X52: Produkt A | Y52: 0 | Z52: 0 | AA52: 0 | AB52: 1,734 | AC52: 0 | AD52: 0 | AE52: 0 | AF52: 0 | AG52: 0 | AH52: 0 | AI52: 0 | AJ52: 0 | AK52: 0 | AL52: 0 | AM52: 0 | AN52: 0 | AO52: 0 | AP52: 0 | AQ52: 0 | AR52: 0 | AS52: 0 | AT52: 0 | AU52: 0 | AV52: 0
T53: 2 | U53: =IFERROR(References!$N7,0) -> 0 | W53: 6 | X53: Produkt B | Y53: 0 | Z53: 0 | AA53: 0 | AB53: 535 | AC53: 0 | AD53: 0 | AE53: 0 | AF53: 0 | AG53: 0 | AH53: 0 | AI53: 0 | AJ53: 0 | AK53: 0 | AL53: 0 | AM53: 0 | AN53: 0 | AO53: 0 | AP53: 0 | AQ53: 0 | AR53: 0 | AS53: 0 | AT53: 0 | AU53: 0 | AV53: 0
T54: 8 | U54: =IFERROR(References!$N8,0) -> 0 | W54: 7 | X54: 0 | Y54: 0 | Z54: 0 | AA54: 0 | AB54: 0 | AC54: 0 | AD54: 0 | AE54: 0 | AF54: 0 | AG54: 0 | AH54: 0 | AI54: 0 | AJ54: 0 | AK54: 0 | AL54: 0 | AM54: 0 | AN54: 0 | AO54: 0 | AP54: 0 | AQ54: 0 | AR54: 0 | AS54: 0 | AT54: 0 | AU54: 0 | AV54: 0
T55: 3 | U55: =IFERROR(References!$N9,0) -> 0 | W55: 8 | X55: 0 | Y55: 0 | Z55: 0 | AA55: 0 | AB55: 0 | AC55: 0 | AD55: 0 | AE55: 0 | AF55: 0 | AG55: 0 | AH55: 0 | AI55: 0 | AJ55: 0 | AK55: 0 | AL55: 0 | AM55: 0 | AN55: 0 | AO55: 0 | AP55: 0 | AQ55: 0 | AR55: 0 | AS55: 0 | AT55: 0 | AU55: 0 | AV55: 0
T56: 9 | U56: =IFERROR(References!$N10,0) -> 0 | W56: 9 | X56: 0 | Y56: 0 | Z56: 0 | AA56: 0 | AB56: 0 | AC56: 0 | AD56: 0 | AE56: 0 | AF56: 0 | AG56: 0 | AH56: 0 | AI56: 0 | AJ56: 0 | AK56: 0 | AL56: 0 | AM56: 0 | AN56: 0 | AO56: 0 | AP56: 0 | AQ56: 0 | AR56: 0 | AS56: 0 | AT56: 0 | AU56: 0 | AV56: 0
T57: 10 | U57: =IFERROR(References!$N11,0) -> 0 | W57: 10 | X57: 0 | Y57: 0 | Z57: 0 | AA57: 0 | AB57: 0 | AC57: 0 | AD57: 0 | AE57: 0 | AF57: 0 | AG57: 0 | AH57: 0 | AI57: 0 | AJ57: 0 | AK57: 0 | AL57: 0 | AM57: 0 | AN57: 0 | AO57: 0 | AP57: 0 | AQ57: 0 | AR57: 0 | AS57: 0 | AT57: 0 | AU57: 0 | AV57: 0
T58: 11 | U58: =IFERROR(References!$N12,0) -> 0 | W58: 11 | X58: 0 | Y58: 0 | Z58: 0 | AA58: 0 | AB58: 0 | AC58: 0 | AD58: 0 | AE58: 0 | AF58: 0 | AG58: 0 | AH58: 0 | AI58: 0 | AJ58: 0 | AK58: 0 | AL58: 0 | AM58: 0 | AN58: 0 | AO58: 0 | AP58: 0 | AQ58: 0 | AR58: 0 | AS58: 0 | AT58: 0 | AU58: 0 | AV58: 0
U59: =IFERROR(References!$N13,0) -> 0 | W59: 12 | Y59: 0 | Z59: 0 | AA59: 0 | AB59: 0 | AC59: 0 | AD59: 0 | AE59: 0 | AF59: 0 | AG59: 0 | AH59: 0 | AI59: 0 | AJ59: 0 | AK59: 0 | AL59: 0 | AM59: 0 | AN59: 0 | AO59: 0 | AP59: 0 | AQ59: 0 | AR59: 0 | AS59: 0 | AT59: 0 | AU59: 0 | AV59: 0
U60: =IFERROR(References!$N14,0) -> 0
U61: =IFERROR(References!$N15,0) -> 0
U62: =IFERROR(References!$N16,0) -> 0
U63: =IFERROR(References!$N17,0) -> 0
U64: =IFERROR(References!$N18,0) -> 0
U65: =IFERROR(References!$N19,0) -> 0
U66: =IFERROR(References!$N20,0) -> 0
U67: =IFERROR(References!$N21,0) -> 0
U68: =IFERROR(References!$N22,0) -> 0
U69: =IFERROR(References!$N23,0) -> 0
U70: =IFERROR(References!$N24,0) -> 0
U71: =IFERROR(References!$N25,0) -> 0
U72: =IFERROR(References!$N26,0) -> 0
U73: =IFERROR(References!$N27,0) -> 0
U74: =IFERROR(References!$N28,0) -> 0
U75: =IFERROR(References!$N29,0) -> 0
U76: =IFERROR(References!$N30,0) -> 0
U77: =IFERROR(References!$N31,0) -> 0
U78: =IFERROR(References!$N32,0) -> 0
U79: =IFERROR(References!$N33,0) -> 0

Sheet 4
B2: Impressions share | G2: Impression share: | J2: ='5'!H2 -> 13% | L2: Exact match: | N2: ='5'!L2 -> 100%
B3: by | C3: Category | D3: level | G3: << remember to fill in Categories column on INPUT sheet
B4: Months from | D4: 2010-10-01 | E4: to | F4: 2011-07-01 | G4: << choose date range in mmm-yy format | S4: Choose order by changing numbers
S5: here | T5: (can be left blank if you don't want it to appear)
S6: 1 | T6: =IFERROR(References!$N2,0) -> Produkt A
S7: 2 | T7: =IFERROR(References!$N3,0) -> Produkt B
T8: =IFERROR(References!$N4,0) -> 0
T9: =IFERROR(References!$N5,0) -> 0
T10: =IFERROR(References!$N6,0) -> 0
T11: =IFERROR(References!$N7,0) -> 0
T12: =IFERROR(References!$N8,0) -> 0
T13: =IFERROR(References!$N9,0) -> 0
T14: =IFERROR(References!$N10,0) -> 0
T15: =IFERROR(References!$N11,0) -> 0
T16: =IFERROR(References!$N12,0) -> 0
T17: =IFERROR(References!$N13,0) -> 0
T18: =IFERROR(References!$N14,0) -> 0
T19: =IFERROR(References!$N15,0) -> 0
T20: =IFERROR(References!$N16,0) -> 0
T21: =IFERROR(References!$N17,0) -> 0
T22: =IFERROR(References!$N18,0) -> 0
T23: =IFERROR(References!$N19,0) -> 0
T24: =IFERROR(References!$N20,0) -> 0
T25: =IFERROR(References!$N21,0) -> 0
T26: =IFERROR(References!$N22,0) -> 0
T27: =IFERROR(References!$N23,0) -> 0
T28: =IFERROR(References!$N24,0) -> 0
T29: =IFERROR(References!$N25,0) -> 0
T30: =IFERROR(References!$N26,0) -> 0
T31: =IFERROR(References!$N27,0) -> 0
T32: =IFERROR(References!$N28,0) -> 0
T33: =IFERROR(References!$N29,0) -> 0
T34: =IFERROR(References!$N30,0) -> 0
T35: =IFERROR(References!$N31,0) -> 0
T36: =IFERROR(References!$N32,0) -> 0
T37: =IFERROR(References!$N33,0) -> 0
T38: =IFERROR(References!$N34,0) -> 0
T39: =IFERROR(References!$N35,0) -> 0
T40: =IFERROR(References!$N36,0) -> 0
T41: =IFERROR(References!$N37,0) -> 0
T42: =IFERROR(References!$N38,0) -> 0
T43: =IFERROR(References!$N39,0) -> 0
T44: =IFERROR(References!$N40,0) -> 0
T45: =IFERROR(References!$N41,0) -> 0
T46: =IFERROR(References!$N42,0) -> 0
T47: =IFERROR(References!$N43,0) -> 0
T48: =IFERROR(References!$N44,0) -> 0

Sheet 4a
B2: Impressions share
B3: by | C3: ='4'!$C$3 -> Category | D3: level
B4: Compare quarters | D4: Q4'10 | E4: and | F4: Q3'11 | G4: << choose (qq'yy) | S4: Choose order by changing numbers
S5: here | T5: (can be left blank if you don't want it to appear)
S6: 1 | T6: =IFERROR(References!$N2,0) -> Produkt A
S7: 2 | T7: =IFERROR(References!$N3,0) -> Produkt B
T8: =IFERROR(References!$N4,0) -> 0
T9: =IFERROR(References!$N5,0) -> 0
T10: =IFERROR(References!$N6,0) -> 0
T11: =IFERROR(References!$N7,0) -> 0
T12: =IFERROR(References!$N8,0) -> 0
T13: =IFERROR(References!$N9,0) -> 0
T14: =IFERROR(References!$N10,0) -> 0
T15: =IFERROR(References!$N11,0) -> 0
T16: =IFERROR(References!$N12,0) -> 0
T17: =IFERROR(References!$N13,0) -> 0
T18: =IFERROR(References!$N14,0) -> 0
T19: =IFERROR(References!$N15,0) -> 0
T20: =IFERROR(References!$N16,0) -> 0
T21: =IFERROR(References!$N17,0) -> 0
T22: =IFERROR(References!$N18,0) -> 0
T23: =IFERROR(References!$N19,0) -> 0
T24: =IFERROR(References!$N20,0) -> 0
T25: =IFERROR(References!$N21,0) -> 0
T26: =IFERROR(References!$N22,0) -> 0
T27: =IFERROR(References!$N23,0) -> 0
T28: =IFERROR(References!$N24,0) -> 0
T29: =IFERROR(References!$N25,0) -> 0
T30: =IFERROR(References!$N26,0) -> 0
T31: =IFERROR(References!$N27,0) -> 0
T32: =IFERROR(References!$N28,0) -> 0
T33: =IFERROR(References!$N29,0) -> 0
T34: =IFERROR(References!$N30,0) -> 0
T35: =IFERROR(References!$N31,0) -> 0
T36: =IFERROR(References!$N32,0) -> 0
T37: =IFERROR(References!$N33,0) -> 0
T38: =IFERROR(References!$N34,0) -> 0
T39: =IFERROR(References!$N35,0) -> 0
T40: =IFERROR(References!$N36,0) -> 0
T41: =IFERROR(References!$N37,0) -> 0
T42: =IFERROR(References!$N38,0) -> 0
T43: =IFERROR(References!$N39,0) -> 0
T44: =IFERROR(References!$N40,0) -> 0
T45: =IFERROR(References!$N41,0) -> 0
T46: =IFERROR(References!$N42,0) -> 0
T47: =IFERROR(References!$N43,0) -> 0
T48: =IFERROR(References!$N44,0) -> 0

Sheet 5
B2: Impressions share opportunity | E2: Impression share: | H2: =1-SUM($O$2,$X$2) -> 13% | J2: Exact match: | L2: =SUM('IS Calculations'!C$2:C$350)/SUM('IS Calculations'!$J$2:$J$350) -> 100% | O2: =SUM('IS Calculations'!I$2:I$350)/SUM('IS Calculations'!$G$2:$G$350) -> 23% | P2: Lost to Budget | X2: =SUM('IS Calculations'!H2:H350)/SUM('IS Calculations'!$G$2:$G$350) -> 65% | Y2: Lost to Rank
B3: by | D3: ='4'!C3 -> Category | E3: level | Q3: Uplift | R3: CTR | S3: CPC | T3: CR | V3: Target ROI | Z3: Uplift | AA3: CTR | AB3: CPC | AC3: CR | AE3: Target ROI
B4: Months | D4: from | E4: ='4'!D4 -> 2010-10-01 | F4: to | G4: ='4'!F4 -> 2011-07-01 | H4: << change on Sheet 4 | Q4: by | R4: 1 | S4: 1 | T4: 1 | V4: 4 | Z4: by | AA4: 1 | AB4: 1.2 | AC4: 1 | AE4: 4
R5: ↓ | S5: ↓ | T5: ↓ | AA5: ↓ | AB5: ↓ | AC5: ↓
B6: TOTAL Potential | D6: =D7+D8 -> 581,916 | E6: =E7+E8 -> 12,876 | F6: =E6/D6 -> 2.21% | G6: =H6/E6 -> 0.78 | H6: =H7+H8 -> 9,998 | I6: =SUM(I7:I8) -> 0 | J6: =I6/E6 -> 0% | K6: =IFERROR(H6/I6,"") ->  | L6: =SUM(L7:L8) -> 0 | M6: =(L6/H6)-1 -> -1.0 | R6: =SUM(R$11:R$70)/SUM(Q$11:Q$70) -> 2.22% | S6: =SUM(S$11:S$70)/SUM(R$11:R$70) -> 0.71 | T6: =T8/R8 -> 0.0% | AA6: =SUM(AA$11:AA$70)/SUM(Z$11:Z$70) -> 2.21% | AB6: =SUM(AB$11:AB$70)/SUM(AA$11:AA$70) -> 0.83 | AC6: =AC8/AA8 -> 0.0%
B7: Current | D7: =SUM('IS Calculations'!$C$2:$C$350) -> 92,905 | E7: =SUM('IS Calculations'!$D$2:$D$350) -> 2,058 | F7: =E7/D7 -> 2.21% | G7: =H7/E7 -> 0.70 | H7: =SUM('IS Calculations'!$K$2:$K$350) -> 1,443 | I7: =SUM('IS Calculations'!$L$2:$L$350) -> 0 | J7: =I7/E7 -> 0% | K7: =IFERROR(H7/I7,"") ->  | L7: =SUM('IS Calculations'!$M$2:$M$350) -> 0 | M7: =(L7/H7)-1 -> -1.0
B8: Additional Opportunity | D8: =SUM(D$11:D$70) -> 489,011 | E8: =SUM(E$11:E$70) -> 10,819 | F8: =E8/D8 -> 2.21% | G8: =H8/E8 -> 0.79 | H8: =SUM(H$11:H$70) -> 8,555 | I8: =SUM(I$11:I$70) -> 0 | J8: =I8/E8 -> 0% | K8: =IFERROR(H8/I8,"") ->  | L8: =SUM(L$11:L$70) -> 0 | M8: =(L8/H8)-1 -> -1.0 | O8: Additional: | Q8: =SUM(Q$11:Q$70) -> 165,242 | R8: =SUM(R$11:R$70) -> 3,676 | S8: =SUM(S$11:S$70) -> 2,610 | T8: =SUM(T$11:T$70) -> 0 | U8: =SUM(U$11:U$70) -> 0 | V8: =(U8/S8)-1 -> -1.0 | X8: Additional: | Z8: =SUM(Z$11:Z$70) -> 323,769 | AA8: =SUM(AA$11:AA$70) -> 7,143 | AB8: =SUM(AB$11:AB$70) -> 5,945 | AC8: =SUM(AC$11:AC$70) -> 0 | AD8: =SUM(AD$11:AD$70) -> 0 | AE8: =(AD8/AB8)-1 -> -1.0
B10: ='4'!$C$3 -> Category | C10: IS | D10: Imprs | E10: Clicks | F10: CTR | G10: CPC | H10: Cost | I10: Conversions | J10: Conv Rate | K10: Cost/Conv | L10: Revenue | M10: ROI | O10: Target | P10: Lost | Q10: Imprs | R10: Clicks | S10: Cost | T10: Conv | U10: Revenue | V10: ROI | X10: Target | Y10: Lost | Z10: Imprs | AA10: Clicks | AB10: Cost | AC10: Conv | AD10: Revenue | AE10: ROI
A11: 1 | B11: =IFERROR(VLOOKUP($A11,'IS Calculations'!$A$2:$B$350,2,FALSE),0) -> Produkt A | C11: =IFERROR(VLOOKUP($B11,'IS Calculations'!$B:$P,15,FALSE),0) -> 13% | D11: =SUM(Q11,Z11) -> 363,405 | E11: =SUM(R11,AA11) -> 8,376 | F11: =IFERROR(E11/D11,0) -> 2.30% | G11: =IFERROR(H11/E11,0) -> 0.88 | H11: =SUM(S11,AB11) -> 7,356 | I11: =SUM(T11,AC11) -> 0 | J11: =IFERROR(I11/E11,0) -> 0% | K11: =IFERROR(H11/I11,0) -> 0 | L11: =SUM(U11,AD11) -> 0 | M11: =IF(H11=0,0,(L11/H11)-1) -> -1.0 | O11: =IF($C11+$P11<=0.8,1,IF($C11>=0.8,0,(0.8-$C11)/$P11)) -> 100% | P11: =IFERROR(VLOOKUP($B11,'IS Calculations'!$B:$R,17,FALSE),0) -> 24% | Q11: =IFERROR($O11*VLOOKUP($B11,'IS Calculations'!$B$2:$K$350,8,FALSE),0) -> 128,440 | R11: =Q11*IFERROR(VLOOKUP($B11,'IS Calculations'!$B$2:$K$350,MATCH($R$3,'IS Calculations'!$B$1:$O$1,0),FALSE),0)*R$4 -> 2,960 | S11: =R11*IFERROR(VLOOKUP($B11,'IS Calculations'!$B$2:$K$350,MATCH($S$3,'IS Calculations'!$B$1:$O$1,0),FALSE),0)*S$4 -> 2,302 | T11: =$R11*IFERROR(VLOOKUP($B11,'IS Calculations'!$B$2:$O$350,MATCH($T$3,'IS Calculations'!$B$1:$O$1,0),FALSE),0)*T$4 -> 0 | U11: =T11*IFERROR(VLOOKUP($B11,'IS Calculations'!$B$2:$O$350,12,FALSE)/VLOOKUP($B11,'IS Calculations'!$B$2:$O$350,11,FALSE),0) -> 0 | V11: =IFERROR((U11/S11)-1,0) -> -1.0 | X11: =IFERROR(IF(OR($C11>=0.8,$C11+$P11>=0.8),0,(0.8-$C11-$P11)/$Y11),"") -> 68% | Y11: =IFERROR(VLOOKUP($B11,'IS Calculations'!$B:$R,16,FALSE),0) -> 63% | Z11: =IFERROR($X11*VLOOKUP($B11,'IS Calculations'!$B$2:$K$350,7,FALSE),0) -> 234,966 | AA11: =Z11*IFERROR(VLOOKUP($B11,'IS Calculations'!$B$2:$K$350,4,FALSE),0)*AA$4 -> 5,416 | AB11: =AA11*IFERROR(VLOOKUP($B11,'IS Calculations'!$B$2:$K$350,5,FALSE),0)*AB$4 -> 5,054 | AC11: =$AA11*IFERROR(VLOOKUP($B11,'IS Calculations'!$B$2:$O$350,MATCH($AC$3,'IS Calculations'!$B$1:$O$1,0),FALSE),0)*AC$4 -> 0 | AD11: =AC11*IFERROR(VLOOKUP($B11,'IS Calculations'!$B$2:$O$350,12,FALSE)/VLOOKUP($B11,'IS Calculations'!$B$2:$O$350,11,FALSE),0) -> 0 | AE11: =IFERROR((AD11/AB11)-1,0) -> -1.0
A12: 2 | B12: =IFERROR(VLOOKUP($A12,'IS Calculations'!$A$2:$B$350,2,FALSE),0) -> Produkt B | C12: =IFERROR(VLOOKUP($B12,'IS Calculations'!$B:$P,15,FALSE),0) -> 12% | D12: 125,606 | E12: 2,443 | F12: =IFERROR(E12/D12,0) -> 1.94% | G12: =IFERROR(H12/E12,0) -> 0.49 | H12: =SUM(S12,AB12) -> 1,199 | I12: =SUM(T12,AC12) -> 0 | J12: =IFERROR(I12/E12,0) -> 0% | K12: =IFERROR(H12/I12,0) -> 0 | L12: =SUM(U12,AD12) -> 0 | M12: =IF(H12=0,0,(L12/H12)-1) -> -1.0 | O12: =IF($C12+$P12<=0.8,1,IF($C12>=0.8,0,(0.8-$C12)/$P12)) -> 100% | P12: =IFERROR(VLOOKUP($B12,'IS Calculations'!$B:$R,17,FALSE),0) -> 20% | Q12: =IFERROR($O12*VLOOKUP($B12,'IS Calculations'!$B$2:$K$350,8,FALSE),0) -> 36,802 | R12: =Q12*IFERROR(VLOOKUP($B12,'IS Calculations'!$B$2:$K$350,MATCH($R$3,'IS Calculations'!$B$1:$O$1,0),FALSE),0)*R$4 -> 716 | S12: =R12*IFERROR(VLOOKUP($B12,'IS Calculations'!$B$2:$K$350,MATCH($S$3,'IS Calculations'!$B$1:$O$1,0),FALSE),0)*S$4 -> 308 | T12: =$R12*IFERROR(VLOOKUP($B12,'IS Calculations'!$B$2:$O$350,MATCH($T$3,'IS Calculations'!$B$1:$O$1,0),FALSE),0)*T$4 -> 0 | U12: =T12*IFERROR(VLOOKUP($B12,'IS Calculations'!$B$2:$O$350,12,FALSE)/VLOOKUP($B12,'IS Calculations'!$B$2:$O$350,11,FALSE),0) -> 0 | V12: =IFERROR((U12/S12)-1,0) -> -1.0 | X12: =IFERROR(IF(OR($C12>=0.8,$C12+$P12>=0.8),0,(0.8-$C12-$P12)/$Y12),"") -> 70% | Y12: =IFERROR(VLOOKUP($B12,'IS Calculations'!$B:$R,16,FALSE),0) -> 68% | Z12: =IFERROR($X12*VLOOKUP($B12,'IS Calculations'!$B$2:$K$350,7,FALSE),0) -> 88,804 | AA12: =Z12*IFERROR(VLOOKUP($B12,'IS Calculations'!$B$2:$K$350,4,FALSE),0)*AA$4 -> 1,727 | AB12: =AA12*IFERROR(VLOOKUP($B12,'IS Calculations'!$B$2:$K$350,5,FALSE),0)*AB$4 -> 891 | AC12: =$AA12*IFERROR(VLOOKUP($B12,'IS Calculations'!$B$2:$O$350,MATCH($AC$3,'IS Calculations'!$B$1:$O$1,0),FALSE),0)*AC$4 -> 0 | AD12: =AC12*IFERROR(VLOOKUP($B12,'IS Calculations'!$B$2:$O$350,12,FALSE)/VLOOKUP($B12,'IS Calculations'!$B$2:$O$350,11,FALSE),0) -> 0 | AE12: =IFERROR((AD12/AB12)-1,0) -> -1.0
A13: 3 | B13: =IFERROR(VLOOKUP($A13,'IS Calculations'!$A$2:$B$350,2,FALSE),0) -> 0 | C13: =IFERROR(VLOOKUP($B13,'IS Calculations'!$B:$P,15,FALSE),0) -> 0% | D13: 0 | E13: 0 | F13: 0.00% | G13: 0.00 | H13: 0 | I13: 0 | J13: =IFERROR(I13/E13,0) -> 0% | K13: =IFERROR(H13/I13,0) -> 0 | L13: 0 | M13: 0.0 | O13: 100% | P13: =IFERROR(VLOOKUP($B13,'IS Calculations'!$B:$R,17,FALSE),0) -> 0% | Q13: =IFERROR($O13*VLOOKUP($B13,'IS Calculations'!$B$2:$K$350,8,FALSE),0) -> 0 | R13: =Q13*IFERROR(VLOOKUP($B13,'IS Calculations'!$B$2:$K$350,MATCH($R$3,'IS Calculations'!$B$1:$O$1,0),FALSE),0)*R$4 -> 0 | S13: =R13*IFERROR(VLOOKUP($B13,'IS Calculations'!$B$2:$K$350,MATCH($S$3,'IS Calculations'!$B$1:$O$1,0),FALSE),0)*S$4 -> 0 | T13: =$R13*IFERROR(VLOOKUP($B13,'IS Calculations'!$B$2:$O$350,MATCH($T$3,'IS Calculations'!$B$1:$O$1,0),FALSE),0)*T$4 -> 0 | U13: =T13*IFERROR(VLOOKUP($B13,'IS Calculations'!$B$2:$O$350,12,FALSE)/VLOOKUP($B13,'IS Calculations'!$B$2:$O$350,11,FALSE),0) -> 0 | V13: 0.0 | X13: 80% | Y13: =IFERROR(VLOOKUP($B13,'IS Calculations'!$B:$R,16,FALSE),0) -> 100% | Z13: =IFERROR($X13*VLOOKUP($B13,'IS Calculations'!$B$2:$K$350,7,FALSE),0) -> 0 | AA13: =Z13*IFERROR(VLOOKUP($B13,'IS Calculations'!$B$2:$K$350,4,FALSE),0)*AA$4 -> 0 | AB13: =AA13*IFERROR(VLOOKUP($B13,'IS Calculations'!$B$2:$K$350,5,FALSE),0)*AB$4 -> 0 | AC13: =$AA13*IFERROR(VLOOKUP($B13,'IS Calculations'!$B$2:$O$350,MATCH($AC$3,'IS Calculations'!$B$1:$O$1,0),FALSE),0)*AC$4 -> 0 | AD13: =AC13*IFERROR(VLOOKUP($B13,'IS Calculations'!$B$2:$O$350,12,FALSE)/VLOOKUP($B13,'IS Calculations'!$B$2:$O$350,11,FALSE),0) -> 0 | AE13: 0.0
A14: 4 | B14: =IFERROR(VLOOKUP($A14,'IS Calculations'!$A$2:$B$350,2,FALSE),0) -> 0 | C14: =IFERROR(VLOOKUP($B14,'IS Calculations'!$B:$P,15,FALSE),0) -> 0% | D14: 0 | E14: 0 | F14: 0.00% | G14: 0.00 | H14: 0 | I14: 0 | J14: =IFERROR(I14/E14,0) -> 0% | K14: 0 | L14: 0 | M14: 0.0 | O14: 100% | P14: =IFERROR(VLOOKUP($B14,'IS Calculations'!$B:$R,17,FALSE),0) -> 0% | Q14: =IFERROR($O14*VLOOKUP($B14,'IS Calculations'!$B$2:$K$350,8,FALSE),0) -> 0 | R14: =Q14*IFERROR(VLOOKUP($B14,'IS Calculations'!$B$2:$K$350,MATCH($R$3,'IS Calculations'!$B$1:$O$1,0),FALSE),0)*R$4 -> 0 | S14: =R14*IFERROR(VLOOKUP($B14,'IS Calculations'!$B$2:$K$350,MATCH($S$3,'IS Calculations'!$B$1:$O$1,0),FALSE),0)*S$4 -> 0 | T14: =$R14*IFERROR(VLOOKUP($B14,'IS Calculations'!$B$2:$O$350,MATCH($T$3,'IS Calculations'!$B$1:$O$1,0),FALSE),0)*T$4 -> 0 | U14: =T14*IFERROR(VLOOKUP($B14,'IS Calculations'!$B$2:$O$350,12,FALSE)/VLOOKUP($B14,'IS Calculations'!$B$2:$O$350,11,FALSE),0) -> 0 | V14: 0.0 | X14: 80% | Y14: =IFERROR(VLOOKUP($B14,'IS Calculations'!$B:$R,16,FALSE),0) -> 100% | Z14: =IFERROR($X14*VLOOKUP($B14,'IS Calculations'!$B$2:$K$350,7,FALSE),0) -> 0 | AA14: =Z14*IFERROR(VLOOKUP($B14,'IS Calculations'!$B$2:$K$350,4,FALSE),0)*AA$4 -> 0 | AB14: =AA14*IFERROR(VLOOKUP($B14,'IS Calculations'!$B$2:$K$350,5,FALSE),0)*AB$4 -> 0 | AC14: =$AA14*IFERROR(VLOOKUP($B14,'IS Calculations'!$B$2:$O$350,MATCH($AC$3,'IS Calculations'!$B$1:$O$1,0),FALSE),0)*AC$4 -> 0 | AD14: =AC14*IFERROR(VLOOKUP($B14,'IS Calculations'!$B$2:$O$350,12,FALSE)/VLOOKUP($B14,'IS Calculations'!$B$2:$O$350,11,FALSE),0) -> 0 | AE14: 0.0
A15: 5 | B15: =IFERROR(VLOOKUP($A15,'IS Calculations'!$A$2:$B$350,2,FALSE),0) -> 0 | C15: =IFERROR(VLOOKUP($B15,'IS Calculations'!$B:$P,15,FALSE),0) -> 0% | D15: 0 | E15: 0 | F15: 0.00% | G15: 0.00 | H15: 0 | I15: 0 | J15: =IFERROR(I15/E15,0) -> 0% | K15: 0 | L15: 0 | M15: 0.0 | O15: 100% | P15: =IFERROR(VLOOKUP($B15,'IS Calculations'!$B:$R,17,FALSE),0) -> 0% | Q15: =IFERROR($O15*VLOOKUP($B15,'IS Calculations'!$B$2:$K$350,8,FALSE),0) -> 0 | R15: =Q15*IFERROR(VLOOKUP($B15,'IS Calculations'!$B$2:$K$350,MATCH($R$3,'IS Calculations'!$B$1:$O$1,0),FALSE),0)*R$4 -> 0 | S15: =R15*IFERROR(VLOOKUP($B15,'IS Calculations'!$B$2:$K$350,MATCH($S$3,'IS Calculations'!$B$1:$O$1,0),FALSE),0)*S$4 -> 0 | T15: =$R15*IFERROR(VLOOKUP($B15,'IS Calculations'!$B$2:$O$350,MATCH($T$3,'IS Calculations'!$B$1:$O$1,0),FALSE),0)*T$4 -> 0 | U15: =T15*IFERROR(VLOOKUP($B15,'IS Calculations'!$B$2:$O$350,12,FALSE)/VLOOKUP($B15,'IS Calculations'!$B$2:$O$350,11,FALSE),0) -> 0 | V15: 0.0 | X15: 80% | Y15: =IFERROR(VLOOKUP($B15,'IS Calculations'!$B:$R,16,FALSE),0) -> 100% | Z15: =IFERROR($X15*VLOOKUP($B15,'IS Calculations'!$B$2:$K$350,7,FALSE),0) -> 0 | AA15: =Z15*IFERROR(VLOOKUP($B15,'IS Calculations'!$B$2:$K$350,4,FALSE),0)*AA$4 -> 0 | AB15: =AA15*IFERROR(VLOOKUP($B15,'IS Calculations'!$B$2:$K$350,5,FALSE),0)*AB$4 -> 0 | AC15: =$AA15*IFERROR(VLOOKUP($B15,'IS Calculations'!$B$2:$O$350,MATCH($AC$3,'IS Calculations'!$B$1:$O$1,0),FALSE),0)*AC$4 -> 0 | AD15: =AC15*IFERROR(VLOOKUP($B15,'IS Calculations'!$B$2:$O$350,12,FALSE)/VLOOKUP($B15,'IS Calculations'!$B$2:$O$350,11,FALSE),0) -> 0 | AE15: 0.0
A16: 6 | B16: =IFERROR(VLOOKUP($A16,'IS Calculations'!$A$2:$B$350,2,FALSE),0) -> 0 | C16: =IFERROR(VLOOKUP($B16,'IS Calculations'!$B:$P,15,FALSE),0) -> 0% | D16: 0 | E16: 0 | F16: 0.00% | G16: 0.00 | H16: 0 | I16: 0 | J16: 0% | K16: 0 | L16: 0 | M16: 0.0 | O16: 100% | P16: =IFERROR(VLOOKUP($B16,'IS Calculations'!$B:$R,17,FALSE),0) -> 0% | Q16: =IFERROR($O16*VLOOKUP($B16,'IS Calculations'!$B$2:$K$350,8,FALSE),0) -> 0 | R16: =Q16*IFERROR(VLOOKUP($B16,'IS Calculations'!$B$2:$K$350,MATCH($R$3,'IS Calculations'!$B$1:$O$1,0),FALSE),0)*R$4 -> 0 | S16: =R16*IFERROR(VLOOKUP($B16,'IS Calculations'!$B$2:$K$350,MATCH($S$3,'IS Calculations'!$B$1:$O$1,0),FALSE),0)*S$4 -> 0 | T16: =$R16*IFERROR(VLOOKUP($B16,'IS Calculations'!$B$2:$O$350,MATCH($T$3,'IS Calculations'!$B$1:$O$1,0),FALSE),0)*T$4 -> 0 | U16: =T16*IFERROR(VLOOKUP($B16,'IS Calculations'!$B$2:$O$350,12,FALSE)/VLOOKUP($B16,'IS Calculations'!$B$2:$O$350,11,FALSE),0) -> 0 | V16: 0.0 | X16: 80% | Y16: =IFERROR(VLOOKUP($B16,'IS Calculations'!$B:$R,16,FALSE),0) -> 100% | Z16: =IFERROR($X16*VLOOKUP($B16,'IS Calculations'!$B$2:$K$350,7,FALSE),0) -> 0 | AA16: =Z16*IFERROR(VLOOKUP($B16,'IS Calculations'!$B$2:$K$350,4,FALSE),0)*AA$4 -> 0 | AB16: =AA16*IFERROR(VLOOKUP($B16,'IS Calculations'!$B$2:$K$350,5,FALSE),0)*AB$4 -> 0 | AC16: =$AA16*IFERROR(VLOOKUP($B16,'IS Calculations'!$B$2:$O$350,MATCH($AC$3,'IS Calculations'!$B$1:$O$1,0),FALSE),0)*AC$4 -> 0 | AD16: =AC16*IFERROR(VLOOKUP($B16,'IS Calculations'!$B$2:$O$350,12,FALSE)/VLOOKUP($B16,'IS Calculations'!$B$2:$O$350,11,FALSE),0) -> 0 | AE16: 0.0
A17: 7 | B17: =IFERROR(VLOOKUP($A17,'IS Calculations'!$A$2:$B$350,2,FALSE),0) -> 0 | C17: =IFERROR(VLOOKUP($B17,'IS Calculations'!$B:$P,15,FALSE),0) -> 0% | D17: 0 | E17: 0 | F17: 0.00% | G17: 0.00 | H17: 0 | I17: 0 | J17: 0% | K17: 0 | L17: 0 | M17: 0.0 | O17: 100% | P17: =IFERROR(VLOOKUP($B17,'IS Calculations'!$B:$R,17,FALSE),0) -> 0% | Q17: =IFERROR($O17*VLOOKUP($B17,'IS Calculations'!$B$2:$K$350,8,FALSE),0) -> 0 | R17: =Q17*IFERROR(VLOOKUP($B17,'IS Calculations'!$B$2:$K$350,MATCH($R$3,'IS Calculations'!$B$1:$O$1,0),FALSE),0)*R$4 -> 0 | S17: =R17*IFERROR(VLOOKUP($B17,'IS Calculations'!$B$2:$K$350,MATCH($S$3,'IS Calculations'!$B$1:$O$1,0),FALSE),0)*S$4 -> 0 | T17: =$R17*IFERROR(VLOOKUP($B17,'IS Calculations'!$B$2:$O$350,MATCH($T$3,'IS Calculations'!$B$1:$O$1,0),FALSE),0)*T$4 -> 0 | U17: =T17*IFERROR(VLOOKUP($B17,'IS Calculations'!$B$2:$O$350,12,FALSE)/VLOOKUP($B17,'IS Calculations'!$B$2:$O$350,11,FALSE),0) -> 0 | V17: 0.0 | X17: 80% | Y17: =IFERROR(VLOOKUP($B17,'IS Calculations'!$B:$R,16,FALSE),0) -> 100% | Z17: =IFERROR($X17*VLOOKUP($B17,'IS Calculations'!$B$2:$K$350,7,FALSE),0) -> 0 | AA17: =Z17*IFERROR(VLOOKUP($B17,'IS Calculations'!$B$2:$K$350,4,FALSE),0)*AA$4 -> 0 | AB17: =AA17*IFERROR(VLOOKUP($B17,'IS Calculations'!$B$2:$K$350,5,FALSE),0)*AB$4 -> 0 | AC17: =$AA17*IFERROR(VLOOKUP($B17,'IS Calculations'!$B$2:$O$350,MATCH($AC$3,'IS Calculations'!$B$1:$O$1,0),FALSE),0)*AC$4 -> 0 | AD17: =AC17*IFERROR(VLOOKUP($B17,'IS Calculations'!$B$2:$O$350,12,FALSE)/VLOOKUP($B17,'IS Calculations'!$B$2:$O$350,11,FALSE),0) -> 0 | AE17: 0.0
A18: 8 | B18: =IFERROR(VLOOKUP($A18,'IS Calculations'!$A$2:$B$350,2,FALSE),0) -> 0 | C18: =IFERROR(VLOOKUP($B18,'IS Calculations'!$B:$P,15,FALSE),0) -> 0% | D18: 0 | E18: 0 | F18: 0.00% | G18: 0.00 | H18: 0 | I18: 0 | J18: 0% | K18: 0 | L18: 0 | M18: 0.0 | O18: 100% | P18: =IFERROR(VLOOKUP($B18,'IS Calculations'!$B:$R,17,FALSE),0) -> 0% | Q18: =IFERROR($O18*VLOOKUP($B18,'IS Calculations'!$B$2:$K$350,8,FALSE),0) -> 0 | R18: =Q18*IFERROR(VLOOKUP($B18,'IS Calculations'!$B$2:$K$350,MATCH($R$3,'IS Calculations'!$B$1:$O$1,0),FALSE),0)*R$4 -> 0 | S18: =R18*IFERROR(VLOOKUP($B18,'IS Calculations'!$B$2:$K$350,MATCH($S$3,'IS Calculations'!$B$1:$O$1,0),FALSE),0)*S$4 -> 0 | T18: =$R18*IFERROR(VLOOKUP($B18,'IS Calculations'!$B$2:$O$350,MATCH($T$3,'IS Calculations'!$B$1:$O$1,0),FALSE),0)*T$4 -> 0 | U18: =T18*IFERROR(VLOOKUP($B18,'IS Calculations'!$B$2:$O$350,12,FALSE)/VLOOKUP($B18,'IS Calculations'!$B$2:$O$350,11,FALSE),0) -> 0 | V18: 0.0 | X18: 80% | Y18: =IFERROR(VLOOKUP($B18,'IS Calculations'!$B:$R,16,FALSE),0) -> 100% | Z18: =IFERROR($X18*VLOOKUP($B18,'IS Calculations'!$B$2:$K$350,7,FALSE),0) -> 0 | AA18: =Z18*IFERROR(VLOOKUP($B18,'IS Calculations'!$B$2:$K$350,4,FALSE),0)*AA$4 -> 0 | AB18: =AA18*IFERROR(VLOOKUP($B18,'IS Calculations'!$B$2:$K$350,5,FALSE),0)*AB$4 -> 0 | AC18: =$AA18*IFERROR(VLOOKUP($B18,'IS Calculations'!$B$2:$O$350,MATCH($AC$3,'IS Calculations'!$B$1:$O$1,0),FALSE),0)*AC$4 -> 0 | AD18: =AC18*IFERROR(VLOOKUP($B18,'IS Calculations'!$B$2:$O$350,12,FALSE)/VLOOKUP($B18,'IS Calculations'!$B$2:$O$350,11,FALSE),0) -> 0 | AE18: 0.0
A19: 9 | B19: =IFERROR(VLOOKUP($A19,'IS Calculations'!$A$2:$B$350,2,FALSE),0) -> 0 | C19: =IFERROR(VLOOKUP($B19,'IS Calculations'!$B:$P,15,FALSE),0) -> 0% | D19: 0 | E19: 0 | F19: 0.00% | G19: 0.00 | H19: 0 | I19: 0 | J19: 0% | K19: 0 | L19: 0 | M19: 0.0 | O19: 100% | P19: =IFERROR(VLOOKUP($B19,'IS Calculations'!$B:$R,17,FALSE),0) -> 0% | Q19: =IFERROR($O19*VLOOKUP($B19,'IS Calculations'!$B$2:$K$350,8,FALSE),0) -> 0 | R19: =Q19*IFERROR(VLOOKUP($B19,'IS Calculations'!$B$2:$K$350,MATCH($R$3,'IS Calculations'!$B$1:$O$1,0),FALSE),0)*R$4 -> 0 | S19: =R19*IFERROR(VLOOKUP($B19,'IS Calculations'!$B$2:$K$350,MATCH($S$3,'IS Calculations'!$B$1:$O$1,0),FALSE),0)*S$4 -> 0 | T19: =$R19*IFERROR(VLOOKUP($B19,'IS Calculations'!$B$2:$O$350,MATCH($T$3,'IS Calculations'!$B$1:$O$1,0),FALSE),0)*T$4 -> 0 | U19: =T19*IFERROR(VLOOKUP($B19,'IS Calculations'!$B$2:$O$350,12,FALSE)/VLOOKUP($B19,'IS Calculations'!$B$2:$O$350,11,FALSE),0) -> 0 | V19: 0.0 | X19: 80% | Y19: =IFERROR(VLOOKUP($B19,'IS Calculations'!$B:$R,16,FALSE),0) -> 100% | Z19: =IFERROR($X19*VLOOKUP($B19,'IS Calculations'!$B$2:$K$350,7,FALSE),0) -> 0 | AA19: =Z19*IFERROR(VLOOKUP($B19,'IS Calculations'!$B$2:$K$350,4,FALSE),0)*AA$4 -> 0 | AB19: =AA19*IFERROR(VLOOKUP($B19,'IS Calculations'!$B$2:$K$350,5,FALSE),0)*AB$4 -> 0 | AC19: =$AA19*IFERROR(VLOOKUP($B19,'IS Calculations'!$B$2:$O$350,MATCH($AC$3,'IS Calculations'!$B$1:$O$1,0),FALSE),0)*AC$4 -> 0 | AD19: =AC19*IFERROR(VLOOKUP($B19,'IS Calculations'!$B$2:$O$350,12,FALSE)/VLOOKUP($B19,'IS Calculations'!$B$2:$O$350,11,FALSE),0) -> 0 | AE19: 0.0
A20: 10 | B20: =IFERROR(VLOOKUP($A20,'IS Calculations'!$A$2:$B$350,2,FALSE),0) -> 0 | C20: =IFERROR(VLOOKUP($B20,'IS Calculations'!$B:$P,15,FALSE),0) -> 0% | D20: 0 | E20: 0 | F20: 0.00% | G20: 0.00 | H20: 0 | I20: 0 | J20: 0% | K20: 0 | L20: 0 | M20: 0.0 | O20: 100% | P20: =IFERROR(VLOOKUP($B20,'IS Calculations'!$B:$R,17,FALSE),0) -> 0% | Q20: =IFERROR($O20*VLOOKUP($B20,'IS Calculations'!$B$2:$K$350,8,FALSE),0) -> 0 | R20: =Q20*IFERROR(VLOOKUP($B20,'IS Calculations'!$B$2:$K$350,MATCH($R$3,'IS Calculations'!$B$1:$O$1,0),FALSE),0)*R$4 -> 0 | S20: =R20*IFERROR(VLOOKUP($B20,'IS Calculations'!$B$2:$K$350,MATCH($S$3,'IS Calculations'!$B$1:$O$1,0),FALSE),0)*S$4 -> 0 | T20: =$R20*IFERROR(VLOOKUP($B20,'IS Calculations'!$B$2:$O$350,MATCH($T$3,'IS Calculations'!$B$1:$O$1,0),FALSE),0)*T$4 -> 0 | U20: =T20*IFERROR(VLOOKUP($B20,'IS Calculations'!$B$2:$O$350,12,FALSE)/VLOOKUP($B20,'IS Calculations'!$B$2:$O$350,11,FALSE),0) -> 0 | V20: 0.0 | X20: 80% | Y20: =IFERROR(VLOOKUP($B20,'IS Calculations'!$B:$R,16,FALSE),0) -> 100% | Z20: =IFERROR($X20*VLOOKUP($B20,'IS Calculations'!$B$2:$K$350,7,FALSE),0) -> 0 | AA20: =Z20*IFERROR(VLOOKUP($B20,'IS Calculations'!$B$2:$K$350,4,FALSE),0)*AA$4 -> 0 | AB20: =AA20*IFERROR(VLOOKUP($B20,'IS Calculations'!$B$2:$K$350,5,FALSE),0)*AB$4 -> 0 | AC20: =$AA20*IFERROR(VLOOKUP($B20,'IS Calculations'!$B$2:$O$350,MATCH($AC$3,'IS Calculations'!$B$1:$O$1,0),FALSE),0)*AC$4 -> 0 | AD20: =AC20*IFERROR(VLOOKUP($B20,'IS Calculations'!$B$2:$O$350,12,FALSE)/VLOOKUP($B20,'IS Calculations'!$B$2:$O$350,11,FALSE),0) -> 0 | AE20: 0.0
A21: 11 | B21: =IFERROR(VLOOKUP($A21,'IS Calculations'!$A$2:$B$350,2,FALSE),0) -> 0 | C21: =IFERROR(VLOOKUP($B21,'IS Calculations'!$B:$P,15,FALSE),0) -> 0% | D21: 0 | E21: 0 | F21: 0.00% | G21: 0.00 | H21: 0 | I21: 0 | J21: 0% | K21: 0 | L21: 0 | M21: 0.0 | O21: 100% | P21: =IFERROR(VLOOKUP($B21,'IS Calculations'!$B:$R,17,FALSE),0) -> 0% | Q21: =IFERROR($O21*VLOOKUP($B21,'IS Calculations'!$B$2:$K$350,8,FALSE),0) -> 0 | R21: =Q21*IFERROR(VLOOKUP($B21,'IS Calculations'!$B$2:$K$350,MATCH($R$3,'IS Calculations'!$B$1:$O$1,0),FALSE),0)*R$4 -> 0 | S21: =R21*IFERROR(VLOOKUP($B21,'IS Calculations'!$B$2:$K$350,MATCH($S$3,'IS Calculations'!$B$1:$O$1,0),FALSE),0)*S$4 -> 0 | T21: =$R21*IFERROR(VLOOKUP($B21,'IS Calculations'!$B$2:$O$350,MATCH($T$3,'IS Calculations'!$B$1:$O$1,0),FALSE),0)*T$4 -> 0 | U21: =T21*IFERROR(VLOOKUP($B21,'IS Calculations'!$B$2:$O$350,12,FALSE)/VLOOKUP($B21,'IS Calculations'!$B$2:$O$350,11,FALSE),0) -> 0 | V21: 0.0 | X21: 80% | Y21: =IFERROR(VLOOKUP($B21,'IS Calculations'!$B:$R,16,FALSE),0) -> 100% | Z21: =IFERROR($X21*VLOOKUP($B21,'IS Calculations'!$B$2:$K$350,7,FALSE),0) -> 0 | AA21: =Z21*IFERROR(VLOOKUP($B21,'IS Calculations'!$B$2:$K$350,4,FALSE),0)*AA$4 -> 0 | AB21: =AA21*IFERROR(VLOOKUP($B21,'IS Calculations'!$B$2:$K$350,5,FALSE),0)*AB$4 -> 0 | AC21: =$AA21*IFERROR(VLOOKUP($B21,'IS Calculations'!$B$2:$O$350,MATCH($AC$3,'IS Calculations'!$B$1:$O$1,0),FALSE),0)*AC$4 -> 0 | AD21: =AC21*IFERROR(VLOOKUP($B21,'IS Calculations'!$B$2:$O$350,12,FALSE)/VLOOKUP($B21,'IS Calculations'!$B$2:$O$350,11,FALSE),0) -> 0 | AE21: 0.0
A22: 12 | B22: =IFERROR(VLOOKUP($A22,'IS Calculations'!$A$2:$B$350,2,FALSE),0) -> 0 | C22: =IFERROR(VLOOKUP($B22,'IS Calculations'!$B:$P,15,FALSE),0) -> 0% | D22: 0 | E22: 0 | F22: 0.00% | G22: 0.00 | H22: 0 | I22: 0 | J22: 0% | K22: 0 | L22: 0 | M22: 0.0 | O22: 100% | P22: =IFERROR(VLOOKUP($B22,'IS Calculations'!$B:$R,17,FALSE),0) -> 0% | Q22: =IFERROR($O22*VLOOKUP($B22,'IS Calculations'!$B$2:$K$350,8,FALSE),0) -> 0 | R22: =Q22*IFERROR(VLOOKUP($B22,'IS Calculations'!$B$2:$K$350,MATCH($R$3,'IS Calculations'!$B$1:$O$1,0),FALSE),0)*R$4 -> 0 | S22: =R22*IFERROR(VLOOKUP($B22,'IS Calculations'!$B$2:$K$350,MATCH($S$3,'IS Calculations'!$B$1:$O$1,0),FALSE),0)*S$4 -> 0 | T22: =$R22*IFERROR(VLOOKUP($B22,'IS Calculations'!$B$2:$O$350,MATCH($T$3,'IS Calculations'!$B$1:$O$1,0),FALSE),0)*T$4 -> 0 | U22: =T22*IFERROR(VLOOKUP($B22,'IS Calculations'!$B$2:$O$350,12,FALSE)/VLOOKUP($B22,'IS Calculations'!$B$2:$O$350,11,FALSE),0) -> 0 | V22: 0.0 | X22: 80% | Y22: =IFERROR(VLOOKUP($B22,'IS Calculations'!$B:$R,16,FALSE),0) -> 100% | Z22: =IFERROR($X22*VLOOKUP($B22,'IS Calculations'!$B$2:$K$350,7,FALSE),0) -> 0 | AA22: =Z22*IFERROR(VLOOKUP($B22,'IS Calculations'!$B$2:$K$350,4,FALSE),0)*AA$4 -> 0 | AB22: =AA22*IFERROR(VLOOKUP($B22,'IS Calculations'!$B$2:$K$350,5,FALSE),0)*AB$4 -> 0 | AC22: =$AA22*IFERROR(VLOOKUP($B22,'IS Calculations'!$B$2:$O$350,MATCH($AC$3,'IS Calculations'!$B$1:$O$1,0),FALSE),0)*AC$4 -> 0 | AD22: =AC22*IFERROR(VLOOKUP($B22,'IS Calculations'!$B$2:$O$350,12,FALSE)/VLOOKUP($B22,'IS Calculations'!$B$2:$O$350,11,FALSE),0) -> 0 | AE22: 0.0
A23: 13 | B23: =IFERROR(VLOOKUP($A23,'IS Calculations'!$A$2:$B$350,2,FALSE),0) -> 0 | C23: =IFERROR(VLOOKUP($B23,'IS Calculations'!$B:$P,15,FALSE),0) -> 0% | D23: 0 | E23: 0 | F23: 0.00% | G23: 0.00 | H23: 0 | I23: 0 | J23: 0% | K23: 0 | L23: 0 | M23: 0.0 | O23: 100% | P23: =IFERROR(VLOOKUP($B23,'IS Calculations'!$B:$R,17,FALSE),0) -> 0% | Q23: =IFERROR($O23*VLOOKUP($B23,'IS Calculations'!$B$2:$K$350,8,FALSE),0) -> 0 | R23: =Q23*IFERROR(VLOOKUP($B23,'IS Calculations'!$B$2:$K$350,MATCH($R$3,'IS Calculations'!$B$1:$O$1,0),FALSE),0)*R$4 -> 0 | S23: =R23*IFERROR(VLOOKUP($B23,'IS Calculations'!$B$2:$K$350,MATCH($S$3,'IS Calculations'!$B$1:$O$1,0),FALSE),0)*S$4 -> 0 | T23: =$R23*IFERROR(VLOOKUP($B23,'IS Calculations'!$B$2:$O$350,MATCH($T$3,'IS Calculations'!$B$1:$O$1,0),FALSE),0)*T$4 -> 0 | U23: =T23*IFERROR(VLOOKUP($B23,'IS Calculations'!$B$2:$O$350,12,FALSE)/VLOOKUP($B23,'IS Calculations'!$B$2:$O$350,11,FALSE),0) -> 0 | V23: 0.0 | X23: 80% | Y23: =IFERROR(VLOOKUP($B23,'IS Calculations'!$B:$R,16,FALSE),0) -> 100% | Z23: =IFERROR($X23*VLOOKUP($B23,'IS Calculations'!$B$2:$K$350,7,FALSE),0) -> 0 | AA23: =Z23*IFERROR(VLOOKUP($B23,'IS Calculations'!$B$2:$K$350,4,FALSE),0)*AA$4 -> 0 | AB23: =AA23*IFERROR(VLOOKUP($B23,'IS Calculations'!$B$2:$K$350,5,FALSE),0)*AB$4 -> 0 | AC23: =$AA23*IFERROR(VLOOKUP($B23,'IS Calculations'!$B$2:$O$350,MATCH($AC$3,'IS Calculations'!$B$1:$O$1,0),FALSE),0)*AC$4 -> 0 | AD23: =AC23*IFERROR(VLOOKUP($B23,'IS Calculations'!$B$2:$O$350,12,FALSE)/VLOOKUP($B23,'IS Calculations'!$B$2:$O$350,11,FALSE),0) -> 0 | AE23: 0.0
A24: 14 | B24: =IFERROR(VLOOKUP($A24,'IS Calculations'!$A$2:$B$350,2,FALSE),0) -> 0 | C24: =IFERROR(VLOOKUP($B24,'IS Calculations'!$B:$P,15,FALSE),0) -> 0% | D24: 0 | E24: 0 | F24: 0.00% | G24: 0.00 | H24: 0 | I24: 0 | J24: 0% | K24: 0 | L24: 0 | M24: 0.0 | O24: 100% | P24: =IFERROR(VLOOKUP($B24,'IS Calculations'!$B:$R,17,FALSE),0) -> 0% | Q24: =IFERROR($O24*VLOOKUP($B24,'IS Calculations'!$B$2:$K$350,8,FALSE),0) -> 0 | R24: =Q24*IFERROR(VLOOKUP($B24,'IS Calculations'!$B$2:$K$350,MATCH($R$3,'IS Calculations'!$B$1:$O$1,0),FALSE),0)*R$4 -> 0 | S24: =R24*IFERROR(VLOOKUP($B24,'IS Calculations'!$B$2:$K$350,MATCH($S$3,'IS Calculations'!$B$1:$O$1,0),FALSE),0)*S$4 -> 0 | T24: =$R24*IFERROR(VLOOKUP($B24,'IS Calculations'!$B$2:$O$350,MATCH($T$3,'IS Calculations'!$B$1:$O$1,0),FALSE),0)*T$4 -> 0 | U24: =T24*IFERROR(VLOOKUP($B24,'IS Calculations'!$B$2:$O$350,12,FALSE)/VLOOKUP($B24,'IS Calculations'!$B$2:$O$350,11,FALSE),0) -> 0 | V24: 0.0 | X24: 80% | Y24: =IFERROR(VLOOKUP($B24,'IS Calculations'!$B:$R,16,FALSE),0) -> 100% | Z24: =IFERROR($X24*VLOOKUP($B24,'IS Calculations'!$B$2:$K$350,7,FALSE),0) -> 0 | AA24: =Z24*IFERROR(VLOOKUP($B24,'IS Calculations'!$B$2:$K$350,4,FALSE),0)*AA$4 -> 0 | AB24: =AA24*IFERROR(VLOOKUP($B24,'IS Calculations'!$B$2:$K$350,5,FALSE),0)*AB$4 -> 0 | AC24: =$AA24*IFERROR(VLOOKUP($B24,'IS Calculations'!$B$2:$O$350,MATCH($AC$3,'IS Calculations'!$B$1:$O$1,0),FALSE),0)*AC$4 -> 0 | AD24: =AC24*IFERROR(VLOOKUP($B24,'IS Calculations'!$B$2:$O$350,12,FALSE)/VLOOKUP($B24,'IS Calculations'!$B$2:$O$350,11,FALSE),0) -> 0 | AE24: 0.0
A25: 15 | B25: =IFERROR(VLOOKUP($A25,'IS Calculations'!$A$2:$B$350,2,FALSE),0) -> 0 | C25: =IFERROR(VLOOKUP($B25,'IS Calculations'!$B:$P,15,FALSE),0) -> 0% | D25: 0 | E25: 0 | F25: 0.00% | G25: 0.00 | H25: 0 | I25: 0 | J25: 0% | K25: 0 | L25: 0 | M25: 0.0 | O25: 100% | P25: =IFERROR(VLOOKUP($B25,'IS Calculations'!$B:$R,17,FALSE),0) -> 0% | Q25: =IFERROR($O25*VLOOKUP($B25,'IS Calculations'!$B$2:$K$350,8,FALSE),0) -> 0 | R25: =Q25*IFERROR(VLOOKUP($B25,'IS Calculations'!$B$2:$K$350,MATCH($R$3,'IS Calculations'!$B$1:$O$1,0),FALSE),0)*R$4 -> 0 | S25: =R25*IFERROR(VLOOKUP($B25,'IS Calculations'!$B$2:$K$350,MATCH($S$3,'IS Calculations'!$B$1:$O$1,0),FALSE),0)*S$4 -> 0 | T25: =$R25*IFERROR(VLOOKUP($B25,'IS Calculations'!$B$2:$O$350,MATCH($T$3,'IS Calculations'!$B$1:$O$1,0),FALSE),0)*T$4 -> 0 | U25: =T25*IFERROR(VLOOKUP($B25,'IS Calculations'!$B$2:$O$350,12,FALSE)/VLOOKUP($B25,'IS Calculations'!$B$2:$O$350,11,FALSE),0) -> 0 | V25: 0.0 | X25: 80% | Y25: =IFERROR(VLOOKUP($B25,'IS Calculations'!$B:$R,16,FALSE),0) -> 100% | Z25: =IFERROR($X25*VLOOKUP($B25,'IS Calculations'!$B$2:$K$350,7,FALSE),0) -> 0 | AA25: =Z25*IFERROR(VLOOKUP($B25,'IS Calculations'!$B$2:$K$350,4,FALSE),0)*AA$4 -> 0 | AB25: =AA25*IFERROR(VLOOKUP($B25,'IS Calculations'!$B$2:$K$350,5,FALSE),0)*AB$4 -> 0 | AC25: =$AA25*IFERROR(VLOOKUP($B25,'IS Calculations'!$B$2:$O$350,MATCH($AC$3,'IS Calculations'!$B$1:$O$1,0),FALSE),0)*AC$4 -> 0 | AD25: =AC25*IFERROR(VLOOKUP($B25,'IS Calculations'!$B$2:$O$350,12,FALSE)/VLOOKUP($B25,'IS Calculations'!$B$2:$O$350,11,FALSE),0) -> 0 | AE25: 0.0
A26: 16 | B26: =IFERROR(VLOOKUP($A26,'IS Calculations'!$A$2:$B$350,2,FALSE),0) -> 0 | C26: =IFERROR(VLOOKUP($B26,'IS Calculations'!$B:$P,15,FALSE),0) -> 0% | D26: 0 | E26: 0 | F26: 0.00% | G26: 0.00 | H26: 0 | I26: 0 | J26: 0% | K26: 0 | L26: 0 | M26: 0.0 | O26: 100% | P26: =IFERROR(VLOOKUP($B26,'IS Calculations'!$B:$R,17,FALSE),0) -> 0% | Q26: =IFERROR($O26*VLOOKUP($B26,'IS Calculations'!$B$2:$K$350,8,FALSE),0) -> 0 | R26: =Q26*IFERROR(VLOOKUP($B26,'IS Calculations'!$B$2:$K$350,MATCH($R$3,'IS Calculations'!$B$1:$O$1,0),FALSE),0)*R$4 -> 0 | S26: =R26*IFERROR(VLOOKUP($B26,'IS Calculations'!$B$2:$K$350,MATCH($S$3,'IS Calculations'!$B$1:$O$1,0),FALSE),0)*S$4 -> 0 | T26: =$R26*IFERROR(VLOOKUP($B26,'IS Calculations'!$B$2:$O$350,MATCH($T$3,'IS Calculations'!$B$1:$O$1,0),FALSE),0)*T$4 -> 0 | U26: =T26*IFERROR(VLOOKUP($B26,'IS Calculations'!$B$2:$O$350,12,FALSE)/VLOOKUP($B26,'IS Calculations'!$B$2:$O$350,11,FALSE),0) -> 0 | V26: 0.0 | X26: 80% | Y26: =IFERROR(VLOOKUP($B26,'IS Calculations'!$B:$R,16,FALSE),0) -> 100% | Z26: =IFERROR($X26*VLOOKUP($B26,'IS Calculations'!$B$2:$K$350,7,FALSE),0) -> 0 | AA26: =Z26*IFERROR(VLOOKUP($B26,'IS Calculations'!$B$2:$K$350,4,FALSE),0)*AA$4 -> 0 | AB26: =AA26*IFERROR(VLOOKUP($B26,'IS Calculations'!$B$2:$K$350,5,FALSE),0)*AB$4 -> 0 | AC26: =$AA26*IFERROR(VLOOKUP($B26,'IS Calculations'!$B$2:$O$350,MATCH($AC$3,'IS Calculations'!$B$1:$O$1,0),FALSE),0)*AC$4 -> 0 | AD26: =AC26*IFERROR(VLOOKUP($B26,'IS Calculations'!$B$2:$O$350,12,FALSE)/VLOOKUP($B26,'IS Calculations'!$B$2:$O$350,11,FALSE),0) -> 0 | AE26: 0.0
A27: 17 | B27: =IFERROR(VLOOKUP($A27,'IS Calculations'!$A$2:$B$350,2,FALSE),0) -> 0 | C27: =IFERROR(VLOOKUP($B27,'IS Calculations'!$B:$P,15,FALSE),0) -> 0% | D27: 0 | E27: 0 | F27: 0.00% | G27: 0.00 | H27: 0 | I27: 0 | J27: 0% | K27: 0 | L27: 0 | M27: 0.0 | O27: 100% | P27: =IFERROR(VLOOKUP($B27,'IS Calculations'!$B:$R,17,FALSE),0) -> 0% | Q27: =IFERROR($O27*VLOOKUP($B27,'IS Calculations'!$B$2:$K$350,8,FALSE),0) -> 0 | R27: =Q27*IFERROR(VLOOKUP($B27,'IS Calculations'!$B$2:$K$350,MATCH($R$3,'IS Calculations'!$B$1:$O$1,0),FALSE),0)*R$4 -> 0 | S27: =R27*IFERROR(VLOOKUP($B27,'IS Calculations'!$B$2:$K$350,MATCH($S$3,'IS Calculations'!$B$1:$O$1,0),FALSE),0)*S$4 -> 0 | T27: =$R27*IFERROR(VLOOKUP($B27,'IS Calculations'!$B$2:$O$350,MATCH($T$3,'IS Calculations'!$B$1:$O$1,0),FALSE),0)*T$4 -> 0 | U27: =T27*IFERROR(VLOOKUP($B27,'IS Calculations'!$B$2:$O$350,12,FALSE)/VLOOKUP($B27,'IS Calculations'!$B$2:$O$350,11,FALSE),0) -> 0 | V27: 0.0 | X27: 80% | Y27: =IFERROR(VLOOKUP($B27,'IS Calculations'!$B:$R,16,FALSE),0) -> 100% | Z27: =IFERROR($X27*VLOOKUP($B27,'IS Calculations'!$B$2:$K$350,7,FALSE),0) -> 0 | AA27: =Z27*IFERROR(VLOOKUP($B27,'IS Calculations'!$B$2:$K$350,4,FALSE),0)*AA$4 -> 0 | AB27: =AA27*IFERROR(VLOOKUP($B27,'IS Calculations'!$B$2:$K$350,5,FALSE),0)*AB$4 -> 0 | AC27: =$AA27*IFERROR(VLOOKUP($B27,'IS Calculations'!$B$2:$O$350,MATCH($AC$3,'IS Calculations'!$B$1:$O$1,0),FALSE),0)*AC$4 -> 0 | AD27: =AC27*IFERROR(VLOOKUP($B27,'IS Calculations'!$B$2:$O$350,12,FALSE)/VLOOKUP($B27,'IS Calculations'!$B$2:$O$350,11,FALSE),0) -> 0 | AE27: 0.0
A28: 18 | B28: =IFERROR(VLOOKUP($A28,'IS Calculations'!$A$2:$B$350,2,FALSE),0) -> 0 | C28: =IFERROR(VLOOKUP($B28,'IS Calculations'!$B:$P,15,FALSE),0) -> 0% | D28: 0 | E28: 0 | F28: 0.00% | G28: 0.00 | H28: 0 | I28: 0 | J28: 0% | K28: 0 | L28: 0 | M28: 0.0 | O28: 100% | P28: =IFERROR(VLOOKUP($B28,'IS Calculations'!$B:$R,17,FALSE),0) -> 0% | Q28: =IFERROR($O28*VLOOKUP($B28,'IS Calculations'!$B$2:$K$350,8,FALSE),0) -> 0 | R28: =Q28*IFERROR(VLOOKUP($B28,'IS Calculations'!$B$2:$K$350,MATCH($R$3,'IS Calculations'!$B$1:$O$1,0),FALSE),0)*R$4 -> 0 | S28: =R28*IFERROR(VLOOKUP($B28,'IS Calculations'!$B$2:$K$350,MATCH($S$3,'IS Calculations'!$B$1:$O$1,0),FALSE),0)*S$4 -> 0 | T28: =$R28*IFERROR(VLOOKUP($B28,'IS Calculations'!$B$2:$O$350,MATCH($T$3,'IS Calculations'!$B$1:$O$1,0),FALSE),0)*T$4 -> 0 | U28: =T28*IFERROR(VLOOKUP($B28,'IS Calculations'!$B$2:$O$350,12,FALSE)/VLOOKUP($B28,'IS Calculations'!$B$2:$O$350,11,FALSE),0) -> 0 | V28: 0.0 | X28: 80% | Y28: =IFERROR(VLOOKUP($B28,'IS Calculations'!$B:$R,16,FALSE),0) -> 100% | Z28: =IFERROR($X28*VLOOKUP($B28,'IS Calculations'!$B$2:$K$350,7,FALSE),0) -> 0 | AA28: =Z28*IFERROR(VLOOKUP($B28,'IS Calculations'!$B$2:$K$350,4,FALSE),0)*AA$4 -> 0 | AB28: =AA28*IFERROR(VLOOKUP($B28,'IS Calculations'!$B$2:$K$350,5,FALSE),0)*AB$4 -> 0 | AC28: =$AA28*IFERROR(VLOOKUP($B28,'IS Calculations'!$B$2:$O$350,MATCH($AC$3,'IS Calculations'!$B$1:$O$1,0),FALSE),0)*AC$4 -> 0 | AD28: =AC28*IFERROR(VLOOKUP($B28,'IS Calculations'!$B$2:$O$350,12,FALSE)/VLOOKUP($B28,'IS Calculations'!$B$2:$O$350,11,FALSE),0) -> 0 | AE28: 0.0
A29: 19 | B29: =IFERROR(VLOOKUP($A29,'IS Calculations'!$A$2:$B$350,2,FALSE),0) -> 0 | C29: =IFERROR(VLOOKUP($B29,'IS Calculations'!$B:$P,15,FALSE),0) -> 0% | D29: 0 | E29: 0 | F29: 0.00% | G29: 0.00 | H29: 0 | I29: 0 | J29: 0% | K29: 0 | L29: 0 | M29: 0.0 | O29: 100% | P29: =IFERROR(VLOOKUP($B29,'IS Calculations'!$B:$R,17,FALSE),0) -> 0% | Q29: =IFERROR($O29*VLOOKUP($B29,'IS Calculations'!$B$2:$K$350,8,FALSE),0) -> 0 | R29: =Q29*IFERROR(VLOOKUP($B29,'IS Calculations'!$B$2:$K$350,MATCH($R$3,'IS Calculations'!$B$1:$O$1,0),FALSE),0)*R$4 -> 0 | S29: =R29*IFERROR(VLOOKUP($B29,'IS Calculations'!$B$2:$K$350,MATCH($S$3,'IS Calculations'!$B$1:$O$1,0),FALSE),0)*S$4 -> 0 | T29: =$R29*IFERROR(VLOOKUP($B29,'IS Calculations'!$B$2:$O$350,MATCH($T$3,'IS Calculations'!$B$1:$O$1,0),FALSE),0)*T$4 -> 0 | U29: =T29*IFERROR(VLOOKUP($B29,'IS Calculations'!$B$2:$O$350,12,FALSE)/VLOOKUP($B29,'IS Calculations'!$B$2:$O$350,11,FALSE),0) -> 0 | V29: 0.0 | X29: 80% | Y29: =IFERROR(VLOOKUP($B29,'IS Calculations'!$B:$R,16,FALSE),0) -> 100% | Z29: =IFERROR($X29*VLOOKUP($B29,'IS Calculations'!$B$2:$K$350,7,FALSE),0) -> 0 | AA29: =Z29*IFERROR(VLOOKUP($B29,'IS Calculations'!$B$2:$K$350,4,FALSE),0)*AA$4 -> 0 | AB29: =AA29*IFERROR(VLOOKUP($B29,'IS Calculations'!$B$2:$K$350,5,FALSE),0)*AB$4 -> 0 | AC29: =$AA29*IFERROR(VLOOKUP($B29,'IS Calculations'!$B$2:$O$350,MATCH($AC$3,'IS Calculations'!$B$1:$O$1,0),FALSE),0)*AC$4 -> 0 | AD29: =AC29*IFERROR(VLOOKUP($B29,'IS Calculations'!$B$2:$O$350,12,FALSE)/VLOOKUP($B29,'IS Calculations'!$B$2:$O$350,11,FALSE),0) -> 0 | AE29: 0.0
A30: 20 | B30: =IFERROR(VLOOKUP($A30,'IS Calculations'!$A$2:$B$350,2,FALSE),0) -> 0 | C30: =IFERROR(VLOOKUP($B30,'IS Calculations'!$B:$P,15,FALSE),0) -> 0% | D30: 0 | E30: 0 | F30: 0.00% | G30: 0.00 | H30: 0 | I30: 0 | J30: 0% | K30: 0 | L30: 0 | M30: 0.0 | O30: 100% | P30: =IFERROR(VLOOKUP($B30,'IS Calculations'!$B:$R,17,FALSE),0) -> 0% | Q30: =IFERROR($O30*VLOOKUP($B30,'IS Calculations'!$B$2:$K$350,8,FALSE),0) -> 0 | R30: =Q30*IFERROR(VLOOKUP($B30,'IS Calculations'!$B$2:$K$350,MATCH($R$3,'IS Calculations'!$B$1:$O$1,0),FALSE),0)*R$4 -> 0 | S30: =R30*IFERROR(VLOOKUP($B30,'IS Calculations'!$B$2:$K$350,MATCH($S$3,'IS Calculations'!$B$1:$O$1,0),FALSE),0)*S$4 -> 0 | T30: =$R30*IFERROR(VLOOKUP($B30,'IS Calculations'!$B$2:$O$350,MATCH($T$3,'IS Calculations'!$B$1:$O$1,0),FALSE),0)*T$4 -> 0 | U30: =T30*IFERROR(VLOOKUP($B30,'IS Calculations'!$B$2:$O$350,12,FALSE)/VLOOKUP($B30,'IS Calculations'!$B$2:$O$350,11,FALSE),0) -> 0 | V30: 0.0 | X30: 80% | Y30: =IFERROR(VLOOKUP($B30,'IS Calculations'!$B:$R,16,FALSE),0) -> 100% | Z30: =IFERROR($X30*VLOOKUP($B30,'IS Calculations'!$B$2:$K$350,7,FALSE),0) -> 0 | AA30: =Z30*IFERROR(VLOOKUP($B30,'IS Calculations'!$B$2:$K$350,4,FALSE),0)*AA$4 -> 0 | AB30: =AA30*IFERROR(VLOOKUP($B30,'IS Calculations'!$B$2:$K$350,5,FALSE),0)*AB$4 -> 0 | AC30: =$AA30*IFERROR(VLOOKUP($B30,'IS Calculations'!$B$2:$O$350,MATCH($AC$3,'IS Calculations'!$B$1:$O$1,0),FALSE),0)*AC$4 -> 0 | AD30: =AC30*IFERROR(VLOOKUP($B30,'IS Calculations'!$B$2:$O$350,12,FALSE)/VLOOKUP($B30,'IS Calculations'!$B$2:$O$350,11,FALSE),0) -> 0 | AE30: 0.0
A31: 21 | B31: =IFERROR(VLOOKUP($A31,'IS Calculations'!$A$2:$B$350,2,FALSE),0) -> 0 | C31: =IFERROR(VLOOKUP($B31,'IS Calculations'!$B:$P,15,FALSE),0) -> 0% | D31: 0 | E31: 0 | F31: 0.00% | G31: 0.00 | H31: 0 | I31: 0 | J31: 0% | K31: 0 | L31: 0 | M31: 0.0 | O31: 100% | P31: =IFERROR(VLOOKUP($B31,'IS Calculations'!$B:$R,17,FALSE),0) -> 0% | Q31: =IFERROR($O31*VLOOKUP($B31,'IS Calculations'!$B$2:$K$350,8,FALSE),0) -> 0 | R31: =Q31*IFERROR(VLOOKUP($B31,'IS Calculations'!$B$2:$K$350,MATCH($R$3,'IS Calculations'!$B$1:$O$1,0),FALSE),0)*R$4 -> 0 | S31: =R31*IFERROR(VLOOKUP($B31,'IS Calculations'!$B$2:$K$350,MATCH($S$3,'IS Calculations'!$B$1:$O$1,0),FALSE),0)*S$4 -> 0 | T31: =$R31*IFERROR(VLOOKUP($B31,'IS Calculations'!$B$2:$O$350,MATCH($T$3,'IS Calculations'!$B$1:$O$1,0),FALSE),0)*T$4 -> 0 | U31: =T31*IFERROR(VLOOKUP($B31,'IS Calculations'!$B$2:$O$350,12,FALSE)/VLOOKUP($B31,'IS Calculations'!$B$2:$O$350,11,FALSE),0) -> 0 | V31: 0.0 | X31: 80% | Y31: =IFERROR(VLOOKUP($B31,'IS Calculations'!$B:$R,16,FALSE),0) -> 100% | Z31: =IFERROR($X31*VLOOKUP($B31,'IS Calculations'!$B$2:$K$350,7,FALSE),0) -> 0 | AA31: =Z31*IFERROR(VLOOKUP($B31,'IS Calculations'!$B$2:$K$350,4,FALSE),0)*AA$4 -> 0 | AB31: =AA31*IFERROR(VLOOKUP($B31,'IS Calculations'!$B$2:$K$350,5,FALSE),0)*AB$4 -> 0 | AC31: =$AA31*IFERROR(VLOOKUP($B31,'IS Calculations'!$B$2:$O$350,MATCH($AC$3,'IS Calculations'!$B$1:$O$1,0),FALSE),0)*AC$4 -> 0 | AD31: =AC31*IFERROR(VLOOKUP($B31,'IS Calculations'!$B$2:$O$350,12,FALSE)/VLOOKUP($B31,'IS Calculations'!$B$2:$O$350,11,FALSE),0) -> 0 | AE31: 0.0
A32: 22 | B32: =IFERROR(VLOOKUP($A32,'IS Calculations'!$A$2:$B$350,2,FALSE),0) -> 0 | C32: =IFERROR(VLOOKUP($B32,'IS Calculations'!$B:$P,15,FALSE),0) -> 0% | D32: 0 | E32: 0 | F32: 0.00% | G32: 0.00 | H32: 0 | I32: 0 | J32: 0% | K32: 0 | L32: 0 | M32: 0.0 | O32: 100% | P32: =IFERROR(VLOOKUP($B32,'IS Calculations'!$B:$R,17,FALSE),0) -> 0% | Q32: =IFERROR($O32*VLOOKUP($B32,'IS Calculations'!$B$2:$K$350,8,FALSE),0) -> 0 | R32: =Q32*IFERROR(VLOOKUP($B32,'IS Calculations'!$B$2:$K$350,MATCH($R$3,'IS Calculations'!$B$1:$O$1,0),FALSE),0)*R$4 -> 0 | S32: =R32*IFERROR(VLOOKUP($B32,'IS Calculations'!$B$2:$K$350,MATCH($S$3,'IS Calculations'!$B$1:$O$1,0),FALSE),0)*S$4 -> 0 | T32: =$R32*IFERROR(VLOOKUP($B32,'IS Calculations'!$B$2:$O$350,MATCH($T$3,'IS Calculations'!$B$1:$O$1,0),FALSE),0)*T$4 -> 0 | U32: =T32*IFERROR(VLOOKUP($B32,'IS Calculations'!$B$2:$O$350,12,FALSE)/VLOOKUP($B32,'IS Calculations'!$B$2:$O$350,11,FALSE),0) -> 0 | V32: 0.0 | X32: 80% | Y32: =IFERROR(VLOOKUP($B32,'IS Calculations'!$B:$R,16,FALSE),0) -> 100% | Z32: =IFERROR($X32*VLOOKUP($B32,'IS Calculations'!$B$2:$K$350,7,FALSE),0) -> 0 | AA32: =Z32*IFERROR(VLOOKUP($B32,'IS Calculations'!$B$2:$K$350,4,FALSE),0)*AA$4 -> 0 | AB32: =AA32*IFERROR(VLOOKUP($B32,'IS Calculations'!$B$2:$K$350,5,FALSE),0)*AB$4 -> 0 | AC32: =$AA32*IFERROR(VLOOKUP($B32,'IS Calculations'!$B$2:$O$350,MATCH($AC$3,'IS Calculations'!$B$1:$O$1,0),FALSE),0)*AC$4 -> 0 | AD32: =AC32*IFERROR(VLOOKUP($B32,'IS Calculations'!$B$2:$O$350,12,FALSE)/VLOOKUP($B32,'IS Calculations'!$B$2:$O$350,11,FALSE),0) -> 0 | AE32: 0.0
A33: 23 | B33: =IFERROR(VLOOKUP($A33,'IS Calculations'!$A$2:$B$350,2,FALSE),0) -> 0 | C33: =IFERROR(VLOOKUP($B33,'IS Calculations'!$B:$P,15,FALSE),0) -> 0% | D33: 0 | E33: 0 | F33: 0.00% | G33: 0.00 | H33: 0 | I33: 0 | J33: 0% | K33: 0 | L33: 0 | M33: 0.0 | O33: 100% | P33: =IFERROR(VLOOKUP($B33,'IS Calculations'!$B:$R,17,FALSE),0) -> 0% | Q33: =IFERROR($O33*VLOOKUP($B33,'IS Calculations'!$B$2:$K$350,8,FALSE),0) -> 0 | R33: =Q33*IFERROR(VLOOKUP($B33,'IS Calculations'!$B$2:$K$350,MATCH($R$3,'IS Calculations'!$B$1:$O$1,0),FALSE),0)*R$4 -> 0 | S33: =R33*IFERROR(VLOOKUP($B33,'IS Calculations'!$B$2:$K$350,MATCH($S$3,'IS Calculations'!$B$1:$O$1,0),FALSE),0)*S$4 -> 0 | T33: =$R33*IFERROR(VLOOKUP($B33,'IS Calculations'!$B$2:$O$350,MATCH($T$3,'IS Calculations'!$B$1:$O$1,0),FALSE),0)*T$4 -> 0 | U33: =T33*IFERROR(VLOOKUP($B33,'IS Calculations'!$B$2:$O$350,12,FALSE)/VLOOKUP($B33,'IS Calculations'!$B$2:$O$350,11,FALSE),0) -> 0 | V33: 0.0 | X33: 80% | Y33: =IFERROR(VLOOKUP($B33,'IS Calculations'!$B:$R,16,FALSE),0) -> 100% | Z33: =IFERROR($X33*VLOOKUP($B33,'IS Calculations'!$B$2:$K$350,7,FALSE),0) -> 0 | AA33: =Z33*IFERROR(VLOOKUP($B33,'IS Calculations'!$B$2:$K$350,4,FALSE),0)*AA$4 -> 0 | AB33: =AA33*IFERROR(VLOOKUP($B33,'IS Calculations'!$B$2:$K$350,5,FALSE),0)*AB$4 -> 0 | AC33: =$AA33*IFERROR(VLOOKUP($B33,'IS Calculations'!$B$2:$O$350,MATCH($AC$3,'IS Calculations'!$B$1:$O$1,0),FALSE),0)*AC$4 -> 0 | AD33: =AC33*IFERROR(VLOOKUP($B33,'IS Calculations'!$B$2:$O$350,12,FALSE)/VLOOKUP($B33,'IS Calculations'!$B$2:$O$350,11,FALSE),0) -> 0 | AE33: 0.0
A34: 24 | B34: =IFERROR(VLOOKUP($A34,'IS Calculations'!$A$2:$B$350,2,FALSE),0) -> 0 | C34: =IFERROR(VLOOKUP($B34,'IS Calculations'!$B:$P,15,FALSE),0) -> 0% | D34: 0 | E34: 0 | F34: 0.00% | G34: 0.00 | H34: 0 | I34: 0 | J34: 0% | K34: 0 | L34: 0 | M34: 0.0 | O34: 100% | P34: =IFERROR(VLOOKUP($B34,'IS Calculations'!$B:$R,17,FALSE),0) -> 0% | Q34: =IFERROR($O34*VLOOKUP($B34,'IS Calculations'!$B$2:$K$350,8,FALSE),0) -> 0 | R34: =Q34*IFERROR(VLOOKUP($B34,'IS Calculations'!$B$2:$K$350,MATCH($R$3,'IS Calculations'!$B$1:$O$1,0),FALSE),0)*R$4 -> 0 | S34: =R34*IFERROR(VLOOKUP($B34,'IS Calculations'!$B$2:$K$350,MATCH($S$3,'IS Calculations'!$B$1:$O$1,0),FALSE),0)*S$4 -> 0 | T34: =$R34*IFERROR(VLOOKUP($B34,'IS Calculations'!$B$2:$O$350,MATCH($T$3,'IS Calculations'!$B$1:$O$1,0),FALSE),0)*T$4 -> 0 | U34: =T34*IFERROR(VLOOKUP($B34,'IS Calculations'!$B$2:$O$350,12,FALSE)/VLOOKUP($B34,'IS Calculations'!$B$2:$O$350,11,FALSE),0) -> 0 | V34: 0.0 | X34: 80% | Y34: =IFERROR(VLOOKUP($B34,'IS Calculations'!$B:$R,16,FALSE),0) -> 100% | Z34: =IFERROR($X34*VLOOKUP($B34,'IS Calculations'!$B$2:$K$350,7,FALSE),0) -> 0 | AA34: =Z34*IFERROR(VLOOKUP($B34,'IS Calculations'!$B$2:$K$350,4,FALSE),0)*AA$4 -> 0 | AB34: =AA34*IFERROR(VLOOKUP($B34,'IS Calculations'!$B$2:$K$350,5,FALSE),0)*AB$4 -> 0 | AC34: =$AA34*IFERROR(VLOOKUP($B34,'IS Calculations'!$B$2:$O$350,MATCH($AC$3,'IS Calculations'!$B$1:$O$1,0),FALSE),0)*AC$4 -> 0 | AD34: =AC34*IFERROR(VLOOKUP($B34,'IS Calculations'!$B$2:$O$350,12,FALSE)/VLOOKUP($B34,'IS Calculations'!$B$2:$O$350,11,FALSE),0) -> 0 | AE34: 0.0
A35: 25 | B35: =IFERROR(VLOOKUP($A35,'IS Calculations'!$A$2:$B$350,2,FALSE),0) -> 0 | C35: =IFERROR(VLOOKUP($B35,'IS Calculations'!$B:$P,15,FALSE),0) -> 0% | D35: =SUM(Q35,Z35) -> 0 | E35: =SUM(R35,AA35) -> 0 | F35: 0.00% | G35: 0.00 | H35: =SUM(S35,AB35) -> 0 | I35: =SUM(T35,AC35) -> 0 | J35: 0% | K35: 0 | L35: 0 | M35: 0.0 | O35: 100% | P35: =IFERROR(VLOOKUP($B35,'IS Calculations'!$B:$R,17,FALSE),0) -> 0% | Q35: =IFERROR($O35*VLOOKUP($B35,'IS Calculations'!$B$2:$K$350,8,FALSE),0) -> 0 | R35: =Q35*IFERROR(VLOOKUP($B35,'IS Calculations'!$B$2:$K$350,MATCH($R$3,'IS Calculations'!$B$1:$O$1,0),FALSE),0)*R$4 -> 0 | S35: =R35*IFERROR(VLOOKUP($B35,'IS Calculations'!$B$2:$K$350,MATCH($S$3,'IS Calculations'!$B$1:$O$1,0),FALSE),0)*S$4 -> 0 | T35: =$R35*IFERROR(VLOOKUP($B35,'IS Calculations'!$B$2:$O$350,MATCH($T$3,'IS Calculations'!$B$1:$O$1,0),FALSE),0)*T$4 -> 0 | U35: =T35*IFERROR(VLOOKUP($B35,'IS Calculations'!$B$2:$O$350,12,FALSE)/VLOOKUP($B35,'IS Calculations'!$B$2:$O$350,11,FALSE),0) -> 0 | V35: 0.0 | X35: 80% | Y35: =IFERROR(VLOOKUP($B35,'IS Calculations'!$B:$R,16,FALSE),0) -> 100% | Z35: =IFERROR($X35*VLOOKUP($B35,'IS Calculations'!$B$2:$K$350,7,FALSE),0) -> 0 | AA35: =Z35*IFERROR(VLOOKUP($B35,'IS Calculations'!$B$2:$K$350,4,FALSE),0)*AA$4 -> 0 | AB35: =AA35*IFERROR(VLOOKUP($B35,'IS Calculations'!$B$2:$K$350,5,FALSE),0)*AB$4 -> 0 | AC35: =$AA35*IFERROR(VLOOKUP($B35,'IS Calculations'!$B$2:$O$350,MATCH($AC$3,'IS Calculations'!$B$1:$O$1,0),FALSE),0)*AC$4 -> 0 | AD35: =AC35*IFERROR(VLOOKUP($B35,'IS Calculations'!$B$2:$O$350,12,FALSE)/VLOOKUP($B35,'IS Calculations'!$B$2:$O$350,11,FALSE),0) -> 0 | AE35: 0.0
A36: 26 | B36: =IFERROR(VLOOKUP($A36,'IS Calculations'!$A$2:$B$350,2,FALSE),0) -> 0 | C36: =IFERROR(VLOOKUP($B36,'IS Calculations'!$B:$P,15,FALSE),0) -> 0% | D36: 0 | E36: 0 | F36: 0.00% | G36: 0.00 | H36: 0 | I36: 0 | J36: 0% | K36: 0 | L36: 0 | M36: 0.0 | O36: 100% | P36: =IFERROR(VLOOKUP($B36,'IS Calculations'!$B:$R,17,FALSE),0) -> 0% | Q36: =IFERROR($O36*VLOOKUP($B36,'IS Calculations'!$B$2:$K$350,8,FALSE),0) -> 0 | R36: =Q36*IFERROR(VLOOKUP($B36,'IS Calculations'!$B$2:$K$350,MATCH($R$3,'IS Calculations'!$B$1:$O$1,0),FALSE),0)*R$4 -> 0 | S36: =R36*IFERROR(VLOOKUP($B36,'IS Calculations'!$B$2:$K$350,MATCH($S$3,'IS Calculations'!$B$1:$O$1,0),FALSE),0)*S$4 -> 0 | T36: =$R36*IFERROR(VLOOKUP($B36,'IS Calculations'!$B$2:$O$350,MATCH($T$3,'IS Calculations'!$B$1:$O$1,0),FALSE),0)*T$4 -> 0 | U36: =T36*IFERROR(VLOOKUP($B36,'IS Calculations'!$B$2:$O$350,12,FALSE)/VLOOKUP($B36,'IS Calculations'!$B$2:$O$350,11,FALSE),0) -> 0 | V36: 0.0 | X36: 80% | Y36: =IFERROR(VLOOKUP($B36,'IS Calculations'!$B:$R,16,FALSE),0) -> 100% | Z36: =IFERROR($X36*VLOOKUP($B36,'IS Calculations'!$B$2:$K$350,7,FALSE),0) -> 0 | AA36: =Z36*IFERROR(VLOOKUP($B36,'IS Calculations'!$B$2:$K$350,4,FALSE),0)*AA$4 -> 0 | AB36: =AA36*IFERROR(VLOOKUP($B36,'IS Calculations'!$B$2:$K$350,5,FALSE),0)*AB$4 -> 0 | AC36: =$AA36*IFERROR(VLOOKUP($B36,'IS Calculations'!$B$2:$O$350,MATCH($AC$3,'IS Calculations'!$B$1:$O$1,0),FALSE),0)*AC$4 -> 0 | AD36: =AC36*IFERROR(VLOOKUP($B36,'IS Calculations'!$B$2:$O$350,12,FALSE)/VLOOKUP($B36,'IS Calculations'!$B$2:$O$350,11,FALSE),0) -> 0 | AE36: 0.0
A37: 27 | B37: =IFERROR(VLOOKUP($A37,'IS Calculations'!$A$2:$B$350,2,FALSE),0) -> 0 | C37: =IFERROR(VLOOKUP($B37,'IS Calculations'!$B:$P,15,FALSE),0) -> 0% | D37: 0 | E37: 0 | F37: 0.00% | G37: 0.00 | H37: 0 | I37: 0 | J37: 0% | K37: 0 | L37: 0 | M37: 0.0 | O37: 100% | P37: =IFERROR(VLOOKUP($B37,'IS Calculations'!$B:$R,17,FALSE),0) -> 0% | Q37: =IFERROR($O37*VLOOKUP($B37,'IS Calculations'!$B$2:$K$350,8,FALSE),0) -> 0 | R37: =Q37*IFERROR(VLOOKUP($B37,'IS Calculations'!$B$2:$K$350,MATCH($R$3,'IS Calculations'!$B$1:$O$1,0),FALSE),0)*R$4 -> 0 | S37: =R37*IFERROR(VLOOKUP($B37,'IS Calculations'!$B$2:$K$350,MATCH($S$3,'IS Calculations'!$B$1:$O$1,0),FALSE),0)*S$4 -> 0 | T37: =$R37*IFERROR(VLOOKUP($B37,'IS Calculations'!$B$2:$O$350,MATCH($T$3,'IS Calculations'!$B$1:$O$1,0),FALSE),0)*T$4 -> 0 | U37: =T37*IFERROR(VLOOKUP($B37,'IS Calculations'!$B$2:$O$350,12,FALSE)/VLOOKUP($B37,'IS Calculations'!$B$2:$O$350,11,FALSE),0) -> 0 | V37: 0.0 | X37: 80% | Y37: =IFERROR(VLOOKUP($B37,'IS Calculations'!$B:$R,16,FALSE),0) -> 100% | Z37: =IFERROR($X37*VLOOKUP($B37,'IS Calculations'!$B$2:$K$350,7,FALSE),0) -> 0 | AA37: =Z37*IFERROR(VLOOKUP($B37,'IS Calculations'!$B$2:$K$350,4,FALSE),0)*AA$4 -> 0 | AB37: =AA37*IFERROR(VLOOKUP($B37,'IS Calculations'!$B$2:$K$350,5,FALSE),0)*AB$4 -> 0 | AC37: =$AA37*IFERROR(VLOOKUP($B37,'IS Calculations'!$B$2:$O$350,MATCH($AC$3,'IS Calculations'!$B$1:$O$1,0),FALSE),0)*AC$4 -> 0 | AD37: =AC37*IFERROR(VLOOKUP($B37,'IS Calculations'!$B$2:$O$350,12,FALSE)/VLOOKUP($B37,'IS Calculations'!$B$2:$O$350,11,FALSE),0) -> 0 | AE37: 0.0
A38: 28 | B38: =IFERROR(VLOOKUP($A38,'IS Calculations'!$A$2:$B$350,2,FALSE),0) -> 0 | C38: =IFERROR(VLOOKUP($B38,'IS Calculations'!$B:$P,15,FALSE),0) -> 0% | D38: 0 | E38: 0 | F38: 0.00% | G38: 0.00 | H38: 0 | I38: 0 | J38: 0% | K38: 0 | L38: 0 | M38: 0.0 | O38: 100% | P38: =IFERROR(VLOOKUP($B38,'IS Calculations'!$B:$R,17,FALSE),0) -> 0% | Q38: =IFERROR($O38*VLOOKUP($B38,'IS Calculations'!$B$2:$K$350,8,FALSE),0) -> 0 | R38: =Q38*IFERROR(VLOOKUP($B38,'IS Calculations'!$B$2:$K$350,MATCH($R$3,'IS Calculations'!$B$1:$O$1,0),FALSE),0)*R$4 -> 0 | S38: =R38*IFERROR(VLOOKUP($B38,'IS Calculations'!$B$2:$K$350,MATCH($S$3,'IS Calculations'!$B$1:$O$1,0),FALSE),0)*S$4 -> 0 | T38: =$R38*IFERROR(VLOOKUP($B38,'IS Calculations'!$B$2:$O$350,MATCH($T$3,'IS Calculations'!$B$1:$O$1,0),FALSE),0)*T$4 -> 0 | U38: =T38*IFERROR(VLOOKUP($B38,'IS Calculations'!$B$2:$O$350,12,FALSE)/VLOOKUP($B38,'IS Calculations'!$B$2:$O$350,11,FALSE),0) -> 0 | V38: 0.0 | X38: 80% | Y38: =IFERROR(VLOOKUP($B38,'IS Calculations'!$B:$R,16,FALSE),0) -> 100% | Z38: =IFERROR($X38*VLOOKUP($B38,'IS Calculations'!$B$2:$K$350,7,FALSE),0) -> 0 | AA38: =Z38*IFERROR(VLOOKUP($B38,'IS Calculations'!$B$2:$K$350,4,FALSE),0)*AA$4 -> 0 | AB38: =AA38*IFERROR(VLOOKUP($B38,'IS Calculations'!$B$2:$K$350,5,FALSE),0)*AB$4 -> 0 | AC38: =$AA38*IFERROR(VLOOKUP($B38,'IS Calculations'!$B$2:$O$350,MATCH($AC$3,'IS Calculations'!$B$1:$O$1,0),FALSE),0)*AC$4 -> 0 | AD38: =AC38*IFERROR(VLOOKUP($B38,'IS Calculations'!$B$2:$O$350,12,FALSE)/VLOOKUP($B38,'IS Calculations'!$B$2:$O$350,11,FALSE),0) -> 0 | AE38: 0.0
A39: 29 | B39: =IFERROR(VLOOKUP($A39,'IS Calculations'!$A$2:$B$350,2,FALSE),0) -> 0 | C39: =IFERROR(VLOOKUP($B39,'IS Calculations'!$B:$P,15,FALSE),0) -> 0% | D39: 0 | E39: 0 | F39: 0.00% | G39: 0.00 | H39: 0 | I39: 0 | J39: 0% | K39: 0 | L39: 0 | M39: 0.0 | O39: 100% | P39: =IFERROR(VLOOKUP($B39,'IS Calculations'!$B:$R,17,FALSE),0) -> 0% | Q39: =IFERROR($O39*VLOOKUP($B39,'IS Calculations'!$B$2:$K$350,8,FALSE),0) -> 0 | R39: =Q39*IFERROR(VLOOKUP($B39,'IS Calculations'!$B$2:$K$350,MATCH($R$3,'IS Calculations'!$B$1:$O$1,0),FALSE),0)*R$4 -> 0 | S39: =R39*IFERROR(VLOOKUP($B39,'IS Calculations'!$B$2:$K$350,MATCH($S$3,'IS Calculations'!$B$1:$O$1,0),FALSE),0)*S$4 -> 0 | T39: =$R39*IFERROR(VLOOKUP($B39,'IS Calculations'!$B$2:$O$350,MATCH($T$3,'IS Calculations'!$B$1:$O$1,0),FALSE),0)*T$4 -> 0 | U39: =T39*IFERROR(VLOOKUP($B39,'IS Calculations'!$B$2:$O$350,12,FALSE)/VLOOKUP($B39,'IS Calculations'!$B$2:$O$350,11,FALSE),0) -> 0 | V39: 0.0 | X39: 80% | Y39: =IFERROR(VLOOKUP($B39,'IS Calculations'!$B:$R,16,FALSE),0) -> 100% | Z39: =IFERROR($X39*VLOOKUP($B39,'IS Calculations'!$B$2:$K$350,7,FALSE),0) -> 0 | AA39: =Z39*IFERROR(VLOOKUP($B39,'IS Calculations'!$B$2:$K$350,4,FALSE),0)*AA$4 -> 0 | AB39: =AA39*IFERROR(VLOOKUP($B39,'IS Calculations'!$B$2:$K$350,5,FALSE),0)*AB$4 -> 0 | AC39: =$AA39*IFERROR(VLOOKUP($B39,'IS Calculations'!$B$2:$O$350,MATCH($AC$3,'IS Calculations'!$B$1:$O$1,0),FALSE),0)*AC$4 -> 0 | AD39: =AC39*IFERROR(VLOOKUP($B39,'IS Calculations'!$B$2:$O$350,12,FALSE)/VLOOKUP($B39,'IS Calculations'!$B$2:$O$350,11,FALSE),0) -> 0 | AE39: 0.0
A40: 30 | B40: =IFERROR(VLOOKUP($A40,'IS Calculations'!$A$2:$B$350,2,FALSE),0) -> 0 | C40: =IFERROR(VLOOKUP($B40,'IS Calculations'!$B:$P,15,FALSE),0) -> 0% | D40: 0 | E40: 0 | F40: 0.00% | G40: 0.00 | H40: 0 | I40: 0 | J40: 0% | K40: 0 | L40: 0 | M40: 0.0 | O40: 100% | P40: =IFERROR(VLOOKUP($B40,'IS Calculations'!$B:$R,17,FALSE),0) -> 0% | Q40: =IFERROR($O40*VLOOKUP($B40,'IS Calculations'!$B$2:$K$350,8,FALSE),0) -> 0 | R40: =Q40*IFERROR(VLOOKUP($B40,'IS Calculations'!$B$2:$K$350,MATCH($R$3,'IS Calculations'!$B$1:$O$1,0),FALSE),0)*R$4 -> 0 | S40: =R40*IFERROR(VLOOKUP($B40,'IS Calculations'!$B$2:$K$350,MATCH($S$3,'IS Calculations'!$B$1:$O$1,0),FALSE),0)*S$4 -> 0 | T40: =$R40*IFERROR(VLOOKUP($B40,'IS Calculations'!$B$2:$O$350,MATCH($T$3,'IS Calculations'!$B$1:$O$1,0),FALSE),0)*T$4 -> 0 | U40: =T40*IFERROR(VLOOKUP($B40,'IS Calculations'!$B$2:$O$350,12,FALSE)/VLOOKUP($B40,'IS Calculations'!$B$2:$O$350,11,FALSE),0) -> 0 | V40: 0.0 | X40: 80% | Y40: =IFERROR(VLOOKUP($B40,'IS Calculations'!$B:$R,16,FALSE),0) -> 100% | Z40: =IFERROR($X40*VLOOKUP($B40,'IS Calculations'!$B$2:$K$350,7,FALSE),0) -> 0 | AA40: =Z40*IFERROR(VLOOKUP($B40,'IS Calculations'!$B$2:$K$350,4,FALSE),0)*AA$4 -> 0 | AB40: =AA40*IFERROR(VLOOKUP($B40,'IS Calculations'!$B$2:$K$350,5,FALSE),0)*AB$4 -> 0 | AC40: =$AA40*IFERROR(VLOOKUP($B40,'IS Calculations'!$B$2:$O$350,MATCH($AC$3,'IS Calculations'!$B$1:$O$1,0),FALSE),0)*AC$4 -> 0 | AD40: =AC40*IFERROR(VLOOKUP($B40,'IS Calculations'!$B$2:$O$350,12,FALSE)/VLOOKUP($B40,'IS Calculations'!$B$2:$O$350,11,FALSE),0) -> 0 | AE40: 0.0
A41: 31 | B41: =IFERROR(VLOOKUP($A41,'IS Calculations'!$A$2:$B$350,2,FALSE),0) -> 0 | C41: =IFERROR(VLOOKUP($B41,'IS Calculations'!$B:$P,15,FALSE),0) -> 0% | D41: 0 | E41: 0 | F41: 0.00% | G41: 0.00 | H41: 0 | I41: 0 | J41: 0% | K41: 0 | L41: 0 | M41: 0.0 | O41: 100% | P41: =IFERROR(VLOOKUP($B41,'IS Calculations'!$B:$R,17,FALSE),0) -> 0% | Q41: =IFERROR($O41*VLOOKUP($B41,'IS Calculations'!$B$2:$K$350,8,FALSE),0) -> 0 | R41: =Q41*IFERROR(VLOOKUP($B41,'IS Calculations'!$B$2:$K$350,MATCH($R$3,'IS Calculations'!$B$1:$O$1,0),FALSE),0)*R$4 -> 0 | S41: =R41*IFERROR(VLOOKUP($B41,'IS Calculations'!$B$2:$K$350,MATCH($S$3,'IS Calculations'!$B$1:$O$1,0),FALSE),0)*S$4 -> 0 | T41: =$R41*IFERROR(VLOOKUP($B41,'IS Calculations'!$B$2:$O$350,MATCH($T$3,'IS Calculations'!$B$1:$O$1,0),FALSE),0)*T$4 -> 0 | U41: =T41*IFERROR(VLOOKUP($B41,'IS Calculations'!$B$2:$O$350,12,FALSE)/VLOOKUP($B41,'IS Calculations'!$B$2:$O$350,11,FALSE),0) -> 0 | V41: 0.0 | X41: 80% | Y41: =IFERROR(VLOOKUP($B41,'IS Calculations'!$B:$R,16,FALSE),0) -> 100% | Z41: =IFERROR($X41*VLOOKUP($B41,'IS Calculations'!$B$2:$K$350,7,FALSE),0) -> 0 | AA41: =Z41*IFERROR(VLOOKUP($B41,'IS Calculations'!$B$2:$K$350,4,FALSE),0)*AA$4 -> 0 | AB41: =AA41*IFERROR(VLOOKUP($B41,'IS Calculations'!$B$2:$K$350,5,FALSE),0)*AB$4 -> 0 | AC41: =$AA41*IFERROR(VLOOKUP($B41,'IS Calculations'!$B$2:$O$350,MATCH($AC$3,'IS Calculations'!$B$1:$O$1,0),FALSE),0)*AC$4 -> 0 | AD41: =AC41*IFERROR(VLOOKUP($B41,'IS Calculations'!$B$2:$O$350,12,FALSE)/VLOOKUP($B41,'IS Calculations'!$B$2:$O$350,11,FALSE),0) -> 0 | AE41: 0.0
A42: 32 | B42: =IFERROR(VLOOKUP($A42,'IS Calculations'!$A$2:$B$350,2,FALSE),0) -> 0 | C42: =IFERROR(VLOOKUP($B42,'IS Calculations'!$B:$P,15,FALSE),0) -> 0% | D42: 0 | E42: 0 | F42: 0.00% | G42: 0.00 | H42: 0 | I42: 0 | J42: 0% | K42: 0 | L42: 0 | M42: 0.0 | O42: 100% | P42: =IFERROR(VLOOKUP($B42,'IS Calculations'!$B:$R,17,FALSE),0) -> 0% | Q42: =IFERROR($O42*VLOOKUP($B42,'IS Calculations'!$B$2:$K$350,8,FALSE),0) -> 0 | R42: =Q42*IFERROR(VLOOKUP($B42,'IS Calculations'!$B$2:$K$350,MATCH($R$3,'IS Calculations'!$B$1:$O$1,0),FALSE),0)*R$4 -> 0 | S42: =R42*IFERROR(VLOOKUP($B42,'IS Calculations'!$B$2:$K$350,MATCH($S$3,'IS Calculations'!$B$1:$O$1,0),FALSE),0)*S$4 -> 0 | T42: =$R42*IFERROR(VLOOKUP($B42,'IS Calculations'!$B$2:$O$350,MATCH($T$3,'IS Calculations'!$B$1:$O$1,0),FALSE),0)*T$4 -> 0 | U42: =T42*IFERROR(VLOOKUP($B42,'IS Calculations'!$B$2:$O$350,12,FALSE)/VLOOKUP($B42,'IS Calculations'!$B$2:$O$350,11,FALSE),0) -> 0 | V42: 0.0 | X42: 80% | Y42: =IFERROR(VLOOKUP($B42,'IS Calculations'!$B:$R,16,FALSE),0) -> 100% | Z42: =IFERROR($X42*VLOOKUP($B42,'IS Calculations'!$B$2:$K$350,7,FALSE),0) -> 0 | AA42: =Z42*IFERROR(VLOOKUP($B42,'IS Calculations'!$B$2:$K$350,4,FALSE),0)*AA$4 -> 0 | AB42: =AA42*IFERROR(VLOOKUP($B42,'IS Calculations'!$B$2:$K$350,5,FALSE),0)*AB$4 -> 0 | AC42: =$AA42*IFERROR(VLOOKUP($B42,'IS Calculations'!$B$2:$O$350,MATCH($AC$3,'IS Calculations'!$B$1:$O$1,0),FALSE),0)*AC$4 -> 0 | AD42: =AC42*IFERROR(VLOOKUP($B42,'IS Calculations'!$B$2:$O$350,12,FALSE)/VLOOKUP($B42,'IS Calculations'!$B$2:$O$350,11,FALSE),0) -> 0 | AE42: 0.0
A43: 33 | B43: =IFERROR(VLOOKUP($A43,'IS Calculations'!$A$2:$B$350,2,FALSE),0) -> 0 | C43: =IFERROR(VLOOKUP($B43,'IS Calculations'!$B:$P,15,FALSE),0) -> 0% | D43: 0 | E43: 0 | F43: 0.00% | G43: 0.00 | H43: 0 | I43: 0 | J43: 0% | K43: 0 | L43: 0 | M43: 0.0 | O43: 100% | P43: =IFERROR(VLOOKUP($B43,'IS Calculations'!$B:$R,17,FALSE),0) -> 0% | Q43: =IFERROR($O43*VLOOKUP($B43,'IS Calculations'!$B$2:$K$350,8,FALSE),0) -> 0 | R43: =Q43*IFERROR(VLOOKUP($B43,'IS Calculations'!$B$2:$K$350,MATCH($R$3,'IS Calculations'!$B$1:$O$1,0),FALSE),0)*R$4 -> 0 | S43: =R43*IFERROR(VLOOKUP($B43,'IS Calculations'!$B$2:$K$350,MATCH($S$3,'IS Calculations'!$B$1:$O$1,0),FALSE),0)*S$4 -> 0 | T43: =$R43*IFERROR(VLOOKUP($B43,'IS Calculations'!$B$2:$O$350,MATCH($T$3,'IS Calculations'!$B$1:$O$1,0),FALSE),0)*T$4 -> 0 | U43: =T43*IFERROR(VLOOKUP($B43,'IS Calculations'!$B$2:$O$350,12,FALSE)/VLOOKUP($B43,'IS Calculations'!$B$2:$O$350,11,FALSE),0) -> 0 | V43: 0.0 | X43: 80% | Y43: =IFERROR(VLOOKUP($B43,'IS Calculations'!$B:$R,16,FALSE),0) -> 100% | Z43: =IFERROR($X43*VLOOKUP($B43,'IS Calculations'!$B$2:$K$350,7,FALSE),0) -> 0 | AA43: =Z43*IFERROR(VLOOKUP($B43,'IS Calculations'!$B$2:$K$350,4,FALSE),0)*AA$4 -> 0 | AB43: =AA43*IFERROR(VLOOKUP($B43,'IS Calculations'!$B$2:$K$350,5,FALSE),0)*AB$4 -> 0 | AC43: =$AA43*IFERROR(VLOOKUP($B43,'IS Calculations'!$B$2:$O$350,MATCH($AC$3,'IS Calculations'!$B$1:$O$1,0),FALSE),0)*AC$4 -> 0 | AD43: =AC43*IFERROR(VLOOKUP($B43,'IS Calculations'!$B$2:$O$350,12,FALSE)/VLOOKUP($B43,'IS Calculations'!$B$2:$O$350,11,FALSE),0) -> 0 | AE43: 0.0
A44: 34 | B44: =IFERROR(VLOOKUP($A44,'IS Calculations'!$A$2:$B$350,2,FALSE),0) -> 0 | C44: =IFERROR(VLOOKUP($B44,'IS Calculations'!$B:$P,15,FALSE),0) -> 0% | D44: 0 | E44: 0 | F44: 0.00% | G44: 0.00 | H44: 0 | I44: 0 | J44: 0% | K44: 0 | L44: 0 | M44: 0.0 | O44: 100% | P44: =IFERROR(VLOOKUP($B44,'IS Calculations'!$B:$R,17,FALSE),0) -> 0% | Q44: =IFERROR($O44*VLOOKUP($B44,'IS Calculations'!$B$2:$K$350,8,FALSE),0) -> 0 | R44: =Q44*IFERROR(VLOOKUP($B44,'IS Calculations'!$B$2:$K$350,MATCH($R$3,'IS Calculations'!$B$1:$O$1,0),FALSE),0)*R$4 -> 0 | S44: =R44*IFERROR(VLOOKUP($B44,'IS Calculations'!$B$2:$K$350,MATCH($S$3,'IS Calculations'!$B$1:$O$1,0),FALSE),0)*S$4 -> 0 | T44: =$R44*IFERROR(VLOOKUP($B44,'IS Calculations'!$B$2:$O$350,MATCH($T$3,'IS Calculations'!$B$1:$O$1,0),FALSE),0)*T$4 -> 0 | U44: =T44*IFERROR(VLOOKUP($B44,'IS Calculations'!$B$2:$O$350,12,FALSE)/VLOOKUP($B44,'IS Calculations'!$B$2:$O$350,11,FALSE),0) -> 0 | V44: 0.0 | X44: 80% | Y44: =IFERROR(VLOOKUP($B44,'IS Calculations'!$B:$R,16,FALSE),0) -> 100% | Z44: =IFERROR($X44*VLOOKUP($B44,'IS Calculations'!$B$2:$K$350,7,FALSE),0) -> 0 | AA44: =Z44*IFERROR(VLOOKUP($B44,'IS Calculations'!$B$2:$K$350,4,FALSE),0)*AA$4 -> 0 | AB44: =AA44*IFERROR(VLOOKUP($B44,'IS Calculations'!$B$2:$K$350,5,FALSE),0)*AB$4 -> 0 | AC44: =$AA44*IFERROR(VLOOKUP($B44,'IS Calculations'!$B$2:$O$350,MATCH($AC$3,'IS Calculations'!$B$1:$O$1,0),FALSE),0)*AC$4 -> 0 | AD44: =AC44*IFERROR(VLOOKUP($B44,'IS Calculations'!$B$2:$O$350,12,FALSE)/VLOOKUP($B44,'IS Calculations'!$B$2:$O$350,11,FALSE),0) -> 0 | AE44: 0.0
A45: 35 | B45: =IFERROR(VLOOKUP($A45,'IS Calculations'!$A$2:$B$350,2,FALSE),0) -> 0 | C45: =IFERROR(VLOOKUP($B45,'IS Calculations'!$B:$P,15,FALSE),0) -> 0% | D45: 0 | E45: 0 | F45: 0.00% | G45: 0.00 | H45: 0 | I45: 0 | J45: 0% | K45: 0 | L45: 0 | M45: 0.0 | O45: 100% | P45: =IFERROR(VLOOKUP($B45,'IS Calculations'!$B:$R,17,FALSE),0) -> 0% | Q45: =IFERROR($O45*VLOOKUP($B45,'IS Calculations'!$B$2:$K$350,8,FALSE),0) -> 0 | R45: =Q45*IFERROR(VLOOKUP($B45,'IS Calculations'!$B$2:$K$350,MATCH($R$3,'IS Calculations'!$B$1:$O$1,0),FALSE),0)*R$4 -> 0 | S45: =R45*IFERROR(VLOOKUP($B45,'IS Calculations'!$B$2:$K$350,MATCH($S$3,'IS Calculations'!$B$1:$O$1,0),FALSE),0)*S$4 -> 0 | T45: =$R45*IFERROR(VLOOKUP($B45,'IS Calculations'!$B$2:$O$350,MATCH($T$3,'IS Calculations'!$B$1:$O$1,0),FALSE),0)*T$4 -> 0 | U45: =T45*IFERROR(VLOOKUP($B45,'IS Calculations'!$B$2:$O$350,12,FALSE)/VLOOKUP($B45,'IS Calculations'!$B$2:$O$350,11,FALSE),0) -> 0 | V45: 0.0 | X45: 80% | Y45: =IFERROR(VLOOKUP($B45,'IS Calculations'!$B:$R,16,FALSE),0) -> 100% | Z45: =IFERROR($X45*VLOOKUP($B45,'IS Calculations'!$B$2:$K$350,7,FALSE),0) -> 0 | AA45: =Z45*IFERROR(VLOOKUP($B45,'IS Calculations'!$B$2:$K$350,4,FALSE),0)*AA$4 -> 0 | AB45: =AA45*IFERROR(VLOOKUP($B45,'IS Calculations'!$B$2:$K$350,5,FALSE),0)*AB$4 -> 0 | AC45: =$AA45*IFERROR(VLOOKUP($B45,'IS Calculations'!$B$2:$O$350,MATCH($AC$3,'IS Calculations'!$B$1:$O$1,0),FALSE),0)*AC$4 -> 0 | AD45: =AC45*IFERROR(VLOOKUP($B45,'IS Calculations'!$B$2:$O$350,12,FALSE)/VLOOKUP($B45,'IS Calculations'!$B$2:$O$350,11,FALSE),0) -> 0 | AE45: 0.0
A46: 36 | B46: =IFERROR(VLOOKUP($A46,'IS Calculations'!$A$2:$B$350,2,FALSE),0) -> 0 | C46: =IFERROR(VLOOKUP($B46,'IS Calculations'!$B:$P,15,FALSE),0) -> 0% | D46: 0 | E46: 0 | F46: 0.00% | G46: 0.00 | H46: 0 | I46: 0 | J46: 0% | K46: 0 | L46: 0 | M46: 0.0 | O46: 100% | P46: =IFERROR(VLOOKUP($B46,'IS Calculations'!$B:$R,17,FALSE),0) -> 0% | Q46: =IFERROR($O46*VLOOKUP($B46,'IS Calculations'!$B$2:$K$350,8,FALSE),0) -> 0 | R46: =Q46*IFERROR(VLOOKUP($B46,'IS Calculations'!$B$2:$K$350,MATCH($R$3,'IS Calculations'!$B$1:$O$1,0),FALSE),0)*R$4 -> 0 | S46: =R46*IFERROR(VLOOKUP($B46,'IS Calculations'!$B$2:$K$350,MATCH($S$3,'IS Calculations'!$B$1:$O$1,0),FALSE),0)*S$4 -> 0 | T46: =$R46*IFERROR(VLOOKUP($B46,'IS Calculations'!$B$2:$O$350,MATCH($T$3,'IS Calculations'!$B$1:$O$1,0),FALSE),0)*T$4 -> 0 | U46: =T46*IFERROR(VLOOKUP($B46,'IS Calculations'!$B$2:$O$350,12,FALSE)/VLOOKUP($B46,'IS Calculations'!$B$2:$O$350,11,FALSE),0) -> 0 | V46: 0.0 | X46: 80% | Y46: =IFERROR(VLOOKUP($B46,'IS Calculations'!$B:$R,16,FALSE),0) -> 100% | Z46: =IFERROR($X46*VLOOKUP($B46,'IS Calculations'!$B$2:$K$350,7,FALSE),0) -> 0 | AA46: =Z46*IFERROR(VLOOKUP($B46,'IS Calculations'!$B$2:$K$350,4,FALSE),0)*AA$4 -> 0 | AB46: =AA46*IFERROR(VLOOKUP($B46,'IS Calculations'!$B$2:$K$350,5,FALSE),0)*AB$4 -> 0 | AC46: =$AA46*IFERROR(VLOOKUP($B46,'IS Calculations'!$B$2:$O$350,MATCH($AC$3,'IS Calculations'!$B$1:$O$1,0),FALSE),0)*AC$4 -> 0 | AD46: =AC46*IFERROR(VLOOKUP($B46,'IS Calculations'!$B$2:$O$350,12,FALSE)/VLOOKUP($B46,'IS Calculations'!$B$2:$O$350,11,FALSE),0) -> 0 | AE46: 0.0
A47: 37 | B47: =IFERROR(VLOOKUP($A47,'IS Calculations'!$A$2:$B$350,2,FALSE),0) -> 0 | C47: =IFERROR(VLOOKUP($B47,'IS Calculations'!$B:$P,15,FALSE),0) -> 0% | D47: 0 | E47: 0 | F47: 0.00% | G47: 0.00 | H47: 0 | I47: 0 | J47: 0% | K47: 0 | L47: 0 | M47: 0.0 | O47: 100% | P47: =IFERROR(VLOOKUP($B47,'IS Calculations'!$B:$R,17,FALSE),0) -> 0% | Q47: =IFERROR($O47*VLOOKUP($B47,'IS Calculations'!$B$2:$K$350,8,FALSE),0) -> 0 | R47: =Q47*IFERROR(VLOOKUP($B47,'IS Calculations'!$B$2:$K$350,MATCH($R$3,'IS Calculations'!$B$1:$O$1,0),FALSE),0)*R$4 -> 0 | S47: =R47*IFERROR(VLOOKUP($B47,'IS Calculations'!$B$2:$K$350,MATCH($S$3,'IS Calculations'!$B$1:$O$1,0),FALSE),0)*S$4 -> 0 | T47: =$R47*IFERROR(VLOOKUP($B47,'IS Calculations'!$B$2:$O$350,MATCH($T$3,'IS Calculations'!$B$1:$O$1,0),FALSE),0)*T$4 -> 0 | U47: =T47*IFERROR(VLOOKUP($B47,'IS Calculations'!$B$2:$O$350,12,FALSE)/VLOOKUP($B47,'IS Calculations'!$B$2:$O$350,11,FALSE),0) -> 0 | V47: 0.0 | X47: 80% | Y47: =IFERROR(VLOOKUP($B47,'IS Calculations'!$B:$R,16,FALSE),0) -> 100% | Z47: =IFERROR($X47*VLOOKUP($B47,'IS Calculations'!$B$2:$K$350,7,FALSE),0) -> 0 | AA47: =Z47*IFERROR(VLOOKUP($B47,'IS Calculations'!$B$2:$K$350,4,FALSE),0)*AA$4 -> 0 | AB47: =AA47*IFERROR(VLOOKUP($B47,'IS Calculations'!$B$2:$K$350,5,FALSE),0)*AB$4 -> 0 | AC47: =$AA47*IFERROR(VLOOKUP($B47,'IS Calculations'!$B$2:$O$350,MATCH($AC$3,'IS Calculations'!$B$1:$O$1,0),FALSE),0)*AC$4 -> 0 | AD47: =AC47*IFERROR(VLOOKUP($B47,'IS Calculations'!$B$2:$O$350,12,FALSE)/VLOOKUP($B47,'IS Calculations'!$B$2:$O$350,11,FALSE),0) -> 0 | AE47: 0.0
A48: 38 | B48: =IFERROR(VLOOKUP($A48,'IS Calculations'!$A$2:$B$350,2,FALSE),0) -> 0 | C48: =IFERROR(VLOOKUP($B48,'IS Calculations'!$B:$P,15,FALSE),0) -> 0% | D48: 0 | E48: 0 | F48: 0.00% | G48: 0.00 | H48: 0 | I48: 0 | J48: 0% | K48: 0 | L48: 0 | M48: 0.0 | O48: 100% | P48: =IFERROR(VLOOKUP($B48,'IS Calculations'!$B:$R,17,FALSE),0) -> 0% | Q48: =IFERROR($O48*VLOOKUP($B48,'IS Calculations'!$B$2:$K$350,8,FALSE),0) -> 0 | R48: =Q48*IFERROR(VLOOKUP($B48,'IS Calculations'!$B$2:$K$350,MATCH($R$3,'IS Calculations'!$B$1:$O$1,0),FALSE),0)*R$4 -> 0 | S48: =R48*IFERROR(VLOOKUP($B48,'IS Calculations'!$B$2:$K$350,MATCH($S$3,'IS Calculations'!$B$1:$O$1,0),FALSE),0)*S$4 -> 0 | T48: =$R48*IFERROR(VLOOKUP($B48,'IS Calculations'!$B$2:$O$350,MATCH($T$3,'IS Calculations'!$B$1:$O$1,0),FALSE),0)*T$4 -> 0 | U48: =T48*IFERROR(VLOOKUP($B48,'IS Calculations'!$B$2:$O$350,12,FALSE)/VLOOKUP($B48,'IS Calculations'!$B$2:$O$350,11,FALSE),0) -> 0 | V48: 0.0 | X48: 80% | Y48: =IFERROR(VLOOKUP($B48,'IS Calculations'!$B:$R,16,FALSE),0) -> 100% | Z48: =IFERROR($X48*VLOOKUP($B48,'IS Calculations'!$B$2:$K$350,7,FALSE),0) -> 0 | AA48: =Z48*IFERROR(VLOOKUP($B48,'IS Calculations'!$B$2:$K$350,4,FALSE),0)*AA$4 -> 0 | AB48: =AA48*IFERROR(VLOOKUP($B48,'IS Calculations'!$B$2:$K$350,5,FALSE),0)*AB$4 -> 0 | AC48: =$AA48*IFERROR(VLOOKUP($B48,'IS Calculations'!$B$2:$O$350,MATCH($AC$3,'IS Calculations'!$B$1:$O$1,0),FALSE),0)*AC$4 -> 0 | AD48: =AC48*IFERROR(VLOOKUP($B48,'IS Calculations'!$B$2:$O$350,12,FALSE)/VLOOKUP($B48,'IS Calculations'!$B$2:$O$350,11,FALSE),0) -> 0 | AE48: 0.0
A49: 39 | B49: =IFERROR(VLOOKUP($A49,'IS Calculations'!$A$2:$B$350,2,FALSE),0) -> 0 | C49: =IFERROR(VLOOKUP($B49,'IS Calculations'!$B:$P,15,FALSE),0) -> 0% | D49: 0 | E49: 0 | F49: 0.00% | G49: 0.00 | H49: 0 | I49: 0 | J49: 0% | K49: 0 | L49: 0 | M49: 0.0 | O49: 100% | P49: =IFERROR(VLOOKUP($B49,'IS Calculations'!$B:$R,17,FALSE),0) -> 0% | Q49: =IFERROR($O49*VLOOKUP($B49,'IS Calculations'!$B$2:$K$350,8,FALSE),0) -> 0 | R49: =Q49*IFERROR(VLOOKUP($B49,'IS Calculations'!$B$2:$K$350,MATCH($R$3,'IS Calculations'!$B$1:$O$1,0),FALSE),0)*R$4 -> 0 | S49: =R49*IFERROR(VLOOKUP($B49,'IS Calculations'!$B$2:$K$350,MATCH($S$3,'IS Calculations'!$B$1:$O$1,0),FALSE),0)*S$4 -> 0 | T49: =$R49*IFERROR(VLOOKUP($B49,'IS Calculations'!$B$2:$O$350,MATCH($T$3,'IS Calculations'!$B$1:$O$1,0),FALSE),0)*T$4 -> 0 | U49: =T49*IFERROR(VLOOKUP($B49,'IS Calculations'!$B$2:$O$350,12,FALSE)/VLOOKUP($B49,'IS Calculations'!$B$2:$O$350,11,FALSE),0) -> 0 | V49: 0.0 | X49: 80% | Y49: =IFERROR(VLOOKUP($B49,'IS Calculations'!$B:$R,16,FALSE),0) -> 100% | Z49: =IFERROR($X49*VLOOKUP($B49,'IS Calculations'!$B$2:$K$350,7,FALSE),0) -> 0 | AA49: =Z49*IFERROR(VLOOKUP($B49,'IS Calculations'!$B$2:$K$350,4,FALSE),0)*AA$4 -> 0 | AB49: =AA49*IFERROR(VLOOKUP($B49,'IS Calculations'!$B$2:$K$350,5,FALSE),0)*AB$4 -> 0 | AC49: =$AA49*IFERROR(VLOOKUP($B49,'IS Calculations'!$B$2:$O$350,MATCH($AC$3,'IS Calculations'!$B$1:$O$1,0),FALSE),0)*AC$4 -> 0 | AD49: =AC49*IFERROR(VLOOKUP($B49,'IS Calculations'!$B$2:$O$350,12,FALSE)/VLOOKUP($B49,'IS Calculations'!$B$2:$O$350,11,FALSE),0) -> 0 | AE49: 0.0
A50: 40 | B50: =IFERROR(VLOOKUP($A50,'IS Calculations'!$A$2:$B$350,2,FALSE),0) -> 0 | C50: =IFERROR(VLOOKUP($B50,'IS Calculations'!$B:$P,15,FALSE),0) -> 0% | D50: 0 | E50: 0 | F50: 0.00% | G50: 0.00 | H50: 0 | I50: 0 | J50: 0% | K50: 0 | L50: 0 | M50: 0.0 | O50: 100% | P50: =IFERROR(VLOOKUP($B50,'IS Calculations'!$B:$R,17,FALSE),0) -> 0% | Q50: =IFERROR($O50*VLOOKUP($B50,'IS Calculations'!$B$2:$K$350,8,FALSE),0) -> 0 | R50: =Q50*IFERROR(VLOOKUP($B50,'IS Calculations'!$B$2:$K$350,MATCH($R$3,'IS Calculations'!$B$1:$O$1,0),FALSE),0)*R$4 -> 0 | S50: =R50*IFERROR(VLOOKUP($B50,'IS Calculations'!$B$2:$K$350,MATCH($S$3,'IS Calculations'!$B$1:$O$1,0),FALSE),0)*S$4 -> 0 | T50: =$R50*IFERROR(VLOOKUP($B50,'IS Calculations'!$B$2:$O$350,MATCH($T$3,'IS Calculations'!$B$1:$O$1,0),FALSE),0)*T$4 -> 0 | U50: =T50*IFERROR(VLOOKUP($B50,'IS Calculations'!$B$2:$O$350,12,FALSE)/VLOOKUP($B50,'IS Calculations'!$B$2:$O$350,11,FALSE),0) -> 0 | V50: 0.0 | X50: 80% | Y50: =IFERROR(VLOOKUP($B50,'IS Calculations'!$B:$R,16,FALSE),0) -> 100% | Z50: =IFERROR($X50*VLOOKUP($B50,'IS Calculations'!$B$2:$K$350,7,FALSE),0) -> 0 | AA50: =Z50*IFERROR(VLOOKUP($B50,'IS Calculations'!$B$2:$K$350,4,FALSE),0)*AA$4 -> 0 | AB50: =AA50*IFERROR(VLOOKUP($B50,'IS Calculations'!$B$2:$K$350,5,FALSE),0)*AB$4 -> 0 | AC50: =$AA50*IFERROR(VLOOKUP($B50,'IS Calculations'!$B$2:$O$350,MATCH($AC$3,'IS Calculations'!$B$1:$O$1,0),FALSE),0)*AC$4 -> 0 | AD50: =AC50*IFERROR(VLOOKUP($B50,'IS Calculations'!$B$2:$O$350,12,FALSE)/VLOOKUP($B50,'IS Calculations'!$B$2:$O$350,11,FALSE),0) -> 0 | AE50: 0.0
A51: 41 | B51: =IFERROR(VLOOKUP($A51,'IS Calculations'!$A$2:$B$350,2,FALSE),0) -> 0 | C51: =IFERROR(VLOOKUP($B51,'IS Calculations'!$B:$P,15,FALSE),0) -> 0% | D51: 0 | E51: 0 | F51: 0.00% | G51: 0.00 | H51: 0 | I51: 0 | J51: 0% | K51: 0 | L51: 0 | M51: 0.0 | O51: 100% | P51: =IFERROR(VLOOKUP($B51,'IS Calculations'!$B:$R,17,FALSE),0) -> 0% | Q51: =IFERROR($O51*VLOOKUP($B51,'IS Calculations'!$B$2:$K$350,8,FALSE),0) -> 0 | R51: =Q51*IFERROR(VLOOKUP($B51,'IS Calculations'!$B$2:$K$350,MATCH($R$3,'IS Calculations'!$B$1:$O$1,0),FALSE),0)*R$4 -> 0 | S51: =R51*IFERROR(VLOOKUP($B51,'IS Calculations'!$B$2:$K$350,MATCH($S$3,'IS Calculations'!$B$1:$O$1,0),FALSE),0)*S$4 -> 0 | T51: =$R51*IFERROR(VLOOKUP($B51,'IS Calculations'!$B$2:$O$350,MATCH($T$3,'IS Calculations'!$B$1:$O$1,0),FALSE),0)*T$4 -> 0 | U51: =T51*IFERROR(VLOOKUP($B51,'IS Calculations'!$B$2:$O$350,12,FALSE)/VLOOKUP($B51,'IS Calculations'!$B$2:$O$350,11,FALSE),0) -> 0 | V51: 0.0 | X51: 80% | Y51: =IFERROR(VLOOKUP($B51,'IS Calculations'!$B:$R,16,FALSE),0) -> 100% | Z51: =IFERROR($X51*VLOOKUP($B51,'IS Calculations'!$B$2:$K$350,7,FALSE),0) -> 0 | AA51: =Z51*IFERROR(VLOOKUP($B51,'IS Calculations'!$B$2:$K$350,4,FALSE),0)*AA$4 -> 0 | AB51: =AA51*IFERROR(VLOOKUP($B51,'IS Calculations'!$B$2:$K$350,5,FALSE),0)*AB$4 -> 0 | AC51: =$AA51*IFERROR(VLOOKUP($B51,'IS Calculations'!$B$2:$O$350,MATCH($AC$3,'IS Calculations'!$B$1:$O$1,0),FALSE),0)*AC$4 -> 0 | AD51: =AC51*IFERROR(VLOOKUP($B51,'IS Calculations'!$B$2:$O$350,12,FALSE)/VLOOKUP($B51,'IS Calculations'!$B$2:$O$350,11,FALSE),0) -> 0 | AE51: 0.0
A52: 42 | B52: =IFERROR(VLOOKUP($A52,'IS Calculations'!$A$2:$B$350,2,FALSE),0) -> 0 | C52: =IFERROR(VLOOKUP($B52,'IS Calculations'!$B:$P,15,FALSE),0) -> 0% | D52: 0 | E52: 0 | F52: 0.00% | G52: 0.00 | H52: 0 | I52: 0 | J52: 0% | K52: 0 | L52: 0 | M52: 0.0 | O52: 100% | P52: =IFERROR(VLOOKUP($B52,'IS Calculations'!$B:$R,17,FALSE),0) -> 0% | Q52: =IFERROR($O52*VLOOKUP($B52,'IS Calculations'!$B$2:$K$350,8,FALSE),0) -> 0 | R52: =Q52*IFERROR(VLOOKUP($B52,'IS Calculations'!$B$2:$K$350,MATCH($R$3,'IS Calculations'!$B$1:$O$1,0),FALSE),0)*R$4 -> 0 | S52: =R52*IFERROR(VLOOKUP($B52,'IS Calculations'!$B$2:$K$350,MATCH($S$3,'IS Calculations'!$B$1:$O$1,0),FALSE),0)*S$4 -> 0 | T52: =$R52*IFERROR(VLOOKUP($B52,'IS Calculations'!$B$2:$O$350,MATCH($T$3,'IS Calculations'!$B$1:$O$1,0),FALSE),0)*T$4 -> 0 | U52: =T52*IFERROR(VLOOKUP($B52,'IS Calculations'!$B$2:$O$350,12,FALSE)/VLOOKUP($B52,'IS Calculations'!$B$2:$O$350,11,FALSE),0) -> 0 | V52: 0.0 | X52: 80% | Y52: =IFERROR(VLOOKUP($B52,'IS Calculations'!$B:$R,16,FALSE),0) -> 100% | Z52: =IFERROR($X52*VLOOKUP($B52,'IS Calculations'!$B$2:$K$350,7,FALSE),0) -> 0 | AA52: =Z52*IFERROR(VLOOKUP($B52,'IS Calculations'!$B$2:$K$350,4,FALSE),0)*AA$4 -> 0 | AB52: =AA52*IFERROR(VLOOKUP($B52,'IS Calculations'!$B$2:$K$350,5,FALSE),0)*AB$4 -> 0 | AC52: =$AA52*IFERROR(VLOOKUP($B52,'IS Calculations'!$B$2:$O$350,MATCH($AC$3,'IS Calculations'!$B$1:$O$1,0),FALSE),0)*AC$4 -> 0 | AD52: =AC52*IFERROR(VLOOKUP($B52,'IS Calculations'!$B$2:$O$350,12,FALSE)/VLOOKUP($B52,'IS Calculations'!$B$2:$O$350,11,FALSE),0) -> 0 | AE52: 0.0
A53: 43 | B53: =IFERROR(VLOOKUP($A53,'IS Calculations'!$A$2:$B$350,2,FALSE),0) -> 0 | C53: =IFERROR(VLOOKUP($B53,'IS Calculations'!$B:$P,15,FALSE),0) -> 0% | D53: 0 | E53: 0 | F53: 0.00% | G53: 0.00 | H53: 0 | I53: 0 | J53: 0% | K53: 0 | L53: 0 | M53: 0.0 | O53: 100% | P53: =IFERROR(VLOOKUP($B53,'IS Calculations'!$B:$R,17,FALSE),0) -> 0% | Q53: =IFERROR($O53*VLOOKUP($B53,'IS Calculations'!$B$2:$K$350,8,FALSE),0) -> 0 | R53: =Q53*IFERROR(VLOOKUP($B53,'IS Calculations'!$B$2:$K$350,MATCH($R$3,'IS Calculations'!$B$1:$O$1,0),FALSE),0)*R$4 -> 0 | S53: =R53*IFERROR(VLOOKUP($B53,'IS Calculations'!$B$2:$K$350,MATCH($S$3,'IS Calculations'!$B$1:$O$1,0),FALSE),0)*S$4 -> 0 | T53: =$R53*IFERROR(VLOOKUP($B53,'IS Calculations'!$B$2:$O$350,MATCH($T$3,'IS Calculations'!$B$1:$O$1,0),FALSE),0)*T$4 -> 0 | U53: =T53*IFERROR(VLOOKUP($B53,'IS Calculations'!$B$2:$O$350,12,FALSE)/VLOOKUP($B53,'IS Calculations'!$B$2:$O$350,11,FALSE),0) -> 0 | V53: 0.0 | X53: 80% | Y53: =IFERROR(VLOOKUP($B53,'IS Calculations'!$B:$R,16,FALSE),0) -> 100% | Z53: =IFERROR($X53*VLOOKUP($B53,'IS Calculations'!$B$2:$K$350,7,FALSE),0) -> 0 | AA53: =Z53*IFERROR(VLOOKUP($B53,'IS Calculations'!$B$2:$K$350,4,FALSE),0)*AA$4 -> 0 | AB53: =AA53*IFERROR(VLOOKUP($B53,'IS Calculations'!$B$2:$K$350,5,FALSE),0)*AB$4 -> 0 | AC53: =$AA53*IFERROR(VLOOKUP($B53,'IS Calculations'!$B$2:$O$350,MATCH($AC$3,'IS Calculations'!$B$1:$O$1,0),FALSE),0)*AC$4 -> 0 | AD53: =AC53*IFERROR(VLOOKUP($B53,'IS Calculations'!$B$2:$O$350,12,FALSE)/VLOOKUP($B53,'IS Calculations'!$B$2:$O$350,11,FALSE),0) -> 0 | AE53: 0.0
A54: 44 | B54: =IFERROR(VLOOKUP($A54,'IS Calculations'!$A$2:$B$350,2,FALSE),0) -> 0 | C54: =IFERROR(VLOOKUP($B54,'IS Calculations'!$B:$P,15,FALSE),0) -> 0% | D54: 0 | E54: 0 | F54: 0.00% | G54: 0.00 | H54: 0 | I54: 0 | J54: 0% | K54: 0 | L54: 0 | M54: 0.0 | O54: 100% | P54: =IFERROR(VLOOKUP($B54,'IS Calculations'!$B:$R,17,FALSE),0) -> 0% | Q54: =IFERROR($O54*VLOOKUP($B54,'IS Calculations'!$B$2:$K$350,8,FALSE),0) -> 0 | R54: =Q54*IFERROR(VLOOKUP($B54,'IS Calculations'!$B$2:$K$350,MATCH($R$3,'IS Calculations'!$B$1:$O$1,0),FALSE),0)*R$4 -> 0 | S54: =R54*IFERROR(VLOOKUP($B54,'IS Calculations'!$B$2:$K$350,MATCH($S$3,'IS Calculations'!$B$1:$O$1,0),FALSE),0)*S$4 -> 0 | T54: =$R54*IFERROR(VLOOKUP($B54,'IS Calculations'!$B$2:$O$350,MATCH($T$3,'IS Calculations'!$B$1:$O$1,0),FALSE),0)*T$4 -> 0 | U54: =T54*IFERROR(VLOOKUP($B54,'IS Calculations'!$B$2:$O$350,12,FALSE)/VLOOKUP($B54,'IS Calculations'!$B$2:$O$350,11,FALSE),0) -> 0 | V54: 0.0 | X54: 80% | Y54: =IFERROR(VLOOKUP($B54,'IS Calculations'!$B:$R,16,FALSE),0) -> 100% | Z54: =IFERROR($X54*VLOOKUP($B54,'IS Calculations'!$B$2:$K$350,7,FALSE),0) -> 0 | AA54: =Z54*IFERROR(VLOOKUP($B54,'IS Calculations'!$B$2:$K$350,4,FALSE),0)*AA$4 -> 0 | AB54: =AA54*IFERROR(VLOOKUP($B54,'IS Calculations'!$B$2:$K$350,5,FALSE),0)*AB$4 -> 0 | AC54: =$AA54*IFERROR(VLOOKUP($B54,'IS Calculations'!$B$2:$O$350,MATCH($AC$3,'IS Calculations'!$B$1:$O$1,0),FALSE),0)*AC$4 -> 0 | AD54: =AC54*IFERROR(VLOOKUP($B54,'IS Calculations'!$B$2:$O$350,12,FALSE)/VLOOKUP($B54,'IS Calculations'!$B$2:$O$350,11,FALSE),0) -> 0 | AE54: 0.0
A55: 45 | B55: =IFERROR(VLOOKUP($A55,'IS Calculations'!$A$2:$B$350,2,FALSE),0) -> 0 | C55: =IFERROR(VLOOKUP($B55,'IS Calculations'!$B:$P,15,FALSE),0) -> 0% | D55: 0 | E55: 0 | F55: 0.00% | G55: 0.00 | H55: 0 | I55: 0 | J55: 0% | K55: 0 | L55: 0 | M55: 0.0 | O55: 100% | P55: =IFERROR(VLOOKUP($B55,'IS Calculations'!$B:$R,17,FALSE),0) -> 0% | Q55: =IFERROR($O55*VLOOKUP($B55,'IS Calculations'!$B$2:$K$350,8,FALSE),0) -> 0 | R55: =Q55*IFERROR(VLOOKUP($B55,'IS Calculations'!$B$2:$K$350,MATCH($R$3,'IS Calculations'!$B$1:$O$1,0),FALSE),0)*R$4 -> 0 | S55: =R55*IFERROR(VLOOKUP($B55,'IS Calculations'!$B$2:$K$350,MATCH($S$3,'IS Calculations'!$B$1:$O$1,0),FALSE),0)*S$4 -> 0 | T55: =$R55*IFERROR(VLOOKUP($B55,'IS Calculations'!$B$2:$O$350,MATCH($T$3,'IS Calculations'!$B$1:$O$1,0),FALSE),0)*T$4 -> 0 | U55: =T55*IFERROR(VLOOKUP($B55,'IS Calculations'!$B$2:$O$350,12,FALSE)/VLOOKUP($B55,'IS Calculations'!$B$2:$O$350,11,FALSE),0) -> 0 | V55: 0.0 | X55: 80% | Y55: =IFERROR(VLOOKUP($B55,'IS Calculations'!$B:$R,16,FALSE),0) -> 100% | Z55: =IFERROR($X55*VLOOKUP($B55,'IS Calculations'!$B$2:$K$350,7,FALSE),0) -> 0 | AA55: =Z55*IFERROR(VLOOKUP($B55,'IS Calculations'!$B$2:$K$350,4,FALSE),0)*AA$4 -> 0 | AB55: =AA55*IFERROR(VLOOKUP($B55,'IS Calculations'!$B$2:$K$350,5,FALSE),0)*AB$4 -> 0 | AC55: =$AA55*IFERROR(VLOOKUP($B55,'IS Calculations'!$B$2:$O$350,MATCH($AC$3,'IS Calculations'!$B$1:$O$1,0),FALSE),0)*AC$4 -> 0 | AD55: =AC55*IFERROR(VLOOKUP($B55,'IS Calculations'!$B$2:$O$350,12,FALSE)/VLOOKUP($B55,'IS Calculations'!$B$2:$O$350,11,FALSE),0) -> 0 | AE55: 0.0
A56: 46 | B56: =IFERROR(VLOOKUP($A56,'IS Calculations'!$A$2:$B$350,2,FALSE),0) -> 0 | C56: =IFERROR(VLOOKUP($B56,'IS Calculations'!$B:$P,15,FALSE),0) -> 0% | D56: 0 | E56: 0 | F56: 0.00% | G56: 0.00 | H56: 0 | I56: 0 | J56: 0% | K56: 0 | L56: 0 | M56: 0.0 | O56: 100% | P56: =IFERROR(VLOOKUP($B56,'IS Calculations'!$B:$R,17,FALSE),0) -> 0% | Q56: =IFERROR($O56*VLOOKUP($B56,'IS Calculations'!$B$2:$K$350,8,FALSE),0) -> 0 | R56: =Q56*IFERROR(VLOOKUP($B56,'IS Calculations'!$B$2:$K$350,MATCH($R$3,'IS Calculations'!$B$1:$O$1,0),FALSE),0)*R$4 -> 0 | S56: =R56*IFERROR(VLOOKUP($B56,'IS Calculations'!$B$2:$K$350,MATCH($S$3,'IS Calculations'!$B$1:$O$1,0),FALSE),0)*S$4 -> 0 | T56: =$R56*IFERROR(VLOOKUP($B56,'IS Calculations'!$B$2:$O$350,MATCH($T$3,'IS Calculations'!$B$1:$O$1,0),FALSE),0)*T$4 -> 0 | U56: =T56*IFERROR(VLOOKUP($B56,'IS Calculations'!$B$2:$O$350,12,FALSE)/VLOOKUP($B56,'IS Calculations'!$B$2:$O$350,11,FALSE),0) -> 0 | V56: 0.0 | X56: 80% | Y56: =IFERROR(VLOOKUP($B56,'IS Calculations'!$B:$R,16,FALSE),0) -> 100% | Z56: =IFERROR($X56*VLOOKUP($B56,'IS Calculations'!$B$2:$K$350,7,FALSE),0) -> 0 | AA56: =Z56*IFERROR(VLOOKUP($B56,'IS Calculations'!$B$2:$K$350,4,FALSE),0)*AA$4 -> 0 | AB56: =AA56*IFERROR(VLOOKUP($B56,'IS Calculations'!$B$2:$K$350,5,FALSE),0)*AB$4 -> 0 | AC56: =$AA56*IFERROR(VLOOKUP($B56,'IS Calculations'!$B$2:$O$350,MATCH($AC$3,'IS Calculations'!$B$1:$O$1,0),FALSE),0)*AC$4 -> 0 | AD56: =AC56*IFERROR(VLOOKUP($B56,'IS Calculations'!$B$2:$O$350,12,FALSE)/VLOOKUP($B56,'IS Calculations'!$B$2:$O$350,11,FALSE),0) -> 0 | AE56: 0.0
A57: 47 | B57: =IFERROR(VLOOKUP($A57,'IS Calculations'!$A$2:$B$350,2,FALSE),0) -> 0 | C57: =IFERROR(VLOOKUP($B57,'IS Calculations'!$B:$P,15,FALSE),0) -> 0% | D57: 0 | E57: 0 | F57: 0.00% | G57: 0.00 | H57: 0 | I57: 0 | J57: 0% | K57: 0 | L57: 0 | M57: 0.0 | O57: 100% | P57: =IFERROR(VLOOKUP($B57,'IS Calculations'!$B:$R,17,FALSE),0) -> 0% | Q57: =IFERROR($O57*VLOOKUP($B57,'IS Calculations'!$B$2:$K$350,8,FALSE),0) -> 0 | R57: =Q57*IFERROR(VLOOKUP($B57,'IS Calculations'!$B$2:$K$350,MATCH($R$3,'IS Calculations'!$B$1:$O$1,0),FALSE),0)*R$4 -> 0 | S57: =R57*IFERROR(VLOOKUP($B57,'IS Calculations'!$B$2:$K$350,MATCH($S$3,'IS Calculations'!$B$1:$O$1,0),FALSE),0)*S$4 -> 0 | T57: =$R57*IFERROR(VLOOKUP($B57,'IS Calculations'!$B$2:$O$350,MATCH($T$3,'IS Calculations'!$B$1:$O$1,0),FALSE),0)*T$4 -> 0 | U57: =T57*IFERROR(VLOOKUP($B57,'IS Calculations'!$B$2:$O$350,12,FALSE)/VLOOKUP($B57,'IS Calculations'!$B$2:$O$350,11,FALSE),0) -> 0 | V57: 0.0 | X57: 80% | Y57: =IFERROR(VLOOKUP($B57,'IS Calculations'!$B:$R,16,FALSE),0) -> 100% | Z57: =IFERROR($X57*VLOOKUP($B57,'IS Calculations'!$B$2:$K$350,7,FALSE),0) -> 0 | AA57: =Z57*IFERROR(VLOOKUP($B57,'IS Calculations'!$B$2:$K$350,4,FALSE),0)*AA$4 -> 0 | AB57: =AA57*IFERROR(VLOOKUP($B57,'IS Calculations'!$B$2:$K$350,5,FALSE),0)*AB$4 -> 0 | AC57: =$AA57*IFERROR(VLOOKUP($B57,'IS Calculations'!$B$2:$O$350,MATCH($AC$3,'IS Calculations'!$B$1:$O$1,0),FALSE),0)*AC$4 -> 0 | AD57: =AC57*IFERROR(VLOOKUP($B57,'IS Calculations'!$B$2:$O$350,12,FALSE)/VLOOKUP($B57,'IS Calculations'!$B$2:$O$350,11,FALSE),0) -> 0 | AE57: 0.0
A58: 48 | B58: =IFERROR(VLOOKUP($A58,'IS Calculations'!$A$2:$B$350,2,FALSE),0) -> 0 | C58: =IFERROR(VLOOKUP($B58,'IS Calculations'!$B:$P,15,FALSE),0) -> 0% | D58: 0 | E58: 0 | F58: 0.00% | G58: 0.00 | H58: 0 | I58: 0 | J58: 0% | K58: 0 | L58: 0 | M58: 0.0 | O58: 100% | P58: =IFERROR(VLOOKUP($B58,'IS Calculations'!$B:$R,17,FALSE),0) -> 0% | Q58: =IFERROR($O58*VLOOKUP($B58,'IS Calculations'!$B$2:$K$350,8,FALSE),0) -> 0 | R58: =Q58*IFERROR(VLOOKUP($B58,'IS Calculations'!$B$2:$K$350,MATCH($R$3,'IS Calculations'!$B$1:$O$1,0),FALSE),0)*R$4 -> 0 | S58: =R58*IFERROR(VLOOKUP($B58,'IS Calculations'!$B$2:$K$350,MATCH($S$3,'IS Calculations'!$B$1:$O$1,0),FALSE),0)*S$4 -> 0 | T58: =$R58*IFERROR(VLOOKUP($B58,'IS Calculations'!$B$2:$O$350,MATCH($T$3,'IS Calculations'!$B$1:$O$1,0),FALSE),0)*T$4 -> 0 | U58: =T58*IFERROR(VLOOKUP($B58,'IS Calculations'!$B$2:$O$350,12,FALSE)/VLOOKUP($B58,'IS Calculations'!$B$2:$O$350,11,FALSE),0) -> 0 | V58: 0.0 | X58: 80% | Y58: =IFERROR(VLOOKUP($B58,'IS Calculations'!$B:$R,16,FALSE),0) -> 100% | Z58: =IFERROR($X58*VLOOKUP($B58,'IS Calculations'!$B$2:$K$350,7,FALSE),0) -> 0 | AA58: =Z58*IFERROR(VLOOKUP($B58,'IS Calculations'!$B$2:$K$350,4,FALSE),0)*AA$4 -> 0 | AB58: =AA58*IFERROR(VLOOKUP($B58,'IS Calculations'!$B$2:$K$350,5,FALSE),0)*AB$4 -> 0 | AC58: =$AA58*IFERROR(VLOOKUP($B58,'IS Calculations'!$B$2:$O$350,MATCH($AC$3,'IS Calculations'!$B$1:$O$1,0),FALSE),0)*AC$4 -> 0 | AD58: =AC58*IFERROR(VLOOKUP($B58,'IS Calculations'!$B$2:$O$350,12,FALSE)/VLOOKUP($B58,'IS Calculations'!$B$2:$O$350,11,FALSE),0) -> 0 | AE58: 0.0
A59: 49 | B59: =IFERROR(VLOOKUP($A59,'IS Calculations'!$A$2:$B$350,2,FALSE),0) -> 0 | C59: =IFERROR(VLOOKUP($B59,'IS Calculations'!$B:$P,15,FALSE),0) -> 0% | D59: 0 | E59: 0 | F59: 0.00% | G59: 0.00 | H59: 0 | I59: 0 | J59: 0% | K59: 0 | L59: 0 | M59: 0.0 | O59: 100% | P59: =IFERROR(VLOOKUP($B59,'IS Calculations'!$B:$R,17,FALSE),0) -> 0% | Q59: =IFERROR($O59*VLOOKUP($B59,'IS Calculations'!$B$2:$K$350,8,FALSE),0) -> 0 | R59: =Q59*IFERROR(VLOOKUP($B59,'IS Calculations'!$B$2:$K$350,MATCH($R$3,'IS Calculations'!$B$1:$O$1,0),FALSE),0)*R$4 -> 0 | S59: =R59*IFERROR(VLOOKUP($B59,'IS Calculations'!$B$2:$K$350,MATCH($S$3,'IS Calculations'!$B$1:$O$1,0),FALSE),0)*S$4 -> 0 | T59: =$R59*IFERROR(VLOOKUP($B59,'IS Calculations'!$B$2:$O$350,MATCH($T$3,'IS Calculations'!$B$1:$O$1,0),FALSE),0)*T$4 -> 0 | U59: =T59*IFERROR(VLOOKUP($B59,'IS Calculations'!$B$2:$O$350,12,FALSE)/VLOOKUP($B59,'IS Calculations'!$B$2:$O$350,11,FALSE),0) -> 0 | V59: 0.0 | X59: 80% | Y59: =IFERROR(VLOOKUP($B59,'IS Calculations'!$B:$R,16,FALSE),0) -> 100% | Z59: =IFERROR($X59*VLOOKUP($B59,'IS Calculations'!$B$2:$K$350,7,FALSE),0) -> 0 | AA59: =Z59*IFERROR(VLOOKUP($B59,'IS Calculations'!$B$2:$K$350,4,FALSE),0)*AA$4 -> 0 | AB59: =AA59*IFERROR(VLOOKUP($B59,'IS Calculations'!$B$2:$K$350,5,FALSE),0)*AB$4 -> 0 | AC59: =$AA59*IFERROR(VLOOKUP($B59,'IS Calculations'!$B$2:$O$350,MATCH($AC$3,'IS Calculations'!$B$1:$O$1,0),FALSE),0)*AC$4 -> 0 | AD59: =AC59*IFERROR(VLOOKUP($B59,'IS Calculations'!$B$2:$O$350,12,FALSE)/VLOOKUP($B59,'IS Calculations'!$B$2:$O$350,11,FALSE),0) -> 0 | AE59: 0.0
A60: 50 | B60: =IFERROR(VLOOKUP($A60,'IS Calculations'!$A$2:$B$350,2,FALSE),0) -> 0 | C60: =IFERROR(VLOOKUP($B60,'IS Calculations'!$B:$P,15,FALSE),0) -> 0% | D60: 0 | E60: 0 | F60: 0.00% | G60: 0.00 | H60: 0 | I60: 0 | J60: 0% | K60: 0 | L60: 0 | M60: 0.0 | O60: 100% | P60: =IFERROR(VLOOKUP($B60,'IS Calculations'!$B:$R,17,FALSE),0) -> 0% | Q60: =IFERROR($O60*VLOOKUP($B60,'IS Calculations'!$B$2:$K$350,8,FALSE),0) -> 0 | R60: =Q60*IFERROR(VLOOKUP($B60,'IS Calculations'!$B$2:$K$350,MATCH($R$3,'IS Calculations'!$B$1:$O$1,0),FALSE),0)*R$4 -> 0 | S60: =R60*IFERROR(VLOOKUP($B60,'IS Calculations'!$B$2:$K$350,MATCH($S$3,'IS Calculations'!$B$1:$O$1,0),FALSE),0)*S$4 -> 0 | T60: =$R60*IFERROR(VLOOKUP($B60,'IS Calculations'!$B$2:$O$350,MATCH($T$3,'IS Calculations'!$B$1:$O$1,0),FALSE),0)*T$4 -> 0 | U60: =T60*IFERROR(VLOOKUP($B60,'IS Calculations'!$B$2:$O$350,12,FALSE)/VLOOKUP($B60,'IS Calculations'!$B$2:$O$350,11,FALSE),0) -> 0 | V60: 0.0 | X60: 80% | Y60: =IFERROR(VLOOKUP($B60,'IS Calculations'!$B:$R,16,FALSE),0) -> 100% | Z60: =IFERROR($X60*VLOOKUP($B60,'IS Calculations'!$B$2:$K$350,7,FALSE),0) -> 0 | AA60: =Z60*IFERROR(VLOOKUP($B60,'IS Calculations'!$B$2:$K$350,4,FALSE),0)*AA$4 -> 0 | AB60: =AA60*IFERROR(VLOOKUP($B60,'IS Calculations'!$B$2:$K$350,5,FALSE),0)*AB$4 -> 0 | AC60: =$AA60*IFERROR(VLOOKUP($B60,'IS Calculations'!$B$2:$O$350,MATCH($AC$3,'IS Calculations'!$B$1:$O$1,0),FALSE),0)*AC$4 -> 0 | AD60: =AC60*IFERROR(VLOOKUP($B60,'IS Calculations'!$B$2:$O$350,12,FALSE)/VLOOKUP($B60,'IS Calculations'!$B$2:$O$350,11,FALSE),0) -> 0 | AE60: 0.0
A61: 51 | B61: =IFERROR(VLOOKUP($A61,'IS Calculations'!$A$2:$B$350,2,FALSE),0) -> 0 | C61: =IFERROR(VLOOKUP($B61,'IS Calculations'!$B:$P,15,FALSE),0) -> 0% | D61: 0 | E61: 0 | F61: 0.00% | G61: 0.00 | H61: 0 | I61: 0 | J61: 0% | K61: 0 | L61: 0 | M61: 0.0 | O61: 100% | P61: =IFERROR(VLOOKUP($B61,'IS Calculations'!$B:$R,17,FALSE),0) -> 0% | Q61: =IFERROR($O61*VLOOKUP($B61,'IS Calculations'!$B$2:$K$350,8,FALSE),0) -> 0 | R61: =Q61*IFERROR(VLOOKUP($B61,'IS Calculations'!$B$2:$K$350,MATCH($R$3,'IS Calculations'!$B$1:$O$1,0),FALSE),0)*R$4 -> 0 | S61: =R61*IFERROR(VLOOKUP($B61,'IS Calculations'!$B$2:$K$350,MATCH($S$3,'IS Calculations'!$B$1:$O$1,0),FALSE),0)*S$4 -> 0 | T61: =$R61*IFERROR(VLOOKUP($B61,'IS Calculations'!$B$2:$O$350,MATCH($T$3,'IS Calculations'!$B$1:$O$1,0),FALSE),0)*T$4 -> 0 | U61: =T61*IFERROR(VLOOKUP($B61,'IS Calculations'!$B$2:$O$350,12,FALSE)/VLOOKUP($B61,'IS Calculations'!$B$2:$O$350,11,FALSE),0) -> 0 | V61: 0.0 | X61: 80% | Y61: =IFERROR(VLOOKUP($B61,'IS Calculations'!$B:$R,16,FALSE),0) -> 100% | Z61: =IFERROR($X61*VLOOKUP($B61,'IS Calculations'!$B$2:$K$350,7,FALSE),0) -> 0 | AA61: =Z61*IFERROR(VLOOKUP($B61,'IS Calculations'!$B$2:$K$350,4,FALSE),0)*AA$4 -> 0 | AB61: =AA61*IFERROR(VLOOKUP($B61,'IS Calculations'!$B$2:$K$350,5,FALSE),0)*AB$4 -> 0 | AC61: =$AA61*IFERROR(VLOOKUP($B61,'IS Calculations'!$B$2:$O$350,MATCH($AC$3,'IS Calculations'!$B$1:$O$1,0),FALSE),0)*AC$4 -> 0 | AD61: =AC61*IFERROR(VLOOKUP($B61,'IS Calculations'!$B$2:$O$350,12,FALSE)/VLOOKUP($B61,'IS Calculations'!$B$2:$O$350,11,FALSE),0) -> 0 | AE61: 0.0
A62: 52 | B62: =IFERROR(VLOOKUP($A62,'IS Calculations'!$A$2:$B$350,2,FALSE),0) -> 0 | C62: =IFERROR(VLOOKUP($B62,'IS Calculations'!$B:$P,15,FALSE),0) -> 0% | D62: 0 | E62: 0 | F62: 0.00% | G62: 0.00 | H62: 0 | I62: 0 | J62: 0% | K62: 0 | L62: 0 | M62: 0.0 | O62: 100% | P62: =IFERROR(VLOOKUP($B62,'IS Calculations'!$B:$R,17,FALSE),0) -> 0% | Q62: =IFERROR($O62*VLOOKUP($B62,'IS Calculations'!$B$2:$K$350,8,FALSE),0) -> 0 | R62: =Q62*IFERROR(VLOOKUP($B62,'IS Calculations'!$B$2:$K$350,MATCH($R$3,'IS Calculations'!$B$1:$O$1,0),FALSE),0)*R$4 -> 0 | S62: =R62*IFERROR(VLOOKUP($B62,'IS Calculations'!$B$2:$K$350,MATCH($S$3,'IS Calculations'!$B$1:$O$1,0),FALSE),0)*S$4 -> 0 | T62: =$R62*IFERROR(VLOOKUP($B62,'IS Calculations'!$B$2:$O$350,MATCH($T$3,'IS Calculations'!$B$1:$O$1,0),FALSE),0)*T$4 -> 0 | U62: =T62*IFERROR(VLOOKUP($B62,'IS Calculations'!$B$2:$O$350,12,FALSE)/VLOOKUP($B62,'IS Calculations'!$B$2:$O$350,11,FALSE),0) -> 0 | V62: 0.0 | X62: 80% | Y62: =IFERROR(VLOOKUP($B62,'IS Calculations'!$B:$R,16,FALSE),0) -> 100% | Z62: =IFERROR($X62*VLOOKUP($B62,'IS Calculations'!$B$2:$K$350,7,FALSE),0) -> 0 | AA62: =Z62*IFERROR(VLOOKUP($B62,'IS Calculations'!$B$2:$K$350,4,FALSE),0)*AA$4 -> 0 | AB62: =AA62*IFERROR(VLOOKUP($B62,'IS Calculations'!$B$2:$K$350,5,FALSE),0)*AB$4 -> 0 | AC62: =$AA62*IFERROR(VLOOKUP($B62,'IS Calculations'!$B$2:$O$350,MATCH($AC$3,'IS Calculations'!$B$1:$O$1,0),FALSE),0)*AC$4 -> 0 | AD62: =AC62*IFERROR(VLOOKUP($B62,'IS Calculations'!$B$2:$O$350,12,FALSE)/VLOOKUP($B62,'IS Calculations'!$B$2:$O$350,11,FALSE),0) -> 0 | AE62: 0.0
A63: 53 | B63: =IFERROR(VLOOKUP($A63,'IS Calculations'!$A$2:$B$350,2,FALSE),0) -> 0 | C63: =IFERROR(VLOOKUP($B63,'IS Calculations'!$B:$P,15,FALSE),0) -> 0% | D63: 0 | E63: 0 | F63: 0.00% | G63: 0.00 | H63: 0 | I63: 0 | J63: 0% | K63: 0 | L63: 0 | M63: 0.0 | O63: 100% | P63: =IFERROR(VLOOKUP($B63,'IS Calculations'!$B:$R,17,FALSE),0) -> 0% | Q63: =IFERROR($O63*VLOOKUP($B63,'IS Calculations'!$B$2:$K$350,8,FALSE),0) -> 0 | R63: =Q63*IFERROR(VLOOKUP($B63,'IS Calculations'!$B$2:$K$350,MATCH($R$3,'IS Calculations'!$B$1:$O$1,0),FALSE),0)*R$4 -> 0 | S63: =R63*IFERROR(VLOOKUP($B63,'IS Calculations'!$B$2:$K$350,MATCH($S$3,'IS Calculations'!$B$1:$O$1,0),FALSE),0)*S$4 -> 0 | T63: =$R63*IFERROR(VLOOKUP($B63,'IS Calculations'!$B$2:$O$350,MATCH($T$3,'IS Calculations'!$B$1:$O$1,0),FALSE),0)*T$4 -> 0 | U63: =T63*IFERROR(VLOOKUP($B63,'IS Calculations'!$B$2:$O$350,12,FALSE)/VLOOKUP($B63,'IS Calculations'!$B$2:$O$350,11,FALSE),0) -> 0 | V63: 0.0 | X63: 80% | Y63: =IFERROR(VLOOKUP($B63,'IS Calculations'!$B:$R,16,FALSE),0) -> 100% | Z63: =IFERROR($X63*VLOOKUP($B63,'IS Calculations'!$B$2:$K$350,7,FALSE),0) -> 0 | AA63: =Z63*IFERROR(VLOOKUP($B63,'IS Calculations'!$B$2:$K$350,4,FALSE),0)*AA$4 -> 0 | AB63: =AA63*IFERROR(VLOOKUP($B63,'IS Calculations'!$B$2:$K$350,5,FALSE),0)*AB$4 -> 0 | AC63: =$AA63*IFERROR(VLOOKUP($B63,'IS Calculations'!$B$2:$O$350,MATCH($AC$3,'IS Calculations'!$B$1:$O$1,0),FALSE),0)*AC$4 -> 0 | AD63: =AC63*IFERROR(VLOOKUP($B63,'IS Calculations'!$B$2:$O$350,12,FALSE)/VLOOKUP($B63,'IS Calculations'!$B$2:$O$350,11,FALSE),0) -> 0 | AE63: 0.0
A64: 54 | B64: =IFERROR(VLOOKUP($A64,'IS Calculations'!$A$2:$B$350,2,FALSE),0) -> 0 | C64: =IFERROR(VLOOKUP($B64,'IS Calculations'!$B:$P,15,FALSE),0) -> 0% | D64: 0 | E64: 0 | F64: 0.00% | G64: 0.00 | H64: 0 | I64: 0 | J64: 0% | K64: 0 | L64: 0 | M64: 0.0 | O64: 100% | P64: =IFERROR(VLOOKUP($B64,'IS Calculations'!$B:$R,17,FALSE),0) -> 0% | Q64: =IFERROR($O64*VLOOKUP($B64,'IS Calculations'!$B$2:$K$350,8,FALSE),0) -> 0 | R64: =Q64*IFERROR(VLOOKUP($B64,'IS Calculations'!$B$2:$K$350,MATCH($R$3,'IS Calculations'!$B$1:$O$1,0),FALSE),0)*R$4 -> 0 | S64: =R64*IFERROR(VLOOKUP($B64,'IS Calculations'!$B$2:$K$350,MATCH($S$3,'IS Calculations'!$B$1:$O$1,0),FALSE),0)*S$4 -> 0 | T64: =$R64*IFERROR(VLOOKUP($B64,'IS Calculations'!$B$2:$O$350,MATCH($T$3,'IS Calculations'!$B$1:$O$1,0),FALSE),0)*T$4 -> 0 | U64: =T64*IFERROR(VLOOKUP($B64,'IS Calculations'!$B$2:$O$350,12,FALSE)/VLOOKUP($B64,'IS Calculations'!$B$2:$O$350,11,FALSE),0) -> 0 | V64: 0.0 | X64: 80% | Y64: =IFERROR(VLOOKUP($B64,'IS Calculations'!$B:$R,16,FALSE),0) -> 100% | Z64: =IFERROR($X64*VLOOKUP($B64,'IS Calculations'!$B$2:$K$350,7,FALSE),0) -> 0 | AA64: =Z64*IFERROR(VLOOKUP($B64,'IS Calculations'!$B$2:$K$350,4,FALSE),0)*AA$4 -> 0 | AB64: =AA64*IFERROR(VLOOKUP($B64,'IS Calculations'!$B$2:$K$350,5,FALSE),0)*AB$4 -> 0 | AC64: =$AA64*IFERROR(VLOOKUP($B64,'IS Calculations'!$B$2:$O$350,MATCH($AC$3,'IS Calculations'!$B$1:$O$1,0),FALSE),0)*AC$4 -> 0 | AD64: =AC64*IFERROR(VLOOKUP($B64,'IS Calculations'!$B$2:$O$350,12,FALSE)/VLOOKUP($B64,'IS Calculations'!$B$2:$O$350,11,FALSE),0) -> 0 | AE64: 0.0
A65: 55 | B65: =IFERROR(VLOOKUP($A65,'IS Calculations'!$A$2:$B$350,2,FALSE),0) -> 0 | C65: =IFERROR(VLOOKUP($B65,'IS Calculations'!$B:$P,15,FALSE),0) -> 0% | D65: 0 | E65: 0 | F65: 0.00% | G65: 0.00 | H65: 0 | I65: 0 | J65: 0% | K65: 0 | L65: 0 | M65: 0.0 | O65: 100% | P65: =IFERROR(VLOOKUP($B65,'IS Calculations'!$B:$R,17,FALSE),0) -> 0% | Q65: =IFERROR($O65*VLOOKUP($B65,'IS Calculations'!$B$2:$K$350,8,FALSE),0) -> 0 | R65: =Q65*IFERROR(VLOOKUP($B65,'IS Calculations'!$B$2:$K$350,MATCH($R$3,'IS Calculations'!$B$1:$O$1,0),FALSE),0)*R$4 -> 0 | S65: =R65*IFERROR(VLOOKUP($B65,'IS Calculations'!$B$2:$K$350,MATCH($S$3,'IS Calculations'!$B$1:$O$1,0),FALSE),0)*S$4 -> 0 | T65: =$R65*IFERROR(VLOOKUP($B65,'IS Calculations'!$B$2:$O$350,MATCH($T$3,'IS Calculations'!$B$1:$O$1,0),FALSE),0)*T$4 -> 0 | U65: =T65*IFERROR(VLOOKUP($B65,'IS Calculations'!$B$2:$O$350,12,FALSE)/VLOOKUP($B65,'IS Calculations'!$B$2:$O$350,11,FALSE),0) -> 0 | V65: 0.0 | X65: 80% | Y65: =IFERROR(VLOOKUP($B65,'IS Calculations'!$B:$R,16,FALSE),0) -> 100% | Z65: =IFERROR($X65*VLOOKUP($B65,'IS Calculations'!$B$2:$K$350,7,FALSE),0) -> 0 | AA65: =Z65*IFERROR(VLOOKUP($B65,'IS Calculations'!$B$2:$K$350,4,FALSE),0)*AA$4 -> 0 | AB65: =AA65*IFERROR(VLOOKUP($B65,'IS Calculations'!$B$2:$K$350,5,FALSE),0)*AB$4 -> 0 | AC65: =$AA65*IFERROR(VLOOKUP($B65,'IS Calculations'!$B$2:$O$350,MATCH($AC$3,'IS Calculations'!$B$1:$O$1,0),FALSE),0)*AC$4 -> 0 | AD65: =AC65*IFERROR(VLOOKUP($B65,'IS Calculations'!$B$2:$O$350,12,FALSE)/VLOOKUP($B65,'IS Calculations'!$B$2:$O$350,11,FALSE),0) -> 0 | AE65: 0.0
A66: 56 | B66: =IFERROR(VLOOKUP($A66,'IS Calculations'!$A$2:$B$350,2,FALSE),0) -> 0 | C66: =IFERROR(VLOOKUP($B66,'IS Calculations'!$B:$P,15,FALSE),0) -> 0% | D66: 0 | E66: 0 | F66: 0.00% | G66: 0.00 | H66: 0 | I66: 0 | J66: 0% | K66: 0 | L66: 0 | M66: 0.0 | O66: 100% | P66: =IFERROR(VLOOKUP($B66,'IS Calculations'!$B:$R,17,FALSE),0) -> 0% | Q66: =IFERROR($O66*VLOOKUP($B66,'IS Calculations'!$B$2:$K$350,8,FALSE),0) -> 0 | R66: =Q66*IFERROR(VLOOKUP($B66,'IS Calculations'!$B$2:$K$350,MATCH($R$3,'IS Calculations'!$B$1:$O$1,0),FALSE),0)*R$4 -> 0 | S66: =R66*IFERROR(VLOOKUP($B66,'IS Calculations'!$B$2:$K$350,MATCH($S$3,'IS Calculations'!$B$1:$O$1,0),FALSE),0)*S$4 -> 0 | T66: =$R66*IFERROR(VLOOKUP($B66,'IS Calculations'!$B$2:$O$350,MATCH($T$3,'IS Calculations'!$B$1:$O$1,0),FALSE),0)*T$4 -> 0 | U66: =T66*IFERROR(VLOOKUP($B66,'IS Calculations'!$B$2:$O$350,12,FALSE)/VLOOKUP($B66,'IS Calculations'!$B$2:$O$350,11,FALSE),0) -> 0 | V66: 0.0 | X66: 80% | Y66: =IFERROR(VLOOKUP($B66,'IS Calculations'!$B:$R,16,FALSE),0) -> 100% | Z66: =IFERROR($X66*VLOOKUP($B66,'IS Calculations'!$B$2:$K$350,7,FALSE),0) -> 0 | AA66: =Z66*IFERROR(VLOOKUP($B66,'IS Calculations'!$B$2:$K$350,4,FALSE),0)*AA$4 -> 0 | AB66: =AA66*IFERROR(VLOOKUP($B66,'IS Calculations'!$B$2:$K$350,5,FALSE),0)*AB$4 -> 0 | AC66: =$AA66*IFERROR(VLOOKUP($B66,'IS Calculations'!$B$2:$O$350,MATCH($AC$3,'IS Calculations'!$B$1:$O$1,0),FALSE),0)*AC$4 -> 0 | AD66: =AC66*IFERROR(VLOOKUP($B66,'IS Calculations'!$B$2:$O$350,12,FALSE)/VLOOKUP($B66,'IS Calculations'!$B$2:$O$350,11,FALSE),0) -> 0 | AE66: 0.0
A67: 57 | B67: =IFERROR(VLOOKUP($A67,'IS Calculations'!$A$2:$B$350,2,FALSE),0) -> 0 | C67: =IFERROR(VLOOKUP($B67,'IS Calculations'!$B:$P,15,FALSE),0) -> 0% | D67: 0 | E67: 0 | F67: 0.00% | G67: 0.00 | H67: 0 | I67: 0 | J67: 0% | K67: 0 | L67: 0 | M67: 0.0 | O67: 100% | P67: =IFERROR(VLOOKUP($B67,'IS Calculations'!$B:$R,17,FALSE),0) -> 0% | Q67: =IFERROR($O67*VLOOKUP($B67,'IS Calculations'!$B$2:$K$350,8,FALSE),0) -> 0 | R67: =Q67*IFERROR(VLOOKUP($B67,'IS Calculations'!$B$2:$K$350,MATCH($R$3,'IS Calculations'!$B$1:$O$1,0),FALSE),0)*R$4 -> 0 | S67: =R67*IFERROR(VLOOKUP($B67,'IS Calculations'!$B$2:$K$350,MATCH($S$3,'IS Calculations'!$B$1:$O$1,0),FALSE),0)*S$4 -> 0 | T67: =$R67*IFERROR(VLOOKUP($B67,'IS Calculations'!$B$2:$O$350,MATCH($T$3,'IS Calculations'!$B$1:$O$1,0),FALSE),0)*T$4 -> 0 | U67: =T67*IFERROR(VLOOKUP($B67,'IS Calculations'!$B$2:$O$350,12,FALSE)/VLOOKUP($B67,'IS Calculations'!$B$2:$O$350,11,FALSE),0) -> 0 | V67: 0.0 | X67: 80% | Y67: =IFERROR(VLOOKUP($B67,'IS Calculations'!$B:$R,16,FALSE),0) -> 100% | Z67: =IFERROR($X67*VLOOKUP($B67,'IS Calculations'!$B$2:$K$350,7,FALSE),0) -> 0 | AA67: =Z67*IFERROR(VLOOKUP($B67,'IS Calculations'!$B$2:$K$350,4,FALSE),0)*AA$4 -> 0 | AB67: =AA67*IFERROR(VLOOKUP($B67,'IS Calculations'!$B$2:$K$350,5,FALSE),0)*AB$4 -> 0 | AC67: =$AA67*IFERROR(VLOOKUP($B67,'IS Calculations'!$B$2:$O$350,MATCH($AC$3,'IS Calculations'!$B$1:$O$1,0),FALSE),0)*AC$4 -> 0 | AD67: =AC67*IFERROR(VLOOKUP($B67,'IS Calculations'!$B$2:$O$350,12,FALSE)/VLOOKUP($B67,'IS Calculations'!$B$2:$O$350,11,FALSE),0) -> 0 | AE67: 0.0
A68: 58 | B68: =IFERROR(VLOOKUP($A68,'IS Calculations'!$A$2:$B$350,2,FALSE),0) -> 0 | C68: =IFERROR(VLOOKUP($B68,'IS Calculations'!$B:$P,15,FALSE),0) -> 0% | D68: 0 | E68: 0 | F68: 0.00% | G68: 0.00 | H68: 0 | I68: 0 | J68: 0% | K68: 0 | L68: 0 | M68: 0.0 | O68: 100% | P68: =IFERROR(VLOOKUP($B68,'IS Calculations'!$B:$R,17,FALSE),0) -> 0% | Q68: =IFERROR($O68*VLOOKUP($B68,'IS Calculations'!$B$2:$K$350,8,FALSE),0) -> 0 | R68: =Q68*IFERROR(VLOOKUP($B68,'IS Calculations'!$B$2:$K$350,MATCH($R$3,'IS Calculations'!$B$1:$O$1,0),FALSE),0)*R$4 -> 0 | S68: =R68*IFERROR(VLOOKUP($B68,'IS Calculations'!$B$2:$K$350,MATCH($S$3,'IS Calculations'!$B$1:$O$1,0),FALSE),0)*S$4 -> 0 | T68: =$R68*IFERROR(VLOOKUP($B68,'IS Calculations'!$B$2:$O$350,MATCH($T$3,'IS Calculations'!$B$1:$O$1,0),FALSE),0)*T$4 -> 0 | U68: =T68*IFERROR(VLOOKUP($B68,'IS Calculations'!$B$2:$O$350,12,FALSE)/VLOOKUP($B68,'IS Calculations'!$B$2:$O$350,11,FALSE),0) -> 0 | V68: 0.0 | X68: 80% | Y68: =IFERROR(VLOOKUP($B68,'IS Calculations'!$B:$R,16,FALSE),0) -> 100% | Z68: =IFERROR($X68*VLOOKUP($B68,'IS Calculations'!$B$2:$K$350,7,FALSE),0) -> 0 | AA68: =Z68*IFERROR(VLOOKUP($B68,'IS Calculations'!$B$2:$K$350,4,FALSE),0)*AA$4 -> 0 | AB68: =AA68*IFERROR(VLOOKUP($B68,'IS Calculations'!$B$2:$K$350,5,FALSE),0)*AB$4 -> 0 | AC68: =$AA68*IFERROR(VLOOKUP($B68,'IS Calculations'!$B$2:$O$350,MATCH($AC$3,'IS Calculations'!$B$1:$O$1,0),FALSE),0)*AC$4 -> 0 | AD68: =AC68*IFERROR(VLOOKUP($B68,'IS Calculations'!$B$2:$O$350,12,FALSE)/VLOOKUP($B68,'IS Calculations'!$B$2:$O$350,11,FALSE),0) -> 0 | AE68: 0.0
A69: 59 | B69: =IFERROR(VLOOKUP($A69,'IS Calculations'!$A$2:$B$350,2,FALSE),0) -> 0 | C69: =IFERROR(VLOOKUP($B69,'IS Calculations'!$B:$P,15,FALSE),0) -> 0% | D69: 0 | E69: 0 | F69: 0.00% | G69: 0.00 | H69: 0 | I69: 0 | J69: 0% | K69: 0 | L69: 0 | M69: 0.0 | O69: 100% | P69: =IFERROR(VLOOKUP($B69,'IS Calculations'!$B:$R,17,FALSE),0) -> 0% | Q69: =IFERROR($O69*VLOOKUP($B69,'IS Calculations'!$B$2:$K$350,8,FALSE),0) -> 0 | R69: =Q69*IFERROR(VLOOKUP($B69,'IS Calculations'!$B$2:$K$350,MATCH($R$3,'IS Calculations'!$B$1:$O$1,0),FALSE),0)*R$4 -> 0 | S69: =R69*IFERROR(VLOOKUP($B69,'IS Calculations'!$B$2:$K$350,MATCH($S$3,'IS Calculations'!$B$1:$O$1,0),FALSE),0)*S$4 -> 0 | T69: =$R69*IFERROR(VLOOKUP($B69,'IS Calculations'!$B$2:$O$350,MATCH($T$3,'IS Calculations'!$B$1:$O$1,0),FALSE),0)*T$4 -> 0 | U69: =T69*IFERROR(VLOOKUP($B69,'IS Calculations'!$B$2:$O$350,12,FALSE)/VLOOKUP($B69,'IS Calculations'!$B$2:$O$350,11,FALSE),0) -> 0 | V69: 0.0 | X69: 80% | Y69: =IFERROR(VLOOKUP($B69,'IS Calculations'!$B:$R,16,FALSE),0) -> 100% | Z69: =IFERROR($X69*VLOOKUP($B69,'IS Calculations'!$B$2:$K$350,7,FALSE),0) -> 0 | AA69: =Z69*IFERROR(VLOOKUP($B69,'IS Calculations'!$B$2:$K$350,4,FALSE),0)*AA$4 -> 0 | AB69: =AA69*IFERROR(VLOOKUP($B69,'IS Calculations'!$B$2:$K$350,5,FALSE),0)*AB$4 -> 0 | AC69: =$AA69*IFERROR(VLOOKUP($B69,'IS Calculations'!$B$2:$O$350,MATCH($AC$3,'IS Calculations'!$B$1:$O$1,0),FALSE),0)*AC$4 -> 0 | AD69: =AC69*IFERROR(VLOOKUP($B69,'IS Calculations'!$B$2:$O$350,12,FALSE)/VLOOKUP($B69,'IS Calculations'!$B$2:$O$350,11,FALSE),0) -> 0 | AE69: 0.0
A70: 60 | B70: =IFERROR(VLOOKUP($A70,'IS Calculations'!$A$2:$B$350,2,FALSE),0) -> 0 | C70: =IFERROR(VLOOKUP($B70,'IS Calculations'!$B:$P,15,FALSE),0) -> 0% | D70: 0 | E70: 0 | F70: 0.00% | G70: 0.00 | H70: 0 | I70: 0 | J70: 0% | K70: 0 | L70: 0 | M70: 0.0 | O70: 100% | P70: =IFERROR(VLOOKUP($B70,'IS Calculations'!$B:$R,17,FALSE),0) -> 0% | Q70: =IFERROR($O70*VLOOKUP($B70,'IS Calculations'!$B$2:$K$350,8,FALSE),0) -> 0 | R70: =Q70*IFERROR(VLOOKUP($B70,'IS Calculations'!$B$2:$K$350,MATCH($R$3,'IS Calculations'!$B$1:$O$1,0),FALSE),0)*R$4 -> 0 | S70: =R70*IFERROR(VLOOKUP($B70,'IS Calculations'!$B$2:$K$350,MATCH($S$3,'IS Calculations'!$B$1:$O$1,0),FALSE),0)*S$4 -> 0 | T70: =$R70*IFERROR(VLOOKUP($B70,'IS Calculations'!$B$2:$O$350,MATCH($T$3,'IS Calculations'!$B$1:$O$1,0),FALSE),0)*T$4 -> 0 | U70: =T70*IFERROR(VLOOKUP($B70,'IS Calculations'!$B$2:$O$350,12,FALSE)/VLOOKUP($B70,'IS Calculations'!$B$2:$O$350,11,FALSE),0) -> 0 | V70: 0.0 | X70: 80% | Y70: =IFERROR(VLOOKUP($B70,'IS Calculations'!$B:$R,16,FALSE),0) -> 100% | Z70: =IFERROR($X70*VLOOKUP($B70,'IS Calculations'!$B$2:$K$350,7,FALSE),0) -> 0 | AA70: =Z70*IFERROR(VLOOKUP($B70,'IS Calculations'!$B$2:$K$350,4,FALSE),0)*AA$4 -> 0 | AB70: =AA70*IFERROR(VLOOKUP($B70,'IS Calculations'!$B$2:$K$350,5,FALSE),0)*AB$4 -> 0 | AC70: =$AA70*IFERROR(VLOOKUP($B70,'IS Calculations'!$B$2:$O$350,MATCH($AC$3,'IS Calculations'!$B$1:$O$1,0),FALSE),0)*AC$4 -> 0 | AD70: =AC70*IFERROR(VLOOKUP($B70,'IS Calculations'!$B$2:$O$350,12,FALSE)/VLOOKUP($B70,'IS Calculations'!$B$2:$O$350,11,FALSE),0) -> 0 | AE70: 0.0

Sheet 6
B2: Impressions share
B3: by | C3: ='4'!$C$3 -> Category | D3: level | E3: and | F3: Impressions
B4: Months from | D4: ='4'!D4 -> 2010-10-01 | E4: to | F4: ='4'!F4 -> 2011-07-01 | G4: << choose on sheet 4

Sheet 7
B2: Top level (Search) - Impression Opportunity | R2: x
B3: Metric | D3: Impressions
B5: Monthly | R5: x
B6: Months from | D6: ='1'!$D$6 -> 2010-10-01 | E6: to | F6: ='1'!$F$6 -> 2011-07-01 | G6: << change on slide (1)
B45: Quarterly | R45: x
B46: Quarters from | D46: Q1'07 | E46: to | F46: Q4'08 | G46: << choose date range in qq'yy format

Sheet 8
B2: Impressions share
B4: Input | D4: Clicks / Conversions | E4: Clicks | F4: << select | L4: Clicks
E5: =CONCATENATE(TEXT('5'!E4,"mmm-yy")," - ",TEXT('5'!G4,"mmm-yy")) -> Oct-10 - Jul-11 | F5: =CONCATENATE(E4," Rate") -> Clicks Rate | L5: Cost
B6: (Automated based on Sheet 6 unless you want to manually change the values) | D6: =CONCATENATE($E$4," in ",$E$5) -> Clicks in Oct-10 - Jul-11 | E6: =OFFSET('5'!$C$7,0,MATCH('8'!$E$4,'5'!$D$10:$M$10,0),1,1) -> 2,058 | F6: =IF($E$4="Conversions",'5'!J7,1) -> 100.00% | G6: << green cells autofill unless you manually overwrite it | L6: Conversions
D7: =CONCATENATE("Additional ",$E$4," from ",F13) -> Additional Clicks from IS lost to budget | E7: =OFFSET('5'!$P$8,0,MATCH('8'!$E$4,'5'!$Q$10:$T$10,0),1,1) -> 3,676 | F7: =IF($E$4="Conversions",'5'!T8/'5'!R8,1) -> 100.00% | G7: << green cells autofill from Sheet 5 unless you manually overwrite it
D8: =CONCATENATE("Additional ",$E$4," from ",G13) -> Additional Clicks from IS lost to rank | E8: =OFFSET('5'!$Y$8,0,MATCH('8'!$E$4,'5'!$Z$10:$AC$10,0),1,1) -> 7,143 | F8: =IF($E$4="Conversions",'5'!AC6,1) -> 100.00% | G8: << green cells autofill from Sheet 5 unless you manually overwrite it
D9: =CONCATENATE("Additional ",$E$4," from ",H13) -> Additional Clicks from Other opportunities | E9: 50,000 | F9: =IF($E$4="Conversions",0.03,1) -> 100.00% | G9: << green cells manual
B12: Autofill table
B13: Change names >> | D13: =CONCATENATE(TEXT('5'!E4,"mmm-yy")," - ",TEXT('5'!G4,"mmm-yy")) -> Oct-10 - Jul-11 | E13: =CONCATENATE(TEXT('5'!E4,"mmm-yy")," - ",TEXT('5'!G4,"mmm-yy")) -> Oct-10 - Jul-11 | F13: IS lost to budget | G13: IS lost to rank | H13: Other opportunities | I13: Total
D14: =CONCATENATE($D$6) -> Clicks in Oct-10 - Jul-11 | E14: =E6*F6 -> 2,058 | F14: =SUM(E14:E15) -> 2,058 | G14: =SUM(F14:F15) -> 5,734 | H14: =SUM(G14:G15) -> 12,876 | I14: =SUM(H14:H15) -> 62,876
D15: Additional | E15: 0 | F15: =$E$7*F7 -> 3,676 | G15: =$E$8*F8 -> 7,143 | H15: =$E$9*F9 -> 50,000 | I15: 0
B19: Outputs

Sheet 4a data (hidden)
A1: Rows: | B1: =(COUNTA('4a'!$S$6:$S$48)*3)-1 -> 5 | C1: =IF('4a'!$C$3="Category",1,3) -> 1 | D1: Impressions | E1: Potential Imprs | F1: Lost Imprs (Rank) | G1: Lost Imprs (Budget) | H1: Impression Share (IS) | I1: Lost IS (Rank) | J1: Lost IS (Budget)
A2: 1 | B2: =IF(ISERROR(VLOOKUP($A2,'4a'!$S$6:$T$50,2,FALSE)),0,VLOOKUP($A2,'4a'!$S$6:$T$50,2,FALSE)) -> Produkt A | C2: ='4a'!$D$4 -> Q4'10 | D2: =SUMIFS(Impressions,INPUT!$T:$T,VLOOKUP('4a data'!$C2,References!$B:$C,2,FALSE),Ad_Distribution,"Search",OFFSET(Categories,0,'4a data'!$C$1-1),'4a data'!$B2) -> 19,397 | E2: =SUMIFS(Potential,INPUT!$T:$T,VLOOKUP('4a data'!$C2,References!$B:$C,2,FALSE),Ad_Distribution,"Search",OFFSET(Categories,0,'4a data'!$C$1-1),'4a data'!$B2) -> 139,136 | F2: =SUMIFS(INPUT!$R:$R,INPUT!$T:$T,VLOOKUP('4a data'!$C2,References!$B:$C,2,FALSE),Ad_Distribution,"Search",OFFSET(Categories,0,'4a data'!$C$1-1),'4a data'!$B2) -> 105,826 | G2: =SUMIFS(INPUT!$Q:$Q,INPUT!$T:$T,VLOOKUP('4a data'!$C2,References!$B:$C,2,FALSE),Ad_Distribution,"Search",OFFSET(Categories,0,'4a data'!$C$1-1),'4a data'!$B2) -> 13,914 | H2: =IFERROR(D2/E2,"") -> 14% | I2: =IF(H2="","",1-SUM(H2,J2)) -> 76% | J2: =IFERROR(G2/E2,"") -> 10%
A3: 1 | C3: ='4a'!$F$4 -> Q3'11 | D3: =SUMIFS(Impressions,INPUT!$T:$T,VLOOKUP('4a data'!$C3,References!$B:$C,2,FALSE),Ad_Distribution,"Search",OFFSET(Categories,0,'4a data'!$C$1-1),'4a data'!$B2) -> 0 | E3: =SUMIFS(Potential,INPUT!$T:$T,VLOOKUP('4a data'!$C3,References!$B:$C,2,FALSE),Ad_Distribution,"Search",OFFSET(Categories,0,'4a data'!$C$1-1),'4a data'!$B2) -> 0 | F3: =SUMIFS(INPUT!$R:$R,INPUT!$T:$T,VLOOKUP('4a data'!$C3,References!$B:$C,2,FALSE),Ad_Distribution,"Search",OFFSET(Categories,0,'4a data'!$C$1-1),'4a data'!$B2) -> 0 | G3: =SUMIFS(INPUT!$Q:$Q,INPUT!$T:$T,VLOOKUP('4a data'!$C3,References!$B:$C,2,FALSE),Ad_Distribution,"Search",OFFSET(Categories,0,'4a data'!$C$1-1),'4a data'!$B2) -> 0 | H3: =IFERROR(D3/E3,"") ->  | I3: =IF(H3="","",1-SUM(H3,J3)) ->  | J3: =IFERROR(G3/E3,"") -> 
A5: 2 | B5: =IF(ISERROR(VLOOKUP($A5,'4a'!$S$6:$T$50,2,FALSE)),0,VLOOKUP($A5,'4a'!$S$6:$T$50,2,FALSE)) -> Produkt B | C5: ='4a'!$D$4 -> Q4'10 | D5: =SUMIFS(Impressions,INPUT!$T:$T,VLOOKUP('4a data'!$C5,References!$B:$C,2,FALSE),Ad_Distribution,"Search",OFFSET(Categories,0,'4a data'!$C$1-1),'4a data'!$B5) -> 6,466 | E5: =SUMIFS(Potential,INPUT!$T:$T,VLOOKUP('4a data'!$C5,References!$B:$C,2,FALSE),Ad_Distribution,"Search",OFFSET(Categories,0,'4a data'!$C$1-1),'4a data'!$B5) -> 46,379 | F5: =SUMIFS(INPUT!$R:$R,INPUT!$T:$T,VLOOKUP('4a data'!$C5,References!$B:$C,2,FALSE),Ad_Distribution,"Search",OFFSET(Categories,0,'4a data'!$C$1-1),'4a data'!$B5) -> 35,275 | G5: =SUMIFS(INPUT!$Q:$Q,INPUT!$T:$T,VLOOKUP('4a data'!$C5,References!$B:$C,2,FALSE),Ad_Distribution,"Search",OFFSET(Categories,0,'4a data'!$C$1-1),'4a data'!$B5) -> 4,638 | H5: =IFERROR(D5/E5,"") -> 14% | I5: =IF(H5="","",1-SUM(H5,J5)) -> 76% | J5: =IFERROR(G5/E5,"") -> 10%
A6: 2 | C6: ='4a'!$F$4 -> Q3'11 | D6: =SUMIFS(Impressions,INPUT!$T:$T,VLOOKUP('4a data'!$C6,References!$B:$C,2,FALSE),Ad_Distribution,"Search",OFFSET(Categories,0,'4a data'!$C$1-1),'4a data'!$B5) -> 0 | E6: =SUMIFS(Potential,INPUT!$T:$T,VLOOKUP('4a data'!$C6,References!$B:$C,2,FALSE),Ad_Distribution,"Search",OFFSET(Categories,0,'4a data'!$C$1-1),'4a data'!$B5) -> 0 | F6: =SUMIFS(INPUT!$R:$R,INPUT!$T:$T,VLOOKUP('4a data'!$C6,References!$B:$C,2,FALSE),Ad_Distribution,"Search",OFFSET(Categories,0,'4a data'!$C$1-1),'4a data'!$B5) -> 0 | G6: =SUMIFS(INPUT!$Q:$Q,INPUT!$T:$T,VLOOKUP('4a data'!$C6,References!$B:$C,2,FALSE),Ad_Distribution,"Search",OFFSET(Categories,0,'4a data'!$C$1-1),'4a data'!$B5) -> 0 | H6: =IFERROR(D6/E6,"") ->  | I6: =IF(H6="","",1-SUM(H6,J6)) ->  | J6: =IFERROR(G6/E6,"") -> 
A8: 3 | B8: =IF(ISERROR(VLOOKUP($A8,'4a'!$S$6:$T$50,2,FALSE)),0,VLOOKUP($A8,'4a'!$S$6:$T$50,2,FALSE)) -> 0 | C8: ='4a'!$D$4 -> Q4'10 | D8: =SUMIFS(Impressions,INPUT!$T:$T,VLOOKUP('4a data'!$C8,References!$B:$C,2,FALSE),Ad_Distribution,"Search",OFFSET(Categories,0,'4a data'!$C$1-1),'4a data'!$B8) -> 0 | E8: =SUMIFS(Potential,INPUT!$T:$T,VLOOKUP('4a data'!$C8,References!$B:$C,2,FALSE),Ad_Distribution,"Search",OFFSET(Categories,0,'4a data'!$C$1-1),'4a data'!$B8) -> 0 | F8: =SUMIFS(INPUT!$R:$R,INPUT!$T:$T,VLOOKUP('4a data'!$C8,References!$B:$C,2,FALSE),Ad_Distribution,"Search",OFFSET(Categories,0,'4a data'!$C$1-1),'4a data'!$B8) -> 0 | G8: =SUMIFS(INPUT!$Q:$Q,INPUT!$T:$T,VLOOKUP('4a data'!$C8,References!$B:$C,2,FALSE),Ad_Distribution,"Search",OFFSET(Categories,0,'4a data'!$C$1-1),'4a data'!$B8) -> 0 | H8: =IFERROR(D8/E8,"") ->  | I8: =IF(H8="","",1-SUM(H8,J8)) ->  | J8: =IFERROR(G8/E8,"") -> 
A9: 3 | C9: ='4a'!$F$4 -> Q3'11 | D9: =SUMIFS(Impressions,INPUT!$T:$T,VLOOKUP('4a data'!$C9,References!$B:$C,2,FALSE),Ad_Distribution,"Search",OFFSET(Categories,0,'4a data'!$C$1-1),'4a data'!$B8) -> 0 | E9: =SUMIFS(Potential,INPUT!$T:$T,VLOOKUP('4a data'!$C9,References!$B:$C,2,FALSE),Ad_Distribution,"Search",OFFSET(Categories,0,'4a data'!$C$1-1),'4a data'!$B8) -> 0 | F9: =SUMIFS(INPUT!$R:$R,INPUT!$T:$T,VLOOKUP('4a data'!$C9,References!$B:$C,2,FALSE),Ad_Distribution,"Search",OFFSET(Categories,0,'4a data'!$C$1-1),'4a data'!$B8) -> 0 | G9: =SUMIFS(INPUT!$Q:$Q,INPUT!$T:$T,VLOOKUP('4a data'!$C9,References!$B:$C,2,FALSE),Ad_Distribution,"Search",OFFSET(Categories,0,'4a data'!$C$1-1),'4a data'!$B8) -> 0 | H9: =IFERROR(D9/E9,"") ->  | I9: =IF(H9="","",1-SUM(H9,J9)) ->  | J9: =IFERROR(G9/E9,"") -> 
A11: 4 | B11: =IF(ISERROR(VLOOKUP($A11,'4a'!$S$6:$T$50,2,FALSE)),0,VLOOKUP($A11,'4a'!$S$6:$T$50,2,FALSE)) -> 0 | C11: ='4a'!$D$4 -> Q4'10 | D11: =SUMIFS(Impressions,INPUT!$T:$T,VLOOKUP('4a data'!$C11,References!$B:$C,2,FALSE),Ad_Distribution,"Search",OFFSET(Categories,0,'4a data'!$C$1-1),'4a data'!$B11) -> 0 | E11: =SUMIFS(Potential,INPUT!$T:$T,VLOOKUP('4a data'!$C11,References!$B:$C,2,FALSE),Ad_Distribution,"Search",OFFSET(Categories,0,'4a data'!$C$1-1),'4a data'!$B11) -> 0 | F11: =SUMIFS(INPUT!$R:$R,INPUT!$T:$T,VLOOKUP('4a data'!$C11,References!$B:$C,2,FALSE),Ad_Distribution,"Search",OFFSET(Categories,0,'4a data'!$C$1-1),'4a data'!$B11) -> 0 | G11: =SUMIFS(INPUT!$Q:$Q,INPUT!$T:$T,VLOOKUP('4a data'!$C11,References!$B:$C,2,FALSE),Ad_Distribution,"Search",OFFSET(Categories,0,'4a data'!$C$1-1),'4a data'!$B11) -> 0 | H11: =IFERROR(D11/E11,"") ->  | I11: =IF(H11="","",1-SUM(H11,J11)) ->  | J11: =IFERROR(G11/E11,"") -> 
A12: 4 | C12: ='4a'!$F$4 -> Q3'11 | D12: =SUMIFS(Impressions,INPUT!$T:$T,VLOOKUP('4a data'!$C12,References!$B:$C,2,FALSE),Ad_Distribution,"Search",OFFSET(Categories,0,'4a data'!$C$1-1),'4a data'!$B11) -> 0 | E12: =SUMIFS(Potential,INPUT!$T:$T,VLOOKUP('4a data'!$C12,References!$B:$C,2,FALSE),Ad_Distribution,"Search",OFFSET(Categories,0,'4a data'!$C$1-1),'4a data'!$B11) -> 0 | F12: =SUMIFS(INPUT!$R:$R,INPUT!$T:$T,VLOOKUP('4a data'!$C12,References!$B:$C,2,FALSE),Ad_Distribution,"Search",OFFSET(Categories,0,'4a data'!$C$1-1),'4a data'!$B11) -> 0 | G12: =SUMIFS(INPUT!$Q:$Q,INPUT!$T:$T,VLOOKUP('4a data'!$C12,References!$B:$C,2,FALSE),Ad_Distribution,"Search",OFFSET(Categories,0,'4a data'!$C$1-1),'4a data'!$B11) -> 0 | H12: =IFERROR(D12/E12,"") ->  | I12: =IF(H12="","",1-SUM(H12,J12)) ->  | J12: =IFERROR(G12/E12,"") -> 
A14: 5 | B14: =IF(ISERROR(VLOOKUP($A14,'4a'!$S$6:$T$50,2,FALSE)),0,VLOOKUP($A14,'4a'!$S$6:$T$50,2,FALSE)) -> 0 | C14: ='4a'!$D$4 -> Q4'10 | D14: =SUMIFS(Impressions,INPUT!$T:$T,VLOOKUP('4a data'!$C14,References!$B:$C,2,FALSE),Ad_Distribution,"Search",OFFSET(Categories,0,'4a data'!$C$1-1),'4a data'!$B14) -> 0 | E14: =SUMIFS(Potential,INPUT!$T:$T,VLOOKUP('4a data'!$C14,References!$B:$C,2,FALSE),Ad_Distribution,"Search",OFFSET(Categories,0,'4a data'!$C$1-1),'4a data'!$B14) -> 0 | F14: =SUMIFS(INPUT!$R:$R,INPUT!$T:$T,VLOOKUP('4a data'!$C14,References!$B:$C,2,FALSE),Ad_Distribution,"Search",OFFSET(Categories,0,'4a data'!$C$1-1),'4a data'!$B14) -> 0 | G14: =SUMIFS(INPUT!$Q:$Q,INPUT!$T:$T,VLOOKUP('4a data'!$C14,References!$B:$C,2,FALSE),Ad_Distribution,"Search",OFFSET(Categories,0,'4a data'!$C$1-1),'4a data'!$B14) -> 0 | H14: =IFERROR(D14/E14,"") ->  | I14: =IF(H14="","",1-SUM(H14,J14)) ->  | J14: =IFERROR(G14/E14,"") -> 
A15: 5 | C15: ='4a'!$F$4 -> Q3'11 | D15: =SUMIFS(Impressions,INPUT!$T:$T,VLOOKUP('4a data'!$C15,References!$B:$C,2,FALSE),Ad_Distribution,"Search",OFFSET(Categories,0,'4a data'!$C$1-1),'4a data'!$B14) -> 0 | E15: =SUMIFS(Potential,INPUT!$T:$T,VLOOKUP('4a data'!$C15,References!$B:$C,2,FALSE),Ad_Distribution,"Search",OFFSET(Categories,0,'4a data'!$C$1-1),'4a data'!$B14) -> 0 | F15: =SUMIFS(INPUT!$R:$R,INPUT!$T:$T,VLOOKUP('4a data'!$C15,References!$B:$C,2,FALSE),Ad_Distribution,"Search",OFFSET(Categories,0,'4a data'!$C$1-1),'4a data'!$B14) -> 0 | G15: =SUMIFS(INPUT!$Q:$Q,INPUT!$T:$T,VLOOKUP('4a data'!$C15,References!$B:$C,2,FALSE),Ad_Distribution,"Search",OFFSET(Categories,0,'4a data'!$C$1-1),'4a data'!$B14) -> 0 | H15: =IFERROR(D15/E15,"") ->  | I15: =IF(H15="","",1-SUM(H15,J15)) ->  | J15: =IFERROR(G15/E15,"") -> 
A17: 6 | B17: =IF(ISERROR(VLOOKUP($A17,'4a'!$S$6:$T$50,2,FALSE)),0,VLOOKUP($A17,'4a'!$S$6:$T$50,2,FALSE)) -> 0 | C17: ='4a'!$D$4 -> Q4'10 | D17: =SUMIFS(Impressions,INPUT!$T:$T,VLOOKUP('4a data'!$C17,References!$B:$C,2,FALSE),Ad_Distribution,"Search",OFFSET(Categories,0,'4a data'!$C$1-1),'4a data'!$B17) -> 0 | E17: =SUMIFS(Potential,INPUT!$T:$T,VLOOKUP('4a data'!$C17,References!$B:$C,2,FALSE),Ad_Distribution,"Search",OFFSET(Categories,0,'4a data'!$C$1-1),'4a data'!$B17) -> 0 | F17: =SUMIFS(INPUT!$R:$R,INPUT!$T:$T,VLOOKUP('4a data'!$C17,References!$B:$C,2,FALSE),Ad_Distribution,"Search",OFFSET(Categories,0,'4a data'!$C$1-1),'4a data'!$B17) -> 0 | G17: =SUMIFS(INPUT!$Q:$Q,INPUT!$T:$T,VLOOKUP('4a data'!$C17,References!$B:$C,2,FALSE),Ad_Distribution,"Search",OFFSET(Categories,0,'4a data'!$C$1-1),'4a data'!$B17) -> 0 | H17: =IFERROR(D17/E17,"") ->  | I17: =IF(H17="","",1-SUM(H17,J17)) ->  | J17: =IFERROR(G17/E17,"") -> 
A18: 6 | C18: ='4a'!$F$4 -> Q3'11 | D18: =SUMIFS(Impressions,INPUT!$T:$T,VLOOKUP('4a data'!$C18,References!$B:$C,2,FALSE),Ad_Distribution,"Search",OFFSET(Categories,0,'4a data'!$C$1-1),'4a data'!$B17) -> 0 | E18: =SUMIFS(Potential,INPUT!$T:$T,VLOOKUP('4a data'!$C18,References!$B:$C,2,FALSE),Ad_Distribution,"Search",OFFSET(Categories,0,'4a data'!$C$1-1),'4a data'!$B17) -> 0 | F18: =SUMIFS(INPUT!$R:$R,INPUT!$T:$T,VLOOKUP('4a data'!$C18,References!$B:$C,2,FALSE),Ad_Distribution,"Search",OFFSET(Categories,0,'4a data'!$C$1-1),'4a data'!$B17) -> 0 | G18: =SUMIFS(INPUT!$Q:$Q,INPUT!$T:$T,VLOOKUP('4a data'!$C18,References!$B:$C,2,FALSE),Ad_Distribution,"Search",OFFSET(Categories,0,'4a data'!$C$1-1),'4a data'!$B17) -> 0 | H18: =IFERROR(D18/E18,"") ->  | I18: =IF(H18="","",1-SUM(H18,J18)) ->  | J18: =IFERROR(G18/E18,"") -> 
A20: 7 | B20: =IF(ISERROR(VLOOKUP($A20,'4a'!$S$6:$T$50,2,FALSE)),0,VLOOKUP($A20,'4a'!$S$6:$T$50,2,FALSE)) -> 0 | C20: ='4a'!$D$4 -> Q4'10 | D20: =SUMIFS(Impressions,INPUT!$T:$T,VLOOKUP('4a data'!$C20,References!$B:$C,2,FALSE),Ad_Distribution,"Search",OFFSET(Categories,0,'4a data'!$C$1-1),'4a data'!$B20) -> 0 | E20: =SUMIFS(Potential,INPUT!$T:$T,VLOOKUP('4a data'!$C20,References!$B:$C,2,FALSE),Ad_Distribution,"Search",OFFSET(Categories,0,'4a data'!$C$1-1),'4a data'!$B20) -> 0 | F20: =SUMIFS(INPUT!$R:$R,INPUT!$T:$T,VLOOKUP('4a data'!$C20,References!$B:$C,2,FALSE),Ad_Distribution,"Search",OFFSET(Categories,0,'4a data'!$C$1-1),'4a data'!$B20) -> 0 | G20: =SUMIFS(INPUT!$Q:$Q,INPUT!$T:$T,VLOOKUP('4a data'!$C20,References!$B:$C,2,FALSE),Ad_Distribution,"Search",OFFSET(Categories,0,'4a data'!$C$1-1),'4a data'!$B20) -> 0 | H20: =IFERROR(D20/E20,"") ->  | I20: =IF(H20="","",1-SUM(H20,J20)) ->  | J20: =IFERROR(G20/E20,"") -> 
A21: 7 | C21: ='4a'!$F$4 -> Q3'11 | D21: =SUMIFS(Impressions,INPUT!$T:$T,VLOOKUP('4a data'!$C21,References!$B:$C,2,FALSE),Ad_Distribution,"Search",OFFSET(Categories,0,'4a data'!$C$1-1),'4a data'!$B20) -> 0 | E21: =SUMIFS(Potential,INPUT!$T:$T,VLOOKUP('4a data'!$C21,References!$B:$C,2,FALSE),Ad_Distribution,"Search",OFFSET(Categories,0,'4a data'!$C$1-1),'4a data'!$B20) -> 0 | F21: =SUMIFS(INPUT!$R:$R,INPUT!$T:$T,VLOOKUP('4a data'!$C21,References!$B:$C,2,FALSE),Ad_Distribution,"Search",OFFSET(Categories,0,'4a data'!$C$1-1),'4a data'!$B20) -> 0 | G21: =SUMIFS(INPUT!$Q:$Q,INPUT!$T:$T,VLOOKUP('4a data'!$C21,References!$B:$C,2,FALSE),Ad_Distribution,"Search",OFFSET(Categories,0,'4a data'!$C$1-1),'4a data'!$B20) -> 0 | H21: =IFERROR(D21/E21,"") ->  | I21: =IF(H21="","",1-SUM(H21,J21)) ->  | J21: =IFERROR(G21/E21,"") -> 
A23: 8 | B23: =IF(ISERROR(VLOOKUP($A23,'4a'!$S$6:$T$50,2,FALSE)),0,VLOOKUP($A23,'4a'!$S$6:$T$50,2,FALSE)) -> 0 | C23: ='4a'!$D$4 -> Q4'10 | D23: =SUMIFS(Impressions,INPUT!$T:$T,VLOOKUP('4a data'!$C23,References!$B:$C,2,FALSE),Ad_Distribution,"Search",OFFSET(Categories,0,'4a data'!$C$1-1),'4a data'!$B23) -> 0 | E23: =SUMIFS(Potential,INPUT!$T:$T,VLOOKUP('4a data'!$C23,References!$B:$C,2,FALSE),Ad_Distribution,"Search",OFFSET(Categories,0,'4a data'!$C$1-1),'4a data'!$B23) -> 0 | F23: =SUMIFS(INPUT!$R:$R,INPUT!$T:$T,VLOOKUP('4a data'!$C23,References!$B:$C,2,FALSE),Ad_Distribution,"Search",OFFSET(Categories,0,'4a data'!$C$1-1),'4a data'!$B23) -> 0 | G23: =SUMIFS(INPUT!$Q:$Q,INPUT!$T:$T,VLOOKUP('4a data'!$C23,References!$B:$C,2,FALSE),Ad_Distribution,"Search",OFFSET(Categories,0,'4a data'!$C$1-1),'4a data'!$B23) -> 0 | H23: =IFERROR(D23/E23,"") ->  | I23: =IF(H23="","",1-SUM(H23,J23)) ->  | J23: =IFERROR(G23/E23,"") -> 
A24: 8 | C24: ='4a'!$F$4 -> Q3'11 | D24: =SUMIFS(Impressions,INPUT!$T:$T,VLOOKUP('4a data'!$C24,References!$B:$C,2,FALSE),Ad_Distribution,"Search",OFFSET(Categories,0,'4a data'!$C$1-1),'4a data'!$B23) -> 0 | E24: =SUMIFS(Potential,INPUT!$T:$T,VLOOKUP('4a data'!$C24,References!$B:$C,2,FALSE),Ad_Distribution,"Search",OFFSET(Categories,0,'4a data'!$C$1-1),'4a data'!$B23) -> 0 | F24: =SUMIFS(INPUT!$R:$R,INPUT!$T:$T,VLOOKUP('4a data'!$C24,References!$B:$C,2,FALSE),Ad_Distribution,"Search",OFFSET(Categories,0,'4a data'!$C$1-1),'4a data'!$B23) -> 0 | G24: =SUMIFS(INPUT!$Q:$Q,INPUT!$T:$T,VLOOKUP('4a data'!$C24,References!$B:$C,2,FALSE),Ad_Distribution,"Search",OFFSET(Categories,0,'4a data'!$C$1-1),'4a data'!$B23) -> 0 | H24: =IFERROR(D24/E24,"") ->  | I24: =IF(H24="","",1-SUM(H24,J24)) ->  | J24: =IFERROR(G24/E24,"") -> 
A26: 9 | B26: =IF(ISERROR(VLOOKUP($A26,'4a'!$S$6:$T$50,2,FALSE)),0,VLOOKUP($A26,'4a'!$S$6:$T$50,2,FALSE)) -> 0 | C26: ='4a'!$D$4 -> Q4'10 | D26: =SUMIFS(Impressions,INPUT!$T:$T,VLOOKUP('4a data'!$C26,References!$B:$C,2,FALSE),Ad_Distribution,"Search",OFFSET(Categories,0,'4a data'!$C$1-1),'4a data'!$B26) -> 0 | E26: =SUMIFS(Potential,INPUT!$T:$T,VLOOKUP('4a data'!$C26,References!$B:$C,2,FALSE),Ad_Distribution,"Search",OFFSET(Categories,0,'4a data'!$C$1-1),'4a data'!$B26) -> 0 | F26: =SUMIFS(INPUT!$R:$R,INPUT!$T:$T,VLOOKUP('4a data'!$C26,References!$B:$C,2,FALSE),Ad_Distribution,"Search",OFFSET(Categories,0,'4a data'!$C$1-1),'4a data'!$B26) -> 0 | G26: =SUMIFS(INPUT!$Q:$Q,INPUT!$T:$T,VLOOKUP('4a data'!$C26,References!$B:$C,2,FALSE),Ad_Distribution,"Search",OFFSET(Categories,0,'4a data'!$C$1-1),'4a data'!$B26) -> 0 | H26: =IFERROR(D26/E26,"") ->  | I26: =IF(H26="","",1-SUM(H26,J26)) ->  | J26: =IFERROR(G26/E26,"") -> 
A27: 9 | C27: ='4a'!$F$4 -> Q3'11 | D27: =SUMIFS(Impressions,INPUT!$T:$T,VLOOKUP('4a data'!$C27,References!$B:$C,2,FALSE),Ad_Distribution,"Search",OFFSET(Categories,0,'4a data'!$C$1-1),'4a data'!$B26) -> 0 | E27: =SUMIFS(Potential,INPUT!$T:$T,VLOOKUP('4a data'!$C27,References!$B:$C,2,FALSE),Ad_Distribution,"Search",OFFSET(Categories,0,'4a data'!$C$1-1),'4a data'!$B26) -> 0 | F27: =SUMIFS(INPUT!$R:$R,INPUT!$T:$T,VLOOKUP('4a data'!$C27,References!$B:$C,2,FALSE),Ad_Distribution,"Search",OFFSET(Categories,0,'4a data'!$C$1-1),'4a data'!$B26) -> 0 | G27: =SUMIFS(INPUT!$Q:$Q,INPUT!$T:$T,VLOOKUP('4a data'!$C27,References!$B:$C,2,FALSE),Ad_Distribution,"Search",OFFSET(Categories,0,'4a data'!$C$1-1),'4a data'!$B26) -> 0 | H27: =IFERROR(D27/E27,"") ->  | I27: =IF(H27="","",1-SUM(H27,J27)) ->  | J27: =IFERROR(G27/E27,"") -> 
A29: 10 | B29: =IF(ISERROR(VLOOKUP($A29,'4a'!$S$6:$T$50,2,FALSE)),0,VLOOKUP($A29,'4a'!$S$6:$T$50,2,FALSE)) -> 0 | C29: ='4a'!$D$4 -> Q4'10 | D29: =SUMIFS(Impressions,INPUT!$T:$T,VLOOKUP('4a data'!$C29,References!$B:$C,2,FALSE),Ad_Distribution,"Search",OFFSET(Categories,0,'4a data'!$C$1-1),'4a data'!$B29) -> 0 | E29: =SUMIFS(Potential,INPUT!$T:$T,VLOOKUP('4a data'!$C29,References!$B:$C,2,FALSE),Ad_Distribution,"Search",OFFSET(Categories,0,'4a data'!$C$1-1),'4a data'!$B29) -> 0 | F29: =SUMIFS(INPUT!$R:$R,INPUT!$T:$T,VLOOKUP('4a data'!$C29,References!$B:$C,2,FALSE),Ad_Distribution,"Search",OFFSET(Categories,0,'4a data'!$C$1-1),'4a data'!$B29) -> 0 | G29: =SUMIFS(INPUT!$Q:$Q,INPUT!$T:$T,VLOOKUP('4a data'!$C29,References!$B:$C,2,FALSE),Ad_Distribution,"Search",OFFSET(Categories,0,'4a data'!$C$1-1),'4a data'!$B29) -> 0 | H29: =IFERROR(D29/E29,"") ->  | I29: =IF(H29="","",1-SUM(H29,J29)) ->  | J29: =IFERROR(G29/E29,"") -> 
A30: 10 | C30: ='4a'!$F$4 -> Q3'11 | D30: =SUMIFS(Impressions,INPUT!$T:$T,VLOOKUP('4a data'!$C30,References!$B:$C,2,FALSE),Ad_Distribution,"Search",OFFSET(Categories,0,'4a data'!$C$1-1),'4a data'!$B29) -> 0 | E30: =SUMIFS(Potential,INPUT!$T:$T,VLOOKUP('4a data'!$C30,References!$B:$C,2,FALSE),Ad_Distribution,"Search",OFFSET(Categories,0,'4a data'!$C$1-1),'4a data'!$B29) -> 0 | F30: =SUMIFS(INPUT!$R:$R,INPUT!$T:$T,VLOOKUP('4a data'!$C30,References!$B:$C,2,FALSE),Ad_Distribution,"Search",OFFSET(Categories,0,'4a data'!$C$1-1),'4a data'!$B29) -> 0 | G30: =SUMIFS(INPUT!$Q:$Q,INPUT!$T:$T,VLOOKUP('4a data'!$C30,References!$B:$C,2,FALSE),Ad_Distribution,"Search",OFFSET(Categories,0,'4a data'!$C$1-1),'4a data'!$B29) -> 0 | H30: =IFERROR(D30/E30,"") ->  | I30: =IF(H30="","",1-SUM(H30,J30)) ->  | J30: =IFERROR(G30/E30,"") -> 
A32: 11 | B32: =IF(ISERROR(VLOOKUP($A32,'4a'!$S$6:$T$50,2,FALSE)),0,VLOOKUP($A32,'4a'!$S$6:$T$50,2,FALSE)) -> 0 | C32: ='4a'!$D$4 -> Q4'10 | D32: =SUMIFS(Impressions,INPUT!$T:$T,VLOOKUP('4a data'!$C32,References!$B:$C,2,FALSE),Ad_Distribution,"Search",OFFSET(Categories,0,'4a data'!$C$1-1),'4a data'!$B32) -> 0 | E32: =SUMIFS(Potential,INPUT!$T:$T,VLOOKUP('4a data'!$C32,References!$B:$C,2,FALSE),Ad_Distribution,"Search",OFFSET(Categories,0,'4a data'!$C$1-1),'4a data'!$B32) -> 0 | F32: =SUMIFS(INPUT!$R:$R,INPUT!$T:$T,VLOOKUP('4a data'!$C32,References!$B:$C,2,FALSE),Ad_Distribution,"Search",OFFSET(Categories,0,'4a data'!$C$1-1),'4a data'!$B32) -> 0 | G32: =SUMIFS(INPUT!$Q:$Q,INPUT!$T:$T,VLOOKUP('4a data'!$C32,References!$B:$C,2,FALSE),Ad_Distribution,"Search",OFFSET(Categories,0,'4a data'!$C$1-1),'4a data'!$B32) -> 0 | H32: =IFERROR(D32/E32,"") ->  | I32: =IF(H32="","",1-SUM(H32,J32)) ->  | J32: =IFERROR(G32/E32,"") -> 
A33: 11 | C33: ='4a'!$F$4 -> Q3'11 | D33: =SUMIFS(Impressions,INPUT!$T:$T,VLOOKUP('4a data'!$C33,References!$B:$C,2,FALSE),Ad_Distribution,"Search",OFFSET(Categories,0,'4a data'!$C$1-1),'4a data'!$B32) -> 0 | E33: =SUMIFS(Potential,INPUT!$T:$T,VLOOKUP('4a data'!$C33,References!$B:$C,2,FALSE),Ad_Distribution,"Search",OFFSET(Categories,0,'4a data'!$C$1-1),'4a data'!$B32) -> 0 | F33: =SUMIFS(INPUT!$R:$R,INPUT!$T:$T,VLOOKUP('4a data'!$C33,References!$B:$C,2,FALSE),Ad_Distribution,"Search",OFFSET(Categories,0,'4a data'!$C$1-1),'4a data'!$B32) -> 0 | G33: =SUMIFS(INPUT!$Q:$Q,INPUT!$T:$T,VLOOKUP('4a data'!$C33,References!$B:$C,2,FALSE),Ad_Distribution,"Search",OFFSET(Categories,0,'4a data'!$C$1-1),'4a data'!$B32) -> 0 | H33: =IFERROR(D33/E33,"") ->  | I33: =IF(H33="","",1-SUM(H33,J33)) ->  | J33: =IFERROR(G33/E33,"") -> 
A35: 12 | B35: =IF(ISERROR(VLOOKUP($A35,'4a'!$S$6:$T$50,2,FALSE)),0,VLOOKUP($A35,'4a'!$S$6:$T$50,2,FALSE)) -> 0 | C35: ='4a'!$D$4 -> Q4'10 | D35: =SUMIFS(Impressions,INPUT!$T:$T,VLOOKUP('4a data'!$C35,References!$B:$C,2,FALSE),Ad_Distribution,"Search",OFFSET(Categories,0,'4a data'!$C$1-1),'4a data'!$B35) -> 0 | E35: =SUMIFS(Potential,INPUT!$T:$T,VLOOKUP('4a data'!$C35,References!$B:$C,2,FALSE),Ad_Distribution,"Search",OFFSET(Categories,0,'4a data'!$C$1-1),'4a data'!$B35) -> 0 | F35: =SUMIFS(INPUT!$R:$R,INPUT!$T:$T,VLOOKUP('4a data'!$C35,References!$B:$C,2,FALSE),Ad_Distribution,"Search",OFFSET(Categories,0,'4a data'!$C$1-1),'4a data'!$B35) -> 0 | G35: =SUMIFS(INPUT!$Q:$Q,INPUT!$T:$T,VLOOKUP('4a data'!$C35,References!$B:$C,2,FALSE),Ad_Distribution,"Search",OFFSET(Categories,0,'4a data'!$C$1-1),'4a data'!$B35) -> 0 | H35: =IFERROR(D35/E35,"") ->  | I35: =IF(H35="","",1-SUM(H35,J35)) ->  | J35: =IFERROR(G35/E35,"") -> 
A36: 12 | C36: ='4a'!$F$4 -> Q3'11 | D36: =SUMIFS(Impressions,INPUT!$T:$T,VLOOKUP('4a data'!$C36,References!$B:$C,2,FALSE),Ad_Distribution,"Search",OFFSET(Categories,0,'4a data'!$C$1-1),'4a data'!$B35) -> 0 | E36: =SUMIFS(Potential,INPUT!$T:$T,VLOOKUP('4a data'!$C36,References!$B:$C,2,FALSE),Ad_Distribution,"Search",OFFSET(Categories,0,'4a data'!$C$1-1),'4a data'!$B35) -> 0 | F36: =SUMIFS(INPUT!$R:$R,INPUT!$T:$T,VLOOKUP('4a data'!$C36,References!$B:$C,2,FALSE),Ad_Distribution,"Search",OFFSET(Categories,0,'4a data'!$C$1-1),'4a data'!$B35) -> 0 | G36: =SUMIFS(INPUT!$Q:$Q,INPUT!$T:$T,VLOOKUP('4a data'!$C36,References!$B:$C,2,FALSE),Ad_Distribution,"Search",OFFSET(Categories,0,'4a data'!$C$1-1),'4a data'!$B35) -> 0 | H36: =IFERROR(D36/E36,"") ->  | I36: =IF(H36="","",1-SUM(H36,J36)) ->  | J36: =IFERROR(G36/E36,"") -> 
A38: 13 | B38: =IF(ISERROR(VLOOKUP($A38,'4a'!$S$6:$T$50,2,FALSE)),0,VLOOKUP($A38,'4a'!$S$6:$T$50,2,FALSE)) -> 0 | C38: ='4a'!$D$4 -> Q4'10 | D38: =SUMIFS(Impressions,INPUT!$T:$T,VLOOKUP('4a data'!$C38,References!$B:$C,2,FALSE),Ad_Distribution,"Search",OFFSET(Categories,0,'4a data'!$C$1-1),'4a data'!$B38) -> 0 | E38: =SUMIFS(Potential,INPUT!$T:$T,VLOOKUP('4a data'!$C38,References!$B:$C,2,FALSE),Ad_Distribution,"Search",OFFSET(Categories,0,'4a data'!$C$1-1),'4a data'!$B38) -> 0 | F38: =SUMIFS(INPUT!$R:$R,INPUT!$T:$T,VLOOKUP('4a data'!$C38,References!$B:$C,2,FALSE),Ad_Distribution,"Search",OFFSET(Categories,0,'4a data'!$C$1-1),'4a data'!$B38) -> 0 | G38: =SUMIFS(INPUT!$Q:$Q,INPUT!$T:$T,VLOOKUP('4a data'!$C38,References!$B:$C,2,FALSE),Ad_Distribution,"Search",OFFSET(Categories,0,'4a data'!$C$1-1),'4a data'!$B38) -> 0 | H38: =IFERROR(D38/E38,"") ->  | I38: =IF(H38="","",1-SUM(H38,J38)) ->  | J38: =IFERROR(G38/E38,"") -> 
A39: 13 | C39: ='4a'!$F$4 -> Q3'11 | D39: =SUMIFS(Impressions,INPUT!$T:$T,VLOOKUP('4a data'!$C39,References!$B:$C,2,FALSE),Ad_Distribution,"Search",OFFSET(Categories,0,'4a data'!$C$1-1),'4a data'!$B38) -> 0 | E39: =SUMIFS(Potential,INPUT!$T:$T,VLOOKUP('4a data'!$C39,References!$B:$C,2,FALSE),Ad_Distribution,"Search",OFFSET(Categories,0,'4a data'!$C$1-1),'4a data'!$B38) -> 0 | F39: =SUMIFS(INPUT!$R:$R,INPUT!$T:$T,VLOOKUP('4a data'!$C39,References!$B:$C,2,FALSE),Ad_Distribution,"Search",OFFSET(Categories,0,'4a data'!$C$1-1),'4a data'!$B38) -> 0 | G39: =SUMIFS(INPUT!$Q:$Q,INPUT!$T:$T,VLOOKUP('4a data'!$C39,References!$B:$C,2,FALSE),Ad_Distribution,"Search",OFFSET(Categories,0,'4a data'!$C$1-1),'4a data'!$B38) -> 0 | H39: =IFERROR(D39/E39,"") ->  | I39: =IF(H39="","",1-SUM(H39,J39)) ->  | J39: =IFERROR(G39/E39,"") -> 
A41: 14 | B41: =IF(ISERROR(VLOOKUP($A41,'4a'!$S$6:$T$50,2,FALSE)),0,VLOOKUP($A41,'4a'!$S$6:$T$50,2,FALSE)) -> 0 | C41: ='4a'!$D$4 -> Q4'10 | D41: =SUMIFS(Impressions,INPUT!$T:$T,VLOOKUP('4a data'!$C41,References!$B:$C,2,FALSE),Ad_Distribution,"Search",OFFSET(Categories,0,'4a data'!$C$1-1),'4a data'!$B41) -> 0 | E41: =SUMIFS(Potential,INPUT!$T:$T,VLOOKUP('4a data'!$C41,References!$B:$C,2,FALSE),Ad_Distribution,"Search",OFFSET(Categories,0,'4a data'!$C$1-1),'4a data'!$B41) -> 0 | F41: =SUMIFS(INPUT!$R:$R,INPUT!$T:$T,VLOOKUP('4a data'!$C41,References!$B:$C,2,FALSE),Ad_Distribution,"Search",OFFSET(Categories,0,'4a data'!$C$1-1),'4a data'!$B41) -> 0 | G41: =SUMIFS(INPUT!$Q:$Q,INPUT!$T:$T,VLOOKUP('4a data'!$C41,References!$B:$C,2,FALSE),Ad_Distribution,"Search",OFFSET(Categories,0,'4a data'!$C$1-1),'4a data'!$B41) -> 0 | H41: =IFERROR(D41/E41,"") ->  | I41: =IF(H41="","",1-SUM(H41,J41)) ->  | J41: =IFERROR(G41/E41,"") -> 
A42: 14 | C42: ='4a'!$F$4 -> Q3'11 | D42: =SUMIFS(Impressions,INPUT!$T:$T,VLOOKUP('4a data'!$C42,References!$B:$C,2,FALSE),Ad_Distribution,"Search",OFFSET(Categories,0,'4a data'!$C$1-1),'4a data'!$B41) -> 0 | E42: =SUMIFS(Potential,INPUT!$T:$T,VLOOKUP('4a data'!$C42,References!$B:$C,2,FALSE),Ad_Distribution,"Search",OFFSET(Categories,0,'4a data'!$C$1-1),'4a data'!$B41) -> 0 | F42: =SUMIFS(INPUT!$R:$R,INPUT!$T:$T,VLOOKUP('4a data'!$C42,References!$B:$C,2,FALSE),Ad_Distribution,"Search",OFFSET(Categories,0,'4a data'!$C$1-1),'4a data'!$B41) -> 0 | G42: =SUMIFS(INPUT!$Q:$Q,INPUT!$T:$T,VLOOKUP('4a data'!$C42,References!$B:$C,2,FALSE),Ad_Distribution,"Search",OFFSET(Categories,0,'4a data'!$C$1-1),'4a data'!$B41) -> 0 | H42: =IFERROR(D42/E42,"") ->  | I42: =IF(H42="","",1-SUM(H42,J42)) ->  | J42: =IFERROR(G42/E42,"") -> 
A44: 15 | B44: =IF(ISERROR(VLOOKUP($A44,'4a'!$S$6:$T$50,2,FALSE)),0,VLOOKUP($A44,'4a'!$S$6:$T$50,2,FALSE)) -> 0 | C44: ='4a'!$D$4 -> Q4'10 | D44: =SUMIFS(Impressions,INPUT!$T:$T,VLOOKUP('4a data'!$C44,References!$B:$C,2,FALSE),Ad_Distribution,"Search",OFFSET(Categories,0,'4a data'!$C$1-1),'4a data'!$B44) -> 0 | E44: =SUMIFS(Potential,INPUT!$T:$T,VLOOKUP('4a data'!$C44,References!$B:$C,2,FALSE),Ad_Distribution,"Search",OFFSET(Categories,0,'4a data'!$C$1-1),'4a data'!$B44) -> 0 | F44: =SUMIFS(INPUT!$R:$R,INPUT!$T:$T,VLOOKUP('4a data'!$C44,References!$B:$C,2,FALSE),Ad_Distribution,"Search",OFFSET(Categories,0,'4a data'!$C$1-1),'4a data'!$B44) -> 0 | G44: =SUMIFS(INPUT!$Q:$Q,INPUT!$T:$T,VLOOKUP('4a data'!$C44,References!$B:$C,2,FALSE),Ad_Distribution,"Search",OFFSET(Categories,0,'4a data'!$C$1-1),'4a data'!$B44) -> 0 | H44: =IFERROR(D44/E44,"") ->  | I44: =IF(H44="","",1-SUM(H44,J44)) ->  | J44: =IFERROR(G44/E44,"") -> 
A45: 15 | C45: ='4a'!$F$4 -> Q3'11 | D45: =SUMIFS(Impressions,INPUT!$T:$T,VLOOKUP('4a data'!$C45,References!$B:$C,2,FALSE),Ad_Distribution,"Search",OFFSET(Categories,0,'4a data'!$C$1-1),'4a data'!$B44) -> 0 | E45: =SUMIFS(Potential,INPUT!$T:$T,VLOOKUP('4a data'!$C45,References!$B:$C,2,FALSE),Ad_Distribution,"Search",OFFSET(Categories,0,'4a data'!$C$1-1),'4a data'!$B44) -> 0 | F45: =SUMIFS(INPUT!$R:$R,INPUT!$T:$T,VLOOKUP('4a data'!$C45,References!$B:$C,2,FALSE),Ad_Distribution,"Search",OFFSET(Categories,0,'4a data'!$C$1-1),'4a data'!$B44) -> 0 | G45: =SUMIFS(INPUT!$Q:$Q,INPUT!$T:$T,VLOOKUP('4a data'!$C45,References!$B:$C,2,FALSE),Ad_Distribution,"Search",OFFSET(Categories,0,'4a data'!$C$1-1),'4a data'!$B44) -> 0 | H45: =IFERROR(D45/E45,"") ->  | I45: =IF(H45="","",1-SUM(H45,J45)) ->  | J45: =IFERROR(G45/E45,"") -> 
A47: 16 | B47: =IF(ISERROR(VLOOKUP($A47,'4a'!$S$6:$T$50,2,FALSE)),0,VLOOKUP($A47,'4a'!$S$6:$T$50,2,FALSE)) -> 0 | C47: ='4a'!$D$4 -> Q4'10 | D47: =SUMIFS(Impressions,INPUT!$T:$T,VLOOKUP('4a data'!$C47,References!$B:$C,2,FALSE),Ad_Distribution,"Search",OFFSET(Categories,0,'4a data'!$C$1-1),'4a data'!$B47) -> 0 | E47: =SUMIFS(Potential,INPUT!$T:$T,VLOOKUP('4a data'!$C47,References!$B:$C,2,FALSE),Ad_Distribution,"Search",OFFSET(Categories,0,'4a data'!$C$1-1),'4a data'!$B47) -> 0 | F47: =SUMIFS(INPUT!$R:$R,INPUT!$T:$T,VLOOKUP('4a data'!$C47,References!$B:$C,2,FALSE),Ad_Distribution,"Search",OFFSET(Categories,0,'4a data'!$C$1-1),'4a data'!$B47) -> 0 | G47: =SUMIFS(INPUT!$Q:$Q,INPUT!$T:$T,VLOOKUP('4a data'!$C47,References!$B:$C,2,FALSE),Ad_Distribution,"Search",OFFSET(Categories,0,'4a data'!$C$1-1),'4a data'!$B47) -> 0 | H47: =IFERROR(D47/E47,"") ->  | I47: =IF(H47="","",1-SUM(H47,J47)) ->  | J47: =IFERROR(G47/E47,"") -> 
A48: 16 | C48: ='4a'!$F$4 -> Q3'11 | D48: =SUMIFS(Impressions,INPUT!$T:$T,VLOOKUP('4a data'!$C48,References!$B:$C,2,FALSE),Ad_Distribution,"Search",OFFSET(Categories,0,'4a data'!$C$1-1),'4a data'!$B47) -> 0 | E48: =SUMIFS(Potential,INPUT!$T:$T,VLOOKUP('4a data'!$C48,References!$B:$C,2,FALSE),Ad_Distribution,"Search",OFFSET(Categories,0,'4a data'!$C$1-1),'4a data'!$B47) -> 0 | F48: =SUMIFS(INPUT!$R:$R,INPUT!$T:$T,VLOOKUP('4a data'!$C48,References!$B:$C,2,FALSE),Ad_Distribution,"Search",OFFSET(Categories,0,'4a data'!$C$1-1),'4a data'!$B47) -> 0 | G48: =SUMIFS(INPUT!$Q:$Q,INPUT!$T:$T,VLOOKUP('4a data'!$C48,References!$B:$C,2,FALSE),Ad_Distribution,"Search",OFFSET(Categories,0,'4a data'!$C$1-1),'4a data'!$B47) -> 0 | H48: =IFERROR(D48/E48,"") ->  | I48: =IF(H48="","",1-SUM(H48,J48)) ->  | J48: =IFERROR(G48/E48,"") -> 
A50: 17 | B50: =IF(ISERROR(VLOOKUP($A50,'4'!$S$6:$T$50,2,FALSE)),0,VLOOKUP($A50,'4'!$S$6:$T$50,2,FALSE)) -> 0 | C50: ='4a'!$D$4 -> Q4'10 | D50: =SUMIFS(Impressions,INPUT!$T:$T,VLOOKUP('4a data'!$C50,References!$B:$C,2,FALSE),Ad_Distribution,"Search",OFFSET(Categories,0,'4a data'!$C$1-1),'4a data'!$B50) -> 0 | E50: =SUMIFS(Potential,INPUT!$T:$T,VLOOKUP('4a data'!$C50,References!$B:$C,2,FALSE),Ad_Distribution,"Search",OFFSET(Categories,0,'4a data'!$C$1-1),'4a data'!$B50) -> 0 | F50: =SUMIFS(INPUT!$R:$R,INPUT!$T:$T,VLOOKUP('4a data'!$C50,References!$B:$C,2,FALSE),Ad_Distribution,"Search",OFFSET(Categories,0,'4a data'!$C$1-1),'4a data'!$B50) -> 0 | G50: =SUMIFS(INPUT!$Q:$Q,INPUT!$T:$T,VLOOKUP('4a data'!$C50,References!$B:$C,2,FALSE),Ad_Distribution,"Search",OFFSET(Categories,0,'4a data'!$C$1-1),'4a data'!$B50) -> 0 | H50: =IFERROR(D50/E50,"") ->  | I50: =IF(H50="","",1-SUM(H50,J50)) ->  | J50: =IFERROR(G50/E50,"") -> 
A51: 17 | C51: ='4a'!$F$4 -> Q3'11 | D51: =SUMIFS(Impressions,INPUT!$T:$T,VLOOKUP('4a data'!$C51,References!$B:$C,2,FALSE),Ad_Distribution,"Search",OFFSET(Categories,0,'4a data'!$C$1-1),'4a data'!$B50) -> 0 | E51: =SUMIFS(Potential,INPUT!$T:$T,VLOOKUP('4a data'!$C51,References!$B:$C,2,FALSE),Ad_Distribution,"Search",OFFSET(Categories,0,'4a data'!$C$1-1),'4a data'!$B50) -> 0 | F51: =SUMIFS(INPUT!$R:$R,INPUT!$T:$T,VLOOKUP('4a data'!$C51,References!$B:$C,2,FALSE),Ad_Distribution,"Search",OFFSET(Categories,0,'4a data'!$C$1-1),'4a data'!$B50) -> 0 | G51: =SUMIFS(INPUT!$Q:$Q,INPUT!$T:$T,VLOOKUP('4a data'!$C51,References!$B:$C,2,FALSE),Ad_Distribution,"Search",OFFSET(Categories,0,'4a data'!$C$1-1),'4a data'!$B50) -> 0 | H51: =IFERROR(D51/E51,"") ->  | I51: =IF(H51="","",1-SUM(H51,J51)) ->  | J51: =IFERROR(G51/E51,"") -> 
A53: 18 | B53: =IF(ISERROR(VLOOKUP($A53,'4'!$S$6:$T$50,2,FALSE)),0,VLOOKUP($A53,'4'!$S$6:$T$50,2,FALSE)) -> 0 | C53: ='4a'!$D$4 -> Q4'10 | D53: =SUMIFS(Impressions,INPUT!$T:$T,VLOOKUP('4a data'!$C53,References!$B:$C,2,FALSE),Ad_Distribution,"Search",OFFSET(Categories,0,'4a data'!$C$1-1),'4a data'!$B53) -> 0 | E53: =SUMIFS(Potential,INPUT!$T:$T,VLOOKUP('4a data'!$C53,References!$B:$C,2,FALSE),Ad_Distribution,"Search",OFFSET(Categories,0,'4a data'!$C$1-1),'4a data'!$B53) -> 0 | F53: =SUMIFS(INPUT!$R:$R,INPUT!$T:$T,VLOOKUP('4a data'!$C53,References!$B:$C,2,FALSE),Ad_Distribution,"Search",OFFSET(Categories,0,'4a data'!$C$1-1),'4a data'!$B53) -> 0 | G53: =SUMIFS(INPUT!$Q:$Q,INPUT!$T:$T,VLOOKUP('4a data'!$C53,References!$B:$C,2,FALSE),Ad_Distribution,"Search",OFFSET(Categories,0,'4a data'!$C$1-1),'4a data'!$B53) -> 0 | H53: =IFERROR(D53/E53,"") ->  | I53: =IF(H53="","",1-SUM(H53,J53)) ->  | J53: =IFERROR(G53/E53,"") -> 
A54: 18 | C54: ='4a'!$F$4 -> Q3'11 | D54: =SUMIFS(Impressions,INPUT!$T:$T,VLOOKUP('4a data'!$C54,References!$B:$C,2,FALSE),Ad_Distribution,"Search",OFFSET(Categories,0,'4a data'!$C$1-1),'4a data'!$B53) -> 0 | E54: =SUMIFS(Potential,INPUT!$T:$T,VLOOKUP('4a data'!$C54,References!$B:$C,2,FALSE),Ad_Distribution,"Search",OFFSET(Categories,0,'4a data'!$C$1-1),'4a data'!$B53) -> 0 | F54: =SUMIFS(INPUT!$R:$R,INPUT!$T:$T,VLOOKUP('4a data'!$C54,References!$B:$C,2,FALSE),Ad_Distribution,"Search",OFFSET(Categories,0,'4a data'!$C$1-1),'4a data'!$B53) -> 0 | G54: =SUMIFS(INPUT!$Q:$Q,INPUT!$T:$T,VLOOKUP('4a data'!$C54,References!$B:$C,2,FALSE),Ad_Distribution,"Search",OFFSET(Categories,0,'4a data'!$C$1-1),'4a data'!$B53) -> 0 | H54: =IFERROR(D54/E54,"") ->  | I54: =IF(H54="","",1-SUM(H54,J54)) ->  | J54: =IFERROR(G54/E54,"") -> 
A56: 19 | B56: =IF(ISERROR(VLOOKUP($A56,'4'!$S$6:$T$50,2,FALSE)),0,VLOOKUP($A56,'4'!$S$6:$T$50,2,FALSE)) -> 0 | C56: ='4a'!$D$4 -> Q4'10 | D56: =SUMIFS(Impressions,INPUT!$T:$T,VLOOKUP('4a data'!$C56,References!$B:$C,2,FALSE),Ad_Distribution,"Search",OFFSET(Categories,0,'4a data'!$C$1-1),'4a data'!$B56) -> 0 | E56: =SUMIFS(Potential,INPUT!$T:$T,VLOOKUP('4a data'!$C56,References!$B:$C,2,FALSE),Ad_Distribution,"Search",OFFSET(Categories,0,'4a data'!$C$1-1),'4a data'!$B56) -> 0 | F56: =SUMIFS(INPUT!$R:$R,INPUT!$T:$T,VLOOKUP('4a data'!$C56,References!$B:$C,2,FALSE),Ad_Distribution,"Search",OFFSET(Categories,0,'4a data'!$C$1-1),'4a data'!$B56) -> 0 | G56: =SUMIFS(INPUT!$Q:$Q,INPUT!$T:$T,VLOOKUP('4a data'!$C56,References!$B:$C,2,FALSE),Ad_Distribution,"Search",OFFSET(Categories,0,'4a data'!$C$1-1),'4a data'!$B56) -> 0 | H56: =IFERROR(D56/E56,"") ->  | I56: =IF(H56="","",1-SUM(H56,J56)) ->  | J56: =IFERROR(G56/E56,"") -> 
A57: 19 | C57: ='4a'!$F$4 -> Q3'11 | D57: =SUMIFS(Impressions,INPUT!$T:$T,VLOOKUP('4a data'!$C57,References!$B:$C,2,FALSE),Ad_Distribution,"Search",OFFSET(Categories,0,'4a data'!$C$1-1),'4a data'!$B56) -> 0 | E57: =SUMIFS(Potential,INPUT!$T:$T,VLOOKUP('4a data'!$C57,References!$B:$C,2,FALSE),Ad_Distribution,"Search",OFFSET(Categories,0,'4a data'!$C$1-1),'4a data'!$B56) -> 0 | F57: =SUMIFS(INPUT!$R:$R,INPUT!$T:$T,VLOOKUP('4a data'!$C57,References!$B:$C,2,FALSE),Ad_Distribution,"Search",OFFSET(Categories,0,'4a data'!$C$1-1),'4a data'!$B56) -> 0 | G57: =SUMIFS(INPUT!$Q:$Q,INPUT!$T:$T,VLOOKUP('4a data'!$C57,References!$B:$C,2,FALSE),Ad_Distribution,"Search",OFFSET(Categories,0,'4a data'!$C$1-1),'4a data'!$B56) -> 0 | H57: =IFERROR(D57/E57,"") ->  | I57: =IF(H57="","",1-SUM(H57,J57)) ->  | J57: =IFERROR(G57/E57,"") -> 
A59: 20 | B59: =IF(ISERROR(VLOOKUP($A59,'4'!$S$6:$T$50,2,FALSE)),0,VLOOKUP($A59,'4'!$S$6:$T$50,2,FALSE)) -> 0 | C59: ='4a'!$D$4 -> Q4'10 | D59: =SUMIFS(Impressions,INPUT!$T:$T,VLOOKUP('4a data'!$C59,References!$B:$C,2,FALSE),Ad_Distribution,"Search",OFFSET(Categories,0,'4a data'!$C$1-1),'4a data'!$B59) -> 0 | E59: =SUMIFS(Potential,INPUT!$T:$T,VLOOKUP('4a data'!$C59,References!$B:$C,2,FALSE),Ad_Distribution,"Search",OFFSET(Categories,0,'4a data'!$C$1-1),'4a data'!$B59) -> 0 | F59: =SUMIFS(INPUT!$R:$R,INPUT!$T:$T,VLOOKUP('4a data'!$C59,References!$B:$C,2,FALSE),Ad_Distribution,"Search",OFFSET(Categories,0,'4a data'!$C$1-1),'4a data'!$B59) -> 0 | G59: =SUMIFS(INPUT!$Q:$Q,INPUT!$T:$T,VLOOKUP('4a data'!$C59,References!$B:$C,2,FALSE),Ad_Distribution,"Search",OFFSET(Categories,0,'4a data'!$C$1-1),'4a data'!$B59) -> 0 | H59: =IFERROR(D59/E59,"") ->  | I59: =IF(H59="","",1-SUM(H59,J59)) ->  | J59: =IFERROR(G59/E59,"") -> 
A60: 20 | C60: ='4a'!$F$4 -> Q3'11 | D60: =SUMIFS(Impressions,INPUT!$T:$T,VLOOKUP('4a data'!$C60,References!$B:$C,2,FALSE),Ad_Distribution,"Search",OFFSET(Categories,0,'4a data'!$C$1-1),'4a data'!$B59) -> 0 | E60: =SUMIFS(Potential,INPUT!$T:$T,VLOOKUP('4a data'!$C60,References!$B:$C,2,FALSE),Ad_Distribution,"Search",OFFSET(Categories,0,'4a data'!$C$1-1),'4a data'!$B59) -> 0 | F60: =SUMIFS(INPUT!$R:$R,INPUT!$T:$T,VLOOKUP('4a data'!$C60,References!$B:$C,2,FALSE),Ad_Distribution,"Search",OFFSET(Categories,0,'4a data'!$C$1-1),'4a data'!$B59) -> 0 | G60: =SUMIFS(INPUT!$Q:$Q,INPUT!$T:$T,VLOOKUP('4a data'!$C60,References!$B:$C,2,FALSE),Ad_Distribution,"Search",OFFSET(Categories,0,'4a data'!$C$1-1),'4a data'!$B59) -> 0 | H60: =IFERROR(D60/E60,"") ->  | I60: =IF(H60="","",1-SUM(H60,J60)) ->  | J60: =IFERROR(G60/E60,"") -> 
A62: 21 | B62: =IF(ISERROR(VLOOKUP($A62,'4a'!$S$6:$T$50,2,FALSE)),0,VLOOKUP($A62,'4a'!$S$6:$T$50,2,FALSE)) -> 0 | C62: ='4a'!$D$4 -> Q4'10 | D62: =SUMIFS(Impressions,INPUT!$T:$T,VLOOKUP('4a data'!$C62,References!$B:$C,2,FALSE),Ad_Distribution,"Search",OFFSET(Categories,0,'4a data'!$C$1-1),'4a data'!$B62) -> 0 | E62: =SUMIFS(Potential,INPUT!$T:$T,VLOOKUP('4a data'!$C62,References!$B:$C,2,FALSE),Ad_Distribution,"Search",OFFSET(Categories,0,'4a data'!$C$1-1),'4a data'!$B62) -> 0 | F62: =SUMIFS(INPUT!$R:$R,INPUT!$T:$T,VLOOKUP('4a data'!$C62,References!$B:$C,2,FALSE),Ad_Distribution,"Search",OFFSET(Categories,0,'4a data'!$C$1-1),'4a data'!$B62) -> 0 | G62: =SUMIFS(INPUT!$Q:$Q,INPUT!$T:$T,VLOOKUP('4a data'!$C62,References!$B:$C,2,FALSE),Ad_Distribution,"Search",OFFSET(Categories,0,'4a data'!$C$1-1),'4a data'!$B62) -> 0 | H62: =IFERROR(D62/E62,"") ->  | I62: =IF(H62="","",1-SUM(H62,J62)) ->  | J62: =IFERROR(G62/E62,"") -> 
A63: 21 | C63: ='4a'!$F$4 -> Q3'11 | D63: =SUMIFS(Impressions,INPUT!$T:$T,VLOOKUP('4a data'!$C63,References!$B:$C,2,FALSE),Ad_Distribution,"Search",OFFSET(Categories,0,'4a data'!$C$1-1),'4a data'!$B62) -> 0 | E63: =SUMIFS(Potential,INPUT!$T:$T,VLOOKUP('4a data'!$C63,References!$B:$C,2,FALSE),Ad_Distribution,"Search",OFFSET(Categories,0,'4a data'!$C$1-1),'4a data'!$B62) -> 0 | F63: =SUMIFS(INPUT!$R:$R,INPUT!$T:$T,VLOOKUP('4a data'!$C63,References!$B:$C,2,FALSE),Ad_Distribution,"Search",OFFSET(Categories,0,'4a data'!$C$1-1),'4a data'!$B62) -> 0 | G63: =SUMIFS(INPUT!$Q:$Q,INPUT!$T:$T,VLOOKUP('4a data'!$C63,References!$B:$C,2,FALSE),Ad_Distribution,"Search",OFFSET(Categories,0,'4a data'!$C$1-1),'4a data'!$B62) -> 0 | H63: =IFERROR(D63/E63,"") ->  | I63: =IF(H63="","",1-SUM(H63,J63)) ->  | J63: =IFERROR(G63/E63,"") -> 
A65: 22 | B65: =IF(ISERROR(VLOOKUP($A65,'4a'!$S$6:$T$50,2,FALSE)),0,VLOOKUP($A65,'4a'!$S$6:$T$50,2,FALSE)) -> 0 | C65: ='4a'!$D$4 -> Q4'10 | D65: =SUMIFS(Impressions,INPUT!$T:$T,VLOOKUP('4a data'!$C65,References!$B:$C,2,FALSE),Ad_Distribution,"Search",OFFSET(Categories,0,'4a data'!$C$1-1),'4a data'!$B65) -> 0 | E65: =SUMIFS(Potential,INPUT!$T:$T,VLOOKUP('4a data'!$C65,References!$B:$C,2,FALSE),Ad_Distribution,"Search",OFFSET(Categories,0,'4a data'!$C$1-1),'4a data'!$B65) -> 0 | F65: =SUMIFS(INPUT!$R:$R,INPUT!$T:$T,VLOOKUP('4a data'!$C65,References!$B:$C,2,FALSE),Ad_Distribution,"Search",OFFSET(Categories,0,'4a data'!$C$1-1),'4a data'!$B65) -> 0 | G65: =SUMIFS(INPUT!$Q:$Q,INPUT!$T:$T,VLOOKUP('4a data'!$C65,References!$B:$C,2,FALSE),Ad_Distribution,"Search",OFFSET(Categories,0,'4a data'!$C$1-1),'4a data'!$B65) -> 0 | H65: =IFERROR(D65/E65,"") ->  | I65: =IF(H65="","",1-SUM(H65,J65)) ->  | J65: =IFERROR(G65/E65,"") -> 
A66: 22 | C66: ='4a'!$F$4 -> Q3'11 | D66: =SUMIFS(Impressions,INPUT!$T:$T,VLOOKUP('4a data'!$C66,References!$B:$C,2,FALSE),Ad_Distribution,"Search",OFFSET(Categories,0,'4a data'!$C$1-1),'4a data'!$B65) -> 0 | E66: =SUMIFS(Potential,INPUT!$T:$T,VLOOKUP('4a data'!$C66,References!$B:$C,2,FALSE),Ad_Distribution,"Search",OFFSET(Categories,0,'4a data'!$C$1-1),'4a data'!$B65) -> 0 | F66: =SUMIFS(INPUT!$R:$R,INPUT!$T:$T,VLOOKUP('4a data'!$C66,References!$B:$C,2,FALSE),Ad_Distribution,"Search",OFFSET(Categories,0,'4a data'!$C$1-1),'4a data'!$B65) -> 0 | G66: =SUMIFS(INPUT!$Q:$Q,INPUT!$T:$T,VLOOKUP('4a data'!$C66,References!$B:$C,2,FALSE),Ad_Distribution,"Search",OFFSET(Categories,0,'4a data'!$C$1-1),'4a data'!$B65) -> 0 | H66: =IFERROR(D66/E66,"") ->  | I66: =IF(H66="","",1-SUM(H66,J66)) ->  | J66: =IFERROR(G66/E66,"") -> 
A68: 23 | B68: =IF(ISERROR(VLOOKUP($A68,'4a'!$S$6:$T$50,2,FALSE)),0,VLOOKUP($A68,'4a'!$S$6:$T$50,2,FALSE)) -> 0 | C68: ='4a'!$D$4 -> Q4'10 | D68: =SUMIFS(Impressions,INPUT!$T:$T,VLOOKUP('4a data'!$C68,References!$B:$C,2,FALSE),Ad_Distribution,"Search",OFFSET(Categories,0,'4a data'!$C$1-1),'4a data'!$B68) -> 0 | E68: =SUMIFS(Potential,INPUT!$T:$T,VLOOKUP('4a data'!$C68,References!$B:$C,2,FALSE),Ad_Distribution,"Search",OFFSET(Categories,0,'4a data'!$C$1-1),'4a data'!$B68) -> 0 | F68: =SUMIFS(INPUT!$R:$R,INPUT!$T:$T,VLOOKUP('4a data'!$C68,References!$B:$C,2,FALSE),Ad_Distribution,"Search",OFFSET(Categories,0,'4a data'!$C$1-1),'4a data'!$B68) -> 0 | G68: =SUMIFS(INPUT!$Q:$Q,INPUT!$T:$T,VLOOKUP('4a data'!$C68,References!$B:$C,2,FALSE),Ad_Distribution,"Search",OFFSET(Categories,0,'4a data'!$C$1-1),'4a data'!$B68) -> 0 | H68: =IFERROR(D68/E68,"") ->  | I68: =IF(H68="","",1-SUM(H68,J68)) ->  | J68: =IFERROR(G68/E68,"") -> 
A69: 23 | C69: ='4a'!$F$4 -> Q3'11 | D69: =SUMIFS(Impressions,INPUT!$T:$T,VLOOKUP('4a data'!$C69,References!$B:$C,2,FALSE),Ad_Distribution,"Search",OFFSET(Categories,0,'4a data'!$C$1-1),'4a data'!$B68) -> 0 | E69: =SUMIFS(Potential,INPUT!$T:$T,VLOOKUP('4a data'!$C69,References!$B:$C,2,FALSE),Ad_Distribution,"Search",OFFSET(Categories,0,'4a data'!$C$1-1),'4a data'!$B68) -> 0 | F69: =SUMIFS(INPUT!$R:$R,INPUT!$T:$T,VLOOKUP('4a data'!$C69,References!$B:$C,2,FALSE),Ad_Distribution,"Search",OFFSET(Categories,0,'4a data'!$C$1-1),'4a data'!$B68) -> 0 | G69: =SUMIFS(INPUT!$Q:$Q,INPUT!$T:$T,VLOOKUP('4a data'!$C69,References!$B:$C,2,FALSE),Ad_Distribution,"Search",OFFSET(Categories,0,'4a data'!$C$1-1),'4a data'!$B68) -> 0 | H69: =IFERROR(D69/E69,"") ->  | I69: =IF(H69="","",1-SUM(H69,J69)) ->  | J69: =IFERROR(G69/E69,"") -> 
A71: 24 | B71: =IF(ISERROR(VLOOKUP($A71,'4a'!$S$6:$T$50,2,FALSE)),0,VLOOKUP($A71,'4a'!$S$6:$T$50,2,FALSE)) -> 0 | C71: ='4a'!$D$4 -> Q4'10 | D71: =SUMIFS(Impressions,INPUT!$T:$T,VLOOKUP('4a data'!$C71,References!$B:$C,2,FALSE),Ad_Distribution,"Search",OFFSET(Categories,0,'4a data'!$C$1-1),'4a data'!$B71) -> 0 | E71: =SUMIFS(Potential,INPUT!$T:$T,VLOOKUP('4a data'!$C71,References!$B:$C,2,FALSE),Ad_Distribution,"Search",OFFSET(Categories,0,'4a data'!$C$1-1),'4a data'!$B71) -> 0 | F71: =SUMIFS(INPUT!$R:$R,INPUT!$T:$T,VLOOKUP('4a data'!$C71,References!$B:$C,2,FALSE),Ad_Distribution,"Search",OFFSET(Categories,0,'4a data'!$C$1-1),'4a data'!$B71) -> 0 | G71: =SUMIFS(INPUT!$Q:$Q,INPUT!$T:$T,VLOOKUP('4a data'!$C71,References!$B:$C,2,FALSE),Ad_Distribution,"Search",OFFSET(Categories,0,'4a data'!$C$1-1),'4a data'!$B71) -> 0 | H71: =IFERROR(D71/E71,"") ->  | I71: =IF(H71="","",1-SUM(H71,J71)) ->  | J71: =IFERROR(G71/E71,"") -> 
A72: 24 | C72: ='4a'!$F$4 -> Q3'11 | D72: =SUMIFS(Impressions,INPUT!$T:$T,VLOOKUP('4a data'!$C72,References!$B:$C,2,FALSE),Ad_Distribution,"Search",OFFSET(Categories,0,'4a data'!$C$1-1),'4a data'!$B71) -> 0 | E72: =SUMIFS(Potential,INPUT!$T:$T,VLOOKUP('4a data'!$C72,References!$B:$C,2,FALSE),Ad_Distribution,"Search",OFFSET(Categories,0,'4a data'!$C$1-1),'4a data'!$B71) -> 0 | F72: =SUMIFS(INPUT!$R:$R,INPUT!$T:$T,VLOOKUP('4a data'!$C72,References!$B:$C,2,FALSE),Ad_Distribution,"Search",OFFSET(Categories,0,'4a data'!$C$1-1),'4a data'!$B71) -> 0 | G72: =SUMIFS(INPUT!$Q:$Q,INPUT!$T:$T,VLOOKUP('4a data'!$C72,References!$B:$C,2,FALSE),Ad_Distribution,"Search",OFFSET(Categories,0,'4a data'!$C$1-1),'4a data'!$B71) -> 0 | H72: =IFERROR(D72/E72,"") ->  | I72: =IF(H72="","",1-SUM(H72,J72)) ->  | J72: =IFERROR(G72/E72,"") -> 
A74: 25 | B74: =IF(ISERROR(VLOOKUP($A74,'4a'!$S$6:$T$50,2,FALSE)),0,VLOOKUP($A74,'4a'!$S$6:$T$50,2,FALSE)) -> 0 | C74: ='4a'!$D$4 -> Q4'10 | D74: =SUMIFS(Impressions,INPUT!$T:$T,VLOOKUP('4a data'!$C74,References!$B:$C,2,FALSE),Ad_Distribution,"Search",OFFSET(Categories,0,'4a data'!$C$1-1),'4a data'!$B74) -> 0 | E74: =SUMIFS(Potential,INPUT!$T:$T,VLOOKUP('4a data'!$C74,References!$B:$C,2,FALSE),Ad_Distribution,"Search",OFFSET(Categories,0,'4a data'!$C$1-1),'4a data'!$B74) -> 0 | F74: =SUMIFS(INPUT!$R:$R,INPUT!$T:$T,VLOOKUP('4a data'!$C74,References!$B:$C,2,FALSE),Ad_Distribution,"Search",OFFSET(Categories,0,'4a data'!$C$1-1),'4a data'!$B74) -> 0 | G74: =SUMIFS(INPUT!$Q:$Q,INPUT!$T:$T,VLOOKUP('4a data'!$C74,References!$B:$C,2,FALSE),Ad_Distribution,"Search",OFFSET(Categories,0,'4a data'!$C$1-1),'4a data'!$B74) -> 0 | H74: =IFERROR(D74/E74,"") ->  | I74: =IF(H74="","",1-SUM(H74,J74)) ->  | J74: =IFERROR(G74/E74,"") -> 
A75: 25 | C75: ='4a'!$F$4 -> Q3'11 | D75: =SUMIFS(Impressions,INPUT!$T:$T,VLOOKUP('4a data'!$C75,References!$B:$C,2,FALSE),Ad_Distribution,"Search",OFFSET(Categories,0,'4a data'!$C$1-1),'4a data'!$B74) -> 0 | E75: =SUMIFS(Potential,INPUT!$T:$T,VLOOKUP('4a data'!$C75,References!$B:$C,2,FALSE),Ad_Distribution,"Search",OFFSET(Categories,0,'4a data'!$C$1-1),'4a data'!$B74) -> 0 | F75: =SUMIFS(INPUT!$R:$R,INPUT!$T:$T,VLOOKUP('4a data'!$C75,References!$B:$C,2,FALSE),Ad_Distribution,"Search",OFFSET(Categories,0,'4a data'!$C$1-1),'4a data'!$B74) -> 0 | G75: =SUMIFS(INPUT!$Q:$Q,INPUT!$T:$T,VLOOKUP('4a data'!$C75,References!$B:$C,2,FALSE),Ad_Distribution,"Search",OFFSET(Categories,0,'4a data'!$C$1-1),'4a data'!$B74) -> 0 | H75: =IFERROR(D75/E75,"") ->  | I75: =IF(H75="","",1-SUM(H75,J75)) ->  | J75: =IFERROR(G75/E75,"") -> 
A77: 26 | B77: =IF(ISERROR(VLOOKUP($A77,'4a'!$S$6:$T$50,2,FALSE)),0,VLOOKUP($A77,'4a'!$S$6:$T$50,2,FALSE)) -> 0 | C77: ='4a'!$D$4 -> Q4'10 | D77: =SUMIFS(Impressions,INPUT!$T:$T,VLOOKUP('4a data'!$C77,References!$B:$C,2,FALSE),Ad_Distribution,"Search",OFFSET(Categories,0,'4a data'!$C$1-1),'4a data'!$B77) -> 0 | E77: =SUMIFS(Potential,INPUT!$T:$T,VLOOKUP('4a data'!$C77,References!$B:$C,2,FALSE),Ad_Distribution,"Search",OFFSET(Categories,0,'4a data'!$C$1-1),'4a data'!$B77) -> 0 | F77: =SUMIFS(INPUT!$R:$R,INPUT!$T:$T,VLOOKUP('4a data'!$C77,References!$B:$C,2,FALSE),Ad_Distribution,"Search",OFFSET(Categories,0,'4a data'!$C$1-1),'4a data'!$B77) -> 0 | G77: =SUMIFS(INPUT!$Q:$Q,INPUT!$T:$T,VLOOKUP('4a data'!$C77,References!$B:$C,2,FALSE),Ad_Distribution,"Search",OFFSET(Categories,0,'4a data'!$C$1-1),'4a data'!$B77) -> 0 | H77: =IFERROR(D77/E77,"") ->  | I77: =IF(H77="","",1-SUM(H77,J77)) ->  | J77: =IFERROR(G77/E77,"") -> 
A78: 26 | C78: ='4a'!$F$4 -> Q3'11 | D78: =SUMIFS(Impressions,INPUT!$T:$T,VLOOKUP('4a data'!$C78,References!$B:$C,2,FALSE),Ad_Distribution,"Search",OFFSET(Categories,0,'4a data'!$C$1-1),'4a data'!$B77) -> 0 | E78: =SUMIFS(Potential,INPUT!$T:$T,VLOOKUP('4a data'!$C78,References!$B:$C,2,FALSE),Ad_Distribution,"Search",OFFSET(Categories,0,'4a data'!$C$1-1),'4a data'!$B77) -> 0 | F78: =SUMIFS(INPUT!$R:$R,INPUT!$T:$T,VLOOKUP('4a data'!$C78,References!$B:$C,2,FALSE),Ad_Distribution,"Search",OFFSET(Categories,0,'4a data'!$C$1-1),'4a data'!$B77) -> 0 | G78: =SUMIFS(INPUT!$Q:$Q,INPUT!$T:$T,VLOOKUP('4a data'!$C78,References!$B:$C,2,FALSE),Ad_Distribution,"Search",OFFSET(Categories,0,'4a data'!$C$1-1),'4a data'!$B77) -> 0 | H78: =IFERROR(D78/E78,"") ->  | I78: =IF(H78="","",1-SUM(H78,J78)) ->  | J78: =IFERROR(G78/E78,"") -> 
A80: 27 | B80: =IF(ISERROR(VLOOKUP($A80,'4'!$S$6:$T$50,2,FALSE)),0,VLOOKUP($A80,'4'!$S$6:$T$50,2,FALSE)) -> 0 | C80: ='4a'!$D$4 -> Q4'10 | D80: =SUMIFS(Impressions,INPUT!$T:$T,VLOOKUP('4a data'!$C80,References!$B:$C,2,FALSE),Ad_Distribution,"Search",OFFSET(Categories,0,'4a data'!$C$1-1),'4a data'!$B80) -> 0 | E80: =SUMIFS(Potential,INPUT!$T:$T,VLOOKUP('4a data'!$C80,References!$B:$C,2,FALSE),Ad_Distribution,"Search",OFFSET(Categories,0,'4a data'!$C$1-1),'4a data'!$B80) -> 0 | F80: =SUMIFS(INPUT!$R:$R,INPUT!$T:$T,VLOOKUP('4a data'!$C80,References!$B:$C,2,FALSE),Ad_Distribution,"Search",OFFSET(Categories,0,'4a data'!$C$1-1),'4a data'!$B80) -> 0 | G80: =SUMIFS(INPUT!$Q:$Q,INPUT!$T:$T,VLOOKUP('4a data'!$C80,References!$B:$C,2,FALSE),Ad_Distribution,"Search",OFFSET(Categories,0,'4a data'!$C$1-1),'4a data'!$B80) -> 0 | H80: =IFERROR(D80/E80,"") ->  | I80: =IF(H80="","",1-SUM(H80,J80)) ->  | J80: =IFERROR(G80/E80,"") -> 
A81: 27 | C81: ='4a'!$F$4 -> Q3'11 | D81: =SUMIFS(Impressions,INPUT!$T:$T,VLOOKUP('4a data'!$C81,References!$B:$C,2,FALSE),Ad_Distribution,"Search",OFFSET(Categories,0,'4a data'!$C$1-1),'4a data'!$B80) -> 0 | E81: =SUMIFS(Potential,INPUT!$T:$T,VLOOKUP('4a data'!$C81,References!$B:$C,2,FALSE),Ad_Distribution,"Search",OFFSET(Categories,0,'4a data'!$C$1-1),'4a data'!$B80) -> 0 | F81: =SUMIFS(INPUT!$R:$R,INPUT!$T:$T,VLOOKUP('4a data'!$C81,References!$B:$C,2,FALSE),Ad_Distribution,"Search",OFFSET(Categories,0,'4a data'!$C$1-1),'4a data'!$B80) -> 0 | G81: =SUMIFS(INPUT!$Q:$Q,INPUT!$T:$T,VLOOKUP('4a data'!$C81,References!$B:$C,2,FALSE),Ad_Distribution,"Search",OFFSET(Categories,0,'4a data'!$C$1-1),'4a data'!$B80) -> 0 | H81: =IFERROR(D81/E81,"") ->  | I81: =IF(H81="","",1-SUM(H81,J81)) ->  | J81: =IFERROR(G81/E81,"") -> 
A83: 28 | B83: =IF(ISERROR(VLOOKUP($A83,'4'!$S$6:$T$50,2,FALSE)),0,VLOOKUP($A83,'4'!$S$6:$T$50,2,FALSE)) -> 0 | C83: ='4a'!$D$4 -> Q4'10 | D83: =SUMIFS(Impressions,INPUT!$T:$T,VLOOKUP('4a data'!$C83,References!$B:$C,2,FALSE),Ad_Distribution,"Search",OFFSET(Categories,0,'4a data'!$C$1-1),'4a data'!$B83) -> 0 | E83: =SUMIFS(Potential,INPUT!$T:$T,VLOOKUP('4a data'!$C83,References!$B:$C,2,FALSE),Ad_Distribution,"Search",OFFSET(Categories,0,'4a data'!$C$1-1),'4a data'!$B83) -> 0 | F83: =SUMIFS(INPUT!$R:$R,INPUT!$T:$T,VLOOKUP('4a data'!$C83,References!$B:$C,2,FALSE),Ad_Distribution,"Search",OFFSET(Categories,0,'4a data'!$C$1-1),'4a data'!$B83) -> 0 | G83: =SUMIFS(INPUT!$Q:$Q,INPUT!$T:$T,VLOOKUP('4a data'!$C83,References!$B:$C,2,FALSE),Ad_Distribution,"Search",OFFSET(Categories,0,'4a data'!$C$1-1),'4a data'!$B83) -> 0 | H83: =IFERROR(D83/E83,"") ->  | I83: =IF(H83="","",1-SUM(H83,J83)) ->  | J83: =IFERROR(G83/E83,"") -> 
A84: 28 | C84: ='4a'!$F$4 -> Q3'11 | D84: =SUMIFS(Impressions,INPUT!$T:$T,VLOOKUP('4a data'!$C84,References!$B:$C,2,FALSE),Ad_Distribution,"Search",OFFSET(Categories,0,'4a data'!$C$1-1),'4a data'!$B83) -> 0 | E84: =SUMIFS(Potential,INPUT!$T:$T,VLOOKUP('4a data'!$C84,References!$B:$C,2,FALSE),Ad_Distribution,"Search",OFFSET(Categories,0,'4a data'!$C$1-1),'4a data'!$B83) -> 0 | F84: =SUMIFS(INPUT!$R:$R,INPUT!$T:$T,VLOOKUP('4a data'!$C84,References!$B:$C,2,FALSE),Ad_Distribution,"Search",OFFSET(Categories,0,'4a data'!$C$1-1),'4a data'!$B83) -> 0 | G84: =SUMIFS(INPUT!$Q:$Q,INPUT!$T:$T,VLOOKUP('4a data'!$C84,References!$B:$C,2,FALSE),Ad_Distribution,"Search",OFFSET(Categories,0,'4a data'!$C$1-1),'4a data'!$B83) -> 0 | H84: =IFERROR(D84/E84,"") ->  | I84: =IF(H84="","",1-SUM(H84,J84)) ->  | J84: =IFERROR(G84/E84,"") -> 
A86: 29 | B86: =IF(ISERROR(VLOOKUP($A86,'4'!$S$6:$T$50,2,FALSE)),0,VLOOKUP($A86,'4'!$S$6:$T$50,2,FALSE)) -> 0 | C86: ='4a'!$D$4 -> Q4'10 | D86: =SUMIFS(Impressions,INPUT!$T:$T,VLOOKUP('4a data'!$C86,References!$B:$C,2,FALSE),Ad_Distribution,"Search",OFFSET(Categories,0,'4a data'!$C$1-1),'4a data'!$B86) -> 0 | E86: =SUMIFS(Potential,INPUT!$T:$T,VLOOKUP('4a data'!$C86,References!$B:$C,2,FALSE),Ad_Distribution,"Search",OFFSET(Categories,0,'4a data'!$C$1-1),'4a data'!$B86) -> 0 | F86: =SUMIFS(INPUT!$R:$R,INPUT!$T:$T,VLOOKUP('4a data'!$C86,References!$B:$C,2,FALSE),Ad_Distribution,"Search",OFFSET(Categories,0,'4a data'!$C$1-1),'4a data'!$B86) -> 0 | G86: =SUMIFS(INPUT!$Q:$Q,INPUT!$T:$T,VLOOKUP('4a data'!$C86,References!$B:$C,2,FALSE),Ad_Distribution,"Search",OFFSET(Categories,0,'4a data'!$C$1-1),'4a data'!$B86) -> 0 | H86: =IFERROR(D86/E86,"") ->  | I86: =IF(H86="","",1-SUM(H86,J86)) ->  | J86: =IFERROR(G86/E86,"") -> 
A87: 29 | C87: ='4a'!$F$4 -> Q3'11 | D87: =SUMIFS(Impressions,INPUT!$T:$T,VLOOKUP('4a data'!$C87,References!$B:$C,2,FALSE),Ad_Distribution,"Search",OFFSET(Categories,0,'4a data'!$C$1-1),'4a data'!$B86) -> 0 | E87: =SUMIFS(Potential,INPUT!$T:$T,VLOOKUP('4a data'!$C87,References!$B:$C,2,FALSE),Ad_Distribution,"Search",OFFSET(Categories,0,'4a data'!$C$1-1),'4a data'!$B86) -> 0 | F87: =SUMIFS(INPUT!$R:$R,INPUT!$T:$T,VLOOKUP('4a data'!$C87,References!$B:$C,2,FALSE),Ad_Distribution,"Search",OFFSET(Categories,0,'4a data'!$C$1-1),'4a data'!$B86) -> 0 | G87: =SUMIFS(INPUT!$Q:$Q,INPUT!$T:$T,VLOOKUP('4a data'!$C87,References!$B:$C,2,FALSE),Ad_Distribution,"Search",OFFSET(Categories,0,'4a data'!$C$1-1),'4a data'!$B86) -> 0 | H87: =IFERROR(D87/E87,"") ->  | I87: =IF(H87="","",1-SUM(H87,J87)) ->  | J87: =IFERROR(G87/E87,"") -> 
A89: 30 | B89: =IF(ISERROR(VLOOKUP($A89,'4a'!$S$6:$T$50,2,FALSE)),0,VLOOKUP($A89,'4a'!$S$6:$T$50,2,FALSE)) -> 0 | C89: ='4a'!$D$4 -> Q4'10 | D89: =SUMIFS(Impressions,INPUT!$T:$T,VLOOKUP('4a data'!$C89,References!$B:$C,2,FALSE),Ad_Distribution,"Search",OFFSET(Categories,0,'4a data'!$C$1-1),'4a data'!$B89) -> 0 | E89: =SUMIFS(Potential,INPUT!$T:$T,VLOOKUP('4a data'!$C89,References!$B:$C,2,FALSE),Ad_Distribution,"Search",OFFSET(Categories,0,'4a data'!$C$1-1),'4a data'!$B89) -> 0 | F89: =SUMIFS(INPUT!$R:$R,INPUT!$T:$T,VLOOKUP('4a data'!$C89,References!$B:$C,2,FALSE),Ad_Distribution,"Search",OFFSET(Categories,0,'4a data'!$C$1-1),'4a data'!$B89) -> 0 | G89: =SUMIFS(INPUT!$Q:$Q,INPUT!$T:$T,VLOOKUP('4a data'!$C89,References!$B:$C,2,FALSE),Ad_Distribution,"Search",OFFSET(Categories,0,'4a data'!$C$1-1),'4a data'!$B89) -> 0 | H89: =IFERROR(D89/E89,"") ->  | I89: =IF(H89="","",1-SUM(H89,J89)) ->  | J89: =IFERROR(G89/E89,"") -> 
A90: 30 | C90: ='4a'!$F$4 -> Q3'11 | D90: =SUMIFS(Impressions,INPUT!$T:$T,VLOOKUP('4a data'!$C90,References!$B:$C,2,FALSE),Ad_Distribution,"Search",OFFSET(Categories,0,'4a data'!$C$1-1),'4a data'!$B89) -> 0 | E90: =SUMIFS(Potential,INPUT!$T:$T,VLOOKUP('4a data'!$C90,References!$B:$C,2,FALSE),Ad_Distribution,"Search",OFFSET(Categories,0,'4a data'!$C$1-1),'4a data'!$B89) -> 0 | F90: =SUMIFS(INPUT!$R:$R,INPUT!$T:$T,VLOOKUP('4a data'!$C90,References!$B:$C,2,FALSE),Ad_Distribution,"Search",OFFSET(Categories,0,'4a data'!$C$1-1),'4a data'!$B89) -> 0 | G90: =SUMIFS(INPUT!$Q:$Q,INPUT!$T:$T,VLOOKUP('4a data'!$C90,References!$B:$C,2,FALSE),Ad_Distribution,"Search",OFFSET(Categories,0,'4a data'!$C$1-1),'4a data'!$B89) -> 0 | H90: =IFERROR(D90/E90,"") ->  | I90: =IF(H90="","",1-SUM(H90,J90)) ->  | J90: =IFERROR(G90/E90,"") -> 
A92: 31 | B92: =IF(ISERROR(VLOOKUP($A92,'4a'!$S$6:$T$50,2,FALSE)),0,VLOOKUP($A92,'4a'!$S$6:$T$50,2,FALSE)) -> 0 | C92: ='4a'!$D$4 -> Q4'10 | D92: =SUMIFS(Impressions,INPUT!$T:$T,VLOOKUP('4a data'!$C92,References!$B:$C,2,FALSE),Ad_Distribution,"Search",OFFSET(Categories,0,'4a data'!$C$1-1),'4a data'!$B92) -> 0 | E92: =SUMIFS(Potential,INPUT!$T:$T,VLOOKUP('4a data'!$C92,References!$B:$C,2,FALSE),Ad_Distribution,"Search",OFFSET(Categories,0,'4a data'!$C$1-1),'4a data'!$B92) -> 0 | F92: =SUMIFS(INPUT!$R:$R,INPUT!$T:$T,VLOOKUP('4a data'!$C92,References!$B:$C,2,FALSE),Ad_Distribution,"Search",OFFSET(Categories,0,'4a data'!$C$1-1),'4a data'!$B92) -> 0 | G92: =SUMIFS(INPUT!$Q:$Q,INPUT!$T:$T,VLOOKUP('4a data'!$C92,References!$B:$C,2,FALSE),Ad_Distribution,"Search",OFFSET(Categories,0,'4a data'!$C$1-1),'4a data'!$B92) -> 0 | H92: =IFERROR(D92/E92,"") ->  | I92: =IF(H92="","",1-SUM(H92,J92)) ->  | J92: =IFERROR(G92/E92,"") -> 
A93: 31 | C93: ='4a'!$F$4 -> Q3'11 | D93: =SUMIFS(Impressions,INPUT!$T:$T,VLOOKUP('4a data'!$C93,References!$B:$C,2,FALSE),Ad_Distribution,"Search",OFFSET(Categories,0,'4a data'!$C$1-1),'4a data'!$B92) -> 0 | E93: =SUMIFS(Potential,INPUT!$T:$T,VLOOKUP('4a data'!$C93,References!$B:$C,2,FALSE),Ad_Distribution,"Search",OFFSET(Categories,0,'4a data'!$C$1-1),'4a data'!$B92) -> 0 | F93: =SUMIFS(INPUT!$R:$R,INPUT!$T:$T,VLOOKUP('4a data'!$C93,References!$B:$C,2,FALSE),Ad_Distribution,"Search",OFFSET(Categories,0,'4a data'!$C$1-1),'4a data'!$B92) -> 0 | G93: =SUMIFS(INPUT!$Q:$Q,INPUT!$T:$T,VLOOKUP('4a data'!$C93,References!$B:$C,2,FALSE),Ad_Distribution,"Search",OFFSET(Categories,0,'4a data'!$C$1-1),'4a data'!$B92) -> 0 | H93: =IFERROR(D93/E93,"") ->  | I93: =IF(H93="","",1-SUM(H93,J93)) ->  | J93: =IFERROR(G93/E93,"") -> 
A95: 32 | B95: =IF(ISERROR(VLOOKUP($A95,'4a'!$S$6:$T$50,2,FALSE)),0,VLOOKUP($A95,'4a'!$S$6:$T$50,2,FALSE)) -> 0 | C95: ='4a'!$D$4 -> Q4'10 | D95: =SUMIFS(Impressions,INPUT!$T:$T,VLOOKUP('4a data'!$C95,References!$B:$C,2,FALSE),Ad_Distribution,"Search",OFFSET(Categories,0,'4a data'!$C$1-1),'4a data'!$B95) -> 0 | E95: =SUMIFS(Potential,INPUT!$T:$T,VLOOKUP('4a data'!$C95,References!$B:$C,2,FALSE),Ad_Distribution,"Search",OFFSET(Categories,0,'4a data'!$C$1-1),'4a data'!$B95) -> 0 | F95: =SUMIFS(INPUT!$R:$R,INPUT!$T:$T,VLOOKUP('4a data'!$C95,References!$B:$C,2,FALSE),Ad_Distribution,"Search",OFFSET(Categories,0,'4a data'!$C$1-1),'4a data'!$B95) -> 0 | G95: =SUMIFS(INPUT!$Q:$Q,INPUT!$T:$T,VLOOKUP('4a data'!$C95,References!$B:$C,2,FALSE),Ad_Distribution,"Search",OFFSET(Categories,0,'4a data'!$C$1-1),'4a data'!$B95) -> 0 | H95: =IFERROR(D95/E95,"") ->  | I95: =IF(H95="","",1-SUM(H95,J95)) ->  | J95: =IFERROR(G95/E95,"") -> 
A96: 32 | C96: ='4a'!$F$4 -> Q3'11 | D96: =SUMIFS(Impressions,INPUT!$T:$T,VLOOKUP('4a data'!$C96,References!$B:$C,2,FALSE),Ad_Distribution,"Search",OFFSET(Categories,0,'4a data'!$C$1-1),'4a data'!$B95) -> 0 | E96: =SUMIFS(Potential,INPUT!$T:$T,VLOOKUP('4a data'!$C96,References!$B:$C,2,FALSE),Ad_Distribution,"Search",OFFSET(Categories,0,'4a data'!$C$1-1),'4a data'!$B95) -> 0 | F96: =SUMIFS(INPUT!$R:$R,INPUT!$T:$T,VLOOKUP('4a data'!$C96,References!$B:$C,2,FALSE),Ad_Distribution,"Search",OFFSET(Categories,0,'4a data'!$C$1-1),'4a data'!$B95) -> 0 | G96: =SUMIFS(INPUT!$Q:$Q,INPUT!$T:$T,VLOOKUP('4a data'!$C96,References!$B:$C,2,FALSE),Ad_Distribution,"Search",OFFSET(Categories,0,'4a data'!$C$1-1),'4a data'!$B95) -> 0 | H96: =IFERROR(D96/E96,"") ->  | I96: =IF(H96="","",1-SUM(H96,J96)) ->  | J96: =IFERROR(G96/E96,"") -> 
A98: 33 | B98: =IF(ISERROR(VLOOKUP($A98,'4a'!$S$6:$T$50,2,FALSE)),0,VLOOKUP($A98,'4a'!$S$6:$T$50,2,FALSE)) -> 0 | C98: ='4a'!$D$4 -> Q4'10 | D98: =SUMIFS(Impressions,INPUT!$T:$T,VLOOKUP('4a data'!$C98,References!$B:$C,2,FALSE),Ad_Distribution,"Search",OFFSET(Categories,0,'4a data'!$C$1-1),'4a data'!$B98) -> 0 | E98: =SUMIFS(Potential,INPUT!$T:$T,VLOOKUP('4a data'!$C98,References!$B:$C,2,FALSE),Ad_Distribution,"Search",OFFSET(Categories,0,'4a data'!$C$1-1),'4a data'!$B98) -> 0 | F98: =SUMIFS(INPUT!$R:$R,INPUT!$T:$T,VLOOKUP('4a data'!$C98,References!$B:$C,2,FALSE),Ad_Distribution,"Search",OFFSET(Categories,0,'4a data'!$C$1-1),'4a data'!$B98) -> 0 | G98: =SUMIFS(INPUT!$Q:$Q,INPUT!$T:$T,VLOOKUP('4a data'!$C98,References!$B:$C,2,FALSE),Ad_Distribution,"Search",OFFSET(Categories,0,'4a data'!$C$1-1),'4a data'!$B98) -> 0 | H98: =IFERROR(D98/E98,"") ->  | I98: =IF(H98="","",1-SUM(H98,J98)) ->  | J98: =IFERROR(G98/E98,"") -> 
A99: 33 | C99: ='4a'!$F$4 -> Q3'11 | D99: =SUMIFS(Impressions,INPUT!$T:$T,VLOOKUP('4a data'!$C99,References!$B:$C,2,FALSE),Ad_Distribution,"Search",OFFSET(Categories,0,'4a data'!$C$1-1),'4a data'!$B98) -> 0 | E99: =SUMIFS(Potential,INPUT!$T:$T,VLOOKUP('4a data'!$C99,References!$B:$C,2,FALSE),Ad_Distribution,"Search",OFFSET(Categories,0,'4a data'!$C$1-1),'4a data'!$B98) -> 0 | F99: =SUMIFS(INPUT!$R:$R,INPUT!$T:$T,VLOOKUP('4a data'!$C99,References!$B:$C,2,FALSE),Ad_Distribution,"Search",OFFSET(Categories,0,'4a data'!$C$1-1),'4a data'!$B98) -> 0 | G99: =SUMIFS(INPUT!$Q:$Q,INPUT!$T:$T,VLOOKUP('4a data'!$C99,References!$B:$C,2,FALSE),Ad_Distribution,"Search",OFFSET(Categories,0,'4a data'!$C$1-1),'4a data'!$B98) -> 0 | H99: =IFERROR(D99/E99,"") ->  | I99: =IF(H99="","",1-SUM(H99,J99)) ->  | J99: =IFERROR(G99/E99,"") -> 
A101: 34 | B101: =IF(ISERROR(VLOOKUP($A101,'4a'!$S$6:$T$50,2,FALSE)),0,VLOOKUP($A101,'4a'!$S$6:$T$50,2,FALSE)) -> 0 | C101: ='4a'!$D$4 -> Q4'10 | D101: =SUMIFS(Impressions,INPUT!$T:$T,VLOOKUP('4a data'!$C101,References!$B:$C,2,FALSE),Ad_Distribution,"Search",OFFSET(Categories,0,'4a data'!$C$1-1),'4a data'!$B101) -> 0 | E101: =SUMIFS(Potential,INPUT!$T:$T,VLOOKUP('4a data'!$C101,References!$B:$C,2,FALSE),Ad_Distribution,"Search",OFFSET(Categories,0,'4a data'!$C$1-1),'4a data'!$B101) -> 0 | F101: =SUMIFS(INPUT!$R:$R,INPUT!$T:$T,VLOOKUP('4a data'!$C101,References!$B:$C,2,FALSE),Ad_Distribution,"Search",OFFSET(Categories,0,'4a data'!$C$1-1),'4a data'!$B101) -> 0 | G101: =SUMIFS(INPUT!$Q:$Q,INPUT!$T:$T,VLOOKUP('4a data'!$C101,References!$B:$C,2,FALSE),Ad_Distribution,"Search",OFFSET(Categories,0,'4a data'!$C$1-1),'4a data'!$B101) -> 0 | H101: =IFERROR(D101/E101,"") ->  | I101: =IF(H101="","",1-SUM(H101,J101)) ->  | J101: =IFERROR(G101/E101,"") -> 
A102: 34 | C102: ='4a'!$F$4 -> Q3'11 | D102: =SUMIFS(Impressions,INPUT!$T:$T,VLOOKUP('4a data'!$C102,References!$B:$C,2,FALSE),Ad_Distribution,"Search",OFFSET(Categories,0,'4a data'!$C$1-1),'4a data'!$B101) -> 0 | E102: =SUMIFS(Potential,INPUT!$T:$T,VLOOKUP('4a data'!$C102,References!$B:$C,2,FALSE),Ad_Distribution,"Search",OFFSET(Categories,0,'4a data'!$C$1-1),'4a data'!$B101) -> 0 | F102: =SUMIFS(INPUT!$R:$R,INPUT!$T:$T,VLOOKUP('4a data'!$C102,References!$B:$C,2,FALSE),Ad_Distribution,"Search",OFFSET(Categories,0,'4a data'!$C$1-1),'4a data'!$B101) -> 0 | G102: =SUMIFS(INPUT!$Q:$Q,INPUT!$T:$T,VLOOKUP('4a data'!$C102,References!$B:$C,2,FALSE),Ad_Distribution,"Search",OFFSET(Categories,0,'4a data'!$C$1-1),'4a data'!$B101) -> 0 | H102: =IFERROR(D102/E102,"") ->  | I102: =IF(H102="","",1-SUM(H102,J102)) ->  | J102: =IFERROR(G102/E102,"") -> 
A104: 35 | B104: =IF(ISERROR(VLOOKUP($A104,'4a'!$S$6:$T$50,2,FALSE)),0,VLOOKUP($A104,'4a'!$S$6:$T$50,2,FALSE)) -> 0 | C104: ='4a'!$D$4 -> Q4'10 | D104: =SUMIFS(Impressions,INPUT!$T:$T,VLOOKUP('4a data'!$C104,References!$B:$C,2,FALSE),Ad_Distribution,"Search",OFFSET(Categories,0,'4a data'!$C$1-1),'4a data'!$B104) -> 0 | E104: =SUMIFS(Potential,INPUT!$T:$T,VLOOKUP('4a data'!$C104,References!$B:$C,2,FALSE),Ad_Distribution,"Search",OFFSET(Categories,0,'4a data'!$C$1-1),'4a data'!$B104) -> 0 | F104: =SUMIFS(INPUT!$R:$R,INPUT!$T:$T,VLOOKUP('4a data'!$C104,References!$B:$C,2,FALSE),Ad_Distribution,"Search",OFFSET(Categories,0,'4a data'!$C$1-1),'4a data'!$B104) -> 0 | G104: =SUMIFS(INPUT!$Q:$Q,INPUT!$T:$T,VLOOKUP('4a data'!$C104,References!$B:$C,2,FALSE),Ad_Distribution,"Search",OFFSET(Categories,0,'4a data'!$C$1-1),'4a data'!$B104) -> 0 | H104: =IFERROR(D104/E104,"") ->  | I104: =IF(H104="","",1-SUM(H104,J104)) ->  | J104: =IFERROR(G104/E104,"") -> 
A105: 35 | C105: ='4a'!$F$4 -> Q3'11 | D105: =SUMIFS(Impressions,INPUT!$T:$T,VLOOKUP('4a data'!$C105,References!$B:$C,2,FALSE),Ad_Distribution,"Search",OFFSET(Categories,0,'4a data'!$C$1-1),'4a data'!$B104) -> 0 | E105: =SUMIFS(Potential,INPUT!$T:$T,VLOOKUP('4a data'!$C105,References!$B:$C,2,FALSE),Ad_Distribution,"Search",OFFSET(Categories,0,'4a data'!$C$1-1),'4a data'!$B104) -> 0 | F105: =SUMIFS(INPUT!$R:$R,INPUT!$T:$T,VLOOKUP('4a data'!$C105,References!$B:$C,2,FALSE),Ad_Distribution,"Search",OFFSET(Categories,0,'4a data'!$C$1-1),'4a data'!$B104) -> 0 | G105: =SUMIFS(INPUT!$Q:$Q,INPUT!$T:$T,VLOOKUP('4a data'!$C105,References!$B:$C,2,FALSE),Ad_Distribution,"Search",OFFSET(Categories,0,'4a data'!$C$1-1),'4a data'!$B104) -> 0 | H105: =IFERROR(D105/E105,"") ->  | I105: =IF(H105="","",1-SUM(H105,J105)) ->  | J105: =IFERROR(G105/E105,"") -> 
A107: 36 | B107: =IF(ISERROR(VLOOKUP($A107,'4'!$S$6:$T$50,2,FALSE)),0,VLOOKUP($A107,'4'!$S$6:$T$50,2,FALSE)) -> 0 | C107: ='4a'!$D$4 -> Q4'10 | D107: =SUMIFS(Impressions,INPUT!$T:$T,VLOOKUP('4a data'!$C107,References!$B:$C,2,FALSE),Ad_Distribution,"Search",OFFSET(Categories,0,'4a data'!$C$1-1),'4a data'!$B107) -> 0 | E107: =SUMIFS(Potential,INPUT!$T:$T,VLOOKUP('4a data'!$C107,References!$B:$C,2,FALSE),Ad_Distribution,"Search",OFFSET(Categories,0,'4a data'!$C$1-1),'4a data'!$B107) -> 0 | F107: =SUMIFS(INPUT!$R:$R,INPUT!$T:$T,VLOOKUP('4a data'!$C107,References!$B:$C,2,FALSE),Ad_Distribution,"Search",OFFSET(Categories,0,'4a data'!$C$1-1),'4a data'!$B107) -> 0 | G107: =SUMIFS(INPUT!$Q:$Q,INPUT!$T:$T,VLOOKUP('4a data'!$C107,References!$B:$C,2,FALSE),Ad_Distribution,"Search",OFFSET(Categories,0,'4a data'!$C$1-1),'4a data'!$B107) -> 0 | H107: =IFERROR(D107/E107,"") ->  | I107: =IF(H107="","",1-SUM(H107,J107)) ->  | J107: =IFERROR(G107/E107,"") -> 
A108: 36 | C108: ='4a'!$F$4 -> Q3'11 | D108: =SUMIFS(Impressions,INPUT!$T:$T,VLOOKUP('4a data'!$C108,References!$B:$C,2,FALSE),Ad_Distribution,"Search",OFFSET(Categories,0,'4a data'!$C$1-1),'4a data'!$B107) -> 0 | E108: =SUMIFS(Potential,INPUT!$T:$T,VLOOKUP('4a data'!$C108,References!$B:$C,2,FALSE),Ad_Distribution,"Search",OFFSET(Categories,0,'4a data'!$C$1-1),'4a data'!$B107) -> 0 | F108: =SUMIFS(INPUT!$R:$R,INPUT!$T:$T,VLOOKUP('4a data'!$C108,References!$B:$C,2,FALSE),Ad_Distribution,"Search",OFFSET(Categories,0,'4a data'!$C$1-1),'4a data'!$B107) -> 0 | G108: =SUMIFS(INPUT!$Q:$Q,INPUT!$T:$T,VLOOKUP('4a data'!$C108,References!$B:$C,2,FALSE),Ad_Distribution,"Search",OFFSET(Categories,0,'4a data'!$C$1-1),'4a data'!$B107) -> 0 | H108: =IFERROR(D108/E108,"") ->  | I108: =IF(H108="","",1-SUM(H108,J108)) ->  | J108: =IFERROR(G108/E108,"") -> 
A110: 37 | B110: =IF(ISERROR(VLOOKUP($A110,'4'!$S$6:$T$50,2,FALSE)),0,VLOOKUP($A110,'4'!$S$6:$T$50,2,FALSE)) -> 0 | C110: ='4a'!$D$4 -> Q4'10 | D110: =SUMIFS(Impressions,INPUT!$T:$T,VLOOKUP('4a data'!$C110,References!$B:$C,2,FALSE),Ad_Distribution,"Search",OFFSET(Categories,0,'4a data'!$C$1-1),'4a data'!$B110) -> 0 | E110: =SUMIFS(Potential,INPUT!$T:$T,VLOOKUP('4a data'!$C110,References!$B:$C,2,FALSE),Ad_Distribution,"Search",OFFSET(Categories,0,'4a data'!$C$1-1),'4a data'!$B110) -> 0 | F110: =SUMIFS(INPUT!$R:$R,INPUT!$T:$T,VLOOKUP('4a data'!$C110,References!$B:$C,2,FALSE),Ad_Distribution,"Search",OFFSET(Categories,0,'4a data'!$C$1-1),'4a data'!$B110) -> 0 | G110: =SUMIFS(INPUT!$Q:$Q,INPUT!$T:$T,VLOOKUP('4a data'!$C110,References!$B:$C,2,FALSE),Ad_Distribution,"Search",OFFSET(Categories,0,'4a data'!$C$1-1),'4a data'!$B110) -> 0 | H110: =IFERROR(D110/E110,"") ->  | I110: =IF(H110="","",1-SUM(H110,J110)) ->  | J110: =IFERROR(G110/E110,"") -> 
A111: 37 | C111: ='4a'!$F$4 -> Q3'11 | D111: =SUMIFS(Impressions,INPUT!$T:$T,VLOOKUP('4a data'!$C111,References!$B:$C,2,FALSE),Ad_Distribution,"Search",OFFSET(Categories,0,'4a data'!$C$1-1),'4a data'!$B110) -> 0 | E111: =SUMIFS(Potential,INPUT!$T:$T,VLOOKUP('4a data'!$C111,References!$B:$C,2,FALSE),Ad_Distribution,"Search",OFFSET(Categories,0,'4a data'!$C$1-1),'4a data'!$B110) -> 0 | F111: =SUMIFS(INPUT!$R:$R,INPUT!$T:$T,VLOOKUP('4a data'!$C111,References!$B:$C,2,FALSE),Ad_Distribution,"Search",OFFSET(Categories,0,'4a data'!$C$1-1),'4a data'!$B110) -> 0 | G111: =SUMIFS(INPUT!$Q:$Q,INPUT!$T:$T,VLOOKUP('4a data'!$C111,References!$B:$C,2,FALSE),Ad_Distribution,"Search",OFFSET(Categories,0,'4a data'!$C$1-1),'4a data'!$B110) -> 0 | H111: =IFERROR(D111/E111,"") ->  | I111: =IF(H111="","",1-SUM(H111,J111)) ->  | J111: =IFERROR(G111/E111,"") -> 
A113: 38 | B113: =IF(ISERROR(VLOOKUP($A113,'4'!$S$6:$T$50,2,FALSE)),0,VLOOKUP($A113,'4'!$S$6:$T$50,2,FALSE)) -> 0 | C113: ='4a'!$D$4 -> Q4'10 | D113: =SUMIFS(Impressions,INPUT!$T:$T,VLOOKUP('4a data'!$C113,References!$B:$C,2,FALSE),Ad_Distribution,"Search",OFFSET(Categories,0,'4a data'!$C$1-1),'4a data'!$B113) -> 0 | E113: =SUMIFS(Potential,INPUT!$T:$T,VLOOKUP('4a data'!$C113,References!$B:$C,2,FALSE),Ad_Distribution,"Search",OFFSET(Categories,0,'4a data'!$C$1-1),'4a data'!$B113) -> 0 | F113: =SUMIFS(INPUT!$R:$R,INPUT!$T:$T,VLOOKUP('4a data'!$C113,References!$B:$C,2,FALSE),Ad_Distribution,"Search",OFFSET(Categories,0,'4a data'!$C$1-1),'4a data'!$B113) -> 0 | G113: =SUMIFS(INPUT!$Q:$Q,INPUT!$T:$T,VLOOKUP('4a data'!$C113,References!$B:$C,2,FALSE),Ad_Distribution,"Search",OFFSET(Categories,0,'4a data'!$C$1-1),'4a data'!$B113) -> 0 | H113: =IFERROR(D113/E113,"") ->  | I113: =IF(H113="","",1-SUM(H113,J113)) ->  | J113: =IFERROR(G113/E113,"") -> 
A114: 38 | C114: ='4a'!$F$4 -> Q3'11 | D114: =SUMIFS(Impressions,INPUT!$T:$T,VLOOKUP('4a data'!$C114,References!$B:$C,2,FALSE),Ad_Distribution,"Search",OFFSET(Categories,0,'4a data'!$C$1-1),'4a data'!$B113) -> 0 | E114: =SUMIFS(Potential,INPUT!$T:$T,VLOOKUP('4a data'!$C114,References!$B:$C,2,FALSE),Ad_Distribution,"Search",OFFSET(Categories,0,'4a data'!$C$1-1),'4a data'!$B113) -> 0 | F114: =SUMIFS(INPUT!$R:$R,INPUT!$T:$T,VLOOKUP('4a data'!$C114,References!$B:$C,2,FALSE),Ad_Distribution,"Search",OFFSET(Categories,0,'4a data'!$C$1-1),'4a data'!$B113) -> 0 | G114: =SUMIFS(INPUT!$Q:$Q,INPUT!$T:$T,VLOOKUP('4a data'!$C114,References!$B:$C,2,FALSE),Ad_Distribution,"Search",OFFSET(Categories,0,'4a data'!$C$1-1),'4a data'!$B113) -> 0 | H114: =IFERROR(D114/E114,"") ->  | I114: =IF(H114="","",1-SUM(H114,J114)) ->  | J114: =IFERROR(G114/E114,"") -> 
A116: 39 | B116: =IF(ISERROR(VLOOKUP($A116,'4'!$S$6:$T$50,2,FALSE)),0,VLOOKUP($A116,'4'!$S$6:$T$50,2,FALSE)) -> 0 | C116: ='4a'!$D$4 -> Q4'10 | D116: =SUMIFS(Impressions,INPUT!$T:$T,VLOOKUP('4a data'!$C116,References!$B:$C,2,FALSE),Ad_Distribution,"Search",OFFSET(Categories,0,'4a data'!$C$1-1),'4a data'!$B116) -> 0 | E116: =SUMIFS(Potential,INPUT!$T:$T,VLOOKUP('4a data'!$C116,References!$B:$C,2,FALSE),Ad_Distribution,"Search",OFFSET(Categories,0,'4a data'!$C$1-1),'4a data'!$B116) -> 0 | F116: =SUMIFS(INPUT!$R:$R,INPUT!$T:$T,VLOOKUP('4a data'!$C116,References!$B:$C,2,FALSE),Ad_Distribution,"Search",OFFSET(Categories,0,'4a data'!$C$1-1),'4a data'!$B116) -> 0 | G116: =SUMIFS(INPUT!$Q:$Q,INPUT!$T:$T,VLOOKUP('4a data'!$C116,References!$B:$C,2,FALSE),Ad_Distribution,"Search",OFFSET(Categories,0,'4a data'!$C$1-1),'4a data'!$B116) -> 0 | H116: =IFERROR(D116/E116,"") ->  | I116: =IF(H116="","",1-SUM(H116,J116)) ->  | J116: =IFERROR(G116/E116,"") -> 
A117: 39 | C117: ='4a'!$F$4 -> Q3'11 | D117: =SUMIFS(Impressions,INPUT!$T:$T,VLOOKUP('4a data'!$C117,References!$B:$C,2,FALSE),Ad_Distribution,"Search",OFFSET(Categories,0,'4a data'!$C$1-1),'4a data'!$B116) -> 0 | E117: =SUMIFS(Potential,INPUT!$T:$T,VLOOKUP('4a data'!$C117,References!$B:$C,2,FALSE),Ad_Distribution,"Search",OFFSET(Categories,0,'4a data'!$C$1-1),'4a data'!$B116) -> 0 | F117: =SUMIFS(INPUT!$R:$R,INPUT!$T:$T,VLOOKUP('4a data'!$C117,References!$B:$C,2,FALSE),Ad_Distribution,"Search",OFFSET(Categories,0,'4a data'!$C$1-1),'4a data'!$B116) -> 0 | G117: =SUMIFS(INPUT!$Q:$Q,INPUT!$T:$T,VLOOKUP('4a data'!$C117,References!$B:$C,2,FALSE),Ad_Distribution,"Search",OFFSET(Categories,0,'4a data'!$C$1-1),'4a data'!$B116) -> 0 | H117: =IFERROR(D117/E117,"") ->  | I117: =IF(H117="","",1-SUM(H117,J117)) ->  | J117: =IFERROR(G117/E117,"") -> 
A119: 40 | B119: =IF(ISERROR(VLOOKUP($A119,'4a'!$S$6:$T$50,2,FALSE)),0,VLOOKUP($A119,'4a'!$S$6:$T$50,2,FALSE)) -> 0 | C119: ='4a'!$D$4 -> Q4'10 | D119: =SUMIFS(Impressions,INPUT!$T:$T,VLOOKUP('4a data'!$C119,References!$B:$C,2,FALSE),Ad_Distribution,"Search",OFFSET(Categories,0,'4a data'!$C$1-1),'4a data'!$B119) -> 0 | E119: =SUMIFS(Potential,INPUT!$T:$T,VLOOKUP('4a data'!$C119,References!$B:$C,2,FALSE),Ad_Distribution,"Search",OFFSET(Categories,0,'4a data'!$C$1-1),'4a data'!$B119) -> 0 | F119: =SUMIFS(INPUT!$R:$R,INPUT!$T:$T,VLOOKUP('4a data'!$C119,References!$B:$C,2,FALSE),Ad_Distribution,"Search",OFFSET(Categories,0,'4a data'!$C$1-1),'4a data'!$B119) -> 0 | G119: =SUMIFS(INPUT!$Q:$Q,INPUT!$T:$T,VLOOKUP('4a data'!$C119,References!$B:$C,2,FALSE),Ad_Distribution,"Search",OFFSET(Categories,0,'4a data'!$C$1-1),'4a data'!$B119) -> 0 | H119: =IFERROR(D119/E119,"") ->  | I119: =IF(H119="","",1-SUM(H119,J119)) ->  | J119: =IFERROR(G119/E119,"") -> 
A120: 40 | C120: ='4a'!$F$4 -> Q3'11 | D120: =SUMIFS(Impressions,INPUT!$T:$T,VLOOKUP('4a data'!$C120,References!$B:$C,2,FALSE),Ad_Distribution,"Search",OFFSET(Categories,0,'4a data'!$C$1-1),'4a data'!$B119) -> 0 | E120: =SUMIFS(Potential,INPUT!$T:$T,VLOOKUP('4a data'!$C120,References!$B:$C,2,FALSE),Ad_Distribution,"Search",OFFSET(Categories,0,'4a data'!$C$1-1),'4a data'!$B119) -> 0 | F120: =SUMIFS(INPUT!$R:$R,INPUT!$T:$T,VLOOKUP('4a data'!$C120,References!$B:$C,2,FALSE),Ad_Distribution,"Search",OFFSET(Categories,0,'4a data'!$C$1-1),'4a data'!$B119) -> 0 | G120: =SUMIFS(INPUT!$Q:$Q,INPUT!$T:$T,VLOOKUP('4a data'!$C120,References!$B:$C,2,FALSE),Ad_Distribution,"Search",OFFSET(Categories,0,'4a data'!$C$1-1),'4a data'!$B119) -> 0 | H120: =IFERROR(D120/E120,"") ->  | I120: =IF(H120="","",1-SUM(H120,J120)) ->  | J120: =IFERROR(G120/E120,"") -> 
A122: 41 | B122: =IF(ISERROR(VLOOKUP($A122,'4a'!$S$6:$T$50,2,FALSE)),0,VLOOKUP($A122,'4a'!$S$6:$T$50,2,FALSE)) -> 0 | C122: ='4a'!$D$4 -> Q4'10 | D122: =SUMIFS(Impressions,INPUT!$T:$T,VLOOKUP('4a data'!$C122,References!$B:$C,2,FALSE),Ad_Distribution,"Search",OFFSET(Categories,0,'4a data'!$C$1-1),'4a data'!$B122) -> 0 | E122: =SUMIFS(Potential,INPUT!$T:$T,VLOOKUP('4a data'!$C122,References!$B:$C,2,FALSE),Ad_Distribution,"Search",OFFSET(Categories,0,'4a data'!$C$1-1),'4a data'!$B122) -> 0 | F122: =SUMIFS(INPUT!$R:$R,INPUT!$T:$T,VLOOKUP('4a data'!$C122,References!$B:$C,2,FALSE),Ad_Distribution,"Search",OFFSET(Categories,0,'4a data'!$C$1-1),'4a data'!$B122) -> 0 | G122: =SUMIFS(INPUT!$Q:$Q,INPUT!$T:$T,VLOOKUP('4a data'!$C122,References!$B:$C,2,FALSE),Ad_Distribution,"Search",OFFSET(Categories,0,'4a data'!$C$1-1),'4a data'!$B122) -> 0 | H122: =IFERROR(D122/E122,"") ->  | I122: =IF(H122="","",1-SUM(H122,J122)) ->  | J122: =IFERROR(G122/E122,"") -> 
A123: 41 | C123: ='4a'!$F$4 -> Q3'11 | D123: =SUMIFS(Impressions,INPUT!$T:$T,VLOOKUP('4a data'!$C123,References!$B:$C,2,FALSE),Ad_Distribution,"Search",OFFSET(Categories,0,'4a data'!$C$1-1),'4a data'!$B122) -> 0 | E123: =SUMIFS(Potential,INPUT!$T:$T,VLOOKUP('4a data'!$C123,References!$B:$C,2,FALSE),Ad_Distribution,"Search",OFFSET(Categories,0,'4a data'!$C$1-1),'4a data'!$B122) -> 0 | F123: =SUMIFS(INPUT!$R:$R,INPUT!$T:$T,VLOOKUP('4a data'!$C123,References!$B:$C,2,FALSE),Ad_Distribution,"Search",OFFSET(Categories,0,'4a data'!$C$1-1),'4a data'!$B122) -> 0 | G123: =SUMIFS(INPUT!$Q:$Q,INPUT!$T:$T,VLOOKUP('4a data'!$C123,References!$B:$C,2,FALSE),Ad_Distribution,"Search",OFFSET(Categories,0,'4a data'!$C$1-1),'4a data'!$B122) -> 0 | H123: =IFERROR(D123/E123,"") ->  | I123: =IF(H123="","",1-SUM(H123,J123)) ->  | J123: =IFERROR(G123/E123,"") -> 
A125: 42 | B125: =IF(ISERROR(VLOOKUP($A125,'4a'!$S$6:$T$50,2,FALSE)),0,VLOOKUP($A125,'4a'!$S$6:$T$50,2,FALSE)) -> 0 | C125: ='4a'!$D$4 -> Q4'10 | D125: =SUMIFS(Impressions,INPUT!$T:$T,VLOOKUP('4a data'!$C125,References!$B:$C,2,FALSE),Ad_Distribution,"Search",OFFSET(Categories,0,'4a data'!$C$1-1),'4a data'!$B125) -> 0 | E125: =SUMIFS(Potential,INPUT!$T:$T,VLOOKUP('4a data'!$C125,References!$B:$C,2,FALSE),Ad_Distribution,"Search",OFFSET(Categories,0,'4a data'!$C$1-1),'4a data'!$B125) -> 0 | F125: =SUMIFS(INPUT!$R:$R,INPUT!$T:$T,VLOOKUP('4a data'!$C125,References!$B:$C,2,FALSE),Ad_Distribution,"Search",OFFSET(Categories,0,'4a data'!$C$1-1),'4a data'!$B125) -> 0 | G125: =SUMIFS(INPUT!$Q:$Q,INPUT!$T:$T,VLOOKUP('4a data'!$C125,References!$B:$C,2,FALSE),Ad_Distribution,"Search",OFFSET(Categories,0,'4a data'!$C$1-1),'4a data'!$B125) -> 0 | H125: =IFERROR(D125/E125,"") ->  | I125: =IF(H125="","",1-SUM(H125,J125)) ->  | J125: =IFERROR(G125/E125,"") -> 
A126: 42 | C126: ='4a'!$F$4 -> Q3'11 | D126: =SUMIFS(Impressions,INPUT!$T:$T,VLOOKUP('4a data'!$C126,References!$B:$C,2,FALSE),Ad_Distribution,"Search",OFFSET(Categories,0,'4a data'!$C$1-1),'4a data'!$B125) -> 0 | E126: =SUMIFS(Potential,INPUT!$T:$T,VLOOKUP('4a data'!$C126,References!$B:$C,2,FALSE),Ad_Distribution,"Search",OFFSET(Categories,0,'4a data'!$C$1-1),'4a data'!$B125) -> 0 | F126: =SUMIFS(INPUT!$R:$R,INPUT!$T:$T,VLOOKUP('4a data'!$C126,References!$B:$C,2,FALSE),Ad_Distribution,"Search",OFFSET(Categories,0,'4a data'!$C$1-1),'4a data'!$B125) -> 0 | G126: =SUMIFS(INPUT!$Q:$Q,INPUT!$T:$T,VLOOKUP('4a data'!$C126,References!$B:$C,2,FALSE),Ad_Distribution,"Search",OFFSET(Categories,0,'4a data'!$C$1-1),'4a data'!$B125) -> 0 | H126: =IFERROR(D126/E126,"") ->  | I126: =IF(H126="","",1-SUM(H126,J126)) ->  | J126: =IFERROR(G126/E126,"") -> 
A128: 43 | B128: =IF(ISERROR(VLOOKUP($A128,'4a'!$S$6:$T$50,2,FALSE)),0,VLOOKUP($A128,'4a'!$S$6:$T$50,2,FALSE)) -> 0 | C128: ='4a'!$D$4 -> Q4'10 | D128: =SUMIFS(Impressions,INPUT!$T:$T,VLOOKUP('4a data'!$C128,References!$B:$C,2,FALSE),Ad_Distribution,"Search",OFFSET(Categories,0,'4a data'!$C$1-1),'4a data'!$B128) -> 0 | E128: =SUMIFS(Potential,INPUT!$T:$T,VLOOKUP('4a data'!$C128,References!$B:$C,2,FALSE),Ad_Distribution,"Search",OFFSET(Categories,0,'4a data'!$C$1-1),'4a data'!$B128) -> 0 | F128: =SUMIFS(INPUT!$R:$R,INPUT!$T:$T,VLOOKUP('4a data'!$C128,References!$B:$C,2,FALSE),Ad_Distribution,"Search",OFFSET(Categories,0,'4a data'!$C$1-1),'4a data'!$B128) -> 0 | G128: =SUMIFS(INPUT!$Q:$Q,INPUT!$T:$T,VLOOKUP('4a data'!$C128,References!$B:$C,2,FALSE),Ad_Distribution,"Search",OFFSET(Categories,0,'4a data'!$C$1-1),'4a data'!$B128) -> 0 | H128: =IFERROR(D128/E128,"") ->  | I128: =IF(H128="","",1-SUM(H128,J128)) ->  | J128: =IFERROR(G128/E128,"") -> 
A129: 43 | C129: ='4a'!$F$4 -> Q3'11 | D129: =SUMIFS(Impressions,INPUT!$T:$T,VLOOKUP('4a data'!$C129,References!$B:$C,2,FALSE),Ad_Distribution,"Search",OFFSET(Categories,0,'4a data'!$C$1-1),'4a data'!$B128) -> 0 | E129: =SUMIFS(Potential,INPUT!$T:$T,VLOOKUP('4a data'!$C129,References!$B:$C,2,FALSE),Ad_Distribution,"Search",OFFSET(Categories,0,'4a data'!$C$1-1),'4a data'!$B128) -> 0 | F129: =SUMIFS(INPUT!$R:$R,INPUT!$T:$T,VLOOKUP('4a data'!$C129,References!$B:$C,2,FALSE),Ad_Distribution,"Search",OFFSET(Categories,0,'4a data'!$C$1-1),'4a data'!$B128) -> 0 | G129: =SUMIFS(INPUT!$Q:$Q,INPUT!$T:$T,VLOOKUP('4a data'!$C129,References!$B:$C,2,FALSE),Ad_Distribution,"Search",OFFSET(Categories,0,'4a data'!$C$1-1),'4a data'!$B128) -> 0 | H129: =IFERROR(D129/E129,"") ->  | I129: =IF(H129="","",1-SUM(H129,J129)) ->  | J129: =IFERROR(G129/E129,"") -> 
A131: 44 | B131: =IF(ISERROR(VLOOKUP($A131,'4a'!$S$6:$T$50,2,FALSE)),0,VLOOKUP($A131,'4a'!$S$6:$T$50,2,FALSE)) -> 0 | C131: ='4a'!$D$4 -> Q4'10 | D131: =SUMIFS(Impressions,INPUT!$T:$T,VLOOKUP('4a data'!$C131,References!$B:$C,2,FALSE),Ad_Distribution,"Search",OFFSET(Categories,0,'4a data'!$C$1-1),'4a data'!$B131) -> 0 | E131: =SUMIFS(Potential,INPUT!$T:$T,VLOOKUP('4a data'!$C131,References!$B:$C,2,FALSE),Ad_Distribution,"Search",OFFSET(Categories,0,'4a data'!$C$1-1),'4a data'!$B131) -> 0 | F131: =SUMIFS(INPUT!$R:$R,INPUT!$T:$T,VLOOKUP('4a data'!$C131,References!$B:$C,2,FALSE),Ad_Distribution,"Search",OFFSET(Categories,0,'4a data'!$C$1-1),'4a data'!$B131) -> 0 | G131: =SUMIFS(INPUT!$Q:$Q,INPUT!$T:$T,VLOOKUP('4a data'!$C131,References!$B:$C,2,FALSE),Ad_Distribution,"Search",OFFSET(Categories,0,'4a data'!$C$1-1),'4a data'!$B131) -> 0 | H131: =IFERROR(D131/E131,"") ->  | I131: =IF(H131="","",1-SUM(H131,J131)) ->  | J131: =IFERROR(G131/E131,"") -> 
A132: 44 | C132: ='4a'!$F$4 -> Q3'11 | D132: =SUMIFS(Impressions,INPUT!$T:$T,VLOOKUP('4a data'!$C132,References!$B:$C,2,FALSE),Ad_Distribution,"Search",OFFSET(Categories,0,'4a data'!$C$1-1),'4a data'!$B131) -> 0 | E132: =SUMIFS(Potential,INPUT!$T:$T,VLOOKUP('4a data'!$C132,References!$B:$C,2,FALSE),Ad_Distribution,"Search",OFFSET(Categories,0,'4a data'!$C$1-1),'4a data'!$B131) -> 0 | F132: =SUMIFS(INPUT!$R:$R,INPUT!$T:$T,VLOOKUP('4a data'!$C132,References!$B:$C,2,FALSE),Ad_Distribution,"Search",OFFSET(Categories,0,'4a data'!$C$1-1),'4a data'!$B131) -> 0 | G132: =SUMIFS(INPUT!$Q:$Q,INPUT!$T:$T,VLOOKUP('4a data'!$C132,References!$B:$C,2,FALSE),Ad_Distribution,"Search",OFFSET(Categories,0,'4a data'!$C$1-1),'4a data'!$B131) -> 0 | H132: =IFERROR(D132/E132,"") ->  | I132: =IF(H132="","",1-SUM(H132,J132)) ->  | J132: =IFERROR(G132/E132,"") -> 
A134: 45 | B134: =IF(ISERROR(VLOOKUP($A134,'4a'!$S$6:$T$50,2,FALSE)),0,VLOOKUP($A134,'4a'!$S$6:$T$50,2,FALSE)) -> 0 | C134: ='4a'!$D$4 -> Q4'10 | D134: =SUMIFS(Impressions,INPUT!$T:$T,VLOOKUP('4a data'!$C134,References!$B:$C,2,FALSE),Ad_Distribution,"Search",OFFSET(Categories,0,'4a data'!$C$1-1),'4a data'!$B134) -> 0 | E134: =SUMIFS(Potential,INPUT!$T:$T,VLOOKUP('4a data'!$C134,References!$B:$C,2,FALSE),Ad_Distribution,"Search",OFFSET(Categories,0,'4a data'!$C$1-1),'4a data'!$B134) -> 0 | F134: =SUMIFS(INPUT!$R:$R,INPUT!$T:$T,VLOOKUP('4a data'!$C134,References!$B:$C,2,FALSE),Ad_Distribution,"Search",OFFSET(Categories,0,'4a data'!$C$1-1),'4a data'!$B134) -> 0 | G134: =SUMIFS(INPUT!$Q:$Q,INPUT!$T:$T,VLOOKUP('4a data'!$C134,References!$B:$C,2,FALSE),Ad_Distribution,"Search",OFFSET(Categories,0,'4a data'!$C$1-1),'4a data'!$B134) -> 0 | H134: =IFERROR(D134/E134,"") ->  | I134: =IF(H134="","",1-SUM(H134,J134)) ->  | J134: =IFERROR(G134/E134,"") -> 
A135: 45 | C135: ='4a'!$F$4 -> Q3'11 | D135: =SUMIFS(Impressions,INPUT!$T:$T,VLOOKUP('4a data'!$C135,References!$B:$C,2,FALSE),Ad_Distribution,"Search",OFFSET(Categories,0,'4a data'!$C$1-1),'4a data'!$B134) -> 0 | E135: =SUMIFS(Potential,INPUT!$T:$T,VLOOKUP('4a data'!$C135,References!$B:$C,2,FALSE),Ad_Distribution,"Search",OFFSET(Categories,0,'4a data'!$C$1-1),'4a data'!$B134) -> 0 | F135: =SUMIFS(INPUT!$R:$R,INPUT!$T:$T,VLOOKUP('4a data'!$C135,References!$B:$C,2,FALSE),Ad_Distribution,"Search",OFFSET(Categories,0,'4a data'!$C$1-1),'4a data'!$B134) -> 0 | G135: =SUMIFS(INPUT!$Q:$Q,INPUT!$T:$T,VLOOKUP('4a data'!$C135,References!$B:$C,2,FALSE),Ad_Distribution,"Search",OFFSET(Categories,0,'4a data'!$C$1-1),'4a data'!$B134) -> 0 | H135: =IFERROR(D135/E135,"") ->  | I135: =IF(H135="","",1-SUM(H135,J135)) ->  | J135: =IFERROR(G135/E135,"") -> 
A137: 46 | B137: =IF(ISERROR(VLOOKUP($A137,'4'!$S$6:$T$50,2,FALSE)),0,VLOOKUP($A137,'4'!$S$6:$T$50,2,FALSE)) -> 0 | C137: ='4a'!$D$4 -> Q4'10 | D137: =SUMIFS(Impressions,INPUT!$T:$T,VLOOKUP('4a data'!$C137,References!$B:$C,2,FALSE),Ad_Distribution,"Search",OFFSET(Categories,0,'4a data'!$C$1-1),'4a data'!$B137) -> 0 | E137: =SUMIFS(Potential,INPUT!$T:$T,VLOOKUP('4a data'!$C137,References!$B:$C,2,FALSE),Ad_Distribution,"Search",OFFSET(Categories,0,'4a data'!$C$1-1),'4a data'!$B137) -> 0 | F137: =SUMIFS(INPUT!$R:$R,INPUT!$T:$T,VLOOKUP('4a data'!$C137,References!$B:$C,2,FALSE),Ad_Distribution,"Search",OFFSET(Categories,0,'4a data'!$C$1-1),'4a data'!$B137) -> 0 | G137: =SUMIFS(INPUT!$Q:$Q,INPUT!$T:$T,VLOOKUP('4a data'!$C137,References!$B:$C,2,FALSE),Ad_Distribution,"Search",OFFSET(Categories,0,'4a data'!$C$1-1),'4a data'!$B137) -> 0 | H137: =IFERROR(D137/E137,"") ->  | I137: =IF(H137="","",1-SUM(H137,J137)) ->  | J137: =IFERROR(G137/E137,"") -> 
A138: 46 | C138: ='4a'!$F$4 -> Q3'11 | D138: =SUMIFS(Impressions,INPUT!$T:$T,VLOOKUP('4a data'!$C138,References!$B:$C,2,FALSE),Ad_Distribution,"Search",OFFSET(Categories,0,'4a data'!$C$1-1),'4a data'!$B137) -> 0 | E138: =SUMIFS(Potential,INPUT!$T:$T,VLOOKUP('4a data'!$C138,References!$B:$C,2,FALSE),Ad_Distribution,"Search",OFFSET(Categories,0,'4a data'!$C$1-1),'4a data'!$B137) -> 0 | F138: =SUMIFS(INPUT!$R:$R,INPUT!$T:$T,VLOOKUP('4a data'!$C138,References!$B:$C,2,FALSE),Ad_Distribution,"Search",OFFSET(Categories,0,'4a data'!$C$1-1),'4a data'!$B137) -> 0 | G138: =SUMIFS(INPUT!$Q:$Q,INPUT!$T:$T,VLOOKUP('4a data'!$C138,References!$B:$C,2,FALSE),Ad_Distribution,"Search",OFFSET(Categories,0,'4a data'!$C$1-1),'4a data'!$B137) -> 0 | H138: =IFERROR(D138/E138,"") ->  | I138: =IF(H138="","",1-SUM(H138,J138)) ->  | J138: =IFERROR(G138/E138,"") -> 
A140: 47 | B140: =IF(ISERROR(VLOOKUP($A140,'4'!$S$6:$T$50,2,FALSE)),0,VLOOKUP($A140,'4'!$S$6:$T$50,2,FALSE)) -> 0 | C140: ='4a'!$D$4 -> Q4'10 | D140: =SUMIFS(Impressions,INPUT!$T:$T,VLOOKUP('4a data'!$C140,References!$B:$C,2,FALSE),Ad_Distribution,"Search",OFFSET(Categories,0,'4a data'!$C$1-1),'4a data'!$B140) -> 0 | E140: =SUMIFS(Potential,INPUT!$T:$T,VLOOKUP('4a data'!$C140,References!$B:$C,2,FALSE),Ad_Distribution,"Search",OFFSET(Categories,0,'4a data'!$C$1-1),'4a data'!$B140) -> 0 | F140: =SUMIFS(INPUT!$R:$R,INPUT!$T:$T,VLOOKUP('4a data'!$C140,References!$B:$C,2,FALSE),Ad_Distribution,"Search",OFFSET(Categories,0,'4a data'!$C$1-1),'4a data'!$B140) -> 0 | G140: =SUMIFS(INPUT!$Q:$Q,INPUT!$T:$T,VLOOKUP('4a data'!$C140,References!$B:$C,2,FALSE),Ad_Distribution,"Search",OFFSET(Categories,0,'4a data'!$C$1-1),'4a data'!$B140) -> 0 | H140: =IFERROR(D140/E140,"") ->  | I140: =IF(H140="","",1-SUM(H140,J140)) ->  | J140: =IFERROR(G140/E140,"") -> 
A141: 47 | C141: ='4a'!$F$4 -> Q3'11 | D141: =SUMIFS(Impressions,INPUT!$T:$T,VLOOKUP('4a data'!$C141,References!$B:$C,2,FALSE),Ad_Distribution,"Search",OFFSET(Categories,0,'4a data'!$C$1-1),'4a data'!$B140) -> 0 | E141: =SUMIFS(Potential,INPUT!$T:$T,VLOOKUP('4a data'!$C141,References!$B:$C,2,FALSE),Ad_Distribution,"Search",OFFSET(Categories,0,'4a data'!$C$1-1),'4a data'!$B140) -> 0 | F141: =SUMIFS(INPUT!$R:$R,INPUT!$T:$T,VLOOKUP('4a data'!$C141,References!$B:$C,2,FALSE),Ad_Distribution,"Search",OFFSET(Categories,0,'4a data'!$C$1-1),'4a data'!$B140) -> 0 | G141: =SUMIFS(INPUT!$Q:$Q,INPUT!$T:$T,VLOOKUP('4a data'!$C141,References!$B:$C,2,FALSE),Ad_Distribution,"Search",OFFSET(Categories,0,'4a data'!$C$1-1),'4a data'!$B140) -> 0 | H141: =IFERROR(D141/E141,"") ->  | I141: =IF(H141="","",1-SUM(H141,J141)) ->  | J141: =IFERROR(G141/E141,"") -> 
A143: 48 | B143: =IF(ISERROR(VLOOKUP($A143,'4'!$S$6:$T$50,2,FALSE)),0,VLOOKUP($A143,'4'!$S$6:$T$50,2,FALSE)) -> 0 | C143: ='4a'!$D$4 -> Q4'10 | D143: =SUMIFS(Impressions,INPUT!$T:$T,VLOOKUP('4a data'!$C143,References!$B:$C,2,FALSE),Ad_Distribution,"Search",OFFSET(Categories,0,'4a data'!$C$1-1),'4a data'!$B143) -> 0 | E143: =SUMIFS(Potential,INPUT!$T:$T,VLOOKUP('4a data'!$C143,References!$B:$C,2,FALSE),Ad_Distribution,"Search",OFFSET(Categories,0,'4a data'!$C$1-1),'4a data'!$B143) -> 0 | F143: =SUMIFS(INPUT!$R:$R,INPUT!$T:$T,VLOOKUP('4a data'!$C143,References!$B:$C,2,FALSE),Ad_Distribution,"Search",OFFSET(Categories,0,'4a data'!$C$1-1),'4a data'!$B143) -> 0 | G143: =SUMIFS(INPUT!$Q:$Q,INPUT!$T:$T,VLOOKUP('4a data'!$C143,References!$B:$C,2,FALSE),Ad_Distribution,"Search",OFFSET(Categories,0,'4a data'!$C$1-1),'4a data'!$B143) -> 0 | H143: =IFERROR(D143/E143,"") ->  | I143: =IF(H143="","",1-SUM(H143,J143)) ->  | J143: =IFERROR(G143/E143,"") -> 
A144: 48 | C144: ='4a'!$F$4 -> Q3'11 | D144: =SUMIFS(Impressions,INPUT!$T:$T,VLOOKUP('4a data'!$C144,References!$B:$C,2,FALSE),Ad_Distribution,"Search",OFFSET(Categories,0,'4a data'!$C$1-1),'4a data'!$B143) -> 0 | E144: =SUMIFS(Potential,INPUT!$T:$T,VLOOKUP('4a data'!$C144,References!$B:$C,2,FALSE),Ad_Distribution,"Search",OFFSET(Categories,0,'4a data'!$C$1-1),'4a data'!$B143) -> 0 | F144: =SUMIFS(INPUT!$R:$R,INPUT!$T:$T,VLOOKUP('4a data'!$C144,References!$B:$C,2,FALSE),Ad_Distribution,"Search",OFFSET(Categories,0,'4a data'!$C$1-1),'4a data'!$B143) -> 0 | G144: =SUMIFS(INPUT!$Q:$Q,INPUT!$T:$T,VLOOKUP('4a data'!$C144,References!$B:$C,2,FALSE),Ad_Distribution,"Search",OFFSET(Categories,0,'4a data'!$C$1-1),'4a data'!$B143) -> 0 | H144: =IFERROR(D144/E144,"") ->  | I144: =IF(H144="","",1-SUM(H144,J144)) ->  | J144: =IFERROR(G144/E144,"") -> 
A146: 49 | B146: =IF(ISERROR(VLOOKUP($A146,'4'!$S$6:$T$50,2,FALSE)),0,VLOOKUP($A146,'4'!$S$6:$T$50,2,FALSE)) -> 0 | C146: ='4a'!$D$4 -> Q4'10 | D146: =SUMIFS(Impressions,INPUT!$T:$T,VLOOKUP('4a data'!$C146,References!$B:$C,2,FALSE),Ad_Distribution,"Search",OFFSET(Categories,0,'4a data'!$C$1-1),'4a data'!$B146) -> 0 | E146: =SUMIFS(Potential,INPUT!$T:$T,VLOOKUP('4a data'!$C146,References!$B:$C,2,FALSE),Ad_Distribution,"Search",OFFSET(Categories,0,'4a data'!$C$1-1),'4a data'!$B146) -> 0 | F146: =SUMIFS(INPUT!$R:$R,INPUT!$T:$T,VLOOKUP('4a data'!$C146,References!$B:$C,2,FALSE),Ad_Distribution,"Search",OFFSET(Categories,0,'4a data'!$C$1-1),'4a data'!$B146) -> 0 | G146: =SUMIFS(INPUT!$Q:$Q,INPUT!$T:$T,VLOOKUP('4a data'!$C146,References!$B:$C,2,FALSE),Ad_Distribution,"Search",OFFSET(Categories,0,'4a data'!$C$1-1),'4a data'!$B146) -> 0 | H146: =IFERROR(D146/E146,"") ->  | I146: =IF(H146="","",1-SUM(H146,J146)) ->  | J146: =IFERROR(G146/E146,"") -> 
A147: 49 | C147: ='4a'!$F$4 -> Q3'11 | D147: =SUMIFS(Impressions,INPUT!$T:$T,VLOOKUP('4a data'!$C147,References!$B:$C,2,FALSE),Ad_Distribution,"Search",OFFSET(Categories,0,'4a data'!$C$1-1),'4a data'!$B146) -> 0 | E147: =SUMIFS(Potential,INPUT!$T:$T,VLOOKUP('4a data'!$C147,References!$B:$C,2,FALSE),Ad_Distribution,"Search",OFFSET(Categories,0,'4a data'!$C$1-1),'4a data'!$B146) -> 0 | F147: =SUMIFS(INPUT!$R:$R,INPUT!$T:$T,VLOOKUP('4a data'!$C147,References!$B:$C,2,FALSE),Ad_Distribution,"Search",OFFSET(Categories,0,'4a data'!$C$1-1),'4a data'!$B146) -> 0 | G147: =SUMIFS(INPUT!$Q:$Q,INPUT!$T:$T,VLOOKUP('4a data'!$C147,References!$B:$C,2,FALSE),Ad_Distribution,"Search",OFFSET(Categories,0,'4a data'!$C$1-1),'4a data'!$B146) -> 0 | H147: =IFERROR(D147/E147,"") ->  | I147: =IF(H147="","",1-SUM(H147,J147)) ->  | J147: =IFERROR(G147/E147,"") -> 
A149: 50 | B149: =IF(ISERROR(VLOOKUP($A149,'4'!$S$6:$T$50,2,FALSE)),0,VLOOKUP($A149,'4'!$S$6:$T$50,2,FALSE)) -> 0 | C149: ='4a'!$D$4 -> Q4'10 | D149: =SUMIFS(Impressions,INPUT!$T:$T,VLOOKUP('4a data'!$C149,References!$B:$C,2,FALSE),Ad_Distribution,"Search",OFFSET(Categories,0,'4a data'!$C$1-1),'4a data'!$B149) -> 0 | E149: =SUMIFS(Potential,INPUT!$T:$T,VLOOKUP('4a data'!$C149,References!$B:$C,2,FALSE),Ad_Distribution,"Search",OFFSET(Categories,0,'4a data'!$C$1-1),'4a data'!$B149) -> 0 | F149: =SUMIFS(INPUT!$R:$R,INPUT!$T:$T,VLOOKUP('4a data'!$C149,References!$B:$C,2,FALSE),Ad_Distribution,"Search",OFFSET(Categories,0,'4a data'!$C$1-1),'4a data'!$B149) -> 0 | G149: =SUMIFS(INPUT!$Q:$Q,INPUT!$T:$T,VLOOKUP('4a data'!$C149,References!$B:$C,2,FALSE),Ad_Distribution,"Search",OFFSET(Categories,0,'4a data'!$C$1-1),'4a data'!$B149) -> 0 | H149: =IFERROR(D149/E149,"") ->  | I149: =IF(H149="","",1-SUM(H149,J149)) ->  | J149: =IFERROR(G149/E149,"") -> 
